Workbook

Sheet Past

Sheet Past & On-going
A1: Date | B1: 2014-04-16 | C1: 2014-05-16 | D1: 2014-05-30 | E1: 2014-06-27 | F1: 2014-07-08 | G1: 2014-07-18 | H1: 2014-08-01 | I1: 2014-09-10 | J1: 2014-09-25 | K1: 2014-10-01 | L1: 2014-10-20 | M1: 2014-10-31 | N1: 2014-11-12 | O1: 2014-11-20 | P1: 2014-12-23 | Q1: 2015-01-23 | R1: 2016-02-20 | S1: 2015-02-20 | T1: 2015-03-06 | U1: 2015-03-11 | V1: 2015-03-13 | W1: 2015-03-23 | X1: 2015-03-26 | Y1: 2015-03-30 | Z1: 2015-04-20 | AA1: 2015-04-20 | AB1: 2015-05-20 | AC1: 2015-06-18 | AD1: 2015-06-19 | AE1: 2015-06-19 | AF1: 2015-06-22 | AG1: 2015-06-22 | AH1: 2015-07-21 | AI1: 2015-07-28 | AJ1: 2015-07-30 | AK1: 2015-08-03 | AL1: 2015-08-13 | AM1: 2015-08-18 | AN1: 2015-08-20 | AO1: 2015-08-24 | AP1: 2015-09-04 | AQ1: 2015-09-18 | AR1: 2015-09-21 | AS1: 2015-10-30 | AT1: 2015-11-04 | AU1: 2015-11-23 | AV1: 2015-11-30 | AW1: 2015-12-01 | AX1: 2015-12-10 | AY1: 2015-12-18 | AZ1: 2015-12-18 | BA1: 2015-12-21 | BB1: 2015-12-21 | BC1: 2015-12-22 | BD1: 2016-01-07 | BE1: 2016-01-20 | BF1: 2016-01-20 | BG1: 2016-01-27 | BH1: 2016-01-28 | BI1: 2016-02-12 | BJ1: 2016-02-16 | BK1: 2016-02-18 | BL1: 2016-02-22 | BM1: 2016-02-25 | BN1: 2016-03-01 | BO1: 2016-03-23 | BP1: 2016-03-23 | BQ1: 2016-03-29 | BR1: 2016-04-05 | BS1: 2016-04-06 | BT1: 2016-04-08 | BU1: 2016-04-08 | BV1: 2016-04-19 | BW1: 2016-04-20 | BX1: 2016-04-20 | BY1: 2016-04-21 | BZ1: 2016-04-21 | CA1: 2016-05-17 | CB1: 2016-05-20 | CC1: 2016-06-01 | CD1: 2016-06-07 | CE1: 2016-06-07 | CF1: 2016-06-10 | CG1: 2016-06-20 | CH1: 2016-06-21 | CI1: 2016-06-21 | CJ1: 2016-06-22 | CK1: 2016-07-12 | CL1: 2016-07-20 | CM1: 2016-07-20 | CN1: 2016-07-20 | CO1: 2016-07-22 | CP1: 2016-07-22 | CQ1: 2016-07-22 | CR1: 2016-07-22 | CS1: 2016-07-22 | CT1: 2016-08-01 | CU1: 2016-08-01 | CV1: 2016-08-02 | CW1: 2016-08-05 | CX1: 2016-08-16 | CY1: 2016-08-22 | CZ1: 2016-09-20 | DA1: 2016-09-20 | DB1: 2016-09-20 | DC1: 2016-09-29 | DD1: 2016-10-04 | DE1: 2016-10-13 | DF1: 2016-10-14 | DG1: 2016-10-18 | DH1: 2016-10-20 | DI1: 2016-10-20 | DJ1: 2016-10-21 | DK1: 2016-10-27 | DL1: 2016-11-15 | DM1: 2016-11-18 | DN1: 2016-11-21 | DO1: 2016-11-28 | DP1: 2016-12-12 | DQ1: 2016-12-14 | DR1: 2016-12-16 | DS1: 2016-12-20 | DT1: 2016-12-22 | DU1: 2016-12-28 | DV1: 2017-01-04 | DW1: 2017-01-05 | DX1: 2017-01-16 | DY1: 2017-01-18 | DZ1: 2017-01-20 | EA1: 2017-01-25 | EB1: 2017-02-01 | EC1: 2017-02-01 | ED1: 2017-02-03 | EE1: 2017-02-03 | EF1: 2017-02-13 | EG1: 2017-02-16 | EH1: 2017-02-16 | EI1: 2017-02-20 | EJ1: 2017-02-20 | EK1: 2017-02-22 | EL1: 2017-02-24 | EM1: 2017-03-13
A2: Client | B2: SAN | C2: GIV | D2: UofAuck | E2: GIV | F2: MBIE | G2: KiwiNet | H2: GIV | I2: SAN | J2: MON | K2: MBIE | L2: KiwiNet | M2: GIV | N2: SAN | O2: FG | P2: FG | Q2: FG | R2: FG | S2: KiwiNet | T2: GIV | U2: SAN | V2: Fed Fmrs | W2: KiwiNet | X2: FG | Y2: NZP | Z2: FG | AA2: KiwiNet | AB2: FG | AC2: MBIE | AD2: MBIE | AE2: PFR | AF2: FG | AG2: KiwiNet | AH2: FG | AI2: NZBIO | AJ2: GSK | AK2: Anatara | AL2: MBIE | AM2: UofOtago | AN2: KiwiNet | AO2: FG | AP2: Anatara | AQ2: KiwiNet | AR2: FG | AS2: FG | AT2: Anatara | AU2: KiwiNet | AV2: FG | AW2: Pfizer (Jul-Sep + DorsaVi) | AX2: Anatara | AY2: PFR | AZ2: MBIE (Manju) | BA2: FG | BB2: KiwiNet | BC2: Pfizer (Oct) | BD2: Roche | BE2: KiwiNet | BF2: Anatara | BG2: FG | BH2: UofOtago | BI2: HVN | BJ2: Anatara | BK2: KiwiNet | BL2: FG | BM2: Pfizer (Nov) | BN2: Pfizer (Dec) | BO2: Anatara | BP2: FG | BQ2: Pfizer | BR2: Pfizer (Jan + 6 months error catch-up) | BS2: GSK | BT2: Anatara | BU2: HVN | BV2: Pfizer | BW2: FG | BX2: PFR MBIE advice | BY2: NZFOA | BZ2: NZFOA rebate | CA2: Pfizer | CB2: FG | CC2: MBIE Assessor | CD2: Taskforce Nutriton | CE2: Taskforce Nutrition | CF2: HVN Board | CG2: FG | CH2: Pfizer | CI2: NZFOA | CJ2: NZFOA rebate | CK2: Taskforce Nutrition | CL2: FG | CM2: PFR MBIE advice | CN2: PFR facilitn | CO2: KiwiNet | CP2: KiwiNet | CQ2: KiwiNet | CR2: KiwiNet | CS2: KiwiNet | CT2: NZVCA | CU2: NZVCA | CV2: Pfizer | CW2: Bayer | CX2: KiwiNet | CY2: FG | CZ2: FG | DA2: KiwiNet | DB2: Callaghan Innovation | DC2: Endeavour Fund | DD2: Zoetis | DE2: Anatara | DF2: Bayer CH | DG2: Pfizer | DH2: KiwiNet | DI2: FG | DJ2: Zoetis | DK2: Taskforce Nutrition | DL2: Pfizer | DM2: FG | DN2: KiwiNet | DO2: Bayer CH | DP2: P&G | DQ2: KiwiNet | DR2: Bayer CH | DS2: FG | DT2: Taskforce, S'pore | DU2: Pfizer | DV2: Zoetis | DW2: MLA-DC | DX2: Bayer CH | DY2: Pfizer | DZ2: FG | EA2: KiwiNet | EB2: Merck Group | EC2: Taskforce, S'pore | ED2: HVN Board | EE2: HVN Board | EF2: KiwiNet | EG2: MBIE CRI SSIF | EH2: Bayer CH | EI2: Spring Sheep | EJ2: HVN Board | EK2: Pfizer | EL2: Douglas KOL | EM2: EA Pharma
A3: Gross Amount | B3: 24,093.00 € | C3: 26,900.23 € | D3: 6,583.75 € | E3: 26,512.42 € | F3: 10,363.50 € | G3: 14,479.90 € | H3: 27,337.30 € | I3: 24,685.85 € | J3: 115,318.25 € | K3: 8,547.50 € | L3: 3,601.60 € | M3: 26,624.34 € | N3: 24,602.07 € | O3: 2,108.33 € | P3: 2,108.33 € | Q3: 2,108.33 € | R3: 2,108.33 € | S3: 7,187.50 € | T3: 31,022.64 € | U3: 23,109.36 € | V3: 197.10 € | W3: 11,797.16 € | X3: 2,108.33 € | Y3: 2,300.00 € | Z3: 2,108.33 € | AA3: 2,395.83 € | AB3: 2,108.33 € | AC3: 9,200.00 € | AD3: 3,876.50 € | AE3: 3,881.25 € | AF3: 2,226.83 € | AG3: 7,371.99 € | AH3: 2,108.33 € | AI3: 3,500.00 € | AJ3: 139,567.72 € | AK3: 5,432.22 € | AL3: 9,200.00 € | AM3: 3,450.00 € | AN3: 2,395.83 € | AO3: 2,108.33 € | AP3: 5,259.00 € | AQ3: 2,395.83 € | AR3: 2,108.33 € | AS3: 2,108.33 € | AT3: 5,239.31 € | AU3: 4,791.66 € | AV3: 2,108.33 € | AW3: 13,220.08 € | AX3: 5,231.39 € | AY3: 4,600.00 € | AZ3: 13,800.00 € | BA3: 2,108.33 € | BB3: 2,395.83 € | BC3: 3,133.12 € | BD3: 95,663.10 € | BE3: 2,395.83 € | BF3: 5,281.17 € | BG3: 2,108.33 € | BH3: 2,530.00 € | BI3: 2,875.00 € | BJ3: 5,249.82 € | BK3: 2,395.83 € | BL3: 2,108.33 € | BM3: 3,197.40 € | BN3: 3,221.64 € | BO3: 5,517.73 € | BP3: 2,108.33 € | BQ3: 3,159.17 € | BR3: 10,361.17 € | BS3: 150,854.38 € | BT3: 5,410.96 € | BU3: 2,875.00 € | BV3: 4,057.00 € | BW3: 2,108.33 € | BX3: 11,500.00 € | BY3: 27,887.50 € | BZ3: -16,698.00 € | CA3: 4,173.16 € | CB3: 2,108.33 € | CC3: 4,674.75 € | CD3: 10,695.00 € | CE3: 21,390.00 € | CF3: 2,875.00 € | CG3: 2,108.33 € | CH3: 3,977.04 € | CI3: 28,458.50 € | CJ3: -17,067.15 € | CK3: 21,390.00 € | CL3: 2,108.33 € | CM3: 5,290.00 € | CN3: 4,025.00 € | CO3: 2,395.83 € | CP3: 2,395.83 € | CQ3: 2,395.83 € | CR3: 2,395.83 € | CS3: 2,395.83 € | CT3: 5,612.22 € | CU3: 25,276.04 € | CV3: 3,927.76 € | CW3: 3,916.65 € | CX3: 2,395.83 € | CY3: 2,108.33 € | CZ3: 2,108.33 € | DA3: 2,395.83 € | DB3: 690.00 € | DC3: 12,105.46 € | DD3: 11,659.72 € | DE3: 20,777.04 € | DF3: 15,792.87 € | DG3: 7,608.07 € | DH3: 2,395.83 € | DI3: 2,108.33 € | DJ3: 11,831.41 € | DK3: 6,095.00 € | DL3: 7,655.14 € | DM3: 2,108.33 € | DN3: 2,395.83 € | DO3: 3,800.11 € | DP3: 10,236.10 € | DQ3: 2,395.83 € | DR3: 3,730.86 € | DS3: 2,108.33 € | DT3: 12,477.50 € | DU3: 7,895.00 € | DV3: 12,311.44 € | DW3: 46,081.56 € | DX3: 3,771.78 € | DY3: 7,574.98 € | DZ3: 2,108.33 € | EA3: 2,395.83 € | EB3: 21,197.12 € | EC3: 12,477.50 € | ED3: 2,875.00 € | EE3: 2,875.00 € | EF3: 2,395.83 € | EG3: 2,300.00 € | EH3: 3,706.73 € | EI3: 5,290.00 € | EJ3: 2,875.00 € | EK3: 7,615.36 € | EL3: 5,031.25 € | EM3: 9,229.63 €
A4: GST | B4: N | C4: N | D4: Y | E4: N | F4: Y | G4: Y | H4: N | I4: N | J4: N | K4: Y | L4: Y | M4: N | N4: N | O4: Y | P4: Y | Q4: Y | R4: Y | S4: Y | T4: N | U4: N | V4: Y | W4: Y | X4: Y | Y4: Y | Z4: Y | AA4: Y | AB4: Y | AC4: Y | AD4: Y | AE4: Y | AF4: Y | AG4: Y | AH4: Y | AI4: N | AJ4: N | AK4: N | AL4: Y | AM4: Y | AN4: Y | AO4: Y | AP4: N | AQ4: Y | AR4: Y | AS4: Y | AT4: N | AU4: Y | AV4: Y | AW4: N | AX4: N | AY4: Y | AZ4: Y | BA4: Y | BB4: Y | BC4: N | BD4: N | BE4: Y | BF4: N | BG4: Y | BH4: Y | BI4: Y | BJ4: N | BK4: Y | BL4: Y | BM4: N | BN4: N | BO4: N | BP4: Y | BQ4: N | BR4: N | BS4: N | BT4: N | BU4: Y | BV4: N | BW4: Y | BX4: Y | BY4: Y | BZ4: Y | CA4: N | CB4: Y | CC4: Y | CD4: Y | CE4: Y | CF4: Y | CG4: Y | CH4: N | CI4: Y | CJ4: Y | CK4: Y | CL4: Y | CM4: Y | CN4: Y | CO4: Y | CP4: Y | CQ4: Y | CR4: Y | CS4: Y | CT4: N | CU4: N | CV4: N | CW4: N | CX4: Y | CY4: Y | CZ4: Y | DA4: Y | DB4: Y | DC4: Y | DD4: N | DE4: N | DF4: N | DG4: N | DH4: Y | DI4: Y | DJ4: N | DK4: Y | DL4: N | DM4: Y | DN4: Y | DO4: N | DP4: N | DQ4: Y | DR4: N | DS4: Y | DT4: Y | DU4: N | DV4: N | DW4: N | DX4: N | DY4: N | DZ4: Y | EA4: Y | EB4: N | EC4: Y | ED4: Y | EE4: Y | EF4: Y | EG4: Y | EH4: N | EI4: Y | EJ4: Y | EK4: N | EL4: Y | EM4: N
A5: Amount excl. GST | B5: =IF(B4="Y", B3/1.15,B3) -> 24,093.00 € | C5: 26,900.23 € | D5: 5,725.00 € | E5: 26,512.42 € | F5: 9,011.74 € | G5: 12,591.22 € | H5: 27,337.30 € | I5: 24,685.85 € | J5: 115,318.25 € | K5: 7,432.61 € | L5: 3,131.83 € | M5: 26,624.34 € | N5: 24,602.07 € | O5: 1,833.33 € | P5: 1,833.33 € | Q5: 1,833.33 € | R5: 1,833.33 € | S5: 6,250.00 € | T5: 31,022.64 € | U5: 23,109.36 € | V5: 171.39 € | W5: 10,258.40 € | X5: 1,833.33 € | Y5: 2,000.00 € | Z5: 1,833.33 € | AA5: 2,083.33 € | AB5: 1,833.33 € | AC5: 8,000.00 € | AD5: 3,370.87 € | AE5: 3,375.00 € | AF5: 1,936.37 € | AG5: 6,410.43 € | AH5: 1,833.33 € | AI5: 3,500.00 € | AJ5: 139,567.72 € | AK5: 5,432.22 € | AL5: 8,000.00 € | AM5: 3,000.00 € | AN5: 2,083.33 € | AO5: 1,833.33 € | AP5: 5,259.00 € | AQ5: 2,083.33 € | AR5: 1,833.33 € | AS5: 1,833.33 € | AT5: 5,239.31 € | AU5: 4,166.66 € | AV5: 1,833.33 € | AW5: 13,220.08 € | AX5: 5,231.39 € | AY5: 4,000.00 € | AZ5: 12,000.00 € | BA5: 1,833.33 € | BB5: 2,083.33 € | BC5: 3,133.12 € | BD5: 95,663.10 € | BE5: 2,083.33 € | BF5: 5,281.17 € | BG5: 1,833.33 € | BH5: 2,200.00 € | BI5: 2,500.00 € | BJ5: 5,249.82 € | BK5: 2,083.33 € | BL5: 1,833.33 € | BM5: 3,197.40 € | BN5: =IF(BN4="Y", BN3/1.15,BN3) -> 3,221.64 € | BO5: 5,517.73 € | BP5: 1,833.33 € | BQ5: 3,159.17 € | BR5: 10,361.17 € | BS5: 150,854.38 € | BT5: 5,410.96 € | BU5: 2,500.00 € | BV5: 4,057.00 € | BW5: 1,833.33 € | BX5: 10,000.00 € | BY5: 24,250.00 € | BZ5: -14,520.00 € | CA5: 4,173.16 € | CB5: 1,833.33 € | CC5: 4,065.00 € | CD5: 9,300.00 € | CE5: 18,600.00 € | CF5: 2,500.00 € | CG5: 1,833.33 € | CH5: 3,977.04 € | CI5: 24,746.52 € | CJ5: -14,841.00 € | CK5: =IF(CK4="Y", CK3/1.15,CK3) -> 18,600.00 € | CL5: =IF(CL4="Y", CL3/1.15,CL3) -> 1,833.33 € | CM5: =IF(CM4="Y", CM3/1.15,CM3) -> 4,600.00 € | CN5: =IF(CN4="Y", CN3/1.15,CN3) -> 3,500.00 € | CO5: 2,083.33 € | CP5: 2,083.33 € | CQ5: 2,083.33 € | CR5: 2,083.33 € | CS5: 2,083.33 € | CT5: 5,612.22 € | CU5: 25,276.04 € | CV5: 3,927.76 € | CW5: 3,916.65 € | CX5: 2,083.33 € | CY5: 1,833.33 € | CZ5: 1,833.33 € | DA5: 2,083.33 € | DB5: 600.00 € | DC5: 10,526.49 € | DD5: 11,659.72 € | DE5: 20,777.04 € | DF5: 15,792.87 € | DG5: 7,608.07 € | DH5: 2,083.33 € | DI5: 1,833.33 € | DJ5: 11,831.41 € | DK5: 5,300.00 € | DL5: 7,655.14 € | DM5: =IF(DM4="Y", DM3/1.15,DM3) -> 1,833.33 € | DN5: 2,083.33 € | DO5: 3,800.11 € | DP5: 10,236.10 € | DQ5: 2,083.33 € | DR5: 3,730.86 € | DS5: =IF(DS4="Y", DS3/1.15,DS3) -> 1,833.33 € | DT5: =IF(DT4="Y", DT3/1.15,DT3) -> 10,850.00 € | DU5: 7,895.00 € | DV5: 12,311.44 € | DW5: 46,081.56 € | DX5: 3,771.78 € | DY5: 7,574.98 € | DZ5: 1,833.33 € | EA5: 2,083.33 € | EB5: 21,197.12 € | EC5: 10,850.00 € | ED5: 2,500.00 € | EE5: 2,500.00 € | EF5: 2,083.33 € | EG5: 2,000.00 € | EH5: 3,706.73 € | EI5: 4,600.00 € | EJ5: 2,500.00 € | EK5: 7,615.36 € | EL5: 4,375.00 € | EM5: =IF(EM4="Y", EM3/1.15,EM3) -> 9,229.63 €
A6: Begins | B6: 2014-04-01 | C6: 2014-01-01 | D6: 2014-01-01 | E6: 2014-04-01 | F6: 2014-01-01 | G6: 2014-01-01 | H6: 2014-07-01 | I6: 2014-07-01 | J6: 2014-06-01 | K6: 2014-06-01 | L6: 2014-08-25 | M6: 2014-10-01 | N6: 2014-10-01 | O6: 2014-10-01 | P6: 2014-11-01 | Q6: 2014-12-01 | R6: 2015-01-01 | S6: 2014-07-01 | T6: 2015-01-01 | U6: 2015-01-01 | V6: 2014-09-24 | W6: 2014-10-01 | X6: 2015-02-01 | Y6: 2015-01-01 | Z6: 2015-03-01 | AA6: 2015-03-01 | AB6: 2015-04-01 | AC6: 2015-03-01 | AD6: 2015-05-01 | AE6: 2015-06-01 | AF6: 2015-05-01 | AG6: 2015-04-01 | AH6: 2015-06-01 | AI6: 2015-06-01 | AJ6: 2014-12-19 | AK6: 2015-08-01 | AL6: 2015-06-01 | AM6: 2015-07-01 | AN6: 2015-07-01 | AO6: 2015-07-01 | AP6: 2015-09-01 | AQ6: 2015-08-01 | AR6: 2015-08-01 | AS6: 2015-09-01 | AT6: 2015-10-01 | AU6: 2015-09-01 | AV6: 2015-10-01 | AW6: 2015-07-01 | AX6: 2015-11-01 | AY6: 2015-11-25 | AZ6: 2015-11-01 | BA6: 2015-11-01 | BB6: 2015-11-01 | BC6: 2015-07-01 | BD6: 2015-10-01 | BE6: 2015-12-01 | BF6: 2015-12-01 | BG6: 2015-12-01 | BH6: 2015-12-09 | BI6: 2015-10-01 | BJ6: 2016-01-01 | BK6: 2016-01-01 | BL6: 2016-01-01 | BM6: 2015-07-01 | BN6: 2015-07-01 | BO6: 2016-02-01 | BP6: 2016-02-01 | BQ6: 2016-02-01 | BR6: 2015-07-01 | BS6: 2015-12-19 | BT6: 2016-03-01 | BU6: 2016-01-01 | BV6: 2016-03-01 | BW6: 2016-03-01 | BX6: 2016-02-29 | BY6: 2016-03-29 | BZ6: 2016-03-29 | CA6: 2016-04-01 | CB6: 2016-04-01 | CC6: 2016-03-01 | CD6: 2016-03-24 | CE6: 2016-04-01 | CF6: 2016-04-01 | CG6: 2016-05-01 | CH6: 2016-05-01 | CI6: 2016-04-29 | CJ6: 2016-04-29 | CK6: 2016-05-01 | CL6: 2016-06-01 | CM6: 2016-05-29 | CN6: 2016-02-29 | CO6: 2016-02-01 | CP6: 2016-03-01 | CQ6: 2016-04-01 | CR6: 2016-05-01 | CS6: 2016-06-01 | CT6: 2015-10-02 | CU6: 2015-10-17 | CV6: 2016-06-01 | CW6: 2016-02-25 | CX6: 2016-07-01 | CY6: 2016-07-01 | CZ6: 2016-08-01 | DA6: 2016-08-01 | DB6: 2016-05-19 | DC6: 2016-07-28 | DD6: 2016-04-01 | DE6: 2016-08-16 | DF6: 2016-03-25 | DG6: 2016-07-01 | DH6: 2016-09-01 | DI6: 2016-09-01 | DJ6: 2016-07-01 | DK6: 2016-07-01 | DL6: 2016-08-01 | DM6: 2016-10-01 | DN6: 2016-10-01 | DO6: 2016-07-25 | DP6: 2016-08-10 | DQ6: 2016-11-01 | DR6: 2016-08-25 | DS6: 2016-11-01 | DT6: 2016-11-11 | DU6: 2016-09-01 | DV6: 2016-10-01 | DW6: 2016-08-16 | DX6: 2016-09-25 | DY6: 2016-10-01 | DZ6: 2016-12-01 | EA6: 2016-12-01 | EB6: 2016-12-01 | EC6: 2016-11-11 | ED6: 2016-07-01 | EE6: 2016-10-01 | EF6: 2017-01-01 | EG6: 2017-01-01 | EH6: 2016-10-25 | EI6: 2017-01-25 | EJ6: 2017-01-01 | EK6: 2016-11-01 | EL6: 2017-01-26 | EM6: 2017-01-21
A7: Ends | B7: 2014-06-30 | C7: 2014-03-31 | D7: 2014-02-28 | E7: 2014-06-30 | F7: 2014-03-31 | G7: 2014-06-30 | H7: 2014-09-30 | I7: 2014-09-30 | J7: 2015-05-31 | K7: 2014-07-31 | L7: 2014-08-26 | M7: 2014-12-31 | N7: 2014-12-31 | O7: 2014-10-31 | P7: 2014-11-30 | Q7: 2014-12-31 | R7: 2015-01-31 | S7: 2014-09-30 | T7: 2015-03-31 | U7: 2015-03-31 | V7: 2014-09-24 | W7: 2015-02-28 | X7: 2015-02-28 | Y7: 2015-01-31 | Z7: 2015-03-31 | AA7: 2015-03-31 | AB7: 2015-04-30 | AC7: 2015-04-30 | AD7: 2015-05-31 | AE7: 2015-06-02 | AF7: 2015-05-31 | AG7: 2015-06-30 | AH7: 2015-06-30 | AI7: 2015-06-30 | AJ7: 2015-12-18 | AK7: 2015-08-31 | AL7: 2015-07-31 | AM7: 2015-07-31 | AN7: 2015-07-31 | AO7: 2015-07-31 | AP7: 2015-09-30 | AQ7: 2015-08-31 | AR7: 2015-08-31 | AS7: 2015-09-30 | AT7: 2015-10-31 | AU7: 2015-10-31 | AV7: 2015-10-31 | AW7: 2016-01-31 | AX7: 2015-11-30 | AY7: 2015-11-27 | AZ7: 2016-03-31 | BA7: 2015-11-30 | BB7: 2015-11-30 | BC7: 2016-01-31 | BD7: 2016-03-31 | BE7: 2015-12-31 | BF7: 2015-12-31 | BG7: 2015-12-31 | BH7: 2015-12-10 | BI7: 2015-12-31 | BJ7: 2016-01-31 | BK7: 2016-01-31 | BL7: 2016-01-31 | BM7: 2016-01-31 | BN7: 2016-01-31 | BO7: 2016-02-29 | BP7: 2016-02-29 | BQ7: 2016-02-29 | BR7: 2016-01-31 | BS7: 2016-12-18 | BT7: 2016-03-31 | BU7: 2016-03-31 | BV7: 2016-03-31 | BW7: 2016-03-31 | BX7: 2016-03-17 | BY7: 2016-04-28 | BZ7: 2016-04-28 | CA7: 2016-04-30 | CB7: 2016-04-30 | CC7: 2016-04-30 | CD7: 2016-03-31 | CE7: 2016-04-30 | CF7: 2016-06-30 | CG7: 2016-05-31 | CH7: 2016-05-31 | CI7: 2016-05-28 | CJ7: 2016-05-28 | CK7: 2016-05-31 | CL7: 2016-06-30 | CM7: 2016-06-03 | CN7: 2016-03-01 | CO7: 2016-02-29 | CP7: 2016-03-31 | CQ7: 2016-04-30 | CR7: 2016-05-31 | CS7: 2016-06-30 | CT7: 2015-10-09 | CU7: 2015-11-08 | CV7: 2016-06-30 | CW7: 2016-03-24 | CX7: 2016-07-31 | CY7: 2016-07-31 | CZ7: 2016-08-31 | DA7: 2016-08-31 | DB7: 2016-05-20 | DC7: 2016-08-01 | DD7: 2016-06-30 | DE7: 2016-09-15 | DF7: 2016-07-24 | DG7: 2016-07-31 | DH7: 2016-09-30 | DI7: 2016-09-30 | DJ7: 2016-09-30 | DK7: 2016-07-22 | DL7: 2016-08-31 | DM7: 2016-10-31 | DN7: 2016-10-31 | DO7: 2016-08-24 | DP7: 2016-09-13 | DQ7: 2016-11-30 | DR7: 2016-09-24 | DS7: 2016-11-30 | DT7: 2016-12-10 | DU7: 2016-09-30 | DV7: 2016-12-31 | DW7: 2016-11-10 | DX7: 2016-10-24 | DY7: 2016-10-31 | DZ7: 2016-12-31 | EA7: 2016-12-31 | EB7: 2017-02-28 | EC7: 2016-12-10 | ED7: 2016-09-30 | EE7: 2016-12-31 | EF7: 2017-01-31 | EG7: 2017-01-31 | EH7: 2016-11-24 | EI7: 2017-02-24 | EJ7: 2017-03-31 | EK7: 2016-11-30 | EL7: 2017-03-07 | EM7: 2017-02-28
B8: P | C8: P | D8: C | E8: P | F8: C | G8: C | H8: P | I8: P | J8: P | K8: C | L8: C | M8: P | N8: P | O8: C | P8: C | Q8: C | R8: C | S8: C | T8: P | U8: P | V8: C | W8: C | X8: C | Y8: C | Z8: C | AA8: C | AB8: C | AC8: C | AD8: C | AE8: C | AF8: C | AG8: C | AH8: C | AI8: C | AJ8: P | AK8: C | AL8: C | AM8: C | AN8: C | AO8: C | AP8: C | AQ8: C | AR8: C | AS8: C | AT8: C | AU8: C | AV8: C | AW8: P | AX8: C | AY8: C | AZ8: C | BA8: C | BB8: C | BC8: P | BD8: P | BE8: C | BF8: C | BG8: C | BH8: C | BI8: C | BJ8: C | BK8: C | BL8: C | BM8: P | BN8: P | BO8: C | BP8: C | BQ8: P | BR8: P | BS8: P | BT8: C | BU8: C | BV8: P | BW8: C | BX8: C | BY8: C | BZ8: C | CA8: P | CB8: C | CC8: C | CD8: C | CE8: C | CF8: C | CG8: C | CH8: P | CI8: C | CJ8: C | CK8: C | CL8: C | CM8: C | CN8: C | CO8: C | CP8: C | CQ8: C | CR8: C | CS8: C | CT8: C | CU8: C | CV8: P | CW8: P | CX8: C | CY8: C | CZ8: C | DA8: C | DB8: C | DC8: C | DD8: P | DE8: C | DF8: P | DG8: P | DH8: C | DI8: C | DJ8: P | DK8: C | DL8: P | DM8: C | DN8: C | DO8: P | DP8: P | DQ8: C | DR8: P | DS8: C | DT8: C | DU8: P | DV8: P | DW8: C | DX8: P | DY8: P | DZ8: C | EA8: C | EB8: P | EC8: C | ED8: C | EE8: C | EF8: C | EG8: C | EH8: P | EI8: C | EJ8: C | EK8: P | EL8: C | EM8: P
A12: January | C12: 9,265.6 | D12: 3,008.1 | F12: 3,104.0 | G12: 2,156.5 | R12: 1,833.3 | T12: 10,685.6 | U12: 7,959.9 | Y12: 2,000.0 | AW12: 1,906.2 | BC12: 451.8 | BJ12: 5,249.8 | BK12: 2,083.3 | BL12: 1,833.3 | BM12: 461.0 | BN12: 464.5 | BR12: 1,493.9 | BU12: 851.6
A13: February | C13: 8,369.0 | D13: 2,716.9 | F13: 2,803.7 | G13: 2,086.9 | T13: 9,651.5 | U13: 7,189.6 | W13: 1,902.2 | X13: 1,833.3 | BO13: 5,517.7 | BP13: 1,833.3 | BQ13: 3,159.2 | BU13: 796.7 | BX13: 1,666.7
A14: March | C14: 9,265.6 | F14: 3,104.0 | G14: 2,086.9 | T14: 10,685.6 | U14: 7,959.9 | Z14: 1,833.3 | AA14: 2,083.3 | AC14: 4,065.6 | AZ14: 2,447.4 | BD14: 16,205.2 | BT14: 5,411.0 | BU14: 851.6 | BV14: 4,057.0 | BW14: 1,833.3 | BX14: 9,444.4 | BY14: 2,346.8 | BZ14: -1,405.2 | CC14: 2,065.8 | CD14: 36,037.5
A15: April | B15: 8,207.5 | E15: 9,031.7 | G15: 2,086.9 | AB15: 1,833.3 | AC15: 3,934.4 | AG15: 2,183.8 | BY15: 21,903.2 | BZ15: -13,114.8 | CA15: 4,173.2 | CB15: 1,833.3 | CC15: 1,999.2 | CE15: 18,600.0 | CF15: 851.6 | CI15: 2,474.7 | CJ15: -1,484.1
A16: May | B16: 7,942.7 | E16: 8,740.4 | G16: 2,086.9 | J16: 9,794.2 | AD16: 3,370.9 | AF16: 1,936.4 | AG16: 2,113.3 | CF16: 824.2 | CG16: 1,833.3 | CH16: 3,977.0 | CI16: 23,096.8 | CJ16: -13,851.6
A17: June | B17: 7,942.7 | E17: 8,740.4 | G17: 2,086.9 | J17: 9,794.2 | K17: 3,777.2 | AE17: 3,375.0 | AG17: 2,113.3 | AH17: 1,833.3 | AI17: 3,500.0 | AL17: 4,065.6 | CF17: 824.2
A18: July | H18: 9,211.5 | I18: 8,318.1 | K18: 3,777.2 | S18: 2,106.0 | AL18: 4,065.6 | AM18: 3,000.0 | AN18: 2,083.3 | AO18: 1,833.3 | AW18: 1,906.2 | BC18: 451.8 | BM18: 461.0 | BN18: 464.5 | BR18: 1,493.9
A19: August | H19: 9,211.5 | I19: 8,318.1 | L19: 40,713.7 | S19: 2,106.0 | AK19: 5,432.2 | AQ19: 2,083.3 | AR19: 1,833.3 | AW19: 1,881.6 | BC19: 445.9 | BM19: 455.1 | BN19: 458.5 | BR19: 1,474.7
A20: September | H20: 8,914.3 | I20: 8,049.7 | S20: 2,038.0 | V20: 4,113.4 | AP20: 5,259.0 | AS20: 1,833.3 | AU20: 2,117.5 | AW20: 1,881.6 | BC20: 445.9 | BM20: 455.1 | BN20: 458.5 | BR20: 1,474.7
A21: October | M21: 8,971.2 | N21: 8,289.8 | O21: 1,833.3 | W21: 2,106.0 | AT21: 5,239.3 | AU21: 2,117.5 | AV21: 1,833.3 | AW21: 1,881.6 | BC21: 445.9 | BD21: 16,205.2 | BI21: 842.4 | BM21: 455.1 | BN21: 458.5 | BR21: 1,474.7
A22: November | M22: 8,681.9 | N22: 8,022.4 | P22: 1,833.3 | AW22: 1,881.6 | AX22: 5,231.4 | AY22: 36,000.0 | AZ22: 2,447.4 | BA22: 1,833.3 | BB22: 2,083.3 | BC22: 445.9 | BI22: 815.2 | BM22: 455.1 | BN22: 458.5 | BR22: 1,474.7
A23: December | H23: 0.0 | I23: 0.0 | J23: 0.0 | K23: 0.0 | L23: 0.0 | M23: 8,971.2 | N23: 8,289.8 | O23: 0.0 | P23: 0.0 | Q23: 1,833.3 | R23: 0.0 | S23: 0.0 | T23: 0.0 | U23: 0.0 | V23: 0.0 | W23: 0.0 | X23: 0.0 | Y23: 0.0 | Z23: 0.0 | AA23: 0.0 | AB23: 0.0 | AC23: 0.0 | AD23: 0.0 | AE23: 0.0 | AF23: 0.0 | AG23: 0.0 | AH23: 0.0 | AI23: 0.0 | AJ23: 6,882.8 | AK23: 0.0 | AL23: 0.0 | AM23: 0.0 | AN23: 0.0 | AO23: 0.0 | AP23: 0.0 | AQ23: 0.0 | AR23: 0.0 | AS23: 0.0 | AT23: 0.0 | AU23: 0.0 | AV23: 0.0 | AW23: 1,881.6 | AX23: 0.0 | AY23: 0.0 | AZ23: 0.0 | BA23: 0.0 | BB23: 0.0 | BC23: 445.9 | BD23: 0.0 | BE23: 2,083.3 | BF23: 5,281.2 | BG23: 1,833.3 | BH23: 11,000.0 | BI23: 842.4 | BJ23: 0.0 | BK23: 0.0 | BL23: 0.0 | BM23: 455.1 | BN23: 458.5 | BO23: 0.0 | BP23: 0.0 | BQ23: 0.0 | BR23: 1,474.7 | BS23: 7,419.1 | BT23: 0.0 | BU23: 0.0 | BV23: 0.0 | BW23: 0.0 | BX23: 0.0 | BY23: 0.0 | BZ23: 0.0 | CA23: 0.0 | CB23: 0.0 | CC23: 0.0 | CD23: 0.0 | CE23: 0.0 | CF23: 0.0 | CG23: 0.0 | CH23: 0.0 | CI23: 0.0 | CJ23: 0.0 | CK23: 0.0 | CL23: 0.0 | CM23: 0.0 | CN23: 0.0 | CO23: 0.0 | CP23: 0.0 | CQ23: 0.0 | CR23: 0.0 | CS23: 0.0 | CT23: 0.0 | CU23: 0.0 | CV23: 0.0 | CW23: 0.0 | CX23: 0.0 | CY23: 0.0 | CZ23: 0.0 | DA23: 0.0 | DB23: 0.0 | DC23: 0.0 | DD23: 0.0 | DE23: 0.0 | DF23: 0.0 | DG23: 0.0 | DH23: 0.0 | DI23: 0.0 | DJ23: 0.0 | DK23: 0.0 | DL23: 0.0 | DM23: 0.0 | DN23: 0.0 | DO23: 0.0 | DP23: 0.0 | DQ23: 0.0 | DR23: 0.0 | DS23: 0.0 | DT23: 0.0 | DU23: 0.0 | DV23: 0.0 | DW23: 0.0 | DX23: 0.0 | DY23: 0.0 | DZ23: 0.0 | EA23: 0.0 | EB23: 0.0 | EC23: 0.0 | ED23: 0.0 | EE23: 0.0 | EF23: 0.0 | EG23: 0.0 | EH23: 0.0 | EI23: 0.0 | EJ23: 0.0 | EK23: 0.0 | EL23: 0.0 | EM23: 0.0 | EN23: 0.0 | EO23: 0.0 | EP23: 0.0 | EQ23: 0.0 | ER23: 0.0 | ES23: 0.0 | ET23: 0.0 | EU23: 0.0 | EV23: 0.0 | EW23: 0.0 | EX23: 0.0 | EY23: 0.0 | EZ23: 0.0 | FA23: 0.0 | FB23: 0.0 | FC23: 0.0 | FD23: 0.0 | FE23: 0.0 | FF23: 0.0 | FG23: 0.0 | FH23: 0.0 | FI23: 0.0 | FJ23: 0.0 | FK23: 0.0 | FL23: 0.0 | FM23: 0.0 | FN23: 0.0 | FO23: 0.0 | FP23: 0.0 | FQ23: 0.0 | FR23: 0.0 | FS23: 0.0 | FT23: 0.0 | FU23: 0.0 | FV23: 0.0 | FW23: 0.0 | FX23: 0.0 | FY23: 0.0 | FZ23: 0.0 | GA23: 0.0 | GB23: 0.0 | GC23: 0.0 | GD23: 0.0 | GE23: 0.0 | GF23: 0.0 | GG23: 0.0 | GH23: 0.0 | GI23: 0.0 | GJ23: 0.0 | GK23: 0.0 | GL23: 0.0 | GM23: 0.0 | GN23: 0.0 | GO23: 0.0 | GP23: 0.0 | GQ23: 0.0 | GR23: 0.0 | GS23: 0.0 | GT23: 0.0 | GU23: 0.0 | GV23: 0.0 | GW23: 0.0 | GX23: 0.0 | GY23: 0.0 | GZ23: 0.0 | HA23: 0.0 | HB23: 0.0 | HC23: 0.0 | HD23: 0.0 | HE23: 0.0 | HF23: 0.0 | HG23: 0.0 | HH23: 0.0 | HI23: 0.0 | HJ23: 0.0 | HK23: 0.0 | HL23: 0.0 | HM23: 0.0 | HN23: 0.0 | HO23: 0.0 | HP23: 0.0 | HQ23: 0.0 | HR23: 0.0 | HS23: 0.0 | HT23: 0.0 | HU23: 0.0 | HV23: 0.0 | HW23: 0.0 | HX23: 0.0 | HY23: 0.0 | HZ23: 0.0 | IA23: 0.0 | IB23: 0.0 | IC23: 0.0 | ID23: 0.0 | IE23: 0.0 | IF23: 0.0 | IG23: 0.0 | IH23: 0.0 | II23: 0.0 | IJ23: 0.0 | IK23: 0.0 | IL23: 0.0 | IM23: 0.0 | IN23: 0.0 | IO23: 0.0 | IP23: 0.0 | IQ23: 0.0 | IR23: 0.0 | IS23: 0.0 | IT23: 0.0 | IU23: 0.0 | IV23: 0.0 | IW23: 0.0 | IX23: 0.0 | IY23: 0.0 | IZ23: 0.0 | JA23: 0.0 | JB23: 0.0 | JC23: 0.0 | JD23: 0.0 | JE23: 0.0 | JF23: 0.0 | JG23: 0.0 | JH23: 0.0 | JI23: 0.0 | JJ23: 0.0 | JK23: 0.0 | JL23: 0.0 | JM23: 0.0 | JN23: 0.0 | JO23: 0.0 | JP23: 0.0 | JQ23: 0.0 | JR23: 0.0 | JS23: 0.0 | JT23: 0.0 | JU23: 0.0 | JV23: 0.0 | JW23: 0.0 | JX23: 0.0 | JY23: 0.0 | JZ23: 0.0 | KA23: 0.0 | KB23: 0.0 | KC23: 0.0 | KD23: 0.0 | KE23: 0.0 | KF23: 0.0 | KG23: 0.0 | KH23: 0.0 | KI23: 0.0 | KJ23: 0.0 | KK23: 0.0 | KL23: 0.0 | KM23: 0.0 | KN23: 0.0 | KO23: 0.0 | KP23: 0.0 | KQ23: 0.0 | KR23: 0.0 | KS23: 0.0 | KT23: 0.0 | KU23: 0.0 | KV23: 0.0 | KW23: 0.0 | KX23: 0.0 | KY23: 0.0 | KZ23: 0.0 | LA23: 0.0 | LB23: 0.0 | LC23: 0.0 | LD23: 0.0 | LE23: 0.0 | LF23: 0.0 | LG23: 0.0 | LH23: 0.0 | LI23: 0.0 | LJ23: 0.0 | LK23: 0.0 | LL23: 0.0 | LM23: 0.0 | LN23: 0.0 | LO23: 0.0 | LP23: 0.0 | LQ23: 0.0 | LR23: 0.0 | LS23: 0.0 | LT23: 0.0 | LU23: 0.0 | LV23: 0.0 | LW23: 0.0 | LX23: 0.0 | LY23: 0.0 | LZ23: 0.0 | MA23: 0.0 | MB23: 0.0 | MC23: 0.0 | MD23: 0.0 | ME23: 0.0 | MF23: 0.0 | MG23: 0.0 | MH23: 0.0 | MI23: 0.0 | MJ23: 0.0 | MK23: 0.0 | ML23: 0.0 | MM23: 0.0 | MN23: 0.0 | MO23: 0.0 | MP23: 0.0 | MQ23: 0.0 | MR23: 0.0 | MS23: 0.0 | MT23: 0.0 | MU23: 0.0 | MV23: 0.0 | MW23: 0.0 | MX23: 0.0 | MY23: 0.0 | MZ23: 0.0 | NA23: 0.0 | NB23: 0.0 | NC23: 0.0 | ND23: 0.0 | NE23: 0.0 | NF23: 0.0 | NG23: 0.0 | NH23: 0.0 | NI23: 0.0 | NJ23: 0.0 | NK23: 0.0 | NL23: 0.0 | NM23: 0.0 | NN23: 0.0 | NO23: 0.0 | NP23: 0.0 | NQ23: 0.0 | NR23: 0.0 | NS23: 0.0 | NT23: 0.0 | NU23: 0.0 | NV23: 0.0 | NW23: 0.0 | NX23: 0.0 | NY23: 0.0 | NZ23: 0.0 | OA23: 0.0 | OB23: 0.0 | OC23: 0.0 | OD23: 0.0 | OE23: 0.0 | OF23: 0.0 | OG23: 0.0 | OH23: 0.0 | OI23: 0.0 | OJ23: 0.0 | OK23: 0.0 | OL23: 0.0 | OM23: 0.0 | ON23: 0.0 | OO23: 0.0 | OP23: 0.0 | OQ23: 0.0 | OR23: 0.0 | OS23: 0.0 | OT23: 0.0 | OU23: 0.0 | OV23: 0.0 | OW23: 0.0 | OX23: 0.0 | OY23: 0.0 | OZ23: 0.0 | PA23: 0.0 | PB23: 0.0 | PC23: 0.0 | PD23: 0.0 | PE23: 0.0 | PF23: 0.0 | PG23: 0.0 | PH23: 0.0 | PI23: 0.0 | PJ23: 0.0 | PK23: 0.0 | PL23: 0.0 | PM23: 0.0 | PN23: 0.0 | PO23: 0.0 | PP23: 0.0 | PQ23: 0.0 | PR23: 0.0 | PS23: 0.0 | PT23: 0.0 | PU23: 0.0 | PV23: 0.0 | PW23: 0.0 | PX23: 0.0 | PY23: 0.0 | PZ23: 0.0 | QA23: 0.0 | QB23: 0.0 | QC23: 0.0 | QD23: 0.0 | QE23: 0.0 | QF23: 0.0 | QG23: 0.0 | QH23: 0.0 | QI23: 0.0 | QJ23: 0.0 | QK23: 0.0 | QL23: 0.0 | QM23: 0.0 | QN23: 0.0 | QO23: 0.0 | QP23: 0.0 | QQ23: 0.0 | QR23: 0.0 | QS23: 0.0 | QT23: 0.0 | QU23: 0.0 | QV23: 0.0 | QW23: 0.0 | QX23: 0.0 | QY23: 0.0 | QZ23: 0.0 | RA23: 0.0 | RB23: 0.0 | RC23: 0.0 | RD23: 0.0 | RE23: 0.0 | RF23: 0.0 | RG23: 0.0 | RH23: 0.0 | RI23: 0.0 | RJ23: 0.0 | RK23: 0.0 | RL23: 0.0 | RM23: 0.0 | RN23: 0.0 | RO23: 0.0 | RP23: 0.0 | RQ23: 0.0 | RR23: 0.0 | RS23: 0.0 | RT23: 0.0 | RU23: 0.0 | RV23: 0.0 | RW23: 0.0 | RX23: 0.0 | RY23: 0.0 | RZ23: 0.0 | SA23: 0.0 | SB23: 0.0 | SC23: 0.0 | SD23: 0.0 | SE23: 0.0 | SF23: 0.0 | SG23: 0.0 | SH23: 0.0 | SI23: 0.0 | SJ23: 0.0 | SK23: 0.0 | SL23: 0.0 | SM23: 0.0 | SN23: 0.0 | SO23: 0.0 | SP23: 0.0 | SQ23: 0.0 | SR23: 0.0 | SS23: 0.0 | ST23: 0.0 | SU23: 0.0 | SV23: 0.0 | SW23: 0.0 | SX23: 0.0 | SY23: 0.0 | SZ23: 0.0 | TA23: 0.0 | TB23: 0.0 | TC23: 0.0 | TD23: 0.0 | TE23: 0.0 | TF23: 0.0 | TG23: 0.0 | TH23: 0.0 | TI23: 0.0 | TJ23: 0.0 | TK23: 0.0 | TL23: 0.0 | TM23: 0.0 | TN23: 0.0 | TO23: 0.0 | TP23: 0.0 | TQ23: 0.0 | TR23: 0.0 | TS23: 0.0 | TT23: 0.0 | TU23: 0.0 | TV23: 0.0 | TW23: 0.0 | TX23: 0.0 | TY23: 0.0 | TZ23: 0.0 | UA23: 0.0 | UB23: 0.0 | UC23: 0.0 | UD23: 0.0 | UE23: 0.0 | UF23: 0.0 | UG23: 0.0 | UH23: 0.0 | UI23: 0.0 | UJ23: 0.0 | UK23: 0.0 | UL23: 0.0 | UM23: 0.0 | UN23: 0.0 | UO23: 0.0 | UP23: 0.0 | UQ23: 0.0 | UR23: 0.0 | US23: 0.0 | UT23: 0.0 | UU23: 0.0 | UV23: 0.0 | UW23: 0.0 | UX23: 0.0 | UY23: 0.0 | UZ23: 0.0 | VA23: 0.0 | VB23: 0.0 | VC23: 0.0 | VD23: 0.0 | VE23: 0.0 | VF23: 0.0 | VG23: 0.0 | VH23: 0.0 | VI23: 0.0 | VJ23: 0.0 | VK23: 0.0 | VL23: 0.0 | VM23: 0.0 | VN23: 0.0 | VO23: 0.0 | VP23: 0.0 | VQ23: 0.0 | VR23: 0.0 | VS23: 0.0 | VT23: 0.0 | VU23: 0.0 | VV23: 0.0 | VW23: 0.0 | VX23: 0.0 | VY23: 0.0 | VZ23: 0.0 | WA23: 0.0 | WB23: 0.0 | WC23: 0.0 | WD23: 0.0 | WE23: 0.0 | WF23: 0.0 | WG23: 0.0 | WH23: 0.0 | WI23: 0.0 | WJ23: 0.0 | WK23: 0.0 | WL23: 0.0 | WM23: 0.0 | WN23: 0.0 | WO23: 0.0 | WP23: 0.0 | WQ23: 0.0 | WR23: 0.0 | WS23: 0.0 | WT23: 0.0 | WU23: 0.0 | WV23: 0.0 | WW23: 0.0 | WX23: 0.0 | WY23: 0.0 | WZ23: 0.0 | XA23: 0.0 | XB23: 0.0 | XC23: 0.0 | XD23: 0.0 | XE23: 0.0 | XF23: 0.0 | XG23: 0.0 | XH23: 0.0 | XI23: 0.0 | XJ23: 0.0 | XK23: 0.0 | XL23: 0.0 | XM23: 0.0 | XN23: 0.0 | XO23: 0.0 | XP23: 0.0 | XQ23: 0.0 | XR23: 0.0 | XS23: 0.0 | XT23: 0.0 | XU23: 0.0 | XV23: 0.0 | XW23: 0.0 | XX23: 0.0 | XY23: 0.0 | XZ23: 0.0 | YA23: 0.0 | YB23: 0.0 | YC23: 0.0 | YD23: 0.0 | YE23: 0.0 | YF23: 0.0 | YG23: 0.0 | YH23: 0.0 | YI23: 0.0 | YJ23: 0.0 | YK23: 0.0 | YL23: 0.0 | YM23: 0.0 | YN23: 0.0 | YO23: 0.0 | YP23: 0.0 | YQ23: 0.0 | YR23: 0.0 | YS23: 0.0 | YT23: 0.0 | YU23: 0.0 | YV23: 0.0 | YW23: 0.0 | YX23: 0.0 | YY23: 0.0 | YZ23: 0.0 | ZA23: 0.0 | ZB23: 0.0 | ZC23: 0.0 | ZD23: 0.0 | ZE23: 0.0 | ZF23: 0.0 | ZG23: 0.0 | ZH23: 0.0 | ZI23: 0.0 | ZJ23: 0.0 | ZK23: 0.0 | ZL23: 0.0 | ZM23: 0.0 | ZN23: 0.0 | ZO23: 0.0 | ZP23: 0.0 | ZQ23: 0.0 | ZR23: 0.0 | ZS23: 0.0 | ZT23: 0.0 | ZU23: 0.0 | ZV23: 0.0 | ZW23: 0.0 | ZX23: 0.0 | ZY23: 0.0 | ZZ23: 0.0 | AAA23: 0.0 | AAB23: 0.0 | AAC23: 0.0 | AAD23: 0.0 | AAE23: 0.0 | AAF23: 0.0 | AAG23: 0.0 | AAH23: 0.0 | AAI23: 0.0 | AAJ23: 0.0 | AAK23: 0.0 | AAL23: 0.0 | AAM23: 0.0 | AAN23: 0.0 | AAO23: 0.0 | AAP23: 0.0 | AAQ23: 0.0 | AAR23: 0.0 | AAS23: 0.0 | AAT23: 0.0 | AAU23: 0.0 | AAV23: 0.0 | AAW23: 0.0 | AAX23: 0.0 | AAY23: 0.0 | AAZ23: 0.0 | ABA23: 0.0 | ABB23: 0.0 | ABC23: 0.0 | ABD23: 0.0 | ABE23: 0.0 | ABF23: 0.0 | ABG23: 0.0 | ABH23: 0.0 | ABI23: 0.0 | ABJ23: 0.0 | ABK23: 0.0 | ABL23: 0.0 | ABM23: 0.0 | ABN23: 0.0 | ABO23: 0.0 | ABP23: 0.0 | ABQ23: 0.0 | ABR23: 0.0 | ABS23: 0.0 | ABT23: 0.0 | ABU23: 0.0 | ABV23: 0.0 | ABW23: 0.0 | ABX23: 0.0 | ABY23: 0.0 | ABZ23: 0.0 | ACA23: 0.0 | ACB23: 0.0 | ACC23: 0.0 | ACD23: 0.0 | ACE23: 0.0 | ACF23: 0.0 | ACG23: 0.0 | ACH23: 0.0 | ACI23: 0.0 | ACJ23: 0.0 | ACK23: 0.0 | ACL23: 0.0 | ACM23: 0.0 | ACN23: 0.0 | ACO23: 0.0 | ACP23: 0.0 | ACQ23: 0.0 | ACR23: 0.0 | ACS23: 0.0 | ACT23: 0.0 | ACU23: 0.0 | ACV23: 0.0 | ACW23: 0.0 | ACX23: 0.0 | ACY23: 0.0 | ACZ23: 0.0 | ADA23: 0.0 | ADB23: 0.0 | ADC23: 0.0 | ADD23: 0.0 | ADE23: 0.0 | ADF23: 0.0 | ADG23: 0.0 | ADH23: 0.0 | ADI23: 0.0 | ADJ23: 0.0 | ADK23: 0.0 | ADL23: 0.0 | ADM23: 0.0 | ADN23: 0.0 | ADO23: 0.0 | ADP23: 0.0 | ADQ23: 0.0 | ADR23: 0.0 | ADS23: 0.0 | ADT23: 0.0 | ADU23: 0.0 | ADV23: 0.0 | ADW23: 0.0 | ADX23: 0.0 | ADY23: 0.0 | ADZ23: 0.0 | AEA23: 0.0 | AEB23: 0.0 | AEC23: 0.0 | AED23: 0.0 | AEE23: 0.0 | AEF23: 0.0 | AEG23: 0.0 | AEH23: 0.0 | AEI23: 0.0 | AEJ23: 0.0 | AEK23: 0.0 | AEL23: 0.0 | AEM23: 0.0 | AEN23: 0.0 | AEO23: 0.0 | AEP23: 0.0 | AEQ23: 0.0 | AER23: 0.0 | AES23: 0.0 | AET23: 0.0 | AEU23: 0.0 | AEV23: 0.0 | AEW23: 0.0 | AEX23: 0.0 | AEY23: 0.0 | AEZ23: 0.0 | AFA23: 0.0 | AFB23: 0.0 | AFC23: 0.0 | AFD23: 0.0 | AFE23: 0.0 | AFF23: 0.0 | AFG23: 0.0 | AFH23: 0.0 | AFI23: 0.0 | AFJ23: 0.0 | AFK23: 0.0 | AFL23: 0.0 | AFM23: 0.0 | AFN23: 0.0 | AFO23: 0.0 | AFP23: 0.0 | AFQ23: 0.0 | AFR23: 0.0 | AFS23: 0.0 | AFT23: 0.0 | AFU23: 0.0 | AFV23: 0.0 | AFW23: 0.0 | AFX23: 0.0 | AFY23: 0.0 | AFZ23: 0.0 | AGA23: 0.0 | AGB23: 0.0 | AGC23: 0.0 | AGD23: 0.0 | AGE23: 0.0 | AGF23: 0.0 | AGG23: 0.0 | AGH23: 0.0 | AGI23: 0.0 | AGJ23: 0.0 | AGK23: 0.0 | AGL23: 0.0 | AGM23: 0.0 | AGN23: 0.0 | AGO23: 0.0 | AGP23: 0.0 | AGQ23: 0.0 | AGR23: 0.0 | AGS23: 0.0 | AGT23: 0.0 | AGU23: 0.0 | AGV23: 0.0 | AGW23: 0.0 | AGX23: 0.0 | AGY23: 0.0 | AGZ23: 0.0 | AHA23: 0.0 | AHB23: 0.0 | AHC23: 0.0 | AHD23: 0.0 | AHE23: 0.0 | AHF23: 0.0 | AHG23: 0.0 | AHH23: 0.0 | AHI23: 0.0 | AHJ23: 0.0 | AHK23: 0.0 | AHL23: 0.0 | AHM23: 0.0 | AHN23: 0.0 | AHO23: 0.0 | AHP23: 0.0 | AHQ23: 0.0 | AHR23: 0.0 | AHS23: 0.0 | AHT23: 0.0 | AHU23: 0.0 | AHV23: 0.0 | AHW23: 0.0 | AHX23: 0.0 | AHY23: 0.0 | AHZ23: 0.0 | AIA23: 0.0 | AIB23: 0.0 | AIC23: 0.0 | AID23: 0.0 | AIE23: 0.0 | AIF23: 0.0 | AIG23: 0.0 | AIH23: 0.0 | AII23: 0.0 | AIJ23: 0.0 | AIK23: 0.0 | AIL23: 0.0 | AIM23: 0.0 | AIN23: 0.0 | AIO23: 0.0 | AIP23: 0.0 | AIQ23: 0.0 | AIR23: 0.0 | AIS23: 0.0 | AIT23: 0.0 | AIU23: 0.0 | AIV23: 0.0 | AIW23: 0.0 | AIX23: 0.0 | AIY23: 0.0 | AIZ23: 0.0 | AJA23: 0.0 | AJB23: 0.0 | AJC23: 0.0 | AJD23: 0.0 | AJE23: 0.0 | AJF23: 0.0 | AJG23: 0.0 | AJH23: 0.0 | AJI23: 0.0 | AJJ23: 0.0 | AJK23: 0.0 | AJL23: 0.0 | AJM23: 0.0 | AJN23: 0.0 | AJO23: 0.0 | AJP23: 0.0 | AJQ23: 0.0 | AJR23: 0.0 | AJS23: 0.0 | AJT23: 0.0 | AJU23: 0.0 | AJV23: 0.0 | AJW23: 0.0 | AJX23: 0.0 | AJY23: 0.0 | AJZ23: 0.0 | AKA23: 0.0 | AKB23: 0.0 | AKC23: 0.0 | AKD23: 0.0 | AKE23: 0.0 | AKF23: 0.0 | AKG23: 0.0 | AKH23: 0.0 | AKI23: 0.0 | AKJ23: 0.0 | AKK23: 0.0 | AKL23: 0.0 | AKM23: 0.0 | AKN23: 0.0 | AKO23: 0.0 | AKP23: 0.0 | AKQ23: 0.0 | AKR23: 0.0 | AKS23: 0.0 | AKT23: 0.0 | AKU23: 0.0 | AKV23: 0.0 | AKW23: 0.0 | AKX23: 0.0 | AKY23: 0.0 | AKZ23: 0.0 | ALA23: 0.0 | ALB23: 0.0 | ALC23: 0.0 | ALD23: 0.0 | ALE23: 0.0 | ALF23: 0.0 | ALG23: 0.0 | ALH23: 0.0 | ALI23: 0.0 | ALJ23: 0.0 | ALK23: 0.0 | ALL23: 0.0 | ALM23: 0.0 | ALN23: 0.0 | ALO23: 0.0 | ALP23: 0.0 | ALQ23: 0.0 | ALR23: 0.0 | ALS23: 0.0 | ALT23: 0.0 | ALU23: 0.0 | ALV23: 0.0 | ALW23: 0.0 | ALX23: 0.0 | ALY23: 0.0 | ALZ23: 0.0 | AMA23: 0.0 | AMB23: 0.0 | AMC23: 0.0 | AMD23: 0.0 | AME23: 0.0 | AMF23: 0.0 | AMG23: 0.0 | AMH23: 0.0 | AMI23: 0.0 | AMJ23: 0.0 | AMK23: 0.0 | AML23: 0.0 | AMM23: 0.0 | AMN23: 0.0 | AMO23: 0.0 | AMP23: 0.0 | AMQ23: 0.0 | AMR23: 0.0 | AMS23: 0.0 | AMT23: 0.0 | AMU23: 0.0 | AMV23: 0.0 | AMW23: 0.0 | AMX23: 0.0 | AMY23: 0.0 | AMZ23: 0.0 | ANA23: 0.0 | ANB23: 0.0 | ANC23: 0.0 | AND23: 0.0 | ANE23: 0.0 | ANF23: 0.0 | ANG23: 0.0 | ANH23: 0.0 | ANI23: 0.0 | ANJ23: 0.0 | ANK23: 0.0 | ANL23: 0.0 | ANM23: 0.0 | ANN23: 0.0 | ANO23: 0.0 | ANP23: 0.0 | ANQ23: 0.0 | ANR23: 0.0 | ANS23: 0.0 | ANT23: 0.0 | ANU23: 0.0 | ANV23: 0.0 | ANW23: 0.0 | ANX23: 0.0 | ANY23: 0.0 | ANZ23: 0.0 | AOA23: 0.0 | AOB23: 0.0 | AOC23: 0.0 | AOD23: 0.0 | AOE23: 0.0 | AOF23: 0.0 | AOG23: 0.0 | AOH23: 0.0 | AOI23: 0.0 | AOJ23: 0.0 | AOK23: 0.0 | AOL23: 0.0 | AOM23: 0.0 | AON23: 0.0 | AOO23: 0.0 | AOP23: 0.0 | AOQ23: 0.0 | AOR23: 0.0 | AOS23: 0.0 | AOT23: 0.0 | AOU23: 0.0 | AOV23: 0.0 | AOW23: 0.0 | AOX23: 0.0 | AOY23: 0.0 | AOZ23: 0.0 | APA23: 0.0 | APB23: 0.0 | APC23: 0.0 | APD23: 0.0 | APE23: 0.0 | APF23: 0.0 | APG23: 0.0 | APH23: 0.0 | API23: 0.0 | APJ23: 0.0 | APK23: 0.0 | APL23: 0.0 | APM23: 0.0 | APN23: 0.0 | APO23: 0.0 | APP23: 0.0 | APQ23: 0.0 | APR23: 0.0 | APS23: 0.0 | APT23: 0.0 | APU23: 0.0 | APV23: 0.0 | APW23: 0.0 | APX23: 0.0 | APY23: 0.0 | APZ23: 0.0 | AQA23: 0.0 | AQB23: 0.0 | AQC23: 0.0 | AQD23: 0.0 | AQE23: 0.0 | AQF23: 0.0 | AQG23: 0.0 | AQH23: 0.0 | AQI23: 0.0 | AQJ23: 0.0 | AQK23: 0.0 | AQL23: 0.0 | AQM23: 0.0 | AQN23: 0.0 | AQO23: 0.0 | AQP23: 0.0 | AQQ23: 0.0 | AQR23: 0.0 | AQS23: 0.0 | AQT23: 0.0 | AQU23: 0.0 | AQV23: 0.0 | AQW23: 0.0 | AQX23: 0.0 | AQY23: 0.0 | AQZ23: 0.0 | ARA23: 0.0 | ARB23: 0.0 | ARC23: 0.0 | ARD23: 0.0 | ARE23: 0.0 | ARF23: 0.0 | ARG23: 0.0 | ARH23: 0.0 | ARI23: 0.0 | ARJ23: 0.0 | ARK23: 0.0 | ARL23: 0.0 | ARM23: 0.0 | ARN23: 0.0 | ARO23: 0.0 | ARP23: 0.0 | ARQ23: 0.0 | ARR23: 0.0 | ARS23: 0.0 | ART23: 0.0 | ARU23: 0.0 | ARV23: 0.0 | ARW23: 0.0 | ARX23: 0.0 | ARY23: 0.0 | ARZ23: 0.0 | ASA23: 0.0 | ASB23: 0.0 | ASC23: 0.0 | ASD23: 0.0 | ASE23: 0.0 | ASF23: 0.0 | ASG23: 0.0 | ASH23: 0.0 | ASI23: 0.0 | ASJ23: 0.0 | ASK23: 0.0 | ASL23: 0.0 | ASM23: 0.0 | ASN23: 0.0 | ASO23: 0.0 | ASP23: 0.0 | ASQ23: 0.0 | ASR23: 0.0 | ASS23: 0.0 | AST23: 0.0 | ASU23: 0.0 | ASV23: 0.0 | ASW23: 0.0 | ASX23: 0.0 | ASY23: 0.0 | ASZ23: 0.0 | ATA23: 0.0 | ATB23: 0.0 | ATC23: 0.0 | ATD23: 0.0 | ATE23: 0.0 | ATF23: 0.0 | ATG23: 0.0 | ATH23: 0.0 | ATI23: 0.0 | ATJ23: 0.0 | ATK23: 0.0 | ATL23: 0.0 | ATM23: 0.0 | ATN23: 0.0 | ATO23: 0.0 | ATP23: 0.0 | ATQ23: 0.0 | ATR23: 0.0 | ATS23: 0.0 | ATT23: 0.0 | ATU23: 0.0 | ATV23: 0.0 | ATW23: 0.0 | ATX23: 0.0 | ATY23: 0.0 | ATZ23: 0.0 | AUA23: 0.0 | AUB23: 0.0 | AUC23: 0.0 | AUD23: 0.0 | AUE23: 0.0 | AUF23: 0.0 | AUG23: 0.0 | AUH23: 0.0 | AUI23: 0.0 | AUJ23: 0.0 | AUK23: 0.0 | AUL23: 0.0 | AUM23: 0.0 | AUN23: 0.0 | AUO23: 0.0 | AUP23: 0.0 | AUQ23: 0.0 | AUR23: 0.0 | AUS23: 0.0 | AUT23: 0.0 | AUU23: 0.0 | AUV23: 0.0 | AUW23: 0.0 | AUX23: 0.0 | AUY23: 0.0 | AUZ23: 0.0 | AVA23: 0.0 | AVB23: 0.0 | AVC23: 0.0 | AVD23: 0.0 | AVE23: 0.0 | AVF23: 0.0 | AVG23: 0.0 | AVH23: 0.0 | AVI23: 0.0 | AVJ23: 0.0 | AVK23: 0.0 | AVL23: 0.0 | AVM23: 0.0 | AVN23: 0.0 | AVO23: 0.0 | AVP23: 0.0 | AVQ23: 0.0 | AVR23: 0.0 | AVS23: 0.0 | AVT23: 0.0 | AVU23: 0.0 | AVV23: 0.0 | AVW23: 0.0 | AVX23: 0.0 | AVY23: 0.0 | AVZ23: 0.0 | AWA23: 0.0 | AWB23: 0.0 | AWC23: 0.0 | AWD23: 0.0 | AWE23: 0.0 | AWF23: 0.0 | AWG23: 0.0 | AWH23: 0.0 | AWI23: 0.0 | AWJ23: 0.0 | AWK23: 0.0 | AWL23: 0.0 | AWM23: 0.0 | AWN23: 0.0 | AWO23: 0.0 | AWP23: 0.0 | AWQ23: 0.0 | AWR23: 0.0 | AWS23: 0.0 | AWT23: 0.0 | AWU23: 0.0 | AWV23: 0.0 | AWW23: 0.0 | AWX23: 0.0 | AWY23: 0.0 | AWZ23: 0.0 | AXA23: 0.0 | AXB23: 0.0 | AXC23: 0.0 | AXD23: 0.0 | AXE23: 0.0 | AXF23: 0.0 | AXG23: 0.0 | AXH23: 0.0 | AXI23: 0.0 | AXJ23: 0.0 | AXK23: 0.0 | AXL23: 0.0 | AXM23: 0.0 | AXN23: 0.0 | AXO23: 0.0 | AXP23: 0.0 | AXQ23: 0.0 | AXR23: 0.0 | AXS23: 0.0 | AXT23: 0.0 | AXU23: 0.0 | AXV23: 0.0 | AXW23: 0.0 | AXX23: 0.0 | AXY23: 0.0 | AXZ23: 0.0 | AYA23: 0.0 | AYB23: 0.0 | AYC23: 0.0 | AYD23: 0.0 | AYE23: 0.0 | AYF23: 0.0 | AYG23: 0.0 | AYH23: 0.0 | AYI23: 0.0 | AYJ23: 0.0 | AYK23: 0.0 | AYL23: 0.0 | AYM23: 0.0 | AYN23: 0.0 | AYO23: 0.0 | AYP23: 0.0 | AYQ23: 0.0 | AYR23: 0.0 | AYS23: 0.0 | AYT23: 0.0 | AYU23: 0.0 | AYV23: 0.0 | AYW23: 0.0 | AYX23: 0.0 | AYY23: 0.0 | AYZ23: 0.0 | AZA23: 0.0 | AZB23: 0.0 | AZC23: 0.0 | AZD23: 0.0 | AZE23: 0.0 | AZF23: 0.0 | AZG23: 0.0 | AZH23: 0.0 | AZI23: 0.0 | AZJ23: 0.0 | AZK23: 0.0 | AZL23: 0.0 | AZM23: 0.0 | AZN23: 0.0 | AZO23: 0.0 | AZP23: 0.0 | AZQ23: 0.0 | AZR23: 0.0 | AZS23: 0.0 | AZT23: 0.0 | AZU23: 0.0 | AZV23: 0.0 | AZW23: 0.0 | AZX23: 0.0 | AZY23: 0.0 | AZZ23: 0.0 | BAA23: 0.0 | BAB23: 0.0 | BAC23: 0.0 | BAD23: 0.0 | BAE23: 0.0 | BAF23: 0.0 | BAG23: 0.0 | BAH23: 0.0 | BAI23: 0.0 | BAJ23: 0.0 | BAK23: 0.0 | BAL23: 0.0 | BAM23: 0.0 | BAN23: 0.0 | BAO23: 0.0 | BAP23: 0.0 | BAQ23: 0.0 | BAR23: 0.0 | BAS23: 0.0 | BAT23: 0.0 | BAU23: 0.0 | BAV23: 0.0 | BAW23: 0.0 | BAX23: 0.0 | BAY23: 0.0 | BAZ23: 0.0 | BBA23: 0.0 | BBB23: 0.0 | BBC23: 0.0 | BBD23: 0.0 | BBE23: 0.0 | BBF23: 0.0 | BBG23: 0.0 | BBH23: 0.0 | BBI23: 0.0 | BBJ23: 0.0 | BBK23: 0.0 | BBL23: 0.0 | BBM23: 0.0 | BBN23: 0.0 | BBO23: 0.0 | BBP23: 0.0 | BBQ23: 0.0 | BBR23: 0.0 | BBS23: 0.0 | BBT23: 0.0 | BBU23: 0.0 | BBV23: 0.0 | BBW23: 0.0 | BBX23: 0.0 | BBY23: 0.0 | BBZ23: 0.0 | BCA23: 0.0 | BCB23: 0.0 | BCC23: 0.0 | BCD23: 0.0 | BCE23: 0.0 | BCF23: 0.0 | BCG23: 0.0 | BCH23: 0.0 | BCI23: 0.0 | BCJ23: 0.0 | BCK23: 0.0 | BCL23: 0.0 | BCM23: 0.0 | BCN23: 0.0 | BCO23: 0.0 | BCP23: 0.0 | BCQ23: 0.0 | BCR23: 0.0 | BCS23: 0.0 | BCT23: 0.0 | BCU23: 0.0 | BCV23: 0.0 | BCW23: 0.0 | BCX23: 0.0 | BCY23: 0.0 | BCZ23: 0.0 | BDA23: 0.0 | BDB23: 0.0 | BDC23: 0.0 | BDD23: 0.0 | BDE23: 0.0 | BDF23: 0.0 | BDG23: 0.0 | BDH23: 0.0 | BDI23: 0.0 | BDJ23: 0.0 | BDK23: 0.0 | BDL23: 0.0 | BDM23: 0.0 | BDN23: 0.0 | BDO23: 0.0 | BDP23: 0.0 | BDQ23: 0.0 | BDR23: 0.0 | BDS23: 0.0 | BDT23: 0.0 | BDU23: 0.0 | BDV23: 0.0 | BDW23: 0.0 | BDX23: 0.0 | BDY23: 0.0 | BDZ23: 0.0 | BEA23: 0.0 | BEB23: 0.0 | BEC23: 0.0 | BED23: 0.0 | BEE23: 0.0 | BEF23: 0.0 | BEG23: 0.0 | BEH23: 0.0 | BEI23: 0.0 | BEJ23: 0.0 | BEK23: 0.0 | BEL23: 0.0 | BEM23: 0.0 | BEN23: 0.0 | BEO23: 0.0 | BEP23: 0.0 | BEQ23: 0.0 | BER23: 0.0 | BES23: 0.0 | BET23: 0.0 | BEU23: 0.0 | BEV23: 0.0 | BEW23: 0.0 | BEX23: 0.0 | BEY23: 0.0 | BEZ23: 0.0 | BFA23: 0.0 | BFB23: 0.0 | BFC23: 0.0 | BFD23: 0.0 | BFE23: 0.0 | BFF23: 0.0 | BFG23: 0.0 | BFH23: 0.0 | BFI23: 0.0 | BFJ23: 0.0 | BFK23: 0.0 | BFL23: 0.0 | BFM23: 0.0 | BFN23: 0.0 | BFO23: 0.0 | BFP23: 0.0 | BFQ23: 0.0 | BFR23: 0.0 | BFS23: 0.0 | BFT23: 0.0 | BFU23: 0.0 | BFV23: 0.0 | BFW23: 0.0 | BFX23: 0.0 | BFY23: 0.0 | BFZ23: 0.0 | BGA23: 0.0 | BGB23: 0.0 | BGC23: 0.0 | BGD23: 0.0 | BGE23: 0.0 | BGF23: 0.0 | BGG23: 0.0 | BGH23: 0.0 | BGI23: 0.0 | BGJ23: 0.0 | BGK23: 0.0 | BGL23: 0.0 | BGM23: 0.0 | BGN23: 0.0 | BGO23: 0.0 | BGP23: 0.0 | BGQ23: 0.0 | BGR23: 0.0 | BGS23: 0.0 | BGT23: 0.0 | BGU23: 0.0 | BGV23: 0.0 | BGW23: 0.0 | BGX23: 0.0 | BGY23: 0.0 | BGZ23: 0.0 | BHA23: 0.0 | BHB23: 0.0 | BHC23: 0.0 | BHD23: 0.0 | BHE23: 0.0 | BHF23: 0.0 | BHG23: 0.0 | BHH23: 0.0 | BHI23: 0.0 | BHJ23: 0.0 | BHK23: 0.0 | BHL23: 0.0 | BHM23: 0.0 | BHN23: 0.0 | BHO23: 0.0 | BHP23: 0.0 | BHQ23: 0.0 | BHR23: 0.0 | BHS23: 0.0 | BHT23: 0.0 | BHU23: 0.0 | BHV23: 0.0 | BHW23: 0.0 | BHX23: 0.0 | BHY23: 0.0 | BHZ23: 0.0 | BIA23: 0.0 | BIB23: 0.0 | BIC23: 0.0 | BID23: 0.0 | BIE23: 0.0 | BIF23: 0.0 | BIG23: 0.0 | BIH23: 0.0 | BII23: 0.0 | BIJ23: 0.0 | BIK23: 0.0 | BIL23: 0.0 | BIM23: 0.0 | BIN23: 0.0 | BIO23: 0.0 | BIP23: 0.0 | BIQ23: 0.0 | BIR23: 0.0 | BIS23: 0.0 | BIT23: 0.0 | BIU23: 0.0 | BIV23: 0.0 | BIW23: 0.0 | BIX23: 0.0 | BIY23: 0.0 | BIZ23: 0.0 | BJA23: 0.0 | BJB23: 0.0 | BJC23: 0.0 | BJD23: 0.0 | BJE23: 0.0 | BJF23: 0.0 | BJG23: 0.0 | BJH23: 0.0 | BJI23: 0.0 | BJJ23: 0.0 | BJK23: 0.0 | BJL23: 0.0 | BJM23: 0.0 | BJN23: 0.0 | BJO23: 0.0 | BJP23: 0.0 | BJQ23: 0.0 | BJR23: 0.0 | BJS23: 0.0 | BJT23: 0.0 | BJU23: 0.0 | BJV23: 0.0 | BJW23: 0.0 | BJX23: 0.0 | BJY23: 0.0 | BJZ23: 0.0 | BKA23: 0.0 | BKB23: 0.0 | BKC23: 0.0 | BKD23: 0.0 | BKE23: 0.0 | BKF23: 0.0 | BKG23: 0.0 | BKH23: 0.0 | BKI23: 0.0 | BKJ23: 0.0 | BKK23: 0.0 | BKL23: 0.0 | BKM23: 0.0 | BKN23: 0.0 | BKO23: 0.0 | BKP23: 0.0 | BKQ23: 0.0 | BKR23: 0.0 | BKS23: 0.0 | BKT23: 0.0 | BKU23: 0.0 | BKV23: 0.0 | BKW23: 0.0 | BKX23: 0.0 | BKY23: 0.0 | BKZ23: 0.0 | BLA23: 0.0 | BLB23: 0.0 | BLC23: 0.0 | BLD23: 0.0 | BLE23: 0.0 | BLF23: 0.0 | BLG23: 0.0 | BLH23: 0.0 | BLI23: 0.0 | BLJ23: 0.0 | BLK23: 0.0 | BLL23: 0.0 | BLM23: 0.0 | BLN23: 0.0 | BLO23: 0.0 | BLP23: 0.0 | BLQ23: 0.0 | BLR23: 0.0 | BLS23: 0.0 | BLT23: 0.0 | BLU23: 0.0 | BLV23: 0.0 | BLW23: 0.0 | BLX23: 0.0 | BLY23: 0.0 | BLZ23: 0.0 | BMA23: 0.0 | BMB23: 0.0 | BMC23: 0.0 | BMD23: 0.0 | BME23: 0.0 | BMF23: 0.0 | BMG23: 0.0 | BMH23: 0.0 | BMI23: 0.0 | BMJ23: 0.0 | BMK23: 0.0 | BML23: 0.0 | BMM23: 0.0 | BMN23: 0.0 | BMO23: 0.0 | BMP23: 0.0 | BMQ23: 0.0 | BMR23: 0.0 | BMS23: 0.0 | BMT23: 0.0 | BMU23: 0.0 | BMV23: 0.0 | BMW23: 0.0 | BMX23: 0.0 | BMY23: 0.0 | BMZ23: 0.0 | BNA23: 0.0 | BNB23: 0.0 | BNC23: 0.0 | BND23: 0.0 | BNE23: 0.0 | BNF23: 0.0 | BNG23: 0.0 | BNH23: 0.0 | BNI23: 0.0 | BNJ23: 0.0 | BNK23: 0.0 | BNL23: 0.0 | BNM23: 0.0 | BNN23: 0.0 | BNO23: 0.0 | BNP23: 0.0 | BNQ23: 0.0 | BNR23: 0.0 | BNS23: 0.0 | BNT23: 0.0 | BNU23: 0.0 | BNV23: 0.0 | BNW23: 0.0 | BNX23: 0.0 | BNY23: 0.0 | BNZ23: 0.0 | BOA23: 0.0 | BOB23: 0.0 | BOC23: 0.0 | BOD23: 0.0 | BOE23: 0.0 | BOF23: 0.0 | BOG23: 0.0 | BOH23: 0.0 | BOI23: 0.0 | BOJ23: 0.0 | BOK23: 0.0 | BOL23: 0.0 | BOM23: 0.0 | BON23: 0.0 | BOO23: 0.0 | BOP23: 0.0 | BOQ23: 0.0 | BOR23: 0.0 | BOS23: 0.0 | BOT23: 0.0 | BOU23: 0.0 | BOV23: 0.0 | BOW23: 0.0 | BOX23: 0.0 | BOY23: 0.0 | BOZ23: 0.0 | BPA23: 0.0 | BPB23: 0.0 | BPC23: 0.0 | BPD23: 0.0 | BPE23: 0.0 | BPF23: 0.0 | BPG23: 0.0 | BPH23: 0.0 | BPI23: 0.0 | BPJ23: 0.0 | BPK23: 0.0 | BPL23: 0.0 | BPM23: 0.0 | BPN23: 0.0 | BPO23: 0.0 | BPP23: 0.0 | BPQ23: 0.0 | BPR23: 0.0 | BPS23: 0.0 | BPT23: 0.0 | BPU23: 0.0 | BPV23: 0.0 | BPW23: 0.0 | BPX23: 0.0 | BPY23: 0.0 | BPZ23: 0.0 | BQA23: 0.0 | BQB23: 0.0 | BQC23: 0.0 | BQD23: 0.0 | BQE23: 0.0 | BQF23: 0.0 | BQG23: 0.0 | BQH23: 0.0 | BQI23: 0.0 | BQJ23: 0.0 | BQK23: 0.0 | BQL23: 0.0 | BQM23: 0.0 | BQN23: 0.0 | BQO23: 0.0 | BQP23: 0.0 | BQQ23: 0.0 | BQR23: 0.0 | BQS23: 0.0 | BQT23: 0.0 | BQU23: 0.0 | BQV23: 0.0 | BQW23: 0.0 | BQX23: 0.0 | BQY23: 0.0 | BQZ23: 0.0 | BRA23: 0.0 | BRB23: 0.0 | BRC23: 0.0 | BRD23: 0.0 | BRE23: 0.0 | BRF23: 0.0 | BRG23: 0.0 | BRH23: 0.0 | BRI23: 0.0 | BRJ23: 0.0 | BRK23: 0.0 | BRL23: 0.0 | BRM23: 0.0 | BRN23: 0.0 | BRO23: 0.0 | BRP23: 0.0 | BRQ23: 0.0 | BRR23: 0.0 | BRS23: 0.0 | BRT23: 0.0 | BRU23: 0.0 | BRV23: 0.0 | BRW23: 0.0 | BRX23: 0.0 | BRY23: 0.0 | BRZ23: 0.0 | BSA23: 0.0 | BSB23: 0.0 | BSC23: 0.0 | BSD23: 0.0 | BSE23: 0.0 | BSF23: 0.0 | BSG23: 0.0 | BSH23: 0.0 | BSI23: 0.0 | BSJ23: 0.0 | BSK23: 0.0 | BSL23: 0.0 | BSM23: 0.0 | BSN23: 0.0 | BSO23: 0.0 | BSP23: 0.0 | BSQ23: 0.0 | BSR23: 0.0 | BSS23: 0.0 | BST23: 0.0 | BSU23: 0.0 | BSV23: 0.0 | BSW23: 0.0 | BSX23: 0.0 | BSY23: 0.0 | BSZ23: 0.0 | BTA23: 0.0 | BTB23: 0.0 | BTC23: 0.0 | BTD23: 0.0 | BTE23: 0.0 | BTF23: 0.0 | BTG23: 0.0 | BTH23: 0.0 | BTI23: 0.0 | BTJ23: 0.0 | BTK23: 0.0 | BTL23: 0.0 | BTM23: 0.0 | BTN23: 0.0 | BTO23: 0.0 | BTP23: 0.0 | BTQ23: 0.0 | BTR23: 0.0 | BTS23: 0.0 | BTT23: 0.0 | BTU23: 0.0 | BTV23: 0.0 | BTW23: 0.0 | BTX23: 0.0 | BTY23: 0.0 | BTZ23: 0.0 | BUA23: 0.0 | BUB23: 0.0 | BUC23: 0.0 | BUD23: 0.0 | BUE23: 0.0 | BUF23: 0.0 | BUG23: 0.0 | BUH23: 0.0 | BUI23: 0.0 | BUJ23: 0.0 | BUK23: 0.0 | BUL23: 0.0 | BUM23: 0.0 | BUN23: 0.0 | BUO23: 0.0 | BUP23: 0.0 | BUQ23: 0.0 | BUR23: 0.0 | BUS23: 0.0 | BUT23: 0.0 | BUU23: 0.0 | BUV23: 0.0 | BUW23: 0.0 | BUX23: 0.0 | BUY23: 0.0 | BUZ23: 0.0 | BVA23: 0.0 | BVB23: 0.0 | BVC23: 0.0 | BVD23: 0.0 | BVE23: 0.0 | BVF23: 0.0 | BVG23: 0.0 | BVH23: 0.0 | BVI23: 0.0 | BVJ23: 0.0 | BVK23: 0.0 | BVL23: 0.0 | BVM23: 0.0 | BVN23: 0.0 | BVO23: 0.0 | BVP23: 0.0 | BVQ23: 0.0 | BVR23: 0.0 | BVS23: 0.0 | BVT23: 0.0 | BVU23: 0.0 | BVV23: 0.0 | BVW23: 0.0 | BVX23: 0.0 | BVY23: 0.0 | BVZ23: 0.0 | BWA23: 0.0 | BWB23: 0.0 | BWC23: 0.0 | BWD23: 0.0 | BWE23: 0.0 | BWF23: 0.0 | BWG23: 0.0 | BWH23: 0.0 | BWI23: 0.0 | BWJ23: 0.0 | BWK23: 0.0 | BWL23: 0.0 | BWM23: 0.0 | BWN23: 0.0 | BWO23: 0.0 | BWP23: 0.0 | BWQ23: 0.0 | BWR23: 0.0 | BWS23: 0.0 | BWT23: 0.0 | BWU23: 0.0 | BWV23: 0.0 | BWW23: 0.0 | BWX23: 0.0 | BWY23: 0.0 | BWZ23: 0.0 | BXA23: 0.0 | BXB23: 0.0 | BXC23: 0.0 | BXD23: 0.0 | BXE23: 0.0 | BXF23: 0.0 | BXG23: 0.0 | BXH23: 0.0 | BXI23: 0.0 | BXJ23: 0.0 | BXK23: 0.0 | BXL23: 0.0 | BXM23: 0.0 | BXN23: 0.0 | BXO23: 0.0 | BXP23: 0.0 | BXQ23: 0.0 | BXR23: 0.0 | BXS23: 0.0 | BXT23: 0.0 | BXU23: 0.0 | BXV23: 0.0 | BXW23: 0.0 | BXX23: 0.0 | BXY23: 0.0 | BXZ23: 0.0 | BYA23: 0.0 | BYB23: 0.0 | BYC23: 0.0 | BYD23: 0.0 | BYE23: 0.0 | BYF23: 0.0 | BYG23: 0.0 | BYH23: 0.0 | BYI23: 0.0 | BYJ23: 0.0 | BYK23: 0.0 | BYL23: 0.0 | BYM23: 0.0 | BYN23: 0.0 | BYO23: 0.0 | BYP23: 0.0 | BYQ23: 0.0 | BYR23: 0.0 | BYS23: 0.0 | BYT23: 0.0 | BYU23: 0.0 | BYV23: 0.0 | BYW23: 0.0 | BYX23: 0.0 | BYY23: 0.0 | BYZ23: 0.0 | BZA23: 0.0 | BZB23: 0.0 | BZC23: 0.0 | BZD23: 0.0 | BZE23: 0.0 | BZF23: 0.0 | BZG23: 0.0 | BZH23: 0.0 | BZI23: 0.0 | BZJ23: 0.0 | BZK23: 0.0 | BZL23: 0.0 | BZM23: 0.0 | BZN23: 0.0 | BZO23: 0.0 | BZP23: 0.0 | BZQ23: 0.0 | BZR23: 0.0 | BZS23: 0.0 | BZT23: 0.0 | BZU23: 0.0 | BZV23: 0.0 | BZW23: 0.0 | BZX23: 0.0 | BZY23: 0.0 | BZZ23: 0.0 | CAA23: 0.0 | CAB23: 0.0 | CAC23: 0.0 | CAD23: 0.0 | CAE23: 0.0 | CAF23: 0.0 | CAG23: 0.0 | CAH23: 0.0 | CAI23: 0.0 | CAJ23: 0.0 | CAK23: 0.0 | CAL23: 0.0 | CAM23: 0.0 | CAN23: 0.0 | CAO23: 0.0 | CAP23: 0.0 | CAQ23: 0.0 | CAR23: 0.0 | CAS23: 0.0 | CAT23: 0.0 | CAU23: 0.0 | CAV23: 0.0 | CAW23: 0.0 | CAX23: 0.0 | CAY23: 0.0 | CAZ23: 0.0 | CBA23: 0.0 | CBB23: 0.0 | CBC23: 0.0 | CBD23: 0.0 | CBE23: 0.0 | CBF23: 0.0 | CBG23: 0.0 | CBH23: 0.0 | CBI23: 0.0 | CBJ23: 0.0 | CBK23: 0.0 | CBL23: 0.0 | CBM23: 0.0 | CBN23: 0.0 | CBO23: 0.0 | CBP23: 0.0 | CBQ23: 0.0 | CBR23: 0.0 | CBS23: 0.0 | CBT23: 0.0 | CBU23: 0.0 | CBV23: 0.0 | CBW23: 0.0 | CBX23: 0.0 | CBY23: 0.0 | CBZ23: 0.0 | CCA23: 0.0 | CCB23: 0.0 | CCC23: 0.0 | CCD23: 0.0 | CCE23: 0.0 | CCF23: 0.0 | CCG23: 0.0 | CCH23: 0.0 | CCI23: 0.0 | CCJ23: 0.0 | CCK23: 0.0 | CCL23: 0.0 | CCM23: 0.0 | CCN23: 0.0 | CCO23: 0.0 | CCP23: 0.0 | CCQ23: 0.0 | CCR23: 0.0 | CCS23: 0.0 | CCT23: 0.0 | CCU23: 0.0 | CCV23: 0.0 | CCW23: 0.0 | CCX23: 0.0 | CCY23: 0.0 | CCZ23: 0.0 | CDA23: 0.0 | CDB23: 0.0 | CDC23: 0.0 | CDD23: 0.0 | CDE23: 0.0 | CDF23: 0.0 | CDG23: 0.0 | CDH23: 0.0 | CDI23: 0.0 | CDJ23: 0.0 | CDK23: 0.0 | CDL23: 0.0 | CDM23: 0.0 | CDN23: 0.0 | CDO23: 0.0 | CDP23: 0.0 | CDQ23: 0.0 | CDR23: 0.0 | CDS23: 0.0 | CDT23: 0.0 | CDU23: 0.0 | CDV23: 0.0 | CDW23: 0.0 | CDX23: 0.0 | CDY23: 0.0 | CDZ23: 0.0 | CEA23: 0.0 | CEB23: 0.0 | CEC23: 0.0 | CED23: 0.0 | CEE23: 0.0 | CEF23: 0.0 | CEG23: 0.0 | CEH23: 0.0 | CEI23: 0.0 | CEJ23: 0.0 | CEK23: 0.0 | CEL23: 0.0 | CEM23: 0.0 | CEN23: 0.0 | CEO23: 0.0 | CEP23: 0.0 | CEQ23: 0.0 | CER23: 0.0 | CES23: 0.0 | CET23: 0.0 | CEU23: 0.0 | CEV23: 0.0 | CEW23: 0.0 | CEX23: 0.0 | CEY23: 0.0 | CEZ23: 0.0 | CFA23: 0.0 | CFB23: 0.0 | CFC23: 0.0 | CFD23: 0.0 | CFE23: 0.0 | CFF23: 0.0 | CFG23: 0.0 | CFH23: 0.0 | CFI23: 0.0 | CFJ23: 0.0 | CFK23: 0.0 | CFL23: 0.0 | CFM23: 0.0 | CFN23: 0.0 | CFO23: 0.0 | CFP23: 0.0 | CFQ23: 0.0 | CFR23: 0.0 | CFS23: 0.0 | CFT23: 0.0 | CFU23: 0.0 | CFV23: 0.0 | CFW23: 0.0 | CFX23: 0.0 | CFY23: 0.0 | CFZ23: 0.0 | CGA23: 0.0 | CGB23: 0.0 | CGC23: 0.0 | CGD23: 0.0 | CGE23: 0.0 | CGF23: 0.0 | CGG23: 0.0 | CGH23: 0.0 | CGI23: 0.0 | CGJ23: 0.0 | CGK23: 0.0 | CGL23: 0.0 | CGM23: 0.0 | CGN23: 0.0 | CGO23: 0.0 | CGP23: 0.0 | CGQ23: 0.0 | CGR23: 0.0 | CGS23: 0.0 | CGT23: 0.0 | CGU23: 0.0 | CGV23: 0.0 | CGW23: 0.0 | CGX23: 0.0 | CGY23: 0.0 | CGZ23: 0.0 | CHA23: 0.0 | CHB23: 0.0 | CHC23: 0.0 | CHD23: 0.0 | CHE23: 0.0 | CHF23: 0.0 | CHG23: 0.0 | CHH23: 0.0 | CHI23: 0.0 | CHJ23: 0.0 | CHK23: 0.0 | CHL23: 0.0 | CHM23: 0.0 | CHN23: 0.0 | CHO23: 0.0 | CHP23: 0.0 | CHQ23: 0.0 | CHR23: 0.0 | CHS23: 0.0 | CHT23: 0.0 | CHU23: 0.0 | CHV23: 0.0 | CHW23: 0.0 | CHX23: 0.0 | CHY23: 0.0 | CHZ23: 0.0 | CIA23: 0.0 | CIB23: 0.0 | CIC23: 0.0 | CID23: 0.0 | CIE23: 0.0 | CIF23: 0.0 | CIG23: 0.0 | CIH23: 0.0 | CII23: 0.0 | CIJ23: 0.0 | CIK23: 0.0 | CIL23: 0.0 | CIM23: 0.0 | CIN23: 0.0 | CIO23: 0.0 | CIP23: 0.0 | CIQ23: 0.0 | CIR23: 0.0 | CIS23: 0.0 | CIT23: 0.0 | CIU23: 0.0 | CIV23: 0.0 | CIW23: 0.0 | CIX23: 0.0 | CIY23: 0.0 | CIZ23: 0.0 | CJA23: 0.0 | CJB23: 0.0 | CJC23: 0.0 | CJD23: 0.0 | CJE23: 0.0 | CJF23: 0.0 | CJG23: 0.0 | CJH23: 0.0 | CJI23: 0.0 | CJJ23: 0.0 | CJK23: 0.0 | CJL23: 0.0 | CJM23: 0.0 | CJN23: 0.0 | CJO23: 0.0 | CJP23: 0.0 | CJQ23: 0.0 | CJR23: 0.0 | CJS23: 0.0 | CJT23: 0.0 | CJU23: 0.0 | CJV23: 0.0 | CJW23: 0.0 | CJX23: 0.0 | CJY23: 0.0 | CJZ23: 0.0 | CKA23: 0.0 | CKB23: 0.0 | CKC23: 0.0 | CKD23: 0.0 | CKE23: 0.0 | CKF23: 0.0 | CKG23: 0.0 | CKH23: 0.0 | CKI23: 0.0 | CKJ23: 0.0 | CKK23: 0.0 | CKL23: 0.0 | CKM23: 0.0 | CKN23: 0.0 | CKO23: 0.0 | CKP23: 0.0 | CKQ23: 0.0 | CKR23: 0.0 | CKS23: 0.0 | CKT23: 0.0 | CKU23: 0.0 | CKV23: 0.0 | CKW23: 0.0 | CKX23: 0.0 | CKY23: 0.0 | CKZ23: 0.0 | CLA23: 0.0 | CLB23: 0.0 | CLC23: 0.0 | CLD23: 0.0 | CLE23: 0.0 | CLF23: 0.0 | CLG23: 0.0 | CLH23: 0.0 | CLI23: 0.0 | CLJ23: 0.0 | CLK23: 0.0 | CLL23: 0.0 | CLM23: 0.0 | CLN23: 0.0 | CLO23: 0.0 | CLP23: 0.0 | CLQ23: 0.0 | CLR23: 0.0 | CLS23: 0.0 | CLT23: 0.0 | CLU23: 0.0 | CLV23: 0.0 | CLW23: 0.0 | CLX23: 0.0 | CLY23: 0.0 | CLZ23: 0.0 | CMA23: 0.0 | CMB23: 0.0 | CMC23: 0.0 | CMD23: 0.0 | CME23: 0.0 | CMF23: 0.0 | CMG23: 0.0 | CMH23: 0.0 | CMI23: 0.0 | CMJ23: 0.0 | CMK23: 0.0 | CML23: 0.0 | CMM23: 0.0 | CMN23: 0.0 | CMO23: 0.0 | CMP23: 0.0 | CMQ23: 0.0 | CMR23: 0.0 | CMS23: 0.0 | CMT23: 0.0 | CMU23: 0.0 | CMV23: 0.0 | CMW23: 0.0 | CMX23: 0.0 | CMY23: 0.0 | CMZ23: 0.0 | CNA23: 0.0 | CNB23: 0.0 | CNC23: 0.0 | CND23: 0.0 | CNE23: 0.0 | CNF23: 0.0 | CNG23: 0.0 | CNH23: 0.0 | CNI23: 0.0 | CNJ23: 0.0 | CNK23: 0.0 | CNL23: 0.0 | CNM23: 0.0 | CNN23: 0.0 | CNO23: 0.0 | CNP23: 0.0 | CNQ23: 0.0 | CNR23: 0.0 | CNS23: 0.0 | CNT23: 0.0 | CNU23: 0.0 | CNV23: 0.0 | CNW23: 0.0 | CNX23: 0.0 | CNY23: 0.0 | CNZ23: 0.0 | COA23: 0.0 | COB23: 0.0 | COC23: 0.0 | COD23: 0.0 | COE23: 0.0 | COF23: 0.0 | COG23: 0.0 | COH23: 0.0 | COI23: 0.0 | COJ23: 0.0 | COK23: 0.0 | COL23: 0.0 | COM23: 0.0 | CON23: 0.0 | COO23: 0.0 | COP23: 0.0 | COQ23: 0.0 | COR23: 0.0 | COS23: 0.0 | COT23: 0.0 | COU23: 0.0 | COV23: 0.0 | COW23: 0.0 | COX23: 0.0 | COY23: 0.0 | COZ23: 0.0 | CPA23: 0.0 | CPB23: 0.0 | CPC23: 0.0 | CPD23: 0.0 | CPE23: 0.0 | CPF23: 0.0 | CPG23: 0.0 | CPH23: 0.0 | CPI23: 0.0 | CPJ23: 0.0 | CPK23: 0.0 | CPL23: 0.0 | CPM23: 0.0 | CPN23: 0.0 | CPO23: 0.0 | CPP23: 0.0 | CPQ23: 0.0 | CPR23: 0.0 | CPS23: 0.0 | CPT23: 0.0 | CPU23: 0.0 | CPV23: 0.0 | CPW23: 0.0 | CPX23: 0.0 | CPY23: 0.0 | CPZ23: 0.0 | CQA23: 0.0 | CQB23: 0.0 | CQC23: 0.0 | CQD23: 0.0 | CQE23: 0.0 | CQF23: 0.0 | CQG23: 0.0 | CQH23: 0.0 | CQI23: 0.0 | CQJ23: 0.0 | CQK23: 0.0 | CQL23: 0.0 | CQM23: 0.0 | CQN23: 0.0 | CQO23: 0.0 | CQP23: 0.0 | CQQ23: 0.0 | CQR23: 0.0 | CQS23: 0.0 | CQT23: 0.0 | CQU23: 0.0 | CQV23: 0.0 | CQW23: 0.0 | CQX23: 0.0 | CQY23: 0.0 | CQZ23: 0.0 | CRA23: 0.0 | CRB23: 0.0 | CRC23: 0.0 | CRD23: 0.0 | CRE23: 0.0 | CRF23: 0.0 | CRG23: 0.0 | CRH23: 0.0 | CRI23: 0.0 | CRJ23: 0.0 | CRK23: 0.0 | CRL23: 0.0 | CRM23: 0.0 | CRN23: 0.0 | CRO23: 0.0 | CRP23: 0.0 | CRQ23: 0.0 | CRR23: 0.0 | CRS23: 0.0 | CRT23: 0.0 | CRU23: 0.0 | CRV23: 0.0 | CRW23: 0.0 | CRX23: 0.0 | CRY23: 0.0 | CRZ23: 0.0 | CSA23: 0.0 | CSB23: 0.0 | CSC23: 0.0 | CSD23: 0.0 | CSE23: 0.0 | CSF23: 0.0 | CSG23: 0.0 | CSH23: 0.0 | CSI23: 0.0 | CSJ23: 0.0 | CSK23: 0.0 | CSL23: 0.0 | CSM23: 0.0 | CSN23: 0.0 | CSO23: 0.0 | CSP23: 0.0 | CSQ23: 0.0 | CSR23: 0.0 | CSS23: 0.0 | CST23: 0.0 | CSU23: 0.0 | CSV23: 0.0 | CSW23: 0.0 | CSX23: 0.0 | CSY23: 0.0 | CSZ23: 0.0 | CTA23: 0.0 | CTB23: 0.0 | CTC23: 0.0 | CTD23: 0.0 | CTE23: 0.0 | CTF23: 0.0 | CTG23: 0.0 | CTH23: 0.0 | CTI23: 0.0 | CTJ23: 0.0 | CTK23: 0.0 | CTL23: 0.0 | CTM23: 0.0 | CTN23: 0.0 | CTO23: 0.0 | CTP23: 0.0 | CTQ23: 0.0 | CTR23: 0.0 | CTS23: 0.0 | CTT23: 0.0 | CTU23: 0.0 | CTV23: 0.0 | CTW23: 0.0 | CTX23: 0.0 | CTY23: 0.0 | CTZ23: 0.0 | CUA23: 0.0 | CUB23: 0.0 | CUC23: 0.0 | CUD23: 0.0 | CUE23: 0.0 | CUF23: 0.0 | CUG23: 0.0 | CUH23: 0.0 | CUI23: 0.0 | CUJ23: 0.0 | CUK23: 0.0 | CUL23: 0.0 | CUM23: 0.0 | CUN23: 0.0 | CUO23: 0.0 | CUP23: 0.0 | CUQ23: 0.0 | CUR23: 0.0 | CUS23: 0.0 | CUT23: 0.0 | CUU23: 0.0 | CUV23: 0.0 | CUW23: 0.0 | CUX23: 0.0 | CUY23: 0.0 | CUZ23: 0.0 | CVA23: 0.0 | CVB23: 0.0 | CVC23: 0.0 | CVD23: 0.0 | CVE23: 0.0 | CVF23: 0.0 | CVG23: 0.0 | CVH23: 0.0 | CVI23: 0.0 | CVJ23: 0.0 | CVK23: 0.0 | CVL23: 0.0 | CVM23: 0.0 | CVN23: 0.0 | CVO23: 0.0 | CVP23: 0.0 | CVQ23: 0.0 | CVR23: 0.0 | CVS23: 0.0 | CVT23: 0.0 | CVU23: 0.0 | CVV23: 0.0 | CVW23: 0.0 | CVX23: 0.0 | CVY23: 0.0 | CVZ23: 0.0 | CWA23: 0.0 | CWB23: 0.0 | CWC23: 0.0 | CWD23: 0.0 | CWE23: 0.0 | CWF23: 0.0 | CWG23: 0.0 | CWH23: 0.0 | CWI23: 0.0 | CWJ23: 0.0 | CWK23: 0.0 | CWL23: 0.0 | CWM23: 0.0 | CWN23: 0.0 | CWO23: 0.0 | CWP23: 0.0 | CWQ23: 0.0 | CWR23: 0.0 | CWS23: 0.0 | CWT23: 0.0 | CWU23: 0.0 | CWV23: 0.0 | CWW23: 0.0 | CWX23: 0.0 | CWY23: 0.0 | CWZ23: 0.0 | CXA23: 0.0 | CXB23: 0.0 | CXC23: 0.0 | CXD23: 0.0 | CXE23: 0.0 | CXF23: 0.0 | CXG23: 0.0 | CXH23: 0.0 | CXI23: 0.0 | CXJ23: 0.0 | CXK23: 0.0 | CXL23: 0.0 | CXM23: 0.0 | CXN23: 0.0 | CXO23: 0.0 | CXP23: 0.0 | CXQ23: 0.0 | CXR23: 0.0 | CXS23: 0.0 | CXT23: 0.0 | CXU23: 0.0 | CXV23: 0.0 | CXW23: 0.0 | CXX23: 0.0 | CXY23: 0.0 | CXZ23: 0.0 | CYA23: 0.0 | CYB23: 0.0 | CYC23: 0.0 | CYD23: 0.0 | CYE23: 0.0 | CYF23: 0.0 | CYG23: 0.0 | CYH23: 0.0 | CYI23: 0.0 | CYJ23: 0.0 | CYK23: 0.0 | CYL23: 0.0 | CYM23: 0.0 | CYN23: 0.0 | CYO23: 0.0 | CYP23: 0.0 | CYQ23: 0.0 | CYR23: 0.0 | CYS23: 0.0 | CYT23: 0.0 | CYU23: 0.0 | CYV23: 0.0 | CYW23: 0.0 | CYX23: 0.0 | CYY23: 0.0 | CYZ23: 0.0 | CZA23: 0.0 | CZB23: 0.0 | CZC23: 0.0 | CZD23: 0.0 | CZE23: 0.0 | CZF23: 0.0 | CZG23: 0.0 | CZH23: 0.0 | CZI23: 0.0 | CZJ23: 0.0 | CZK23: 0.0 | CZL23: 0.0 | CZM23: 0.0 | CZN23: 0.0 | CZO23: 0.0 | CZP23: 0.0 | CZQ23: 0.0 | CZR23: 0.0 | CZS23: 0.0 | CZT23: 0.0 | CZU23: 0.0 | CZV23: 0.0 | CZW23: 0.0 | CZX23: 0.0 | CZY23: 0.0 | CZZ23: 0.0 | DAA23: 0.0 | DAB23: 0.0 | DAC23: 0.0 | DAD23: 0.0 | DAE23: 0.0 | DAF23: 0.0 | DAG23: 0.0 | DAH23: 0.0 | DAI23: 0.0 | DAJ23: 0.0 | DAK23: 0.0 | DAL23: 0.0 | DAM23: 0.0 | DAN23: 0.0 | DAO23: 0.0 | DAP23: 0.0 | DAQ23: 0.0 | DAR23: 0.0 | DAS23: 0.0 | DAT23: 0.0 | DAU23: 0.0 | DAV23: 0.0 | DAW23: 0.0 | DAX23: 0.0 | DAY23: 0.0 | DAZ23: 0.0 | DBA23: 0.0 | DBB23: 0.0 | DBC23: 0.0 | DBD23: 0.0 | DBE23: 0.0 | DBF23: 0.0 | DBG23: 0.0 | DBH23: 0.0 | DBI23: 0.0 | DBJ23: 0.0 | DBK23: 0.0 | DBL23: 0.0 | DBM23: 0.0 | DBN23: 0.0 | DBO23: 0.0 | DBP23: 0.0 | DBQ23: 0.0 | DBR23: 0.0 | DBS23: 0.0 | DBT23: 0.0 | DBU23: 0.0 | DBV23: 0.0 | DBW23: 0.0 | DBX23: 0.0 | DBY23: 0.0 | DBZ23: 0.0 | DCA23: 0.0 | DCB23: 0.0 | DCC23: 0.0 | DCD23: 0.0 | DCE23: 0.0 | DCF23: 0.0 | DCG23: 0.0 | DCH23: 0.0 | DCI23: 0.0 | DCJ23: 0.0 | DCK23: 0.0 | DCL23: 0.0 | DCM23: 0.0 | DCN23: 0.0 | DCO23: 0.0 | DCP23: 0.0 | DCQ23: 0.0 | DCR23: 0.0 | DCS23: 0.0 | DCT23: 0.0 | DCU23: 0.0 | DCV23: 0.0 | DCW23: 0.0 | DCX23: 0.0 | DCY23: 0.0 | DCZ23: 0.0 | DDA23: 0.0 | DDB23: 0.0 | DDC23: 0.0 | DDD23: 0.0 | DDE23: 0.0 | DDF23: 0.0 | DDG23: 0.0 | DDH23: 0.0 | DDI23: 0.0 | DDJ23: 0.0 | DDK23: 0.0 | DDL23: 0.0 | DDM23: 0.0 | DDN23: 0.0 | DDO23: 0.0 | DDP23: 0.0 | DDQ23: 0.0 | DDR23: 0.0 | DDS23: 0.0 | DDT23: 0.0 | DDU23: 0.0 | DDV23: 0.0 | DDW23: 0.0 | DDX23: 0.0 | DDY23: 0.0 | DDZ23: 0.0 | DEA23: 0.0 | DEB23: 0.0 | DEC23: 0.0 | DED23: 0.0 | DEE23: 0.0 | DEF23: 0.0 | DEG23: 0.0 | DEH23: 0.0 | DEI23: 0.0 | DEJ23: 0.0 | DEK23: 0.0 | DEL23: 0.0 | DEM23: 0.0 | DEN23: 0.0 | DEO23: 0.0 | DEP23: 0.0 | DEQ23: 0.0 | DER23: 0.0 | DES23: 0.0 | DET23: 0.0 | DEU23: 0.0 | DEV23: 0.0 | DEW23: 0.0 | DEX23: 0.0 | DEY23: 0.0 | DEZ23: 0.0 | DFA23: 0.0 | DFB23: 0.0 | DFC23: 0.0 | DFD23: 0.0 | DFE23: 0.0 | DFF23: 0.0 | DFG23: 0.0 | DFH23: 0.0 | DFI23: 0.0 | DFJ23: 0.0 | DFK23: 0.0 | DFL23: 0.0 | DFM23: 0.0 | DFN23: 0.0 | DFO23: 0.0 | DFP23: 0.0 | DFQ23: 0.0 | DFR23: 0.0 | DFS23: 0.0 | DFT23: 0.0 | DFU23: 0.0 | DFV23: 0.0 | DFW23: 0.0 | DFX23: 0.0 | DFY23: 0.0 | DFZ23: 0.0 | DGA23: 0.0 | DGB23: 0.0 | DGC23: 0.0 | DGD23: 0.0 | DGE23: 0.0 | DGF23: 0.0 | DGG23: 0.0 | DGH23: 0.0 | DGI23: 0.0 | DGJ23: 0.0 | DGK23: 0.0 | DGL23: 0.0 | DGM23: 0.0 | DGN23: 0.0 | DGO23: 0.0 | DGP23: 0.0 | DGQ23: 0.0 | DGR23: 0.0 | DGS23: 0.0 | DGT23: 0.0 | DGU23: 0.0 | DGV23: 0.0 | DGW23: 0.0 | DGX23: 0.0 | DGY23: 0.0 | DGZ23: 0.0 | DHA23: 0.0 | DHB23: 0.0 | DHC23: 0.0 | DHD23: 0.0 | DHE23: 0.0 | DHF23: 0.0 | DHG23: 0.0 | DHH23: 0.0 | DHI23: 0.0 | DHJ23: 0.0 | DHK23: 0.0 | DHL23: 0.0 | DHM23: 0.0 | DHN23: 0.0 | DHO23: 0.0 | DHP23: 0.0 | DHQ23: 0.0 | DHR23: 0.0 | DHS23: 0.0 | DHT23: 0.0 | DHU23: 0.0 | DHV23: 0.0 | DHW23: 0.0 | DHX23: 0.0 | DHY23: 0.0 | DHZ23: 0.0 | DIA23: 0.0 | DIB23: 0.0 | DIC23: 0.0 | DID23: 0.0 | DIE23: 0.0 | DIF23: 0.0 | DIG23: 0.0 | DIH23: 0.0 | DII23: 0.0 | DIJ23: 0.0 | DIK23: 0.0 | DIL23: 0.0 | DIM23: 0.0 | DIN23: 0.0 | DIO23: 0.0 | DIP23: 0.0 | DIQ23: 0.0 | DIR23: 0.0 | DIS23: 0.0 | DIT23: 0.0 | DIU23: 0.0 | DIV23: 0.0 | DIW23: 0.0 | DIX23: 0.0 | DIY23: 0.0 | DIZ23: 0.0 | DJA23: 0.0 | DJB23: 0.0 | DJC23: 0.0 | DJD23: 0.0 | DJE23: 0.0 | DJF23: 0.0 | DJG23: 0.0 | DJH23: 0.0 | DJI23: 0.0 | DJJ23: 0.0 | DJK23: 0.0 | DJL23: 0.0 | DJM23: 0.0 | DJN23: 0.0 | DJO23: 0.0 | DJP23: 0.0 | DJQ23: 0.0 | DJR23: 0.0 | DJS23: 0.0 | DJT23: 0.0 | DJU23: 0.0 | DJV23: 0.0 | DJW23: 0.0 | DJX23: 0.0 | DJY23: 0.0 | DJZ23: 0.0 | DKA23: 0.0 | DKB23: 0.0 | DKC23: 0.0 | DKD23: 0.0 | DKE23: 0.0 | DKF23: 0.0 | DKG23: 0.0 | DKH23: 0.0 | DKI23: 0.0 | DKJ23: 0.0 | DKK23: 0.0 | DKL23: 0.0 | DKM23: 0.0 | DKN23: 0.0 | DKO23: 0.0 | DKP23: 0.0 | DKQ23: 0.0 | DKR23: 0.0 | DKS23: 0.0 | DKT23: 0.0 | DKU23: 0.0 | DKV23: 0.0 | DKW23: 0.0 | DKX23: 0.0 | DKY23: 0.0 | DKZ23: 0.0 | DLA23: 0.0 | DLB23: 0.0 | DLC23: 0.0 | DLD23: 0.0 | DLE23: 0.0 | DLF23: 0.0 | DLG23: 0.0 | DLH23: 0.0 | DLI23: 0.0 | DLJ23: 0.0 | DLK23: 0.0 | DLL23: 0.0 | DLM23: 0.0 | DLN23: 0.0 | DLO23: 0.0 | DLP23: 0.0 | DLQ23: 0.0 | DLR23: 0.0 | DLS23: 0.0 | DLT23: 0.0 | DLU23: 0.0 | DLV23: 0.0 | DLW23: 0.0 | DLX23: 0.0 | DLY23: 0.0 | DLZ23: 0.0 | DMA23: 0.0 | DMB23: 0.0 | DMC23: 0.0 | DMD23: 0.0 | DME23: 0.0 | DMF23: 0.0 | DMG23: 0.0 | DMH23: 0.0 | DMI23: 0.0 | DMJ23: 0.0 | DMK23: 0.0 | DML23: 0.0 | DMM23: 0.0 | DMN23: 0.0 | DMO23: 0.0 | DMP23: 0.0 | DMQ23: 0.0 | DMR23: 0.0 | DMS23: 0.0 | DMT23: 0.0 | DMU23: 0.0 | DMV23: 0.0 | DMW23: 0.0 | DMX23: 0.0 | DMY23: 0.0 | DMZ23: 0.0 | DNA23: 0.0 | DNB23: 0.0 | DNC23: 0.0 | DND23: 0.0 | DNE23: 0.0 | DNF23: 0.0 | DNG23: 0.0 | DNH23: 0.0 | DNI23: 0.0 | DNJ23: 0.0 | DNK23: 0.0 | DNL23: 0.0 | DNM23: 0.0 | DNN23: 0.0 | DNO23: 0.0 | DNP23: 0.0 | DNQ23: 0.0 | DNR23: 0.0 | DNS23: 0.0 | DNT23: 0.0 | DNU23: 0.0 | DNV23: 0.0 | DNW23: 0.0 | DNX23: 0.0 | DNY23: 0.0 | DNZ23: 0.0 | DOA23: 0.0 | DOB23: 0.0 | DOC23: 0.0 | DOD23: 0.0 | DOE23: 0.0 | DOF23: 0.0 | DOG23: 0.0 | DOH23: 0.0 | DOI23: 0.0 | DOJ23: 0.0 | DOK23: 0.0 | DOL23: 0.0 | DOM23: 0.0 | DON23: 0.0 | DOO23: 0.0 | DOP23: 0.0 | DOQ23: 0.0 | DOR23: 0.0 | DOS23: 0.0 | DOT23: 0.0 | DOU23: 0.0 | DOV23: 0.0 | DOW23: 0.0 | DOX23: 0.0 | DOY23: 0.0 | DOZ23: 0.0 | DPA23: 0.0 | DPB23: 0.0 | DPC23: 0.0 | DPD23: 0.0 | DPE23: 0.0 | DPF23: 0.0 | DPG23: 0.0 | DPH23: 0.0 | DPI23: 0.0 | DPJ23: 0.0 | DPK23: 0.0 | DPL23: 0.0 | DPM23: 0.0 | DPN23: 0.0 | DPO23: 0.0 | DPP23: 0.0 | DPQ23: 0.0 | DPR23: 0.0 | DPS23: 0.0 | DPT23: 0.0 | DPU23: 0.0 | DPV23: 0.0 | DPW23: 0.0 | DPX23: 0.0 | DPY23: 0.0 | DPZ23: 0.0 | DQA23: 0.0 | DQB23: 0.0 | DQC23: 0.0 | DQD23: 0.0 | DQE23: 0.0 | DQF23: 0.0 | DQG23: 0.0 | DQH23: 0.0 | DQI23: 0.0 | DQJ23: 0.0 | DQK23: 0.0 | DQL23: 0.0 | DQM23: 0.0 | DQN23: 0.0 | DQO23: 0.0 | DQP23: 0.0 | DQQ23: 0.0 | DQR23: 0.0 | DQS23: 0.0 | DQT23: 0.0 | DQU23: 0.0 | DQV23: 0.0 | DQW23: 0.0 | DQX23: 0.0 | DQY23: 0.0 | DQZ23: 0.0 | DRA23: 0.0 | DRB23: 0.0 | DRC23: 0.0 | DRD23: 0.0 | DRE23: 0.0 | DRF23: 0.0 | DRG23: 0.0 | DRH23: 0.0 | DRI23: 0.0 | DRJ23: 0.0 | DRK23: 0.0 | DRL23: 0.0 | DRM23: 0.0 | DRN23: 0.0 | DRO23: 0.0 | DRP23: 0.0 | DRQ23: 0.0 | DRR23: 0.0 | DRS23: 0.0 | DRT23: 0.0 | DRU23: 0.0 | DRV23: 0.0 | DRW23: 0.0 | DRX23: 0.0 | DRY23: 0.0 | DRZ23: 0.0 | DSA23: 0.0 | DSB23: 0.0 | DSC23: 0.0 | DSD23: 0.0 | DSE23: 0.0 | DSF23: 0.0 | DSG23: 0.0 | DSH23: 0.0 | DSI23: 0.0 | DSJ23: 0.0 | DSK23: 0.0 | DSL23: 0.0 | DSM23: 0.0 | DSN23: 0.0 | DSO23: 0.0 | DSP23: 0.0 | DSQ23: 0.0 | DSR23: 0.0 | DSS23: 0.0 | DST23: 0.0 | DSU23: 0.0 | DSV23: 0.0 | DSW23: 0.0 | DSX23: 0.0 | DSY23: 0.0 | DSZ23: 0.0 | DTA23: 0.0 | DTB23: 0.0 | DTC23: 0.0 | DTD23: 0.0 | DTE23: 0.0 | DTF23: 0.0 | DTG23: 0.0 | DTH23: 0.0 | DTI23: 0.0 | DTJ23: 0.0 | DTK23: 0.0 | DTL23: 0.0 | DTM23: 0.0 | DTN23: 0.0 | DTO23: 0.0 | DTP23: 0.0 | DTQ23: 0.0 | DTR23: 0.0 | DTS23: 0.0 | DTT23: 0.0 | DTU23: 0.0 | DTV23: 0.0 | DTW23: 0.0 | DTX23: 0.0 | DTY23: 0.0 | DTZ23: 0.0 | DUA23: 0.0 | DUB23: 0.0 | DUC23: 0.0 | DUD23: 0.0 | DUE23: 0.0 | DUF23: 0.0 | DUG23: 0.0 | DUH23: 0.0 | DUI23: 0.0 | DUJ23: 0.0 | DUK23: 0.0 | DUL23: 0.0 | DUM23: 0.0 | DUN23: 0.0 | DUO23: 0.0 | DUP23: 0.0 | DUQ23: 0.0 | DUR23: 0.0 | DUS23: 0.0 | DUT23: 0.0 | DUU23: 0.0 | DUV23: 0.0 | DUW23: 0.0 | DUX23: 0.0 | DUY23: 0.0 | DUZ23: 0.0 | DVA23: 0.0 | DVB23: 0.0 | DVC23: 0.0 | DVD23: 0.0 | DVE23: 0.0 | DVF23: 0.0 | DVG23: 0.0 | DVH23: 0.0 | DVI23: 0.0 | DVJ23: 0.0 | DVK23: 0.0 | DVL23: 0.0 | DVM23: 0.0 | DVN23: 0.0 | DVO23: 0.0 | DVP23: 0.0 | DVQ23: 0.0 | DVR23: 0.0 | DVS23: 0.0 | DVT23: 0.0 | DVU23: 0.0 | DVV23: 0.0 | DVW23: 0.0 | DVX23: 0.0 | DVY23: 0.0 | DVZ23: 0.0 | DWA23: 0.0 | DWB23: 0.0 | DWC23: 0.0 | DWD23: 0.0 | DWE23: 0.0 | DWF23: 0.0 | DWG23: 0.0 | DWH23: 0.0 | DWI23: 0.0 | DWJ23: 0.0 | DWK23: 0.0 | DWL23: 0.0 | DWM23: 0.0 | DWN23: 0.0 | DWO23: 0.0 | DWP23: 0.0 | DWQ23: 0.0 | DWR23: 0.0 | DWS23: 0.0 | DWT23: 0.0 | DWU23: 0.0 | DWV23: 0.0 | DWW23: 0.0 | DWX23: 0.0 | DWY23: 0.0 | DWZ23: 0.0 | DXA23: 0.0 | DXB23: 0.0 | DXC23: 0.0 | DXD23: 0.0 | DXE23: 0.0 | DXF23: 0.0 | DXG23: 0.0 | DXH23: 0.0 | DXI23: 0.0 | DXJ23: 0.0 | DXK23: 0.0 | DXL23: 0.0 | DXM23: 0.0 | DXN23: 0.0 | DXO23: 0.0 | DXP23: 0.0 | DXQ23: 0.0 | DXR23: 0.0 | DXS23: 0.0 | DXT23: 0.0 | DXU23: 0.0 | DXV23: 0.0 | DXW23: 0.0 | DXX23: 0.0 | DXY23: 0.0 | DXZ23: 0.0 | DYA23: 0.0 | DYB23: 0.0 | DYC23: 0.0 | DYD23: 0.0 | DYE23: 0.0 | DYF23: 0.0 | DYG23: 0.0 | DYH23: 0.0 | DYI23: 0.0 | DYJ23: 0.0 | DYK23: 0.0 | DYL23: 0.0 | DYM23: 0.0 | DYN23: 0.0 | DYO23: 0.0 | DYP23: 0.0 | DYQ23: 0.0 | DYR23: 0.0 | DYS23: 0.0 | DYT23: 0.0 | DYU23: 0.0 | DYV23: 0.0 | DYW23: 0.0 | DYX23: 0.0 | DYY23: 0.0 | DYZ23: 0.0 | DZA23: 0.0 | DZB23: 0.0 | DZC23: 0.0 | DZD23: 0.0 | DZE23: 0.0 | DZF23: 0.0 | DZG23: 0.0 | DZH23: 0.0 | DZI23: 0.0 | DZJ23: 0.0 | DZK23: 0.0 | DZL23: 0.0 | DZM23: 0.0 | DZN23: 0.0 | DZO23: 0.0 | DZP23: 0.0 | DZQ23: 0.0 | DZR23: 0.0 | DZS23: 0.0 | DZT23: 0.0 | DZU23: 0.0 | DZV23: 0.0 | DZW23: 0.0 | DZX23: 0.0 | DZY23: 0.0 | DZZ23: 0.0 | EAA23: 0.0 | EAB23: 0.0 | EAC23: 0.0 | EAD23: 0.0 | EAE23: 0.0 | EAF23: 0.0 | EAG23: 0.0 | EAH23: 0.0 | EAI23: 0.0 | EAJ23: 0.0 | EAK23: 0.0 | EAL23: 0.0 | EAM23: 0.0 | EAN23: 0.0 | EAO23: 0.0 | EAP23: 0.0 | EAQ23: 0.0 | EAR23: 0.0 | EAS23: 0.0 | EAT23: 0.0 | EAU23: 0.0 | EAV23: 0.0 | EAW23: 0.0 | EAX23: 0.0 | EAY23: 0.0 | EAZ23: 0.0 | EBA23: 0.0 | EBB23: 0.0 | EBC23: 0.0 | EBD23: 0.0 | EBE23: 0.0 | EBF23: 0.0 | EBG23: 0.0 | EBH23: 0.0 | EBI23: 0.0 | EBJ23: 0.0 | EBK23: 0.0 | EBL23: 0.0 | EBM23: 0.0 | EBN23: 0.0 | EBO23: 0.0 | EBP23: 0.0 | EBQ23: 0.0 | EBR23: 0.0 | EBS23: 0.0 | EBT23: 0.0 | EBU23: 0.0 | EBV23: 0.0 | EBW23: 0.0 | EBX23: 0.0 | EBY23: 0.0 | EBZ23: 0.0 | ECA23: 0.0 | ECB23: 0.0 | ECC23: 0.0 | ECD23: 0.0 | ECE23: 0.0 | ECF23: 0.0 | ECG23: 0.0 | ECH23: 0.0 | ECI23: 0.0 | ECJ23: 0.0 | ECK23: 0.0 | ECL23: 0.0 | ECM23: 0.0 | ECN23: 0.0 | ECO23: 0.0 | ECP23: 0.0 | ECQ23: 0.0 | ECR23: 0.0 | ECS23: 0.0 | ECT23: 0.0 | ECU23: 0.0 | ECV23: 0.0 | ECW23: 0.0 | ECX23: 0.0 | ECY23: 0.0 | ECZ23: 0.0 | EDA23: 0.0 | EDB23: 0.0 | EDC23: 0.0 | EDD23: 0.0 | EDE23: 0.0 | EDF23: 0.0 | EDG23: 0.0 | EDH23: 0.0 | EDI23: 0.0 | EDJ23: 0.0 | EDK23: 0.0 | EDL23: 0.0 | EDM23: 0.0 | EDN23: 0.0 | EDO23: 0.0 | EDP23: 0.0 | EDQ23: 0.0 | EDR23: 0.0 | EDS23: 0.0 | EDT23: 0.0 | EDU23: 0.0 | EDV23: 0.0 | EDW23: 0.0 | EDX23: 0.0 | EDY23: 0.0 | EDZ23: 0.0 | EEA23: 0.0 | EEB23: 0.0 | EEC23: 0.0 | EED23: 0.0 | EEE23: 0.0 | EEF23: 0.0 | EEG23: 0.0 | EEH23: 0.0 | EEI23: 0.0 | EEJ23: 0.0 | EEK23: 0.0 | EEL23: 0.0 | EEM23: 0.0 | EEN23: 0.0 | EEO23: 0.0 | EEP23: 0.0 | EEQ23: 0.0 | EER23: 0.0 | EES23: 0.0 | EET23: 0.0 | EEU23: 0.0 | EEV23: 0.0 | EEW23: 0.0 | EEX23: 0.0 | EEY23: 0.0 | EEZ23: 0.0 | EFA23: 0.0 | EFB23: 0.0 | EFC23: 0.0 | EFD23: 0.0 | EFE23: 0.0 | EFF23: 0.0 | EFG23: 0.0 | EFH23: 0.0 | EFI23: 0.0 | EFJ23: 0.0 | EFK23: 0.0 | EFL23: 0.0 | EFM23: 0.0 | EFN23: 0.0 | EFO23: 0.0 | EFP23: 0.0 | EFQ23: 0.0 | EFR23: 0.0 | EFS23: 0.0 | EFT23: 0.0 | EFU23: 0.0 | EFV23: 0.0 | EFW23: 0.0 | EFX23: 0.0 | EFY23: 0.0 | EFZ23: 0.0 | EGA23: 0.0 | EGB23: 0.0 | EGC23: 0.0 | EGD23: 0.0 | EGE23: 0.0 | EGF23: 0.0 | EGG23: 0.0 | EGH23: 0.0 | EGI23: 0.0 | EGJ23: 0.0 | EGK23: 0.0 | EGL23: 0.0 | EGM23: 0.0 | EGN23: 0.0 | EGO23: 0.0 | EGP23: 0.0 | EGQ23: 0.0 | EGR23: 0.0 | EGS23: 0.0 | EGT23: 0.0 | EGU23: 0.0 | EGV23: 0.0 | EGW23: 0.0 | EGX23: 0.0 | EGY23: 0.0 | EGZ23: 0.0 | EHA23: 0.0 | EHB23: 0.0 | EHC23: 0.0 | EHD23: 0.0 | EHE23: 0.0 | EHF23: 0.0 | EHG23: 0.0 | EHH23: 0.0 | EHI23: 0.0 | EHJ23: 0.0 | EHK23: 0.0 | EHL23: 0.0 | EHM23: 0.0 | EHN23: 0.0 | EHO23: 0.0 | EHP23: 0.0 | EHQ23: 0.0 | EHR23: 0.0 | EHS23: 0.0 | EHT23: 0.0 | EHU23: 0.0 | EHV23: 0.0 | EHW23: 0.0 | EHX23: 0.0 | EHY23: 0.0 | EHZ23: 0.0 | EIA23: 0.0 | EIB23: 0.0 | EIC23: 0.0 | EID23: 0.0 | EIE23: 0.0 | EIF23: 0.0 | EIG23: 0.0 | EIH23: 0.0 | EII23: 0.0 | EIJ23: 0.0 | EIK23: 0.0 | EIL23: 0.0 | EIM23: 0.0 | EIN23: 0.0 | EIO23: 0.0 | EIP23: 0.0 | EIQ23: 0.0 | EIR23: 0.0 | EIS23: 0.0 | EIT23: 0.0 | EIU23: 0.0 | EIV23: 0.0 | EIW23: 0.0 | EIX23: 0.0 | EIY23: 0.0 | EIZ23: 0.0 | EJA23: 0.0 | EJB23: 0.0 | EJC23: 0.0 | EJD23: 0.0 | EJE23: 0.0 | EJF23: 0.0 | EJG23: 0.0 | EJH23: 0.0 | EJI23: 0.0 | EJJ23: 0.0 | EJK23: 0.0 | EJL23: 0.0 | EJM23: 0.0 | EJN23: 0.0 | EJO23: 0.0 | EJP23: 0.0 | EJQ23: 0.0 | EJR23: 0.0 | EJS23: 0.0 | EJT23: 0.0 | EJU23: 0.0 | EJV23: 0.0 | EJW23: 0.0 | EJX23: 0.0 | EJY23: 0.0 | EJZ23: 0.0 | EKA23: 0.0 | EKB23: 0.0 | EKC23: 0.0 | EKD23: 0.0 | EKE23: 0.0 | EKF23: 0.0 | EKG23: 0.0 | EKH23: 0.0 | EKI23: 0.0 | EKJ23: 0.0 | EKK23: 0.0 | EKL23: 0.0 | EKM23: 0.0 | EKN23: 0.0 | EKO23: 0.0 | EKP23: 0.0 | EKQ23: 0.0 | EKR23: 0.0 | EKS23: 0.0 | EKT23: 0.0 | EKU23: 0.0 | EKV23: 0.0 | EKW23: 0.0 | EKX23: 0.0 | EKY23: 0.0 | EKZ23: 0.0 | ELA23: 0.0 | ELB23: 0.0 | ELC23: 0.0 | ELD23: 0.0 | ELE23: 0.0 | ELF23: 0.0 | ELG23: 0.0 | ELH23: 0.0 | ELI23: 0.0 | ELJ23: 0.0 | ELK23: 0.0 | ELL23: 0.0 | ELM23: 0.0 | ELN23: 0.0 | ELO23: 0.0 | ELP23: 0.0 | ELQ23: 0.0 | ELR23: 0.0 | ELS23: 0.0 | ELT23: 0.0 | ELU23: 0.0 | ELV23: 0.0 | ELW23: 0.0 | ELX23: 0.0 | ELY23: 0.0 | ELZ23: 0.0 | EMA23: 0.0 | EMB23: 0.0 | EMC23: 0.0 | EMD23: 0.0 | EME23: 0.0 | EMF23: 0.0 | EMG23: 0.0 | EMH23: 0.0 | EMI23: 0.0 | EMJ23: 0.0 | EMK23: 0.0 | EML23: 0.0 | EMM23: 0.0 | EMN23: 0.0 | EMO23: 0.0 | EMP23: 0.0 | EMQ23: 0.0 | EMR23: 0.0 | EMS23: 0.0 | EMT23: 0.0 | EMU23: 0.0 | EMV23: 0.0 | EMW23: 0.0 | EMX23: 0.0 | EMY23: 0.0 | EMZ23: 0.0 | ENA23: 0.0 | ENB23: 0.0 | ENC23: 0.0 | END23: 0.0 | ENE23: 0.0 | ENF23: 0.0 | ENG23: 0.0 | ENH23: 0.0 | ENI23: 0.0 | ENJ23: 0.0 | ENK23: 0.0 | ENL23: 0.0 | ENM23: 0.0 | ENN23: 0.0 | ENO23: 0.0 | ENP23: 0.0 | ENQ23: 0.0 | ENR23: 0.0 | ENS23: 0.0 | ENT23: 0.0 | ENU23: 0.0 | ENV23: 0.0 | ENW23: 0.0 | ENX23: 0.0 | ENY23: 0.0 | ENZ23: 0.0 | EOA23: 0.0 | EOB23: 0.0 | EOC23: 0.0 | EOD23: 0.0 | EOE23: 0.0 | EOF23: 0.0 | EOG23: 0.0 | EOH23: 0.0 | EOI23: 0.0 | EOJ23: 0.0 | EOK23: 0.0 | EOL23: 0.0 | EOM23: 0.0 | EON23: 0.0 | EOO23: 0.0 | EOP23: 0.0 | EOQ23: 0.0 | EOR23: 0.0 | EOS23: 0.0 | EOT23: 0.0 | EOU23: 0.0 | EOV23: 0.0 | EOW23: 0.0 | EOX23: 0.0 | EOY23: 0.0 | EOZ23: 0.0 | EPA23: 0.0 | EPB23: 0.0 | EPC23: 0.0 | EPD23: 0.0 | EPE23: 0.0 | EPF23: 0.0 | EPG23: 0.0 | EPH23: 0.0 | EPI23: 0.0 | EPJ23: 0.0 | EPK23: 0.0 | EPL23: 0.0 | EPM23: 0.0 | EPN23: 0.0 | EPO23: 0.0 | EPP23: 0.0 | EPQ23: 0.0 | EPR23: 0.0 | EPS23: 0.0 | EPT23: 0.0 | EPU23: 0.0 | EPV23: 0.0 | EPW23: 0.0 | EPX23: 0.0 | EPY23: 0.0 | EPZ23: 0.0 | EQA23: 0.0 | EQB23: 0.0 | EQC23: 0.0 | EQD23: 0.0 | EQE23: 0.0 | EQF23: 0.0 | EQG23: 0.0 | EQH23: 0.0 | EQI23: 0.0 | EQJ23: 0.0 | EQK23: 0.0 | EQL23: 0.0 | EQM23: 0.0 | EQN23: 0.0 | EQO23: 0.0 | EQP23: 0.0 | EQQ23: 0.0 | EQR23: 0.0 | EQS23: 0.0 | EQT23: 0.0 | EQU23: 0.0 | EQV23: 0.0 | EQW23: 0.0 | EQX23: 0.0 | EQY23: 0.0 | EQZ23: 0.0 | ERA23: 0.0 | ERB23: 0.0 | ERC23: 0.0 | ERD23: 0.0 | ERE23: 0.0 | ERF23: 0.0 | ERG23: 0.0 | ERH23: 0.0 | ERI23: 0.0 | ERJ23: 0.0 | ERK23: 0.0 | ERL23: 0.0 | ERM23: 0.0 | ERN23: 0.0 | ERO23: 0.0 | ERP23: 0.0 | ERQ23: 0.0 | ERR23: 0.0 | ERS23: 0.0 | ERT23: 0.0 | ERU23: 0.0 | ERV23: 0.0 | ERW23: 0.0 | ERX23: 0.0 | ERY23: 0.0 | ERZ23: 0.0 | ESA23: 0.0 | ESB23: 0.0 | ESC23: 0.0 | ESD23: 0.0 | ESE23: 0.0 | ESF23: 0.0 | ESG23: 0.0 | ESH23: 0.0 | ESI23: 0.0 | ESJ23: 0.0 | ESK23: 0.0 | ESL23: 0.0 | ESM23: 0.0 | ESN23: 0.0 | ESO23: 0.0 | ESP23: 0.0 | ESQ23: 0.0 | ESR23: 0.0 | ESS23: 0.0 | EST23: 0.0 | ESU23: 0.0 | ESV23: 0.0 | ESW23: 0.0 | ESX23: 0.0 | ESY23: 0.0 | ESZ23: 0.0 | ETA23: 0.0 | ETB23: 0.0 | ETC23: 0.0 | ETD23: 0.0 | ETE23: 0.0 | ETF23: 0.0 | ETG23: 0.0 | ETH23: 0.0 | ETI23: 0.0 | ETJ23: 0.0 | ETK23: 0.0 | ETL23: 0.0 | ETM23: 0.0 | ETN23: 0.0 | ETO23: 0.0 | ETP23: 0.0 | ETQ23: 0.0 | ETR23: 0.0 | ETS23: 0.0 | ETT23: 0.0 | ETU23: 0.0 | ETV23: 0.0 | ETW23: 0.0 | ETX23: 0.0 | ETY23: 0.0 | ETZ23: 0.0 | EUA23: 0.0 | EUB23: 0.0 | EUC23: 0.0 | EUD23: 0.0 | EUE23: 0.0 | EUF23: 0.0 | EUG23: 0.0 | EUH23: 0.0 | EUI23: 0.0 | EUJ23: 0.0 | EUK23: 0.0 | EUL23: 0.0 | EUM23: 0.0 | EUN23: 0.0 | EUO23: 0.0 | EUP23: 0.0 | EUQ23: 0.0 | EUR23: 0.0 | EUS23: 0.0 | EUT23: 0.0 | EUU23: 0.0 | EUV23: 0.0 | EUW23: 0.0 | EUX23: 0.0 | EUY23: 0.0 | EUZ23: 0.0 | EVA23: 0.0 | EVB23: 0.0 | EVC23: 0.0 | EVD23: 0.0 | EVE23: 0.0 | EVF23: 0.0 | EVG23: 0.0 | EVH23: 0.0 | EVI23: 0.0 | EVJ23: 0.0 | EVK23: 0.0 | EVL23: 0.0 | EVM23: 0.0 | EVN23: 0.0 | EVO23: 0.0 | EVP23: 0.0 | EVQ23: 0.0 | EVR23: 0.0 | EVS23: 0.0 | EVT23: 0.0 | EVU23: 0.0 | EVV23: 0.0 | EVW23: 0.0 | EVX23: 0.0 | EVY23: 0.0 | EVZ23: 0.0 | EWA23: 0.0 | EWB23: 0.0 | EWC23: 0.0 | EWD23: 0.0 | EWE23: 0.0 | EWF23: 0.0 | EWG23: 0.0 | EWH23: 0.0 | EWI23: 0.0 | EWJ23: 0.0 | EWK23: 0.0 | EWL23: 0.0 | EWM23: 0.0 | EWN23: 0.0 | EWO23: 0.0 | EWP23: 0.0 | EWQ23: 0.0 | EWR23: 0.0 | EWS23: 0.0 | EWT23: 0.0 | EWU23: 0.0 | EWV23: 0.0 | EWW23: 0.0 | EWX23: 0.0 | EWY23: 0.0 | EWZ23: 0.0 | EXA23: 0.0 | EXB23: 0.0 | EXC23: 0.0 | EXD23: 0.0 | EXE23: 0.0 | EXF23: 0.0 | EXG23: 0.0 | EXH23: 0.0 | EXI23: 0.0 | EXJ23: 0.0 | EXK23: 0.0 | EXL23: 0.0 | EXM23: 0.0 | EXN23: 0.0 | EXO23: 0.0 | EXP23: 0.0 | EXQ23: 0.0 | EXR23: 0.0 | EXS23: 0.0 | EXT23: 0.0 | EXU23: 0.0 | EXV23: 0.0 | EXW23: 0.0 | EXX23: 0.0 | EXY23: 0.0 | EXZ23: 0.0 | EYA23: 0.0 | EYB23: 0.0 | EYC23: 0.0 | EYD23: 0.0 | EYE23: 0.0 | EYF23: 0.0 | EYG23: 0.0 | EYH23: 0.0 | EYI23: 0.0 | EYJ23: 0.0 | EYK23: 0.0 | EYL23: 0.0 | EYM23: 0.0 | EYN23: 0.0 | EYO23: 0.0 | EYP23: 0.0 | EYQ23: 0.0 | EYR23: 0.0 | EYS23: 0.0 | EYT23: 0.0 | EYU23: 0.0 | EYV23: 0.0 | EYW23: 0.0 | EYX23: 0.0 | EYY23: 0.0 | EYZ23: 0.0 | EZA23: 0.0 | EZB23: 0.0 | EZC23: 0.0 | EZD23: 0.0 | EZE23: 0.0 | EZF23: 0.0 | EZG23: 0.0 | EZH23: 0.0 | EZI23: 0.0 | EZJ23: 0.0 | EZK23: 0.0 | EZL23: 0.0 | EZM23: 0.0 | EZN23: 0.0 | EZO23: 0.0 | EZP23: 0.0 | EZQ23: 0.0 | EZR23: 0.0 | EZS23: 0.0 | EZT23: 0.0 | EZU23: 0.0 | EZV23: 0.0 | EZW23: 0.0 | EZX23: 0.0 | EZY23: 0.0 | EZZ23: 0.0 | FAA23: 0.0 | FAB23: 0.0 | FAC23: 0.0 | FAD23: 0.0 | FAE23: 0.0 | FAF23: 0.0 | FAG23: 0.0 | FAH23: 0.0 | FAI23: 0.0 | FAJ23: 0.0 | FAK23: 0.0 | FAL23: 0.0 | FAM23: 0.0 | FAN23: 0.0 | FAO23: 0.0 | FAP23: 0.0 | FAQ23: 0.0 | FAR23: 0.0 | FAS23: 0.0 | FAT23: 0.0 | FAU23: 0.0 | FAV23: 0.0 | FAW23: 0.0 | FAX23: 0.0 | FAY23: 0.0 | FAZ23: 0.0 | FBA23: 0.0 | FBB23: 0.0 | FBC23: 0.0 | FBD23: 0.0 | FBE23: 0.0 | FBF23: 0.0 | FBG23: 0.0 | FBH23: 0.0 | FBI23: 0.0 | FBJ23: 0.0 | FBK23: 0.0 | FBL23: 0.0 | FBM23: 0.0 | FBN23: 0.0 | FBO23: 0.0 | FBP23: 0.0 | FBQ23: 0.0 | FBR23: 0.0 | FBS23: 0.0 | FBT23: 0.0 | FBU23: 0.0 | FBV23: 0.0 | FBW23: 0.0 | FBX23: 0.0 | FBY23: 0.0 | FBZ23: 0.0 | FCA23: 0.0 | FCB23: 0.0 | FCC23: 0.0 | FCD23: 0.0 | FCE23: 0.0 | FCF23: 0.0 | FCG23: 0.0 | FCH23: 0.0 | FCI23: 0.0 | FCJ23: 0.0 | FCK23: 0.0 | FCL23: 0.0 | FCM23: 0.0 | FCN23: 0.0 | FCO23: 0.0 | FCP23: 0.0 | FCQ23: 0.0 | FCR23: 0.0 | FCS23: 0.0 | FCT23: 0.0 | FCU23: 0.0 | FCV23: 0.0 | FCW23: 0.0 | FCX23: 0.0 | FCY23: 0.0 | FCZ23: 0.0 | FDA23: 0.0 | FDB23: 0.0 | FDC23: 0.0 | FDD23: 0.0 | FDE23: 0.0 | FDF23: 0.0 | FDG23: 0.0 | FDH23: 0.0 | FDI23: 0.0 | FDJ23: 0.0 | FDK23: 0.0 | FDL23: 0.0 | FDM23: 0.0 | FDN23: 0.0 | FDO23: 0.0 | FDP23: 0.0 | FDQ23: 0.0 | FDR23: 0.0 | FDS23: 0.0 | FDT23: 0.0 | FDU23: 0.0 | FDV23: 0.0 | FDW23: 0.0 | FDX23: 0.0 | FDY23: 0.0 | FDZ23: 0.0 | FEA23: 0.0 | FEB23: 0.0 | FEC23: 0.0 | FED23: 0.0 | FEE23: 0.0 | FEF23: 0.0 | FEG23: 0.0 | FEH23: 0.0 | FEI23: 0.0 | FEJ23: 0.0 | FEK23: 0.0 | FEL23: 0.0 | FEM23: 0.0 | FEN23: 0.0 | FEO23: 0.0 | FEP23: 0.0 | FEQ23: 0.0 | FER23: 0.0 | FES23: 0.0 | FET23: 0.0 | FEU23: 0.0 | FEV23: 0.0 | FEW23: 0.0 | FEX23: 0.0 | FEY23: 0.0 | FEZ23: 0.0 | FFA23: 0.0 | FFB23: 0.0 | FFC23: 0.0 | FFD23: 0.0 | FFE23: 0.0 | FFF23: 0.0 | FFG23: 0.0 | FFH23: 0.0 | FFI23: 0.0 | FFJ23: 0.0 | FFK23: 0.0 | FFL23: 0.0 | FFM23: 0.0 | FFN23: 0.0 | FFO23: 0.0 | FFP23: 0.0 | FFQ23: 0.0 | FFR23: 0.0 | FFS23: 0.0 | FFT23: 0.0 | FFU23: 0.0 | FFV23: 0.0 | FFW23: 0.0 | FFX23: 0.0 | FFY23: 0.0 | FFZ23: 0.0 | FGA23: 0.0 | FGB23: 0.0 | FGC23: 0.0 | FGD23: 0.0 | FGE23: 0.0 | FGF23: 0.0 | FGG23: 0.0 | FGH23: 0.0 | FGI23: 0.0 | FGJ23: 0.0 | FGK23: 0.0 | FGL23: 0.0 | FGM23: 0.0 | FGN23: 0.0 | FGO23: 0.0 | FGP23: 0.0 | FGQ23: 0.0 | FGR23: 0.0 | FGS23: 0.0 | FGT23: 0.0 | FGU23: 0.0 | FGV23: 0.0 | FGW23: 0.0 | FGX23: 0.0 | FGY23: 0.0 | FGZ23: 0.0 | FHA23: 0.0 | FHB23: 0.0 | FHC23: 0.0 | FHD23: 0.0 | FHE23: 0.0 | FHF23: 0.0 | FHG23: 0.0 | FHH23: 0.0 | FHI23: 0.0 | FHJ23: 0.0 | FHK23: 0.0 | FHL23: 0.0 | FHM23: 0.0 | FHN23: 0.0 | FHO23: 0.0 | FHP23: 0.0 | FHQ23: 0.0 | FHR23: 0.0 | FHS23: 0.0 | FHT23: 0.0 | FHU23: 0.0 | FHV23: 0.0 | FHW23: 0.0 | FHX23: 0.0 | FHY23: 0.0 | FHZ23: 0.0 | FIA23: 0.0 | FIB23: 0.0 | FIC23: 0.0 | FID23: 0.0 | FIE23: 0.0 | FIF23: 0.0 | FIG23: 0.0 | FIH23: 0.0 | FII23: 0.0 | FIJ23: 0.0 | FIK23: 0.0 | FIL23: 0.0 | FIM23: 0.0 | FIN23: 0.0 | FIO23: 0.0 | FIP23: 0.0 | FIQ23: 0.0 | FIR23: 0.0 | FIS23: 0.0 | FIT23: 0.0 | FIU23: 0.0 | FIV23: 0.0 | FIW23: 0.0 | FIX23: 0.0 | FIY23: 0.0 | FIZ23: 0.0 | FJA23: 0.0 | FJB23: 0.0 | FJC23: 0.0 | FJD23: 0.0 | FJE23: 0.0 | FJF23: 0.0 | FJG23: 0.0 | FJH23: 0.0 | FJI23: 0.0 | FJJ23: 0.0 | FJK23: 0.0 | FJL23: 0.0 | FJM23: 0.0 | FJN23: 0.0 | FJO23: 0.0 | FJP23: 0.0 | FJQ23: 0.0 | FJR23: 0.0 | FJS23: 0.0 | FJT23: 0.0 | FJU23: 0.0 | FJV23: 0.0 | FJW23: 0.0 | FJX23: 0.0 | FJY23: 0.0 | FJZ23: 0.0 | FKA23: 0.0 | FKB23: 0.0 | FKC23: 0.0 | FKD23: 0.0 | FKE23: 0.0 | FKF23: 0.0 | FKG23: 0.0 | FKH23: 0.0 | FKI23: 0.0 | FKJ23: 0.0 | FKK23: 0.0 | FKL23: 0.0 | FKM23: 0.0 | FKN23: 0.0 | FKO23: 0.0 | FKP23: 0.0 | FKQ23: 0.0 | FKR23: 0.0 | FKS23: 0.0 | FKT23: 0.0 | FKU23: 0.0 | FKV23: 0.0 | FKW23: 0.0 | FKX23: 0.0 | FKY23: 0.0 | FKZ23: 0.0 | FLA23: 0.0 | FLB23: 0.0 | FLC23: 0.0 | FLD23: 0.0 | FLE23: 0.0 | FLF23: 0.0 | FLG23: 0.0 | FLH23: 0.0 | FLI23: 0.0 | FLJ23: 0.0 | FLK23: 0.0 | FLL23: 0.0 | FLM23: 0.0 | FLN23: 0.0 | FLO23: 0.0 | FLP23: 0.0 | FLQ23: 0.0 | FLR23: 0.0 | FLS23: 0.0 | FLT23: 0.0 | FLU23: 0.0 | FLV23: 0.0 | FLW23: 0.0 | FLX23: 0.0 | FLY23: 0.0 | FLZ23: 0.0 | FMA23: 0.0 | FMB23: 0.0 | FMC23: 0.0 | FMD23: 0.0 | FME23: 0.0 | FMF23: 0.0 | FMG23: 0.0 | FMH23: 0.0 | FMI23: 0.0 | FMJ23: 0.0 | FMK23: 0.0 | FML23: 0.0 | FMM23: 0.0 | FMN23: 0.0 | FMO23: 0.0 | FMP23: 0.0 | FMQ23: 0.0 | FMR23: 0.0 | FMS23: 0.0 | FMT23: 0.0 | FMU23: 0.0 | FMV23: 0.0 | FMW23: 0.0 | FMX23: 0.0 | FMY23: 0.0 | FMZ23: 0.0 | FNA23: 0.0 | FNB23: 0.0 | FNC23: 0.0 | FND23: 0.0 | FNE23: 0.0 | FNF23: 0.0 | FNG23: 0.0 | FNH23: 0.0 | FNI23: 0.0 | FNJ23: 0.0 | FNK23: 0.0 | FNL23: 0.0 | FNM23: 0.0 | FNN23: 0.0 | FNO23: 0.0 | FNP23: 0.0 | FNQ23: 0.0 | FNR23: 0.0 | FNS23: 0.0 | FNT23: 0.0 | FNU23: 0.0 | FNV23: 0.0 | FNW23: 0.0 | FNX23: 0.0 | FNY23: 0.0 | FNZ23: 0.0 | FOA23: 0.0 | FOB23: 0.0 | FOC23: 0.0 | FOD23: 0.0 | FOE23: 0.0 | FOF23: 0.0 | FOG23: 0.0 | FOH23: 0.0 | FOI23: 0.0 | FOJ23: 0.0 | FOK23: 0.0 | FOL23: 0.0 | FOM23: 0.0 | FON23: 0.0 | FOO23: 0.0 | FOP23: 0.0 | FOQ23: 0.0 | FOR23: 0.0 | FOS23: 0.0 | FOT23: 0.0 | FOU23: 0.0 | FOV23: 0.0 | FOW23: 0.0 | FOX23: 0.0 | FOY23: 0.0 | FOZ23: 0.0 | FPA23: 0.0 | FPB23: 0.0 | FPC23: 0.0 | FPD23: 0.0 | FPE23: 0.0 | FPF23: 0.0 | FPG23: 0.0 | FPH23: 0.0 | FPI23: 0.0 | FPJ23: 0.0 | FPK23: 0.0 | FPL23: 0.0 | FPM23: 0.0 | FPN23: 0.0 | FPO23: 0.0 | FPP23: 0.0 | FPQ23: 0.0 | FPR23: 0.0 | FPS23: 0.0 | FPT23: 0.0 | FPU23: 0.0 | FPV23: 0.0 | FPW23: 0.0 | FPX23: 0.0 | FPY23: 0.0 | FPZ23: 0.0 | FQA23: 0.0 | FQB23: 0.0 | FQC23: 0.0 | FQD23: 0.0 | FQE23: 0.0 | FQF23: 0.0 | FQG23: 0.0 | FQH23: 0.0 | FQI23: 0.0 | FQJ23: 0.0 | FQK23: 0.0 | FQL23: 0.0 | FQM23: 0.0 | FQN23: 0.0 | FQO23: 0.0 | FQP23: 0.0 | FQQ23: 0.0 | FQR23: 0.0 | FQS23: 0.0 | FQT23: 0.0 | FQU23: 0.0 | FQV23: 0.0 | FQW23: 0.0 | FQX23: 0.0 | FQY23: 0.0 | FQZ23: 0.0 | FRA23: 0.0 | FRB23: 0.0 | FRC23: 0.0 | FRD23: 0.0 | FRE23: 0.0 | FRF23: 0.0 | FRG23: 0.0 | FRH23: 0.0 | FRI23: 0.0 | FRJ23: 0.0 | FRK23: 0.0 | FRL23: 0.0 | FRM23: 0.0 | FRN23: 0.0 | FRO23: 0.0 | FRP23: 0.0 | FRQ23: 0.0 | FRR23: 0.0 | FRS23: 0.0 | FRT23: 0.0 | FRU23: 0.0 | FRV23: 0.0 | FRW23: 0.0 | FRX23: 0.0 | FRY23: 0.0 | FRZ23: 0.0 | FSA23: 0.0 | FSB23: 0.0 | FSC23: 0.0 | FSD23: 0.0 | FSE23: 0.0 | FSF23: 0.0 | FSG23: 0.0 | FSH23: 0.0 | FSI23: 0.0 | FSJ23: 0.0 | FSK23: 0.0 | FSL23: 0.0 | FSM23: 0.0 | FSN23: 0.0 | FSO23: 0.0 | FSP23: 0.0 | FSQ23: 0.0 | FSR23: 0.0 | FSS23: 0.0 | FST23: 0.0 | FSU23: 0.0 | FSV23: 0.0 | FSW23: 0.0 | FSX23: 0.0 | FSY23: 0.0 | FSZ23: 0.0 | FTA23: 0.0 | FTB23: 0.0 | FTC23: 0.0 | FTD23: 0.0 | FTE23: 0.0 | FTF23: 0.0 | FTG23: 0.0 | FTH23: 0.0 | FTI23: 0.0 | FTJ23: 0.0 | FTK23: 0.0 | FTL23: 0.0 | FTM23: 0.0 | FTN23: 0.0 | FTO23: 0.0 | FTP23: 0.0 | FTQ23: 0.0 | FTR23: 0.0 | FTS23: 0.0 | FTT23: 0.0 | FTU23: 0.0 | FTV23: 0.0 | FTW23: 0.0 | FTX23: 0.0 | FTY23: 0.0 | FTZ23: 0.0 | FUA23: 0.0 | FUB23: 0.0 | FUC23: 0.0 | FUD23: 0.0 | FUE23: 0.0 | FUF23: 0.0 | FUG23: 0.0 | FUH23: 0.0 | FUI23: 0.0 | FUJ23: 0.0 | FUK23: 0.0 | FUL23: 0.0 | FUM23: 0.0 | FUN23: 0.0 | FUO23: 0.0 | FUP23: 0.0 | FUQ23: 0.0 | FUR23: 0.0 | FUS23: 0.0 | FUT23: 0.0 | FUU23: 0.0 | FUV23: 0.0 | FUW23: 0.0 | FUX23: 0.0 | FUY23: 0.0 | FUZ23: 0.0 | FVA23: 0.0 | FVB23: 0.0 | FVC23: 0.0 | FVD23: 0.0 | FVE23: 0.0 | FVF23: 0.0 | FVG23: 0.0 | FVH23: 0.0 | FVI23: 0.0 | FVJ23: 0.0 | FVK23: 0.0 | FVL23: 0.0 | FVM23: 0.0 | FVN23: 0.0 | FVO23: 0.0 | FVP23: 0.0 | FVQ23: 0.0 | FVR23: 0.0 | FVS23: 0.0 | FVT23: 0.0 | FVU23: 0.0 | FVV23: 0.0 | FVW23: 0.0 | FVX23: 0.0 | FVY23: 0.0 | FVZ23: 0.0 | FWA23: 0.0 | FWB23: 0.0 | FWC23: 0.0 | FWD23: 0.0 | FWE23: 0.0 | FWF23: 0.0 | FWG23: 0.0 | FWH23: 0.0 | FWI23: 0.0 | FWJ23: 0.0 | FWK23: 0.0 | FWL23: 0.0 | FWM23: 0.0 | FWN23: 0.0 | FWO23: 0.0 | FWP23: 0.0 | FWQ23: 0.0 | FWR23: 0.0 | FWS23: 0.0 | FWT23: 0.0 | FWU23: 0.0 | FWV23: 0.0 | FWW23: 0.0 | FWX23: 0.0 | FWY23: 0.0 | FWZ23: 0.0 | FXA23: 0.0 | FXB23: 0.0 | FXC23: 0.0 | FXD23: 0.0 | FXE23: 0.0 | FXF23: 0.0 | FXG23: 0.0 | FXH23: 0.0 | FXI23: 0.0 | FXJ23: 0.0 | FXK23: 0.0 | FXL23: 0.0 | FXM23: 0.0 | FXN23: 0.0 | FXO23: 0.0 | FXP23: 0.0 | FXQ23: 0.0 | FXR23: 0.0 | FXS23: 0.0 | FXT23: 0.0 | FXU23: 0.0 | FXV23: 0.0 | FXW23: 0.0 | FXX23: 0.0 | FXY23: 0.0 | FXZ23: 0.0 | FYA23: 0.0 | FYB23: 0.0 | FYC23: 0.0 | FYD23: 0.0 | FYE23: 0.0 | FYF23: 0.0 | FYG23: 0.0 | FYH23: 0.0 | FYI23: 0.0 | FYJ23: 0.0 | FYK23: 0.0 | FYL23: 0.0 | FYM23: 0.0 | FYN23: 0.0 | FYO23: 0.0 | FYP23: 0.0 | FYQ23: 0.0 | FYR23: 0.0 | FYS23: 0.0 | FYT23: 0.0 | FYU23: 0.0 | FYV23: 0.0 | FYW23: 0.0 | FYX23: 0.0 | FYY23: 0.0 | FYZ23: 0.0 | FZA23: 0.0 | FZB23: 0.0 | FZC23: 0.0 | FZD23: 0.0 | FZE23: 0.0 | FZF23: 0.0 | FZG23: 0.0 | FZH23: 0.0 | FZI23: 0.0 | FZJ23: 0.0 | FZK23: 0.0 | FZL23: 0.0 | FZM23: 0.0 | FZN23: 0.0 | FZO23: 0.0 | FZP23: 0.0 | FZQ23: 0.0 | FZR23: 0.0 | FZS23: 0.0 | FZT23: 0.0 | FZU23: 0.0 | FZV23: 0.0 | FZW23: 0.0 | FZX23: 0.0 | FZY23: 0.0 | FZZ23: 0.0 | GAA23: 0.0 | GAB23: 0.0 | GAC23: 0.0 | GAD23: 0.0 | GAE23: 0.0 | GAF23: 0.0 | GAG23: 0.0 | GAH23: 0.0 | GAI23: 0.0 | GAJ23: 0.0 | GAK23: 0.0 | GAL23: 0.0 | GAM23: 0.0 | GAN23: 0.0 | GAO23: 0.0 | GAP23: 0.0 | GAQ23: 0.0 | GAR23: 0.0 | GAS23: 0.0 | GAT23: 0.0 | GAU23: 0.0 | GAV23: 0.0 | GAW23: 0.0 | GAX23: 0.0 | GAY23: 0.0 | GAZ23: 0.0 | GBA23: 0.0 | GBB23: 0.0 | GBC23: 0.0 | GBD23: 0.0 | GBE23: 0.0 | GBF23: 0.0 | GBG23: 0.0 | GBH23: 0.0 | GBI23: 0.0 | GBJ23: 0.0 | GBK23: 0.0 | GBL23: 0.0 | GBM23: 0.0 | GBN23: 0.0 | GBO23: 0.0 | GBP23: 0.0 | GBQ23: 0.0 | GBR23: 0.0 | GBS23: 0.0 | GBT23: 0.0 | GBU23: 0.0 | GBV23: 0.0 | GBW23: 0.0 | GBX23: 0.0 | GBY23: 0.0 | GBZ23: 0.0 | GCA23: 0.0 | GCB23: 0.0 | GCC23: 0.0 | GCD23: 0.0 | GCE23: 0.0 | GCF23: 0.0 | GCG23: 0.0 | GCH23: 0.0 | GCI23: 0.0 | GCJ23: 0.0 | GCK23: 0.0 | GCL23: 0.0 | GCM23: 0.0 | GCN23: 0.0 | GCO23: 0.0 | GCP23: 0.0 | GCQ23: 0.0 | GCR23: 0.0 | GCS23: 0.0 | GCT23: 0.0 | GCU23: 0.0 | GCV23: 0.0 | GCW23: 0.0 | GCX23: 0.0 | GCY23: 0.0 | GCZ23: 0.0 | GDA23: 0.0 | GDB23: 0.0 | GDC23: 0.0 | GDD23: 0.0 | GDE23: 0.0 | GDF23: 0.0 | GDG23: 0.0 | GDH23: 0.0 | GDI23: 0.0 | GDJ23: 0.0 | GDK23: 0.0 | GDL23: 0.0 | GDM23: 0.0 | GDN23: 0.0 | GDO23: 0.0 | GDP23: 0.0 | GDQ23: 0.0 | GDR23: 0.0 | GDS23: 0.0 | GDT23: 0.0 | GDU23: 0.0 | GDV23: 0.0 | GDW23: 0.0 | GDX23: 0.0 | GDY23: 0.0 | GDZ23: 0.0 | GEA23: 0.0 | GEB23: 0.0 | GEC23: 0.0 | GED23: 0.0 | GEE23: 0.0 | GEF23: 0.0 | GEG23: 0.0 | GEH23: 0.0 | GEI23: 0.0 | GEJ23: 0.0 | GEK23: 0.0 | GEL23: 0.0 | GEM23: 0.0 | GEN23: 0.0 | GEO23: 0.0 | GEP23: 0.0 | GEQ23: 0.0 | GER23: 0.0 | GES23: 0.0 | GET23: 0.0 | GEU23: 0.0 | GEV23: 0.0 | GEW23: 0.0 | GEX23: 0.0 | GEY23: 0.0 | GEZ23: 0.0 | GFA23: 0.0 | GFB23: 0.0 | GFC23: 0.0 | GFD23: 0.0 | GFE23: 0.0 | GFF23: 0.0 | GFG23: 0.0 | GFH23: 0.0 | GFI23: 0.0 | GFJ23: 0.0 | GFK23: 0.0 | GFL23: 0.0 | GFM23: 0.0 | GFN23: 0.0 | GFO23: 0.0 | GFP23: 0.0 | GFQ23: 0.0 | GFR23: 0.0 | GFS23: 0.0 | GFT23: 0.0 | GFU23: 0.0 | GFV23: 0.0 | GFW23: 0.0 | GFX23: 0.0 | GFY23: 0.0 | GFZ23: 0.0 | GGA23: 0.0 | GGB23: 0.0 | GGC23: 0.0 | GGD23: 0.0 | GGE23: 0.0 | GGF23: 0.0 | GGG23: 0.0 | GGH23: 0.0 | GGI23: 0.0 | GGJ23: 0.0 | GGK23: 0.0 | GGL23: 0.0 | GGM23: 0.0 | GGN23: 0.0 | GGO23: 0.0 | GGP23: 0.0 | GGQ23: 0.0 | GGR23: 0.0 | GGS23: 0.0 | GGT23: 0.0 | GGU23: 0.0 | GGV23: 0.0 | GGW23: 0.0 | GGX23: 0.0 | GGY23: 0.0 | GGZ23: 0.0 | GHA23: 0.0 | GHB23: 0.0 | GHC23: 0.0 | GHD23: 0.0 | GHE23: 0.0 | GHF23: 0.0 | GHG23: 0.0 | GHH23: 0.0 | GHI23: 0.0 | GHJ23: 0.0 | GHK23: 0.0 | GHL23: 0.0 | GHM23: 0.0 | GHN23: 0.0 | GHO23: 0.0 | GHP23: 0.0 | GHQ23: 0.0 | GHR23: 0.0 | GHS23: 0.0 | GHT23: 0.0 | GHU23: 0.0 | GHV23: 0.0 | GHW23: 0.0 | GHX23: 0.0 | GHY23: 0.0 | GHZ23: 0.0 | GIA23: 0.0 | GIB23: 0.0 | GIC23: 0.0 | GID23: 0.0 | GIE23: 0.0 | GIF23: 0.0 | GIG23: 0.0 | GIH23: 0.0 | GII23: 0.0 | GIJ23: 0.0 | GIK23: 0.0 | GIL23: 0.0 | GIM23: 0.0 | GIN23: 0.0 | GIO23: 0.0 | GIP23: 0.0 | GIQ23: 0.0 | GIR23: 0.0 | GIS23: 0.0 | GIT23: 0.0 | GIU23: 0.0 | GIV23: 0.0 | GIW23: 0.0 | GIX23: 0.0 | GIY23: 0.0 | GIZ23: 0.0 | GJA23: 0.0 | GJB23: 0.0 | GJC23: 0.0 | GJD23: 0.0 | GJE23: 0.0 | GJF23: 0.0 | GJG23: 0.0 | GJH23: 0.0 | GJI23: 0.0 | GJJ23: 0.0 | GJK23: 0.0 | GJL23: 0.0 | GJM23: 0.0 | GJN23: 0.0 | GJO23: 0.0 | GJP23: 0.0 | GJQ23: 0.0 | GJR23: 0.0 | GJS23: 0.0 | GJT23: 0.0 | GJU23: 0.0 | GJV23: 0.0 | GJW23: 0.0 | GJX23: 0.0 | GJY23: 0.0 | GJZ23: 0.0 | GKA23: 0.0 | GKB23: 0.0 | GKC23: 0.0 | GKD23: 0.0 | GKE23: 0.0 | GKF23: 0.0 | GKG23: 0.0 | GKH23: 0.0 | GKI23: 0.0 | GKJ23: 0.0 | GKK23: 0.0 | GKL23: 0.0 | GKM23: 0.0 | GKN23: 0.0 | GKO23: 0.0 | GKP23: 0.0 | GKQ23: 0.0 | GKR23: 0.0 | GKS23: 0.0 | GKT23: 0.0 | GKU23: 0.0 | GKV23: 0.0 | GKW23: 0.0 | GKX23: 0.0 | GKY23: 0.0 | GKZ23: 0.0 | GLA23: 0.0 | GLB23: 0.0 | GLC23: 0.0 | GLD23: 0.0 | GLE23: 0.0 | GLF23: 0.0 | GLG23: 0.0 | GLH23: 0.0 | GLI23: 0.0 | GLJ23: 0.0 | GLK23: 0.0 | GLL23: 0.0 | GLM23: 0.0 | GLN23: 0.0 | GLO23: 0.0 | GLP23: 0.0 | GLQ23: 0.0 | GLR23: 0.0 | GLS23: 0.0 | GLT23: 0.0 | GLU23: 0.0 | GLV23: 0.0 | GLW23: 0.0 | GLX23: 0.0 | GLY23: 0.0 | GLZ23: 0.0 | GMA23: 0.0 | GMB23: 0.0 | GMC23: 0.0 | GMD23: 0.0 | GME23: 0.0 | GMF23: 0.0 | GMG23: 0.0 | GMH23: 0.0 | GMI23: 0.0 | GMJ23: 0.0 | GMK23: 0.0 | GML23: 0.0 | GMM23: 0.0 | GMN23: 0.0 | GMO23: 0.0 | GMP23: 0.0 | GMQ23: 0.0 | GMR23: 0.0 | GMS23: 0.0 | GMT23: 0.0 | GMU23: 0.0 | GMV23: 0.0 | GMW23: 0.0 | GMX23: 0.0 | GMY23: 0.0 | GMZ23: 0.0 | GNA23: 0.0 | GNB23: 0.0 | GNC23: 0.0 | GND23: 0.0 | GNE23: 0.0 | GNF23: 0.0 | GNG23: 0.0 | GNH23: 0.0 | GNI23: 0.0 | GNJ23: 0.0 | GNK23: 0.0 | GNL23: 0.0 | GNM23: 0.0 | GNN23: 0.0 | GNO23: 0.0 | GNP23: 0.0 | GNQ23: 0.0 | GNR23: 0.0 | GNS23: 0.0 | GNT23: 0.0 | GNU23: 0.0 | GNV23: 0.0 | GNW23: 0.0 | GNX23: 0.0 | GNY23: 0.0 | GNZ23: 0.0 | GOA23: 0.0 | GOB23: 0.0 | GOC23: 0.0 | GOD23: 0.0 | GOE23: 0.0 | GOF23: 0.0 | GOG23: 0.0 | GOH23: 0.0 | GOI23: 0.0 | GOJ23: 0.0 | GOK23: 0.0 | GOL23: 0.0 | GOM23: 0.0 | GON23: 0.0 | GOO23: 0.0 | GOP23: 0.0 | GOQ23: 0.0 | GOR23: 0.0 | GOS23: 0.0 | GOT23: 0.0 | GOU23: 0.0 | GOV23: 0.0 | GOW23: 0.0 | GOX23: 0.0 | GOY23: 0.0 | GOZ23: 0.0 | GPA23: 0.0 | GPB23: 0.0 | GPC23: 0.0 | GPD23: 0.0 | GPE23: 0.0 | GPF23: 0.0 | GPG23: 0.0 | GPH23: 0.0 | GPI23: 0.0 | GPJ23: 0.0 | GPK23: 0.0 | GPL23: 0.0 | GPM23: 0.0 | GPN23: 0.0 | GPO23: 0.0 | GPP23: 0.0 | GPQ23: 0.0 | GPR23: 0.0 | GPS23: 0.0 | GPT23: 0.0 | GPU23: 0.0 | GPV23: 0.0 | GPW23: 0.0 | GPX23: 0.0 | GPY23: 0.0 | GPZ23: 0.0 | GQA23: 0.0 | GQB23: 0.0 | GQC23: 0.0 | GQD23: 0.0 | GQE23: 0.0 | GQF23: 0.0 | GQG23: 0.0 | GQH23: 0.0 | GQI23: 0.0 | GQJ23: 0.0 | GQK23: 0.0 | GQL23: 0.0 | GQM23: 0.0 | GQN23: 0.0 | GQO23: 0.0 | GQP23: 0.0 | GQQ23: 0.0 | GQR23: 0.0 | GQS23: 0.0 | GQT23: 0.0 | GQU23: 0.0 | GQV23: 0.0 | GQW23: 0.0 | GQX23: 0.0 | GQY23: 0.0 | GQZ23: 0.0 | GRA23: 0.0 | GRB23: 0.0 | GRC23: 0.0 | GRD23: 0.0 | GRE23: 0.0 | GRF23: 0.0 | GRG23: 0.0 | GRH23: 0.0 | GRI23: 0.0 | GRJ23: 0.0 | GRK23: 0.0 | GRL23: 0.0 | GRM23: 0.0 | GRN23: 0.0 | GRO23: 0.0 | GRP23: 0.0 | GRQ23: 0.0 | GRR23: 0.0 | GRS23: 0.0 | GRT23: 0.0 | GRU23: 0.0 | GRV23: 0.0 | GRW23: 0.0 | GRX23: 0.0 | GRY23: 0.0 | GRZ23: 0.0 | GSA23: 0.0 | GSB23: 0.0 | GSC23: 0.0 | GSD23: 0.0 | GSE23: 0.0 | GSF23: 0.0 | GSG23: 0.0 | GSH23: 0.0 | GSI23: 0.0 | GSJ23: 0.0 | GSK23: 0.0 | GSL23: 0.0 | GSM23: 0.0 | GSN23: 0.0 | GSO23: 0.0 | GSP23: 0.0 | GSQ23: 0.0 | GSR23: 0.0 | GSS23: 0.0 | GST23: 0.0 | GSU23: 0.0 | GSV23: 0.0 | GSW23: 0.0 | GSX23: 0.0 | GSY23: 0.0 | GSZ23: 0.0 | GTA23: 0.0 | GTB23: 0.0 | GTC23: 0.0 | GTD23: 0.0 | GTE23: 0.0 | GTF23: 0.0 | GTG23: 0.0 | GTH23: 0.0 | GTI23: 0.0 | GTJ23: 0.0 | GTK23: 0.0 | GTL23: 0.0 | GTM23: 0.0 | GTN23: 0.0 | GTO23: 0.0 | GTP23: 0.0 | GTQ23: 0.0 | GTR23: 0.0 | GTS23: 0.0 | GTT23: 0.0 | GTU23: 0.0 | GTV23: 0.0 | GTW23: 0.0 | GTX23: 0.0 | GTY23: 0.0 | GTZ23: 0.0 | GUA23: 0.0 | GUB23: 0.0 | GUC23: 0.0 | GUD23: 0.0 | GUE23: 0.0 | GUF23: 0.0 | GUG23: 0.0 | GUH23: 0.0 | GUI23: 0.0 | GUJ23: 0.0 | GUK23: 0.0 | GUL23: 0.0 | GUM23: 0.0 | GUN23: 0.0 | GUO23: 0.0 | GUP23: 0.0 | GUQ23: 0.0 | GUR23: 0.0 | GUS23: 0.0 | GUT23: 0.0 | GUU23: 0.0 | GUV23: 0.0 | GUW23: 0.0 | GUX23: 0.0 | GUY23: 0.0 | GUZ23: 0.0 | GVA23: 0.0 | GVB23: 0.0 | GVC23: 0.0 | GVD23: 0.0 | GVE23: 0.0 | GVF23: 0.0 | GVG23: 0.0 | GVH23: 0.0 | GVI23: 0.0 | GVJ23: 0.0 | GVK23: 0.0 | GVL23: 0.0 | GVM23: 0.0 | GVN23: 0.0 | GVO23: 0.0 | GVP23: 0.0 | GVQ23: 0.0 | GVR23: 0.0 | GVS23: 0.0 | GVT23: 0.0 | GVU23: 0.0 | GVV23: 0.0 | GVW23: 0.0 | GVX23: 0.0 | GVY23: 0.0 | GVZ23: 0.0 | GWA23: 0.0 | GWB23: 0.0 | GWC23: 0.0 | GWD23: 0.0 | GWE23: 0.0 | GWF23: 0.0 | GWG23: 0.0 | GWH23: 0.0 | GWI23: 0.0 | GWJ23: 0.0 | GWK23: 0.0 | GWL23: 0.0 | GWM23: 0.0 | GWN23: 0.0 | GWO23: 0.0 | GWP23: 0.0 | GWQ23: 0.0 | GWR23: 0.0 | GWS23: 0.0 | GWT23: 0.0 | GWU23: 0.0 | GWV23: 0.0 | GWW23: 0.0 | GWX23: 0.0 | GWY23: 0.0 | GWZ23: 0.0 | GXA23: 0.0 | GXB23: 0.0 | GXC23: 0.0 | GXD23: 0.0 | GXE23: 0.0 | GXF23: 0.0 | GXG23: 0.0 | GXH23: 0.0 | GXI23: 0.0 | GXJ23: 0.0 | GXK23: 0.0 | GXL23: 0.0 | GXM23: 0.0 | GXN23: 0.0 | GXO23: 0.0 | GXP23: 0.0 | GXQ23: 0.0 | GXR23: 0.0 | GXS23: 0.0 | GXT23: 0.0 | GXU23: 0.0 | GXV23: 0.0 | GXW23: 0.0 | GXX23: 0.0 | GXY23: 0.0 | GXZ23: 0.0 | GYA23: 0.0 | GYB23: 0.0 | GYC23: 0.0 | GYD23: 0.0 | GYE23: 0.0 | GYF23: 0.0 | GYG23: 0.0 | GYH23: 0.0 | GYI23: 0.0 | GYJ23: 0.0 | GYK23: 0.0 | GYL23: 0.0 | GYM23: 0.0 | GYN23: 0.0 | GYO23: 0.0 | GYP23: 0.0 | GYQ23: 0.0 | GYR23: 0.0 | GYS23: 0.0 | GYT23: 0.0 | GYU23: 0.0 | GYV23: 0.0 | GYW23: 0.0 | GYX23: 0.0 | GYY23: 0.0 | GYZ23: 0.0 | GZA23: 0.0 | GZB23: 0.0 | GZC23: 0.0 | GZD23: 0.0 | GZE23: 0.0 | GZF23: 0.0 | GZG23: 0.0 | GZH23: 0.0 | GZI23: 0.0 | GZJ23: 0.0 | GZK23: 0.0 | GZL23: 0.0 | GZM23: 0.0 | GZN23: 0.0 | GZO23: 0.0 | GZP23: 0.0 | GZQ23: 0.0 | GZR23: 0.0 | GZS23: 0.0 | GZT23: 0.0 | GZU23: 0.0 | GZV23: 0.0 | GZW23: 0.0 | GZX23: 0.0 | GZY23: 0.0 | GZZ23: 0.0 | HAA23: 0.0 | HAB23: 0.0 | HAC23: 0.0 | HAD23: 0.0 | HAE23: 0.0 | HAF23: 0.0 | HAG23: 0.0 | HAH23: 0.0 | HAI23: 0.0 | HAJ23: 0.0 | HAK23: 0.0 | HAL23: 0.0 | HAM23: 0.0 | HAN23: 0.0 | HAO23: 0.0 | HAP23: 0.0 | HAQ23: 0.0 | HAR23: 0.0 | HAS23: 0.0 | HAT23: 0.0 | HAU23: 0.0 | HAV23: 0.0 | HAW23: 0.0 | HAX23: 0.0 | HAY23: 0.0 | HAZ23: 0.0 | HBA23: 0.0 | HBB23: 0.0 | HBC23: 0.0 | HBD23: 0.0 | HBE23: 0.0 | HBF23: 0.0 | HBG23: 0.0 | HBH23: 0.0 | HBI23: 0.0 | HBJ23: 0.0 | HBK23: 0.0 | HBL23: 0.0 | HBM23: 0.0 | HBN23: 0.0 | HBO23: 0.0 | HBP23: 0.0 | HBQ23: 0.0 | HBR23: 0.0 | HBS23: 0.0 | HBT23: 0.0 | HBU23: 0.0 | HBV23: 0.0 | HBW23: 0.0 | HBX23: 0.0 | HBY23: 0.0 | HBZ23: 0.0 | HCA23: 0.0 | HCB23: 0.0 | HCC23: 0.0 | HCD23: 0.0 | HCE23: 0.0 | HCF23: 0.0 | HCG23: 0.0 | HCH23: 0.0 | HCI23: 0.0 | HCJ23: 0.0 | HCK23: 0.0 | HCL23: 0.0 | HCM23: 0.0 | HCN23: 0.0 | HCO23: 0.0 | HCP23: 0.0 | HCQ23: 0.0 | HCR23: 0.0 | HCS23: 0.0 | HCT23: 0.0 | HCU23: 0.0 | HCV23: 0.0 | HCW23: 0.0 | HCX23: 0.0 | HCY23: 0.0 | HCZ23: 0.0 | HDA23: 0.0 | HDB23: 0.0 | HDC23: 0.0 | HDD23: 0.0 | HDE23: 0.0 | HDF23: 0.0 | HDG23: 0.0 | HDH23: 0.0 | HDI23: 0.0 | HDJ23: 0.0 | HDK23: 0.0 | HDL23: 0.0 | HDM23: 0.0 | HDN23: 0.0 | HDO23: 0.0 | HDP23: 0.0 | HDQ23: 0.0 | HDR23: 0.0 | HDS23: 0.0 | HDT23: 0.0 | HDU23: 0.0 | HDV23: 0.0 | HDW23: 0.0 | HDX23: 0.0 | HDY23: 0.0 | HDZ23: 0.0 | HEA23: 0.0 | HEB23: 0.0 | HEC23: 0.0 | HED23: 0.0 | HEE23: 0.0 | HEF23: 0.0 | HEG23: 0.0 | HEH23: 0.0 | HEI23: 0.0 | HEJ23: 0.0 | HEK23: 0.0 | HEL23: 0.0 | HEM23: 0.0 | HEN23: 0.0 | HEO23: 0.0 | HEP23: 0.0 | HEQ23: 0.0 | HER23: 0.0 | HES23: 0.0 | HET23: 0.0 | HEU23: 0.0 | HEV23: 0.0 | HEW23: 0.0 | HEX23: 0.0 | HEY23: 0.0 | HEZ23: 0.0 | HFA23: 0.0 | HFB23: 0.0 | HFC23: 0.0 | HFD23: 0.0 | HFE23: 0.0 | HFF23: 0.0 | HFG23: 0.0 | HFH23: 0.0 | HFI23: 0.0 | HFJ23: 0.0 | HFK23: 0.0 | HFL23: 0.0 | HFM23: 0.0 | HFN23: 0.0 | HFO23: 0.0 | HFP23: 0.0 | HFQ23: 0.0 | HFR23: 0.0 | HFS23: 0.0 | HFT23: 0.0 | HFU23: 0.0 | HFV23: 0.0 | HFW23: 0.0 | HFX23: 0.0 | HFY23: 0.0 | HFZ23: 0.0 | HGA23: 0.0 | HGB23: 0.0 | HGC23: 0.0 | HGD23: 0.0 | HGE23: 0.0 | HGF23: 0.0 | HGG23: 0.0 | HGH23: 0.0 | HGI23: 0.0 | HGJ23: 0.0 | HGK23: 0.0 | HGL23: 0.0 | HGM23: 0.0 | HGN23: 0.0 | HGO23: 0.0 | HGP23: 0.0 | HGQ23: 0.0 | HGR23: 0.0 | HGS23: 0.0 | HGT23: 0.0 | HGU23: 0.0 | HGV23: 0.0 | HGW23: 0.0 | HGX23: 0.0 | HGY23: 0.0 | HGZ23: 0.0 | HHA23: 0.0 | HHB23: 0.0 | HHC23: 0.0 | HHD23: 0.0 | HHE23: 0.0 | HHF23: 0.0 | HHG23: 0.0 | HHH23: 0.0 | HHI23: 0.0 | HHJ23: 0.0 | HHK23: 0.0 | HHL23: 0.0 | HHM23: 0.0 | HHN23: 0.0 | HHO23: 0.0 | HHP23: 0.0 | HHQ23: 0.0 | HHR23: 0.0 | HHS23: 0.0 | HHT23: 0.0 | HHU23: 0.0 | HHV23: 0.0 | HHW23: 0.0 | HHX23: 0.0 | HHY23: 0.0 | HHZ23: 0.0 | HIA23: 0.0 | HIB23: 0.0 | HIC23: 0.0 | HID23: 0.0 | HIE23: 0.0 | HIF23: 0.0 | HIG23: 0.0 | HIH23: 0.0 | HII23: 0.0 | HIJ23: 0.0 | HIK23: 0.0 | HIL23: 0.0 | HIM23: 0.0 | HIN23: 0.0 | HIO23: 0.0 | HIP23: 0.0 | HIQ23: 0.0 | HIR23: 0.0 | HIS23: 0.0 | HIT23: 0.0 | HIU23: 0.0 | HIV23: 0.0 | HIW23: 0.0 | HIX23: 0.0 | HIY23: 0.0 | HIZ23: 0.0 | HJA23: 0.0 | HJB23: 0.0 | HJC23: 0.0 | HJD23: 0.0 | HJE23: 0.0 | HJF23: 0.0 | HJG23: 0.0 | HJH23: 0.0 | HJI23: 0.0 | HJJ23: 0.0 | HJK23: 0.0 | HJL23: 0.0 | HJM23: 0.0 | HJN23: 0.0 | HJO23: 0.0 | HJP23: 0.0 | HJQ23: 0.0 | HJR23: 0.0 | HJS23: 0.0 | HJT23: 0.0 | HJU23: 0.0 | HJV23: 0.0 | HJW23: 0.0 | HJX23: 0.0 | HJY23: 0.0 | HJZ23: 0.0 | HKA23: 0.0 | HKB23: 0.0 | HKC23: 0.0 | HKD23: 0.0 | HKE23: 0.0 | HKF23: 0.0 | HKG23: 0.0 | HKH23: 0.0 | HKI23: 0.0 | HKJ23: 0.0 | HKK23: 0.0 | HKL23: 0.0 | HKM23: 0.0 | HKN23: 0.0 | HKO23: 0.0 | HKP23: 0.0 | HKQ23: 0.0 | HKR23: 0.0 | HKS23: 0.0 | HKT23: 0.0 | HKU23: 0.0 | HKV23: 0.0 | HKW23: 0.0 | HKX23: 0.0 | HKY23: 0.0 | HKZ23: 0.0 | HLA23: 0.0 | HLB23: 0.0 | HLC23: 0.0 | HLD23: 0.0 | HLE23: 0.0 | HLF23: 0.0 | HLG23: 0.0 | HLH23: 0.0 | HLI23: 0.0 | HLJ23: 0.0 | HLK23: 0.0 | HLL23: 0.0 | HLM23: 0.0 | HLN23: 0.0 | HLO23: 0.0 | HLP23: 0.0 | HLQ23: 0.0 | HLR23: 0.0 | HLS23: 0.0 | HLT23: 0.0 | HLU23: 0.0 | HLV23: 0.0 | HLW23: 0.0 | HLX23: 0.0 | HLY23: 0.0 | HLZ23: 0.0 | HMA23: 0.0 | HMB23: 0.0 | HMC23: 0.0 | HMD23: 0.0 | HME23: 0.0 | HMF23: 0.0 | HMG23: 0.0 | HMH23: 0.0 | HMI23: 0.0 | HMJ23: 0.0 | HMK23: 0.0 | HML23: 0.0 | HMM23: 0.0 | HMN23: 0.0 | HMO23: 0.0 | HMP23: 0.0 | HMQ23: 0.0 | HMR23: 0.0 | HMS23: 0.0 | HMT23: 0.0 | HMU23: 0.0 | HMV23: 0.0 | HMW23: 0.0 | HMX23: 0.0 | HMY23: 0.0 | HMZ23: 0.0 | HNA23: 0.0 | HNB23: 0.0 | HNC23: 0.0 | HND23: 0.0 | HNE23: 0.0 | HNF23: 0.0 | HNG23: 0.0 | HNH23: 0.0 | HNI23: 0.0 | HNJ23: 0.0 | HNK23: 0.0 | HNL23: 0.0 | HNM23: 0.0 | HNN23: 0.0 | HNO23: 0.0 | HNP23: 0.0 | HNQ23: 0.0 | HNR23: 0.0 | HNS23: 0.0 | HNT23: 0.0 | HNU23: 0.0 | HNV23: 0.0 | HNW23: 0.0 | HNX23: 0.0 | HNY23: 0.0 | HNZ23: 0.0 | HOA23: 0.0 | HOB23: 0.0 | HOC23: 0.0 | HOD23: 0.0 | HOE23: 0.0 | HOF23: 0.0 | HOG23: 0.0 | HOH23: 0.0 | HOI23: 0.0 | HOJ23: 0.0 | HOK23: 0.0 | HOL23: 0.0 | HOM23: 0.0 | HON23: 0.0 | HOO23: 0.0 | HOP23: 0.0 | HOQ23: 0.0 | HOR23: 0.0 | HOS23: 0.0 | HOT23: 0.0 | HOU23: 0.0 | HOV23: 0.0 | HOW23: 0.0 | HOX23: 0.0 | HOY23: 0.0 | HOZ23: 0.0 | HPA23: 0.0 | HPB23: 0.0 | HPC23: 0.0 | HPD23: 0.0 | HPE23: 0.0 | HPF23: 0.0 | HPG23: 0.0 | HPH23: 0.0 | HPI23: 0.0 | HPJ23: 0.0 | HPK23: 0.0 | HPL23: 0.0 | HPM23: 0.0 | HPN23: 0.0 | HPO23: 0.0 | HPP23: 0.0 | HPQ23: 0.0 | HPR23: 0.0 | HPS23: 0.0 | HPT23: 0.0 | HPU23: 0.0 | HPV23: 0.0 | HPW23: 0.0 | HPX23: 0.0 | HPY23: 0.0 | HPZ23: 0.0 | HQA23: 0.0 | HQB23: 0.0 | HQC23: 0.0 | HQD23: 0.0 | HQE23: 0.0 | HQF23: 0.0 | HQG23: 0.0 | HQH23: 0.0 | HQI23: 0.0 | HQJ23: 0.0 | HQK23: 0.0 | HQL23: 0.0 | HQM23: 0.0 | HQN23: 0.0 | HQO23: 0.0 | HQP23: 0.0 | HQQ23: 0.0 | HQR23: 0.0 | HQS23: 0.0 | HQT23: 0.0 | HQU23: 0.0 | HQV23: 0.0 | HQW23: 0.0 | HQX23: 0.0 | HQY23: 0.0 | HQZ23: 0.0 | HRA23: 0.0 | HRB23: 0.0 | HRC23: 0.0 | HRD23: 0.0 | HRE23: 0.0 | HRF23: 0.0 | HRG23: 0.0 | HRH23: 0.0 | HRI23: 0.0 | HRJ23: 0.0 | HRK23: 0.0 | HRL23: 0.0 | HRM23: 0.0 | HRN23: 0.0 | HRO23: 0.0 | HRP23: 0.0 | HRQ23: 0.0 | HRR23: 0.0 | HRS23: 0.0 | HRT23: 0.0 | HRU23: 0.0 | HRV23: 0.0 | HRW23: 0.0 | HRX23: 0.0 | HRY23: 0.0 | HRZ23: 0.0 | HSA23: 0.0 | HSB23: 0.0 | HSC23: 0.0 | HSD23: 0.0 | HSE23: 0.0 | HSF23: 0.0 | HSG23: 0.0 | HSH23: 0.0 | HSI23: 0.0 | HSJ23: 0.0 | HSK23: 0.0 | HSL23: 0.0 | HSM23: 0.0 | HSN23: 0.0 | HSO23: 0.0 | HSP23: 0.0 | HSQ23: 0.0 | HSR23: 0.0 | HSS23: 0.0 | HST23: 0.0 | HSU23: 0.0 | HSV23: 0.0 | HSW23: 0.0 | HSX23: 0.0 | HSY23: 0.0 | HSZ23: 0.0 | HTA23: 0.0 | HTB23: 0.0 | HTC23: 0.0 | HTD23: 0.0 | HTE23: 0.0 | HTF23: 0.0 | HTG23: 0.0 | HTH23: 0.0 | HTI23: 0.0 | HTJ23: 0.0 | HTK23: 0.0 | HTL23: 0.0 | HTM23: 0.0 | HTN23: 0.0 | HTO23: 0.0 | HTP23: 0.0 | HTQ23: 0.0 | HTR23: 0.0 | HTS23: 0.0 | HTT23: 0.0 | HTU23: 0.0 | HTV23: 0.0 | HTW23: 0.0 | HTX23: 0.0 | HTY23: 0.0 | HTZ23: 0.0 | HUA23: 0.0 | HUB23: 0.0 | HUC23: 0.0 | HUD23: 0.0 | HUE23: 0.0 | HUF23: 0.0 | HUG23: 0.0 | HUH23: 0.0 | HUI23: 0.0 | HUJ23: 0.0 | HUK23: 0.0 | HUL23: 0.0 | HUM23: 0.0 | HUN23: 0.0 | HUO23: 0.0 | HUP23: 0.0 | HUQ23: 0.0 | HUR23: 0.0 | HUS23: 0.0 | HUT23: 0.0 | HUU23: 0.0 | HUV23: 0.0 | HUW23: 0.0 | HUX23: 0.0 | HUY23: 0.0 | HUZ23: 0.0 | HVA23: 0.0 | HVB23: 0.0 | HVC23: 0.0 | HVD23: 0.0 | HVE23: 0.0 | HVF23: 0.0 | HVG23: 0.0 | HVH23: 0.0 | HVI23: 0.0 | HVJ23: 0.0 | HVK23: 0.0 | HVL23: 0.0 | HVM23: 0.0 | HVN23: 0.0 | HVO23: 0.0 | HVP23: 0.0 | HVQ23: 0.0 | HVR23: 0.0 | HVS23: 0.0 | HVT23: 0.0 | HVU23: 0.0 | HVV23: 0.0 | HVW23: 0.0 | HVX23: 0.0 | HVY23: 0.0 | HVZ23: 0.0 | HWA23: 0.0 | HWB23: 0.0 | HWC23: 0.0 | HWD23: 0.0 | HWE23: 0.0 | HWF23: 0.0 | HWG23: 0.0 | HWH23: 0.0 | HWI23: 0.0 | HWJ23: 0.0 | HWK23: 0.0 | HWL23: 0.0 | HWM23: 0.0 | HWN23: 0.0 | HWO23: 0.0 | HWP23: 0.0 | HWQ23: 0.0 | HWR23: 0.0 | HWS23: 0.0 | HWT23: 0.0 | HWU23: 0.0 | HWV23: 0.0 | HWW23: 0.0 | HWX23: 0.0 | HWY23: 0.0 | HWZ23: 0.0 | HXA23: 0.0 | HXB23: 0.0 | HXC23: 0.0 | HXD23: 0.0 | HXE23: 0.0 | HXF23: 0.0 | HXG23: 0.0 | HXH23: 0.0 | HXI23: 0.0 | HXJ23: 0.0 | HXK23: 0.0 | HXL23: 0.0 | HXM23: 0.0 | HXN23: 0.0 | HXO23: 0.0 | HXP23: 0.0 | HXQ23: 0.0 | HXR23: 0.0 | HXS23: 0.0 | HXT23: 0.0 | HXU23: 0.0 | HXV23: 0.0 | HXW23: 0.0 | HXX23: 0.0 | HXY23: 0.0 | HXZ23: 0.0 | HYA23: 0.0 | HYB23: 0.0 | HYC23: 0.0 | HYD23: 0.0 | HYE23: 0.0 | HYF23: 0.0 | HYG23: 0.0 | HYH23: 0.0 | HYI23: 0.0 | HYJ23: 0.0 | HYK23: 0.0 | HYL23: 0.0 | HYM23: 0.0 | HYN23: 0.0 | HYO23: 0.0 | HYP23: 0.0 | HYQ23: 0.0 | HYR23: 0.0 | HYS23: 0.0 | HYT23: 0.0 | HYU23: 0.0 | HYV23: 0.0 | HYW23: 0.0 | HYX23: 0.0 | HYY23: 0.0 | HYZ23: 0.0 | HZA23: 0.0 | HZB23: 0.0 | HZC23: 0.0 | HZD23: 0.0 | HZE23: 0.0 | HZF23: 0.0 | HZG23: 0.0 | HZH23: 0.0 | HZI23: 0.0 | HZJ23: 0.0 | HZK23: 0.0 | HZL23: 0.0 | HZM23: 0.0 | HZN23: 0.0 | HZO23: 0.0 | HZP23: 0.0 | HZQ23: 0.0 | HZR23: 0.0 | HZS23: 0.0 | HZT23: 0.0 | HZU23: 0.0 | HZV23: 0.0 | HZW23: 0.0 | HZX23: 0.0 | HZY23: 0.0 | HZZ23: 0.0 | IAA23: 0.0 | IAB23: 0.0 | IAC23: 0.0 | IAD23: 0.0 | IAE23: 0.0 | IAF23: 0.0 | IAG23: 0.0 | IAH23: 0.0 | IAI23: 0.0 | IAJ23: 0.0 | IAK23: 0.0 | IAL23: 0.0 | IAM23: 0.0 | IAN23: 0.0 | IAO23: 0.0 | IAP23: 0.0 | IAQ23: 0.0 | IAR23: 0.0 | IAS23: 0.0 | IAT23: 0.0 | IAU23: 0.0 | IAV23: 0.0 | IAW23: 0.0 | IAX23: 0.0 | IAY23: 0.0 | IAZ23: 0.0 | IBA23: 0.0 | IBB23: 0.0 | IBC23: 0.0 | IBD23: 0.0 | IBE23: 0.0 | IBF23: 0.0 | IBG23: 0.0 | IBH23: 0.0 | IBI23: 0.0 | IBJ23: 0.0 | IBK23: 0.0 | IBL23: 0.0 | IBM23: 0.0 | IBN23: 0.0 | IBO23: 0.0 | IBP23: 0.0 | IBQ23: 0.0 | IBR23: 0.0 | IBS23: 0.0 | IBT23: 0.0 | IBU23: 0.0 | IBV23: 0.0 | IBW23: 0.0 | IBX23: 0.0 | IBY23: 0.0 | IBZ23: 0.0 | ICA23: 0.0 | ICB23: 0.0 | ICC23: 0.0 | ICD23: 0.0 | ICE23: 0.0 | ICF23: 0.0 | ICG23: 0.0 | ICH23: 0.0 | ICI23: 0.0 | ICJ23: 0.0 | ICK23: 0.0 | ICL23: 0.0 | ICM23: 0.0 | ICN23: 0.0 | ICO23: 0.0 | ICP23: 0.0 | ICQ23: 0.0 | ICR23: 0.0 | ICS23: 0.0 | ICT23: 0.0 | ICU23: 0.0 | ICV23: 0.0 | ICW23: 0.0 | ICX23: 0.0 | ICY23: 0.0 | ICZ23: 0.0 | IDA23: 0.0 | IDB23: 0.0 | IDC23: 0.0 | IDD23: 0.0 | IDE23: 0.0 | IDF23: 0.0 | IDG23: 0.0 | IDH23: 0.0 | IDI23: 0.0 | IDJ23: 0.0 | IDK23: 0.0 | IDL23: 0.0 | IDM23: 0.0 | IDN23: 0.0 | IDO23: 0.0 | IDP23: 0.0 | IDQ23: 0.0 | IDR23: 0.0 | IDS23: 0.0 | IDT23: 0.0 | IDU23: 0.0 | IDV23: 0.0 | IDW23: 0.0 | IDX23: 0.0 | IDY23: 0.0 | IDZ23: 0.0 | IEA23: 0.0 | IEB23: 0.0 | IEC23: 0.0 | IED23: 0.0 | IEE23: 0.0 | IEF23: 0.0 | IEG23: 0.0 | IEH23: 0.0 | IEI23: 0.0 | IEJ23: 0.0 | IEK23: 0.0 | IEL23: 0.0 | IEM23: 0.0 | IEN23: 0.0 | IEO23: 0.0 | IEP23: 0.0 | IEQ23: 0.0 | IER23: 0.0 | IES23: 0.0 | IET23: 0.0 | IEU23: 0.0 | IEV23: 0.0 | IEW23: 0.0 | IEX23: 0.0 | IEY23: 0.0 | IEZ23: 0.0 | IFA23: 0.0 | IFB23: 0.0 | IFC23: 0.0 | IFD23: 0.0 | IFE23: 0.0 | IFF23: 0.0 | IFG23: 0.0 | IFH23: 0.0 | IFI23: 0.0 | IFJ23: 0.0 | IFK23: 0.0 | IFL23: 0.0 | IFM23: 0.0 | IFN23: 0.0 | IFO23: 0.0 | IFP23: 0.0 | IFQ23: 0.0 | IFR23: 0.0 | IFS23: 0.0 | IFT23: 0.0 | IFU23: 0.0 | IFV23: 0.0 | IFW23: 0.0 | IFX23: 0.0 | IFY23: 0.0 | IFZ23: 0.0 | IGA23: 0.0 | IGB23: 0.0 | IGC23: 0.0 | IGD23: 0.0 | IGE23: 0.0 | IGF23: 0.0 | IGG23: 0.0 | IGH23: 0.0 | IGI23: 0.0 | IGJ23: 0.0 | IGK23: 0.0 | IGL23: 0.0 | IGM23: 0.0 | IGN23: 0.0 | IGO23: 0.0 | IGP23: 0.0 | IGQ23: 0.0 | IGR23: 0.0 | IGS23: 0.0 | IGT23: 0.0 | IGU23: 0.0 | IGV23: 0.0 | IGW23: 0.0 | IGX23: 0.0 | IGY23: 0.0 | IGZ23: 0.0 | IHA23: 0.0 | IHB23: 0.0 | IHC23: 0.0 | IHD23: 0.0 | IHE23: 0.0 | IHF23: 0.0 | IHG23: 0.0 | IHH23: 0.0 | IHI23: 0.0 | IHJ23: 0.0 | IHK23: 0.0 | IHL23: 0.0 | IHM23: 0.0 | IHN23: 0.0 | IHO23: 0.0 | IHP23: 0.0 | IHQ23: 0.0 | IHR23: 0.0 | IHS23: 0.0 | IHT23: 0.0 | IHU23: 0.0 | IHV23: 0.0 | IHW23: 0.0 | IHX23: 0.0 | IHY23: 0.0 | IHZ23: 0.0 | IIA23: 0.0 | IIB23: 0.0 | IIC23: 0.0 | IID23: 0.0 | IIE23: 0.0 | IIF23: 0.0 | IIG23: 0.0 | IIH23: 0.0 | III23: 0.0 | IIJ23: 0.0 | IIK23: 0.0 | IIL23: 0.0 | IIM23: 0.0 | IIN23: 0.0 | IIO23: 0.0 | IIP23: 0.0 | IIQ23: 0.0 | IIR23: 0.0 | IIS23: 0.0 | IIT23: 0.0 | IIU23: 0.0 | IIV23: 0.0 | IIW23: 0.0 | IIX23: 0.0 | IIY23: 0.0 | IIZ23: 0.0 | IJA23: 0.0 | IJB23: 0.0 | IJC23: 0.0 | IJD23: 0.0 | IJE23: 0.0 | IJF23: 0.0 | IJG23: 0.0 | IJH23: 0.0 | IJI23: 0.0 | IJJ23: 0.0 | IJK23: 0.0 | IJL23: 0.0 | IJM23: 0.0 | IJN23: 0.0 | IJO23: 0.0 | IJP23: 0.0 | IJQ23: 0.0 | IJR23: 0.0 | IJS23: 0.0 | IJT23: 0.0 | IJU23: 0.0 | IJV23: 0.0 | IJW23: 0.0 | IJX23: 0.0 | IJY23: 0.0 | IJZ23: 0.0 | IKA23: 0.0 | IKB23: 0.0 | IKC23: 0.0 | IKD23: 0.0 | IKE23: 0.0 | IKF23: 0.0 | IKG23: 0.0 | IKH23: 0.0 | IKI23: 0.0 | IKJ23: 0.0 | IKK23: 0.0 | IKL23: 0.0 | IKM23: 0.0 | IKN23: 0.0 | IKO23: 0.0 | IKP23: 0.0 | IKQ23: 0.0 | IKR23: 0.0 | IKS23: 0.0 | IKT23: 0.0 | IKU23: 0.0 | IKV23: 0.0 | IKW23: 0.0 | IKX23: 0.0 | IKY23: 0.0 | IKZ23: 0.0 | ILA23: 0.0 | ILB23: 0.0 | ILC23: 0.0 | ILD23: 0.0 | ILE23: 0.0 | ILF23: 0.0 | ILG23: 0.0 | ILH23: 0.0 | ILI23: 0.0 | ILJ23: 0.0 | ILK23: 0.0 | ILL23: 0.0 | ILM23: 0.0 | ILN23: 0.0 | ILO23: 0.0 | ILP23: 0.0 | ILQ23: 0.0 | ILR23: 0.0 | ILS23: 0.0 | ILT23: 0.0 | ILU23: 0.0 | ILV23: 0.0 | ILW23: 0.0 | ILX23: 0.0 | ILY23: 0.0 | ILZ23: 0.0 | IMA23: 0.0 | IMB23: 0.0 | IMC23: 0.0 | IMD23: 0.0 | IME23: 0.0 | IMF23: 0.0 | IMG23: 0.0 | IMH23: 0.0 | IMI23: 0.0 | IMJ23: 0.0 | IMK23: 0.0 | IML23: 0.0 | IMM23: 0.0 | IMN23: 0.0 | IMO23: 0.0 | IMP23: 0.0 | IMQ23: 0.0 | IMR23: 0.0 | IMS23: 0.0 | IMT23: 0.0 | IMU23: 0.0 | IMV23: 0.0 | IMW23: 0.0 | IMX23: 0.0 | IMY23: 0.0 | IMZ23: 0.0 | INA23: 0.0 | INB23: 0.0 | INC23: 0.0 | IND23: 0.0 | INE23: 0.0 | INF23: 0.0 | ING23: 0.0 | INH23: 0.0 | INI23: 0.0 | INJ23: 0.0 | INK23: 0.0 | INL23: 0.0 | INM23: 0.0 | INN23: 0.0 | INO23: 0.0 | INP23: 0.0 | INQ23: 0.0 | INR23: 0.0 | INS23: 0.0 | INT23: 0.0 | INU23: 0.0 | INV23: 0.0 | INW23: 0.0 | INX23: 0.0 | INY23: 0.0 | INZ23: 0.0 | IOA23: 0.0 | IOB23: 0.0 | IOC23: 0.0 | IOD23: 0.0 | IOE23: 0.0 | IOF23: 0.0 | IOG23: 0.0 | IOH23: 0.0 | IOI23: 0.0 | IOJ23: 0.0 | IOK23: 0.0 | IOL23: 0.0 | IOM23: 0.0 | ION23: 0.0 | IOO23: 0.0 | IOP23: 0.0 | IOQ23: 0.0 | IOR23: 0.0 | IOS23: 0.0 | IOT23: 0.0 | IOU23: 0.0 | IOV23: 0.0 | IOW23: 0.0 | IOX23: 0.0 | IOY23: 0.0 | IOZ23: 0.0 | IPA23: 0.0 | IPB23: 0.0 | IPC23: 0.0 | IPD23: 0.0 | IPE23: 0.0 | IPF23: 0.0 | IPG23: 0.0 | IPH23: 0.0 | IPI23: 0.0 | IPJ23: 0.0 | IPK23: 0.0 | IPL23: 0.0 | IPM23: 0.0 | IPN23: 0.0 | IPO23: 0.0 | IPP23: 0.0 | IPQ23: 0.0 | IPR23: 0.0 | IPS23: 0.0 | IPT23: 0.0 | IPU23: 0.0 | IPV23: 0.0 | IPW23: 0.0 | IPX23: 0.0 | IPY23: 0.0 | IPZ23: 0.0 | IQA23: 0.0 | IQB23: 0.0 | IQC23: 0.0 | IQD23: 0.0 | IQE23: 0.0 | IQF23: 0.0 | IQG23: 0.0 | IQH23: 0.0 | IQI23: 0.0 | IQJ23: 0.0 | IQK23: 0.0 | IQL23: 0.0 | IQM23: 0.0 | IQN23: 0.0 | IQO23: 0.0 | IQP23: 0.0 | IQQ23: 0.0 | IQR23: 0.0 | IQS23: 0.0 | IQT23: 0.0 | IQU23: 0.0 | IQV23: 0.0 | IQW23: 0.0 | IQX23: 0.0 | IQY23: 0.0 | IQZ23: 0.0 | IRA23: 0.0 | IRB23: 0.0 | IRC23: 0.0 | IRD23: 0.0 | IRE23: 0.0 | IRF23: 0.0 | IRG23: 0.0 | IRH23: 0.0 | IRI23: 0.0 | IRJ23: 0.0 | IRK23: 0.0 | IRL23: 0.0 | IRM23: 0.0 | IRN23: 0.0 | IRO23: 0.0 | IRP23: 0.0 | IRQ23: 0.0 | IRR23: 0.0 | IRS23: 0.0 | IRT23: 0.0 | IRU23: 0.0 | IRV23: 0.0 | IRW23: 0.0 | IRX23: 0.0 | IRY23: 0.0 | IRZ23: 0.0 | ISA23: 0.0 | ISB23: 0.0 | ISC23: 0.0 | ISD23: 0.0 | ISE23: 0.0 | ISF23: 0.0 | ISG23: 0.0 | ISH23: 0.0 | ISI23: 0.0 | ISJ23: 0.0 | ISK23: 0.0 | ISL23: 0.0 | ISM23: 0.0 | ISN23: 0.0 | ISO23: 0.0 | ISP23: 0.0 | ISQ23: 0.0 | ISR23: 0.0 | ISS23: 0.0 | IST23: 0.0 | ISU23: 0.0 | ISV23: 0.0 | ISW23: 0.0 | ISX23: 0.0 | ISY23: 0.0 | ISZ23: 0.0 | ITA23: 0.0 | ITB23: 0.0 | ITC23: 0.0 | ITD23: 0.0 | ITE23: 0.0 | ITF23: 0.0 | ITG23: 0.0 | ITH23: 0.0 | ITI23: 0.0 | ITJ23: 0.0 | ITK23: 0.0 | ITL23: 0.0 | ITM23: 0.0 | ITN23: 0.0 | ITO23: 0.0 | ITP23: 0.0 | ITQ23: 0.0 | ITR23: 0.0 | ITS23: 0.0 | ITT23: 0.0 | ITU23: 0.0 | ITV23: 0.0 | ITW23: 0.0 | ITX23: 0.0 | ITY23: 0.0 | ITZ23: 0.0 | IUA23: 0.0 | IUB23: 0.0 | IUC23: 0.0 | IUD23: 0.0 | IUE23: 0.0 | IUF23: 0.0 | IUG23: 0.0 | IUH23: 0.0 | IUI23: 0.0 | IUJ23: 0.0 | IUK23: 0.0 | IUL23: 0.0 | IUM23: 0.0 | IUN23: 0.0 | IUO23: 0.0 | IUP23: 0.0 | IUQ23: 0.0 | IUR23: 0.0 | IUS23: 0.0 | IUT23: 0.0 | IUU23: 0.0 | IUV23: 0.0 | IUW23: 0.0 | IUX23: 0.0 | IUY23: 0.0 | IUZ23: 0.0 | IVA23: 0.0 | IVB23: 0.0 | IVC23: 0.0 | IVD23: 0.0 | IVE23: 0.0 | IVF23: 0.0 | IVG23: 0.0 | IVH23: 0.0 | IVI23: 0.0 | IVJ23: 0.0 | IVK23: 0.0 | IVL23: 0.0 | IVM23: 0.0 | IVN23: 0.0 | IVO23: 0.0 | IVP23: 0.0 | IVQ23: 0.0 | IVR23: 0.0 | IVS23: 0.0 | IVT23: 0.0 | IVU23: 0.0 | IVV23: 0.0 | IVW23: 0.0 | IVX23: 0.0 | IVY23: 0.0 | IVZ23: 0.0 | IWA23: 0.0 | IWB23: 0.0 | IWC23: 0.0 | IWD23: 0.0 | IWE23: 0.0 | IWF23: 0.0 | IWG23: 0.0 | IWH23: 0.0 | IWI23: 0.0 | IWJ23: 0.0 | IWK23: 0.0 | IWL23: 0.0 | IWM23: 0.0 | IWN23: 0.0 | IWO23: 0.0 | IWP23: 0.0 | IWQ23: 0.0 | IWR23: 0.0 | IWS23: 0.0 | IWT23: 0.0 | IWU23: 0.0 | IWV23: 0.0 | IWW23: 0.0 | IWX23: 0.0 | IWY23: 0.0 | IWZ23: 0.0 | IXA23: 0.0 | IXB23: 0.0 | IXC23: 0.0 | IXD23: 0.0 | IXE23: 0.0 | IXF23: 0.0 | IXG23: 0.0 | IXH23: 0.0 | IXI23: 0.0 | IXJ23: 0.0 | IXK23: 0.0 | IXL23: 0.0 | IXM23: 0.0 | IXN23: 0.0 | IXO23: 0.0 | IXP23: 0.0 | IXQ23: 0.0 | IXR23: 0.0 | IXS23: 0.0 | IXT23: 0.0 | IXU23: 0.0 | IXV23: 0.0 | IXW23: 0.0 | IXX23: 0.0 | IXY23: 0.0 | IXZ23: 0.0 | IYA23: 0.0 | IYB23: 0.0 | IYC23: 0.0 | IYD23: 0.0 | IYE23: 0.0 | IYF23: 0.0 | IYG23: 0.0 | IYH23: 0.0 | IYI23: 0.0 | IYJ23: 0.0 | IYK23: 0.0 | IYL23: 0.0 | IYM23: 0.0 | IYN23: 0.0 | IYO23: 0.0 | IYP23: 0.0 | IYQ23: 0.0 | IYR23: 0.0 | IYS23: 0.0 | IYT23: 0.0 | IYU23: 0.0 | IYV23: 0.0 | IYW23: 0.0 | IYX23: 0.0 | IYY23: 0.0 | IYZ23: 0.0 | IZA23: 0.0 | IZB23: 0.0 | IZC23: 0.0 | IZD23: 0.0 | IZE23: 0.0 | IZF23: 0.0 | IZG23: 0.0 | IZH23: 0.0 | IZI23: 0.0 | IZJ23: 0.0 | IZK23: 0.0 | IZL23: 0.0 | IZM23: 0.0 | IZN23: 0.0 | IZO23: 0.0 | IZP23: 0.0 | IZQ23: 0.0 | IZR23: 0.0 | IZS23: 0.0 | IZT23: 0.0 | IZU23: 0.0 | IZV23: 0.0 | IZW23: 0.0 | IZX23: 0.0 | IZY23: 0.0 | IZZ23: 0.0 | JAA23: 0.0 | JAB23: 0.0 | JAC23: 0.0 | JAD23: 0.0 | JAE23: 0.0 | JAF23: 0.0 | JAG23: 0.0 | JAH23: 0.0 | JAI23: 0.0 | JAJ23: 0.0 | JAK23: 0.0 | JAL23: 0.0 | JAM23: 0.0 | JAN23: 0.0 | JAO23: 0.0 | JAP23: 0.0 | JAQ23: 0.0 | JAR23: 0.0 | JAS23: 0.0 | JAT23: 0.0 | JAU23: 0.0 | JAV23: 0.0 | JAW23: 0.0 | JAX23: 0.0 | JAY23: 0.0 | JAZ23: 0.0 | JBA23: 0.0 | JBB23: 0.0 | JBC23: 0.0 | JBD23: 0.0 | JBE23: 0.0 | JBF23: 0.0 | JBG23: 0.0 | JBH23: 0.0 | JBI23: 0.0 | JBJ23: 0.0 | JBK23: 0.0 | JBL23: 0.0 | JBM23: 0.0 | JBN23: 0.0 | JBO23: 0.0 | JBP23: 0.0 | JBQ23: 0.0 | JBR23: 0.0 | JBS23: 0.0 | JBT23: 0.0 | JBU23: 0.0 | JBV23: 0.0 | JBW23: 0.0 | JBX23: 0.0 | JBY23: 0.0 | JBZ23: 0.0 | JCA23: 0.0 | JCB23: 0.0 | JCC23: 0.0 | JCD23: 0.0 | JCE23: 0.0 | JCF23: 0.0 | JCG23: 0.0 | JCH23: 0.0 | JCI23: 0.0 | JCJ23: 0.0 | JCK23: 0.0 | JCL23: 0.0 | JCM23: 0.0 | JCN23: 0.0 | JCO23: 0.0 | JCP23: 0.0 | JCQ23: 0.0 | JCR23: 0.0 | JCS23: 0.0 | JCT23: 0.0 | JCU23: 0.0 | JCV23: 0.0 | JCW23: 0.0 | JCX23: 0.0 | JCY23: 0.0 | JCZ23: 0.0 | JDA23: 0.0 | JDB23: 0.0 | JDC23: 0.0 | JDD23: 0.0 | JDE23: 0.0 | JDF23: 0.0 | JDG23: 0.0 | JDH23: 0.0 | JDI23: 0.0 | JDJ23: 0.0 | JDK23: 0.0 | JDL23: 0.0 | JDM23: 0.0 | JDN23: 0.0 | JDO23: 0.0 | JDP23: 0.0 | JDQ23: 0.0 | JDR23: 0.0 | JDS23: 0.0 | JDT23: 0.0 | JDU23: 0.0 | JDV23: 0.0 | JDW23: 0.0 | JDX23: 0.0 | JDY23: 0.0 | JDZ23: 0.0 | JEA23: 0.0 | JEB23: 0.0 | JEC23: 0.0 | JED23: 0.0 | JEE23: 0.0 | JEF23: 0.0 | JEG23: 0.0 | JEH23: 0.0 | JEI23: 0.0 | JEJ23: 0.0 | JEK23: 0.0 | JEL23: 0.0 | JEM23: 0.0 | JEN23: 0.0 | JEO23: 0.0 | JEP23: 0.0 | JEQ23: 0.0 | JER23: 0.0 | JES23: 0.0 | JET23: 0.0 | JEU23: 0.0 | JEV23: 0.0 | JEW23: 0.0 | JEX23: 0.0 | JEY23: 0.0 | JEZ23: 0.0 | JFA23: 0.0 | JFB23: 0.0 | JFC23: 0.0 | JFD23: 0.0 | JFE23: 0.0 | JFF23: 0.0 | JFG23: 0.0 | JFH23: 0.0 | JFI23: 0.0 | JFJ23: 0.0 | JFK23: 0.0 | JFL23: 0.0 | JFM23: 0.0 | JFN23: 0.0 | JFO23: 0.0 | JFP23: 0.0 | JFQ23: 0.0 | JFR23: 0.0 | JFS23: 0.0 | JFT23: 0.0 | JFU23: 0.0 | JFV23: 0.0 | JFW23: 0.0 | JFX23: 0.0 | JFY23: 0.0 | JFZ23: 0.0 | JGA23: 0.0 | JGB23: 0.0 | JGC23: 0.0 | JGD23: 0.0 | JGE23: 0.0 | JGF23: 0.0 | JGG23: 0.0 | JGH23: 0.0 | JGI23: 0.0 | JGJ23: 0.0 | JGK23: 0.0 | JGL23: 0.0 | JGM23: 0.0 | JGN23: 0.0 | JGO23: 0.0 | JGP23: 0.0 | JGQ23: 0.0 | JGR23: 0.0 | JGS23: 0.0 | JGT23: 0.0 | JGU23: 0.0 | JGV23: 0.0 | JGW23: 0.0 | JGX23: 0.0 | JGY23: 0.0 | JGZ23: 0.0 | JHA23: 0.0 | JHB23: 0.0 | JHC23: 0.0 | JHD23: 0.0 | JHE23: 0.0 | JHF23: 0.0 | JHG23: 0.0 | JHH23: 0.0 | JHI23: 0.0 | JHJ23: 0.0 | JHK23: 0.0 | JHL23: 0.0 | JHM23: 0.0 | JHN23: 0.0 | JHO23: 0.0 | JHP23: 0.0 | JHQ23: 0.0 | JHR23: 0.0 | JHS23: 0.0 | JHT23: 0.0 | JHU23: 0.0 | JHV23: 0.0 | JHW23: 0.0 | JHX23: 0.0 | JHY23: 0.0 | JHZ23: 0.0 | JIA23: 0.0 | JIB23: 0.0 | JIC23: 0.0 | JID23: 0.0 | JIE23: 0.0 | JIF23: 0.0 | JIG23: 0.0 | JIH23: 0.0 | JII23: 0.0 | JIJ23: 0.0 | JIK23: 0.0 | JIL23: 0.0 | JIM23: 0.0 | JIN23: 0.0 | JIO23: 0.0 | JIP23: 0.0 | JIQ23: 0.0 | JIR23: 0.0 | JIS23: 0.0 | JIT23: 0.0 | JIU23: 0.0 | JIV23: 0.0 | JIW23: 0.0 | JIX23: 0.0 | JIY23: 0.0 | JIZ23: 0.0 | JJA23: 0.0 | JJB23: 0.0 | JJC23: 0.0 | JJD23: 0.0 | JJE23: 0.0 | JJF23: 0.0 | JJG23: 0.0 | JJH23: 0.0 | JJI23: 0.0 | JJJ23: 0.0 | JJK23: 0.0 | JJL23: 0.0 | JJM23: 0.0 | JJN23: 0.0 | JJO23: 0.0 | JJP23: 0.0 | JJQ23: 0.0 | JJR23: 0.0 | JJS23: 0.0 | JJT23: 0.0 | JJU23: 0.0 | JJV23: 0.0 | JJW23: 0.0 | JJX23: 0.0 | JJY23: 0.0 | JJZ23: 0.0 | JKA23: 0.0 | JKB23: 0.0 | JKC23: 0.0 | JKD23: 0.0 | JKE23: 0.0 | JKF23: 0.0 | JKG23: 0.0 | JKH23: 0.0 | JKI23: 0.0 | JKJ23: 0.0 | JKK23: 0.0 | JKL23: 0.0 | JKM23: 0.0 | JKN23: 0.0 | JKO23: 0.0 | JKP23: 0.0 | JKQ23: 0.0 | JKR23: 0.0 | JKS23: 0.0 | JKT23: 0.0 | JKU23: 0.0 | JKV23: 0.0 | JKW23: 0.0 | JKX23: 0.0 | JKY23: 0.0 | JKZ23: 0.0 | JLA23: 0.0 | JLB23: 0.0 | JLC23: 0.0 | JLD23: 0.0 | JLE23: 0.0 | JLF23: 0.0 | JLG23: 0.0 | JLH23: 0.0 | JLI23: 0.0 | JLJ23: 0.0 | JLK23: 0.0 | JLL23: 0.0 | JLM23: 0.0 | JLN23: 0.0 | JLO23: 0.0 | JLP23: 0.0 | JLQ23: 0.0 | JLR23: 0.0 | JLS23: 0.0 | JLT23: 0.0 | JLU23: 0.0 | JLV23: 0.0 | JLW23: 0.0 | JLX23: 0.0 | JLY23: 0.0 | JLZ23: 0.0 | JMA23: 0.0 | JMB23: 0.0 | JMC23: 0.0 | JMD23: 0.0 | JME23: 0.0 | JMF23: 0.0 | JMG23: 0.0 | JMH23: 0.0 | JMI23: 0.0 | JMJ23: 0.0 | JMK23: 0.0 | JML23: 0.0 | JMM23: 0.0 | JMN23: 0.0 | JMO23: 0.0 | JMP23: 0.0 | JMQ23: 0.0 | JMR23: 0.0 | JMS23: 0.0 | JMT23: 0.0 | JMU23: 0.0 | JMV23: 0.0 | JMW23: 0.0 | JMX23: 0.0 | JMY23: 0.0 | JMZ23: 0.0 | JNA23: 0.0 | JNB23: 0.0 | JNC23: 0.0 | JND23: 0.0 | JNE23: 0.0 | JNF23: 0.0 | JNG23: 0.0 | JNH23: 0.0 | JNI23: 0.0 | JNJ23: 0.0 | JNK23: 0.0 | JNL23: 0.0 | JNM23: 0.0 | JNN23: 0.0 | JNO23: 0.0 | JNP23: 0.0 | JNQ23: 0.0 | JNR23: 0.0 | JNS23: 0.0 | JNT23: 0.0 | JNU23: 0.0 | JNV23: 0.0 | JNW23: 0.0 | JNX23: 0.0 | JNY23: 0.0 | JNZ23: 0.0 | JOA23: 0.0 | JOB23: 0.0 | JOC23: 0.0 | JOD23: 0.0 | JOE23: 0.0 | JOF23: 0.0 | JOG23: 0.0 | JOH23: 0.0 | JOI23: 0.0 | JOJ23: 0.0 | JOK23: 0.0 | JOL23: 0.0 | JOM23: 0.0 | JON23: 0.0 | JOO23: 0.0 | JOP23: 0.0 | JOQ23: 0.0 | JOR23: 0.0 | JOS23: 0.0 | JOT23: 0.0 | JOU23: 0.0 | JOV23: 0.0 | JOW23: 0.0 | JOX23: 0.0 | JOY23: 0.0 | JOZ23: 0.0 | JPA23: 0.0 | JPB23: 0.0 | JPC23: 0.0 | JPD23: 0.0 | JPE23: 0.0 | JPF23: 0.0 | JPG23: 0.0 | JPH23: 0.0 | JPI23: 0.0 | JPJ23: 0.0 | JPK23: 0.0 | JPL23: 0.0 | JPM23: 0.0 | JPN23: 0.0 | JPO23: 0.0 | JPP23: 0.0 | JPQ23: 0.0 | JPR23: 0.0 | JPS23: 0.0 | JPT23: 0.0 | JPU23: 0.0 | JPV23: 0.0 | JPW23: 0.0 | JPX23: 0.0 | JPY23: 0.0 | JPZ23: 0.0 | JQA23: 0.0 | JQB23: 0.0 | JQC23: 0.0 | JQD23: 0.0 | JQE23: 0.0 | JQF23: 0.0 | JQG23: 0.0 | JQH23: 0.0 | JQI23: 0.0 | JQJ23: 0.0 | JQK23: 0.0 | JQL23: 0.0 | JQM23: 0.0 | JQN23: 0.0 | JQO23: 0.0 | JQP23: 0.0 | JQQ23: 0.0 | JQR23: 0.0 | JQS23: 0.0 | JQT23: 0.0 | JQU23: 0.0 | JQV23: 0.0 | JQW23: 0.0 | JQX23: 0.0 | JQY23: 0.0 | JQZ23: 0.0 | JRA23: 0.0 | JRB23: 0.0 | JRC23: 0.0 | JRD23: 0.0 | JRE23: 0.0 | JRF23: 0.0 | JRG23: 0.0 | JRH23: 0.0 | JRI23: 0.0 | JRJ23: 0.0 | JRK23: 0.0 | JRL23: 0.0 | JRM23: 0.0 | JRN23: 0.0 | JRO23: 0.0 | JRP23: 0.0 | JRQ23: 0.0 | JRR23: 0.0 | JRS23: 0.0 | JRT23: 0.0 | JRU23: 0.0 | JRV23: 0.0 | JRW23: 0.0 | JRX23: 0.0 | JRY23: 0.0 | JRZ23: 0.0 | JSA23: 0.0 | JSB23: 0.0 | JSC23: 0.0 | JSD23: 0.0 | JSE23: 0.0 | JSF23: 0.0 | JSG23: 0.0 | JSH23: 0.0 | JSI23: 0.0 | JSJ23: 0.0 | JSK23: 0.0 | JSL23: 0.0 | JSM23: 0.0 | JSN23: 0.0 | JSO23: 0.0 | JSP23: 0.0 | JSQ23: 0.0 | JSR23: 0.0 | JSS23: 0.0 | JST23: 0.0 | JSU23: 0.0 | JSV23: 0.0 | JSW23: 0.0 | JSX23: 0.0 | JSY23: 0.0 | JSZ23: 0.0 | JTA23: 0.0 | JTB23: 0.0 | JTC23: 0.0 | JTD23: 0.0 | JTE23: 0.0 | JTF23: 0.0 | JTG23: 0.0 | JTH23: 0.0 | JTI23: 0.0 | JTJ23: 0.0 | JTK23: 0.0 | JTL23: 0.0 | JTM23: 0.0 | JTN23: 0.0 | JTO23: 0.0 | JTP23: 0.0 | JTQ23: 0.0 | JTR23: 0.0 | JTS23: 0.0 | JTT23: 0.0 | JTU23: 0.0 | JTV23: 0.0 | JTW23: 0.0 | JTX23: 0.0 | JTY23: 0.0 | JTZ23: 0.0 | JUA23: 0.0 | JUB23: 0.0 | JUC23: 0.0 | JUD23: 0.0 | JUE23: 0.0 | JUF23: 0.0 | JUG23: 0.0 | JUH23: 0.0 | JUI23: 0.0 | JUJ23: 0.0 | JUK23: 0.0 | JUL23: 0.0 | JUM23: 0.0 | JUN23: 0.0 | JUO23: 0.0 | JUP23: 0.0 | JUQ23: 0.0 | JUR23: 0.0 | JUS23: 0.0 | JUT23: 0.0 | JUU23: 0.0 | JUV23: 0.0 | JUW23: 0.0 | JUX23: 0.0 | JUY23: 0.0 | JUZ23: 0.0 | JVA23: 0.0 | JVB23: 0.0 | JVC23: 0.0 | JVD23: 0.0 | JVE23: 0.0 | JVF23: 0.0 | JVG23: 0.0 | JVH23: 0.0 | JVI23: 0.0 | JVJ23: 0.0 | JVK23: 0.0 | JVL23: 0.0 | JVM23: 0.0 | JVN23: 0.0 | JVO23: 0.0 | JVP23: 0.0 | JVQ23: 0.0 | JVR23: 0.0 | JVS23: 0.0 | JVT23: 0.0 | JVU23: 0.0 | JVV23: 0.0 | JVW23: 0.0 | JVX23: 0.0 | JVY23: 0.0 | JVZ23: 0.0 | JWA23: 0.0 | JWB23: 0.0 | JWC23: 0.0 | JWD23: 0.0 | JWE23: 0.0 | JWF23: 0.0 | JWG23: 0.0 | JWH23: 0.0 | JWI23: 0.0 | JWJ23: 0.0 | JWK23: 0.0 | JWL23: 0.0 | JWM23: 0.0 | JWN23: 0.0 | JWO23: 0.0 | JWP23: 0.0 | JWQ23: 0.0 | JWR23: 0.0 | JWS23: 0.0 | JWT23: 0.0 | JWU23: 0.0 | JWV23: 0.0 | JWW23: 0.0 | JWX23: 0.0 | JWY23: 0.0 | JWZ23: 0.0 | JXA23: 0.0 | JXB23: 0.0 | JXC23: 0.0 | JXD23: 0.0 | JXE23: 0.0 | JXF23: 0.0 | JXG23: 0.0 | JXH23: 0.0 | JXI23: 0.0 | JXJ23: 0.0 | JXK23: 0.0 | JXL23: 0.0 | JXM23: 0.0 | JXN23: 0.0 | JXO23: 0.0 | JXP23: 0.0 | JXQ23: 0.0 | JXR23: 0.0 | JXS23: 0.0 | JXT23: 0.0 | JXU23: 0.0 | JXV23: 0.0 | JXW23: 0.0 | JXX23: 0.0 | JXY23: 0.0 | JXZ23: 0.0 | JYA23: 0.0 | JYB23: 0.0 | JYC23: 0.0 | JYD23: 0.0 | JYE23: 0.0 | JYF23: 0.0 | JYG23: 0.0 | JYH23: 0.0 | JYI23: 0.0 | JYJ23: 0.0 | JYK23: 0.0 | JYL23: 0.0 | JYM23: 0.0 | JYN23: 0.0 | JYO23: 0.0 | JYP23: 0.0 | JYQ23: 0.0 | JYR23: 0.0 | JYS23: 0.0 | JYT23: 0.0 | JYU23: 0.0 | JYV23: 0.0 | JYW23: 0.0 | JYX23: 0.0 | JYY23: 0.0 | JYZ23: 0.0 | JZA23: 0.0 | JZB23: 0.0 | JZC23: 0.0 | JZD23: 0.0 | JZE23: 0.0 | JZF23: 0.0 | JZG23: 0.0 | JZH23: 0.0 | JZI23: 0.0 | JZJ23: 0.0 | JZK23: 0.0 | JZL23: 0.0 | JZM23: 0.0 | JZN23: 0.0 | JZO23: 0.0 | JZP23: 0.0 | JZQ23: 0.0 | JZR23: 0.0 | JZS23: 0.0 | JZT23: 0.0 | JZU23: 0.0 | JZV23: 0.0 | JZW23: 0.0 | JZX23: 0.0 | JZY23: 0.0 | JZZ23: 0.0 | KAA23: 0.0 | KAB23: 0.0 | KAC23: 0.0 | KAD23: 0.0 | KAE23: 0.0 | KAF23: 0.0 | KAG23: 0.0 | KAH23: 0.0 | KAI23: 0.0 | KAJ23: 0.0 | KAK23: 0.0 | KAL23: 0.0 | KAM23: 0.0 | KAN23: 0.0 | KAO23: 0.0 | KAP23: 0.0 | KAQ23: 0.0 | KAR23: 0.0 | KAS23: 0.0 | KAT23: 0.0 | KAU23: 0.0 | KAV23: 0.0 | KAW23: 0.0 | KAX23: 0.0 | KAY23: 0.0 | KAZ23: 0.0 | KBA23: 0.0 | KBB23: 0.0 | KBC23: 0.0 | KBD23: 0.0 | KBE23: 0.0 | KBF23: 0.0 | KBG23: 0.0 | KBH23: 0.0 | KBI23: 0.0 | KBJ23: 0.0 | KBK23: 0.0 | KBL23: 0.0 | KBM23: 0.0 | KBN23: 0.0 | KBO23: 0.0 | KBP23: 0.0 | KBQ23: 0.0 | KBR23: 0.0 | KBS23: 0.0 | KBT23: 0.0 | KBU23: 0.0 | KBV23: 0.0 | KBW23: 0.0 | KBX23: 0.0 | KBY23: 0.0 | KBZ23: 0.0 | KCA23: 0.0 | KCB23: 0.0 | KCC23: 0.0 | KCD23: 0.0 | KCE23: 0.0 | KCF23: 0.0 | KCG23: 0.0 | KCH23: 0.0 | KCI23: 0.0 | KCJ23: 0.0 | KCK23: 0.0 | KCL23: 0.0 | KCM23: 0.0 | KCN23: 0.0 | KCO23: 0.0 | KCP23: 0.0 | KCQ23: 0.0 | KCR23: 0.0 | KCS23: 0.0 | KCT23: 0.0 | KCU23: 0.0 | KCV23: 0.0 | KCW23: 0.0 | KCX23: 0.0 | KCY23: 0.0 | KCZ23: 0.0 | KDA23: 0.0 | KDB23: 0.0 | KDC23: 0.0 | KDD23: 0.0 | KDE23: 0.0 | KDF23: 0.0 | KDG23: 0.0 | KDH23: 0.0 | KDI23: 0.0 | KDJ23: 0.0 | KDK23: 0.0 | KDL23: 0.0 | KDM23: 0.0 | KDN23: 0.0 | KDO23: 0.0 | KDP23: 0.0 | KDQ23: 0.0 | KDR23: 0.0 | KDS23: 0.0 | KDT23: 0.0 | KDU23: 0.0 | KDV23: 0.0 | KDW23: 0.0 | KDX23: 0.0 | KDY23: 0.0 | KDZ23: 0.0 | KEA23: 0.0 | KEB23: 0.0 | KEC23: 0.0 | KED23: 0.0 | KEE23: 0.0 | KEF23: 0.0 | KEG23: 0.0 | KEH23: 0.0 | KEI23: 0.0 | KEJ23: 0.0 | KEK23: 0.0 | KEL23: 0.0 | KEM23: 0.0 | KEN23: 0.0 | KEO23: 0.0 | KEP23: 0.0 | KEQ23: 0.0 | KER23: 0.0 | KES23: 0.0 | KET23: 0.0 | KEU23: 0.0 | KEV23: 0.0 | KEW23: 0.0 | KEX23: 0.0 | KEY23: 0.0 | KEZ23: 0.0 | KFA23: 0.0 | KFB23: 0.0 | KFC23: 0.0 | KFD23: 0.0 | KFE23: 0.0 | KFF23: 0.0 | KFG23: 0.0 | KFH23: 0.0 | KFI23: 0.0 | KFJ23: 0.0 | KFK23: 0.0 | KFL23: 0.0 | KFM23: 0.0 | KFN23: 0.0 | KFO23: 0.0 | KFP23: 0.0 | KFQ23: 0.0 | KFR23: 0.0 | KFS23: 0.0 | KFT23: 0.0 | KFU23: 0.0 | KFV23: 0.0 | KFW23: 0.0 | KFX23: 0.0 | KFY23: 0.0 | KFZ23: 0.0 | KGA23: 0.0 | KGB23: 0.0 | KGC23: 0.0 | KGD23: 0.0 | KGE23: 0.0 | KGF23: 0.0 | KGG23: 0.0 | KGH23: 0.0 | KGI23: 0.0 | KGJ23: 0.0 | KGK23: 0.0 | KGL23: 0.0 | KGM23: 0.0 | KGN23: 0.0 | KGO23: 0.0 | KGP23: 0.0 | KGQ23: 0.0 | KGR23: 0.0 | KGS23: 0.0 | KGT23: 0.0 | KGU23: 0.0 | KGV23: 0.0 | KGW23: 0.0 | KGX23: 0.0 | KGY23: 0.0 | KGZ23: 0.0 | KHA23: 0.0 | KHB23: 0.0 | KHC23: 0.0 | KHD23: 0.0 | KHE23: 0.0 | KHF23: 0.0 | KHG23: 0.0 | KHH23: 0.0 | KHI23: 0.0 | KHJ23: 0.0 | KHK23: 0.0 | KHL23: 0.0 | KHM23: 0.0 | KHN23: 0.0 | KHO23: 0.0 | KHP23: 0.0 | KHQ23: 0.0 | KHR23: 0.0 | KHS23: 0.0 | KHT23: 0.0 | KHU23: 0.0 | KHV23: 0.0 | KHW23: 0.0 | KHX23: 0.0 | KHY23: 0.0 | KHZ23: 0.0 | KIA23: 0.0 | KIB23: 0.0 | KIC23: 0.0 | KID23: 0.0 | KIE23: 0.0 | KIF23: 0.0 | KIG23: 0.0 | KIH23: 0.0 | KII23: 0.0 | KIJ23: 0.0 | KIK23: 0.0 | KIL23: 0.0 | KIM23: 0.0 | KIN23: 0.0 | KIO23: 0.0 | KIP23: 0.0 | KIQ23: 0.0 | KIR23: 0.0 | KIS23: 0.0 | KIT23: 0.0 | KIU23: 0.0 | KIV23: 0.0 | KIW23: 0.0 | KIX23: 0.0 | KIY23: 0.0 | KIZ23: 0.0 | KJA23: 0.0 | KJB23: 0.0 | KJC23: 0.0 | KJD23: 0.0 | KJE23: 0.0 | KJF23: 0.0 | KJG23: 0.0 | KJH23: 0.0 | KJI23: 0.0 | KJJ23: 0.0 | KJK23: 0.0 | KJL23: 0.0 | KJM23: 0.0 | KJN23: 0.0 | KJO23: 0.0 | KJP23: 0.0 | KJQ23: 0.0 | KJR23: 0.0 | KJS23: 0.0 | KJT23: 0.0 | KJU23: 0.0 | KJV23: 0.0 | KJW23: 0.0 | KJX23: 0.0 | KJY23: 0.0 | KJZ23: 0.0 | KKA23: 0.0 | KKB23: 0.0 | KKC23: 0.0 | KKD23: 0.0 | KKE23: 0.0 | KKF23: 0.0 | KKG23: 0.0 | KKH23: 0.0 | KKI23: 0.0 | KKJ23: 0.0 | KKK23: 0.0 | KKL23: 0.0 | KKM23: 0.0 | KKN23: 0.0 | KKO23: 0.0 | KKP23: 0.0 | KKQ23: 0.0 | KKR23: 0.0 | KKS23: 0.0 | KKT23: 0.0 | KKU23: 0.0 | KKV23: 0.0 | KKW23: 0.0 | KKX23: 0.0 | KKY23: 0.0 | KKZ23: 0.0 | KLA23: 0.0 | KLB23: 0.0 | KLC23: 0.0 | KLD23: 0.0 | KLE23: 0.0 | KLF23: 0.0 | KLG23: 0.0 | KLH23: 0.0 | KLI23: 0.0 | KLJ23: 0.0 | KLK23: 0.0 | KLL23: 0.0 | KLM23: 0.0 | KLN23: 0.0 | KLO23: 0.0 | KLP23: 0.0 | KLQ23: 0.0 | KLR23: 0.0 | KLS23: 0.0 | KLT23: 0.0 | KLU23: 0.0 | KLV23: 0.0 | KLW23: 0.0 | KLX23: 0.0 | KLY23: 0.0 | KLZ23: 0.0 | KMA23: 0.0 | KMB23: 0.0 | KMC23: 0.0 | KMD23: 0.0 | KME23: 0.0 | KMF23: 0.0 | KMG23: 0.0 | KMH23: 0.0 | KMI23: 0.0 | KMJ23: 0.0 | KMK23: 0.0 | KML23: 0.0 | KMM23: 0.0 | KMN23: 0.0 | KMO23: 0.0 | KMP23: 0.0 | KMQ23: 0.0 | KMR23: 0.0 | KMS23: 0.0 | KMT23: 0.0 | KMU23: 0.0 | KMV23: 0.0 | KMW23: 0.0 | KMX23: 0.0 | KMY23: 0.0 | KMZ23: 0.0 | KNA23: 0.0 | KNB23: 0.0 | KNC23: 0.0 | KND23: 0.0 | KNE23: 0.0 | KNF23: 0.0 | KNG23: 0.0 | KNH23: 0.0 | KNI23: 0.0 | KNJ23: 0.0 | KNK23: 0.0 | KNL23: 0.0 | KNM23: 0.0 | KNN23: 0.0 | KNO23: 0.0 | KNP23: 0.0 | KNQ23: 0.0 | KNR23: 0.0 | KNS23: 0.0 | KNT23: 0.0 | KNU23: 0.0 | KNV23: 0.0 | KNW23: 0.0 | KNX23: 0.0 | KNY23: 0.0 | KNZ23: 0.0 | KOA23: 0.0 | KOB23: 0.0 | KOC23: 0.0 | KOD23: 0.0 | KOE23: 0.0 | KOF23: 0.0 | KOG23: 0.0 | KOH23: 0.0 | KOI23: 0.0 | KOJ23: 0.0 | KOK23: 0.0 | KOL23: 0.0 | KOM23: 0.0 | KON23: 0.0 | KOO23: 0.0 | KOP23: 0.0 | KOQ23: 0.0 | KOR23: 0.0 | KOS23: 0.0 | KOT23: 0.0 | KOU23: 0.0 | KOV23: 0.0 | KOW23: 0.0 | KOX23: 0.0 | KOY23: 0.0 | KOZ23: 0.0 | KPA23: 0.0 | KPB23: 0.0 | KPC23: 0.0 | KPD23: 0.0 | KPE23: 0.0 | KPF23: 0.0 | KPG23: 0.0 | KPH23: 0.0 | KPI23: 0.0 | KPJ23: 0.0 | KPK23: 0.0 | KPL23: 0.0 | KPM23: 0.0 | KPN23: 0.0 | KPO23: 0.0 | KPP23: 0.0 | KPQ23: 0.0 | KPR23: 0.0 | KPS23: 0.0 | KPT23: 0.0 | KPU23: 0.0 | KPV23: 0.0 | KPW23: 0.0 | KPX23: 0.0 | KPY23: 0.0 | KPZ23: 0.0 | KQA23: 0.0 | KQB23: 0.0 | KQC23: 0.0 | KQD23: 0.0 | KQE23: 0.0 | KQF23: 0.0 | KQG23: 0.0 | KQH23: 0.0 | KQI23: 0.0 | KQJ23: 0.0 | KQK23: 0.0 | KQL23: 0.0 | KQM23: 0.0 | KQN23: 0.0 | KQO23: 0.0 | KQP23: 0.0 | KQQ23: 0.0 | KQR23: 0.0 | KQS23: 0.0 | KQT23: 0.0 | KQU23: 0.0 | KQV23: 0.0 | KQW23: 0.0 | KQX23: 0.0 | KQY23: 0.0 | KQZ23: 0.0 | KRA23: 0.0 | KRB23: 0.0 | KRC23: 0.0 | KRD23: 0.0 | KRE23: 0.0 | KRF23: 0.0 | KRG23: 0.0 | KRH23: 0.0 | KRI23: 0.0 | KRJ23: 0.0 | KRK23: 0.0 | KRL23: 0.0 | KRM23: 0.0 | KRN23: 0.0 | KRO23: 0.0 | KRP23: 0.0 | KRQ23: 0.0 | KRR23: 0.0 | KRS23: 0.0 | KRT23: 0.0 | KRU23: 0.0 | KRV23: 0.0 | KRW23: 0.0 | KRX23: 0.0 | KRY23: 0.0 | KRZ23: 0.0 | KSA23: 0.0 | KSB23: 0.0 | KSC23: 0.0 | KSD23: 0.0 | KSE23: 0.0 | KSF23: 0.0 | KSG23: 0.0 | KSH23: 0.0 | KSI23: 0.0 | KSJ23: 0.0 | KSK23: 0.0 | KSL23: 0.0 | KSM23: 0.0 | KSN23: 0.0 | KSO23: 0.0 | KSP23: 0.0 | KSQ23: 0.0 | KSR23: 0.0 | KSS23: 0.0 | KST23: 0.0 | KSU23: 0.0 | KSV23: 0.0 | KSW23: 0.0 | KSX23: 0.0 | KSY23: 0.0 | KSZ23: 0.0 | KTA23: 0.0 | KTB23: 0.0 | KTC23: 0.0 | KTD23: 0.0 | KTE23: 0.0 | KTF23: 0.0 | KTG23: 0.0 | KTH23: 0.0 | KTI23: 0.0 | KTJ23: 0.0 | KTK23: 0.0 | KTL23: 0.0 | KTM23: 0.0 | KTN23: 0.0 | KTO23: 0.0 | KTP23: 0.0 | KTQ23: 0.0 | KTR23: 0.0 | KTS23: 0.0 | KTT23: 0.0 | KTU23: 0.0 | KTV23: 0.0 | KTW23: 0.0 | KTX23: 0.0 | KTY23: 0.0 | KTZ23: 0.0 | KUA23: 0.0 | KUB23: 0.0 | KUC23: 0.0 | KUD23: 0.0 | KUE23: 0.0 | KUF23: 0.0 | KUG23: 0.0 | KUH23: 0.0 | KUI23: 0.0 | KUJ23: 0.0 | KUK23: 0.0 | KUL23: 0.0 | KUM23: 0.0 | KUN23: 0.0 | KUO23: 0.0 | KUP23: 0.0 | KUQ23: 0.0 | KUR23: 0.0 | KUS23: 0.0 | KUT23: 0.0 | KUU23: 0.0 | KUV23: 0.0 | KUW23: 0.0 | KUX23: 0.0 | KUY23: 0.0 | KUZ23: 0.0 | KVA23: 0.0 | KVB23: 0.0 | KVC23: 0.0 | KVD23: 0.0 | KVE23: 0.0 | KVF23: 0.0 | KVG23: 0.0 | KVH23: 0.0 | KVI23: 0.0 | KVJ23: 0.0 | KVK23: 0.0 | KVL23: 0.0 | KVM23: 0.0 | KVN23: 0.0 | KVO23: 0.0 | KVP23: 0.0 | KVQ23: 0.0 | KVR23: 0.0 | KVS23: 0.0 | KVT23: 0.0 | KVU23: 0.0 | KVV23: 0.0 | KVW23: 0.0 | KVX23: 0.0 | KVY23: 0.0 | KVZ23: 0.0 | KWA23: 0.0 | KWB23: 0.0 | KWC23: 0.0 | KWD23: 0.0 | KWE23: 0.0 | KWF23: 0.0 | KWG23: 0.0 | KWH23: 0.0 | KWI23: 0.0 | KWJ23: 0.0 | KWK23: 0.0 | KWL23: 0.0 | KWM23: 0.0 | KWN23: 0.0 | KWO23: 0.0 | KWP23: 0.0 | KWQ23: 0.0 | KWR23: 0.0 | KWS23: 0.0 | KWT23: 0.0 | KWU23: 0.0 | KWV23: 0.0 | KWW23: 0.0 | KWX23: 0.0 | KWY23: 0.0 | KWZ23: 0.0 | KXA23: 0.0 | KXB23: 0.0 | KXC23: 0.0 | KXD23: 0.0 | KXE23: 0.0 | KXF23: 0.0 | KXG23: 0.0 | KXH23: 0.0 | KXI23: 0.0 | KXJ23: 0.0 | KXK23: 0.0 | KXL23: 0.0 | KXM23: 0.0 | KXN23: 0.0 | KXO23: 0.0 | KXP23: 0.0 | KXQ23: 0.0 | KXR23: 0.0 | KXS23: 0.0 | KXT23: 0.0 | KXU23: 0.0 | KXV23: 0.0 | KXW23: 0.0 | KXX23: 0.0 | KXY23: 0.0 | KXZ23: 0.0 | KYA23: 0.0 | KYB23: 0.0 | KYC23: 0.0 | KYD23: 0.0 | KYE23: 0.0 | KYF23: 0.0 | KYG23: 0.0 | KYH23: 0.0 | KYI23: 0.0 | KYJ23: 0.0 | KYK23: 0.0 | KYL23: 0.0 | KYM23: 0.0 | KYN23: 0.0 | KYO23: 0.0 | KYP23: 0.0 | KYQ23: 0.0 | KYR23: 0.0 | KYS23: 0.0 | KYT23: 0.0 | KYU23: 0.0 | KYV23: 0.0 | KYW23: 0.0 | KYX23: 0.0 | KYY23: 0.0 | KYZ23: 0.0 | KZA23: 0.0 | KZB23: 0.0 | KZC23: 0.0 | KZD23: 0.0 | KZE23: 0.0 | KZF23: 0.0 | KZG23: 0.0 | KZH23: 0.0 | KZI23: 0.0 | KZJ23: 0.0 | KZK23: 0.0 | KZL23: 0.0 | KZM23: 0.0 | KZN23: 0.0 | KZO23: 0.0 | KZP23: 0.0 | KZQ23: 0.0 | KZR23: 0.0 | KZS23: 0.0 | KZT23: 0.0 | KZU23: 0.0 | KZV23: 0.0 | KZW23: 0.0 | KZX23: 0.0 | KZY23: 0.0 | KZZ23: 0.0 | LAA23: 0.0 | LAB23: 0.0 | LAC23: 0.0 | LAD23: 0.0 | LAE23: 0.0 | LAF23: 0.0 | LAG23: 0.0 | LAH23: 0.0 | LAI23: 0.0 | LAJ23: 0.0 | LAK23: 0.0 | LAL23: 0.0 | LAM23: 0.0 | LAN23: 0.0 | LAO23: 0.0 | LAP23: 0.0 | LAQ23: 0.0 | LAR23: 0.0 | LAS23: 0.0 | LAT23: 0.0 | LAU23: 0.0 | LAV23: 0.0 | LAW23: 0.0 | LAX23: 0.0 | LAY23: 0.0 | LAZ23: 0.0 | LBA23: 0.0 | LBB23: 0.0 | LBC23: 0.0 | LBD23: 0.0 | LBE23: 0.0 | LBF23: 0.0 | LBG23: 0.0 | LBH23: 0.0 | LBI23: 0.0 | LBJ23: 0.0 | LBK23: 0.0 | LBL23: 0.0 | LBM23: 0.0 | LBN23: 0.0 | LBO23: 0.0 | LBP23: 0.0 | LBQ23: 0.0 | LBR23: 0.0 | LBS23: 0.0 | LBT23: 0.0 | LBU23: 0.0 | LBV23: 0.0 | LBW23: 0.0 | LBX23: 0.0 | LBY23: 0.0 | LBZ23: 0.0 | LCA23: 0.0 | LCB23: 0.0 | LCC23: 0.0 | LCD23: 0.0 | LCE23: 0.0 | LCF23: 0.0 | LCG23: 0.0 | LCH23: 0.0 | LCI23: 0.0 | LCJ23: 0.0 | LCK23: 0.0 | LCL23: 0.0 | LCM23: 0.0 | LCN23: 0.0 | LCO23: 0.0 | LCP23: 0.0 | LCQ23: 0.0 | LCR23: 0.0 | LCS23: 0.0 | LCT23: 0.0 | LCU23: 0.0 | LCV23: 0.0 | LCW23: 0.0 | LCX23: 0.0 | LCY23: 0.0 | LCZ23: 0.0 | LDA23: 0.0 | LDB23: 0.0 | LDC23: 0.0 | LDD23: 0.0 | LDE23: 0.0 | LDF23: 0.0 | LDG23: 0.0 | LDH23: 0.0 | LDI23: 0.0 | LDJ23: 0.0 | LDK23: 0.0 | LDL23: 0.0 | LDM23: 0.0 | LDN23: 0.0 | LDO23: 0.0 | LDP23: 0.0 | LDQ23: 0.0 | LDR23: 0.0 | LDS23: 0.0 | LDT23: 0.0 | LDU23: 0.0 | LDV23: 0.0 | LDW23: 0.0 | LDX23: 0.0 | LDY23: 0.0 | LDZ23: 0.0 | LEA23: 0.0 | LEB23: 0.0 | LEC23: 0.0 | LED23: 0.0 | LEE23: 0.0 | LEF23: 0.0 | LEG23: 0.0 | LEH23: 0.0 | LEI23: 0.0 | LEJ23: 0.0 | LEK23: 0.0 | LEL23: 0.0 | LEM23: 0.0 | LEN23: 0.0 | LEO23: 0.0 | LEP23: 0.0 | LEQ23: 0.0 | LER23: 0.0 | LES23: 0.0 | LET23: 0.0 | LEU23: 0.0 | LEV23: 0.0 | LEW23: 0.0 | LEX23: 0.0 | LEY23: 0.0 | LEZ23: 0.0 | LFA23: 0.0 | LFB23: 0.0 | LFC23: 0.0 | LFD23: 0.0 | LFE23: 0.0 | LFF23: 0.0 | LFG23: 0.0 | LFH23: 0.0 | LFI23: 0.0 | LFJ23: 0.0 | LFK23: 0.0 | LFL23: 0.0 | LFM23: 0.0 | LFN23: 0.0 | LFO23: 0.0 | LFP23: 0.0 | LFQ23: 0.0 | LFR23: 0.0 | LFS23: 0.0 | LFT23: 0.0 | LFU23: 0.0 | LFV23: 0.0 | LFW23: 0.0 | LFX23: 0.0 | LFY23: 0.0 | LFZ23: 0.0 | LGA23: 0.0 | LGB23: 0.0 | LGC23: 0.0 | LGD23: 0.0 | LGE23: 0.0 | LGF23: 0.0 | LGG23: 0.0 | LGH23: 0.0 | LGI23: 0.0 | LGJ23: 0.0 | LGK23: 0.0 | LGL23: 0.0 | LGM23: 0.0 | LGN23: 0.0 | LGO23: 0.0 | LGP23: 0.0 | LGQ23: 0.0 | LGR23: 0.0 | LGS23: 0.0 | LGT23: 0.0 | LGU23: 0.0 | LGV23: 0.0 | LGW23: 0.0 | LGX23: 0.0 | LGY23: 0.0 | LGZ23: 0.0 | LHA23: 0.0 | LHB23: 0.0 | LHC23: 0.0 | LHD23: 0.0 | LHE23: 0.0 | LHF23: 0.0 | LHG23: 0.0 | LHH23: 0.0 | LHI23: 0.0 | LHJ23: 0.0 | LHK23: 0.0 | LHL23: 0.0 | LHM23: 0.0 | LHN23: 0.0 | LHO23: 0.0 | LHP23: 0.0 | LHQ23: 0.0 | LHR23: 0.0 | LHS23: 0.0 | LHT23: 0.0 | LHU23: 0.0 | LHV23: 0.0 | LHW23: 0.0 | LHX23: 0.0 | LHY23: 0.0 | LHZ23: 0.0 | LIA23: 0.0 | LIB23: 0.0 | LIC23: 0.0 | LID23: 0.0 | LIE23: 0.0 | LIF23: 0.0 | LIG23: 0.0 | LIH23: 0.0 | LII23: 0.0 | LIJ23: 0.0 | LIK23: 0.0 | LIL23: 0.0 | LIM23: 0.0 | LIN23: 0.0 | LIO23: 0.0 | LIP23: 0.0 | LIQ23: 0.0 | LIR23: 0.0 | LIS23: 0.0 | LIT23: 0.0 | LIU23: 0.0 | LIV23: 0.0 | LIW23: 0.0 | LIX23: 0.0 | LIY23: 0.0 | LIZ23: 0.0 | LJA23: 0.0 | LJB23: 0.0 | LJC23: 0.0 | LJD23: 0.0 | LJE23: 0.0 | LJF23: 0.0 | LJG23: 0.0 | LJH23: 0.0 | LJI23: 0.0 | LJJ23: 0.0 | LJK23: 0.0 | LJL23: 0.0 | LJM23: 0.0 | LJN23: 0.0 | LJO23: 0.0 | LJP23: 0.0 | LJQ23: 0.0 | LJR23: 0.0 | LJS23: 0.0 | LJT23: 0.0 | LJU23: 0.0 | LJV23: 0.0 | LJW23: 0.0 | LJX23: 0.0 | LJY23: 0.0 | LJZ23: 0.0 | LKA23: 0.0 | LKB23: 0.0 | LKC23: 0.0 | LKD23: 0.0 | LKE23: 0.0 | LKF23: 0.0 | LKG23: 0.0 | LKH23: 0.0 | LKI23: 0.0 | LKJ23: 0.0 | LKK23: 0.0 | LKL23: 0.0 | LKM23: 0.0 | LKN23: 0.0 | LKO23: 0.0 | LKP23: 0.0 | LKQ23: 0.0 | LKR23: 0.0 | LKS23: 0.0 | LKT23: 0.0 | LKU23: 0.0 | LKV23: 0.0 | LKW23: 0.0 | LKX23: 0.0 | LKY23: 0.0 | LKZ23: 0.0 | LLA23: 0.0 | LLB23: 0.0 | LLC23: 0.0 | LLD23: 0.0 | LLE23: 0.0 | LLF23: 0.0 | LLG23: 0.0 | LLH23: 0.0 | LLI23: 0.0 | LLJ23: 0.0 | LLK23: 0.0 | LLL23: 0.0 | LLM23: 0.0 | LLN23: 0.0 | LLO23: 0.0 | LLP23: 0.0 | LLQ23: 0.0 | LLR23: 0.0 | LLS23: 0.0 | LLT23: 0.0 | LLU23: 0.0 | LLV23: 0.0 | LLW23: 0.0 | LLX23: 0.0 | LLY23: 0.0 | LLZ23: 0.0 | LMA23: 0.0 | LMB23: 0.0 | LMC23: 0.0 | LMD23: 0.0 | LME23: 0.0 | LMF23: 0.0 | LMG23: 0.0 | LMH23: 0.0 | LMI23: 0.0 | LMJ23: 0.0 | LMK23: 0.0 | LML23: 0.0 | LMM23: 0.0 | LMN23: 0.0 | LMO23: 0.0 | LMP23: 0.0 | LMQ23: 0.0 | LMR23: 0.0 | LMS23: 0.0 | LMT23: 0.0 | LMU23: 0.0 | LMV23: 0.0 | LMW23: 0.0 | LMX23: 0.0 | LMY23: 0.0 | LMZ23: 0.0 | LNA23: 0.0 | LNB23: 0.0 | LNC23: 0.0 | LND23: 0.0 | LNE23: 0.0 | LNF23: 0.0 | LNG23: 0.0 | LNH23: 0.0 | LNI23: 0.0 | LNJ23: 0.0 | LNK23: 0.0 | LNL23: 0.0 | LNM23: 0.0 | LNN23: 0.0 | LNO23: 0.0 | LNP23: 0.0 | LNQ23: 0.0 | LNR23: 0.0 | LNS23: 0.0 | LNT23: 0.0 | LNU23: 0.0 | LNV23: 0.0 | LNW23: 0.0 | LNX23: 0.0 | LNY23: 0.0 | LNZ23: 0.0 | LOA23: 0.0 | LOB23: 0.0 | LOC23: 0.0 | LOD23: 0.0 | LOE23: 0.0 | LOF23: 0.0 | LOG23: 0.0 | LOH23: 0.0 | LOI23: 0.0 | LOJ23: 0.0 | LOK23: 0.0 | LOL23: 0.0 | LOM23: 0.0 | LON23: 0.0 | LOO23: 0.0 | LOP23: 0.0 | LOQ23: 0.0 | LOR23: 0.0 | LOS23: 0.0 | LOT23: 0.0 | LOU23: 0.0 | LOV23: 0.0 | LOW23: 0.0 | LOX23: 0.0 | LOY23: 0.0 | LOZ23: 0.0 | LPA23: 0.0 | LPB23: 0.0 | LPC23: 0.0 | LPD23: 0.0 | LPE23: 0.0 | LPF23: 0.0 | LPG23: 0.0 | LPH23: 0.0 | LPI23: 0.0 | LPJ23: 0.0 | LPK23: 0.0 | LPL23: 0.0 | LPM23: 0.0 | LPN23: 0.0 | LPO23: 0.0 | LPP23: 0.0 | LPQ23: 0.0 | LPR23: 0.0 | LPS23: 0.0 | LPT23: 0.0 | LPU23: 0.0 | LPV23: 0.0 | LPW23: 0.0 | LPX23: 0.0 | LPY23: 0.0 | LPZ23: 0.0 | LQA23: 0.0 | LQB23: 0.0 | LQC23: 0.0 | LQD23: 0.0 | LQE23: 0.0 | LQF23: 0.0 | LQG23: 0.0 | LQH23: 0.0 | LQI23: 0.0 | LQJ23: 0.0 | LQK23: 0.0 | LQL23: 0.0 | LQM23: 0.0 | LQN23: 0.0 | LQO23: 0.0 | LQP23: 0.0 | LQQ23: 0.0 | LQR23: 0.0 | LQS23: 0.0 | LQT23: 0.0 | LQU23: 0.0 | LQV23: 0.0 | LQW23: 0.0 | LQX23: 0.0 | LQY23: 0.0 | LQZ23: 0.0 | LRA23: 0.0 | LRB23: 0.0 | LRC23: 0.0 | LRD23: 0.0 | LRE23: 0.0 | LRF23: 0.0 | LRG23: 0.0 | LRH23: 0.0 | LRI23: 0.0 | LRJ23: 0.0 | LRK23: 0.0 | LRL23: 0.0 | LRM23: 0.0 | LRN23: 0.0 | LRO23: 0.0 | LRP23: 0.0 | LRQ23: 0.0 | LRR23: 0.0 | LRS23: 0.0 | LRT23: 0.0 | LRU23: 0.0 | LRV23: 0.0 | LRW23: 0.0 | LRX23: 0.0 | LRY23: 0.0 | LRZ23: 0.0 | LSA23: 0.0 | LSB23: 0.0 | LSC23: 0.0 | LSD23: 0.0 | LSE23: 0.0 | LSF23: 0.0 | LSG23: 0.0 | LSH23: 0.0 | LSI23: 0.0 | LSJ23: 0.0 | LSK23: 0.0 | LSL23: 0.0 | LSM23: 0.0 | LSN23: 0.0 | LSO23: 0.0 | LSP23: 0.0 | LSQ23: 0.0 | LSR23: 0.0 | LSS23: 0.0 | LST23: 0.0 | LSU23: 0.0 | LSV23: 0.0 | LSW23: 0.0 | LSX23: 0.0 | LSY23: 0.0 | LSZ23: 0.0 | LTA23: 0.0 | LTB23: 0.0 | LTC23: 0.0 | LTD23: 0.0 | LTE23: 0.0 | LTF23: 0.0 | LTG23: 0.0 | LTH23: 0.0 | LTI23: 0.0 | LTJ23: 0.0 | LTK23: 0.0 | LTL23: 0.0 | LTM23: 0.0 | LTN23: 0.0 | LTO23: 0.0 | LTP23: 0.0 | LTQ23: 0.0 | LTR23: 0.0 | LTS23: 0.0 | LTT23: 0.0 | LTU23: 0.0 | LTV23: 0.0 | LTW23: 0.0 | LTX23: 0.0 | LTY23: 0.0 | LTZ23: 0.0 | LUA23: 0.0 | LUB23: 0.0 | LUC23: 0.0 | LUD23: 0.0 | LUE23: 0.0 | LUF23: 0.0 | LUG23: 0.0 | LUH23: 0.0 | LUI23: 0.0 | LUJ23: 0.0 | LUK23: 0.0 | LUL23: 0.0 | LUM23: 0.0 | LUN23: 0.0 | LUO23: 0.0 | LUP23: 0.0 | LUQ23: 0.0 | LUR23: 0.0 | LUS23: 0.0 | LUT23: 0.0 | LUU23: 0.0 | LUV23: 0.0 | LUW23: 0.0 | LUX23: 0.0 | LUY23: 0.0 | LUZ23: 0.0 | LVA23: 0.0 | LVB23: 0.0 | LVC23: 0.0 | LVD23: 0.0 | LVE23: 0.0 | LVF23: 0.0 | LVG23: 0.0 | LVH23: 0.0 | LVI23: 0.0 | LVJ23: 0.0 | LVK23: 0.0 | LVL23: 0.0 | LVM23: 0.0 | LVN23: 0.0 | LVO23: 0.0 | LVP23: 0.0 | LVQ23: 0.0 | LVR23: 0.0 | LVS23: 0.0 | LVT23: 0.0 | LVU23: 0.0 | LVV23: 0.0 | LVW23: 0.0 | LVX23: 0.0 | LVY23: 0.0 | LVZ23: 0.0 | LWA23: 0.0 | LWB23: 0.0 | LWC23: 0.0 | LWD23: 0.0 | LWE23: 0.0 | LWF23: 0.0 | LWG23: 0.0 | LWH23: 0.0 | LWI23: 0.0 | LWJ23: 0.0 | LWK23: 0.0 | LWL23: 0.0 | LWM23: 0.0 | LWN23: 0.0 | LWO23: 0.0 | LWP23: 0.0 | LWQ23: 0.0 | LWR23: 0.0 | LWS23: 0.0 | LWT23: 0.0 | LWU23: 0.0 | LWV23: 0.0 | LWW23: 0.0 | LWX23: 0.0 | LWY23: 0.0 | LWZ23: 0.0 | LXA23: 0.0 | LXB23: 0.0 | LXC23: 0.0 | LXD23: 0.0 | LXE23: 0.0 | LXF23: 0.0 | LXG23: 0.0 | LXH23: 0.0 | LXI23: 0.0 | LXJ23: 0.0 | LXK23: 0.0 | LXL23: 0.0 | LXM23: 0.0 | LXN23: 0.0 | LXO23: 0.0 | LXP23: 0.0 | LXQ23: 0.0 | LXR23: 0.0 | LXS23: 0.0 | LXT23: 0.0 | LXU23: 0.0 | LXV23: 0.0 | LXW23: 0.0 | LXX23: 0.0 | LXY23: 0.0 | LXZ23: 0.0 | LYA23: 0.0 | LYB23: 0.0 | LYC23: 0.0 | LYD23: 0.0 | LYE23: 0.0 | LYF23: 0.0 | LYG23: 0.0 | LYH23: 0.0 | LYI23: 0.0 | LYJ23: 0.0 | LYK23: 0.0 | LYL23: 0.0 | LYM23: 0.0 | LYN23: 0.0 | LYO23: 0.0 | LYP23: 0.0 | LYQ23: 0.0 | LYR23: 0.0 | LYS23: 0.0 | LYT23: 0.0 | LYU23: 0.0 | LYV23: 0.0 | LYW23: 0.0 | LYX23: 0.0 | LYY23: 0.0 | LYZ23: 0.0 | LZA23: 0.0 | LZB23: 0.0 | LZC23: 0.0 | LZD23: 0.0 | LZE23: 0.0 | LZF23: 0.0 | LZG23: 0.0 | LZH23: 0.0 | LZI23: 0.0 | LZJ23: 0.0 | LZK23: 0.0 | LZL23: 0.0 | LZM23: 0.0 | LZN23: 0.0 | LZO23: 0.0 | LZP23: 0.0 | LZQ23: 0.0 | LZR23: 0.0 | LZS23: 0.0 | LZT23: 0.0 | LZU23: 0.0 | LZV23: 0.0 | LZW23: 0.0 | LZX23: 0.0 | LZY23: 0.0 | LZZ23: 0.0 | MAA23: 0.0 | MAB23: 0.0 | MAC23: 0.0 | MAD23: 0.0 | MAE23: 0.0 | MAF23: 0.0 | MAG23: 0.0 | MAH23: 0.0 | MAI23: 0.0 | MAJ23: 0.0 | MAK23: 0.0 | MAL23: 0.0 | MAM23: 0.0 | MAN23: 0.0 | MAO23: 0.0 | MAP23: 0.0 | MAQ23: 0.0 | MAR23: 0.0 | MAS23: 0.0 | MAT23: 0.0 | MAU23: 0.0 | MAV23: 0.0 | MAW23: 0.0 | MAX23: 0.0 | MAY23: 0.0 | MAZ23: 0.0 | MBA23: 0.0 | MBB23: 0.0 | MBC23: 0.0 | MBD23: 0.0 | MBE23: 0.0 | MBF23: 0.0 | MBG23: 0.0 | MBH23: 0.0 | MBI23: 0.0 | MBJ23: 0.0 | MBK23: 0.0 | MBL23: 0.0 | MBM23: 0.0 | MBN23: 0.0 | MBO23: 0.0 | MBP23: 0.0 | MBQ23: 0.0 | MBR23: 0.0 | MBS23: 0.0 | MBT23: 0.0 | MBU23: 0.0 | MBV23: 0.0 | MBW23: 0.0 | MBX23: 0.0 | MBY23: 0.0 | MBZ23: 0.0 | MCA23: 0.0 | MCB23: 0.0 | MCC23: 0.0 | MCD23: 0.0 | MCE23: 0.0 | MCF23: 0.0 | MCG23: 0.0 | MCH23: 0.0 | MCI23: 0.0 | MCJ23: 0.0 | MCK23: 0.0 | MCL23: 0.0 | MCM23: 0.0 | MCN23: 0.0 | MCO23: 0.0 | MCP23: 0.0 | MCQ23: 0.0 | MCR23: 0.0 | MCS23: 0.0 | MCT23: 0.0 | MCU23: 0.0 | MCV23: 0.0 | MCW23: 0.0 | MCX23: 0.0 | MCY23: 0.0 | MCZ23: 0.0 | MDA23: 0.0 | MDB23: 0.0 | MDC23: 0.0 | MDD23: 0.0 | MDE23: 0.0 | MDF23: 0.0 | MDG23: 0.0 | MDH23: 0.0 | MDI23: 0.0 | MDJ23: 0.0 | MDK23: 0.0 | MDL23: 0.0 | MDM23: 0.0 | MDN23: 0.0 | MDO23: 0.0 | MDP23: 0.0 | MDQ23: 0.0 | MDR23: 0.0 | MDS23: 0.0 | MDT23: 0.0 | MDU23: 0.0 | MDV23: 0.0 | MDW23: 0.0 | MDX23: 0.0 | MDY23: 0.0 | MDZ23: 0.0 | MEA23: 0.0 | MEB23: 0.0 | MEC23: 0.0 | MED23: 0.0 | MEE23: 0.0 | MEF23: 0.0 | MEG23: 0.0 | MEH23: 0.0 | MEI23: 0.0 | MEJ23: 0.0 | MEK23: 0.0 | MEL23: 0.0 | MEM23: 0.0 | MEN23: 0.0 | MEO23: 0.0 | MEP23: 0.0 | MEQ23: 0.0 | MER23: 0.0 | MES23: 0.0 | MET23: 0.0 | MEU23: 0.0 | MEV23: 0.0 | MEW23: 0.0 | MEX23: 0.0 | MEY23: 0.0 | MEZ23: 0.0 | MFA23: 0.0 | MFB23: 0.0 | MFC23: 0.0 | MFD23: 0.0 | MFE23: 0.0 | MFF23: 0.0 | MFG23: 0.0 | MFH23: 0.0 | MFI23: 0.0 | MFJ23: 0.0 | MFK23: 0.0 | MFL23: 0.0 | MFM23: 0.0 | MFN23: 0.0 | MFO23: 0.0 | MFP23: 0.0 | MFQ23: 0.0 | MFR23: 0.0 | MFS23: 0.0 | MFT23: 0.0 | MFU23: 0.0 | MFV23: 0.0 | MFW23: 0.0 | MFX23: 0.0 | MFY23: 0.0 | MFZ23: 0.0 | MGA23: 0.0 | MGB23: 0.0 | MGC23: 0.0 | MGD23: 0.0 | MGE23: 0.0 | MGF23: 0.0 | MGG23: 0.0 | MGH23: 0.0 | MGI23: 0.0 | MGJ23: 0.0 | MGK23: 0.0 | MGL23: 0.0 | MGM23: 0.0 | MGN23: 0.0 | MGO23: 0.0 | MGP23: 0.0 | MGQ23: 0.0 | MGR23: 0.0 | MGS23: 0.0 | MGT23: 0.0 | MGU23: 0.0 | MGV23: 0.0 | MGW23: 0.0 | MGX23: 0.0 | MGY23: 0.0 | MGZ23: 0.0 | MHA23: 0.0 | MHB23: 0.0 | MHC23: 0.0 | MHD23: 0.0 | MHE23: 0.0 | MHF23: 0.0 | MHG23: 0.0 | MHH23: 0.0 | MHI23: 0.0 | MHJ23: 0.0 | MHK23: 0.0 | MHL23: 0.0 | MHM23: 0.0 | MHN23: 0.0 | MHO23: 0.0 | MHP23: 0.0 | MHQ23: 0.0 | MHR23: 0.0 | MHS23: 0.0 | MHT23: 0.0 | MHU23: 0.0 | MHV23: 0.0 | MHW23: 0.0 | MHX23: 0.0 | MHY23: 0.0 | MHZ23: 0.0 | MIA23: 0.0 | MIB23: 0.0 | MIC23: 0.0 | MID23: 0.0 | MIE23: 0.0 | MIF23: 0.0 | MIG23: 0.0 | MIH23: 0.0 | MII23: 0.0 | MIJ23: 0.0 | MIK23: 0.0 | MIL23: 0.0 | MIM23: 0.0 | MIN23: 0.0 | MIO23: 0.0 | MIP23: 0.0 | MIQ23: 0.0 | MIR23: 0.0 | MIS23: 0.0 | MIT23: 0.0 | MIU23: 0.0 | MIV23: 0.0 | MIW23: 0.0 | MIX23: 0.0 | MIY23: 0.0 | MIZ23: 0.0 | MJA23: 0.0 | MJB23: 0.0 | MJC23: 0.0 | MJD23: 0.0 | MJE23: 0.0 | MJF23: 0.0 | MJG23: 0.0 | MJH23: 0.0 | MJI23: 0.0 | MJJ23: 0.0 | MJK23: 0.0 | MJL23: 0.0 | MJM23: 0.0 | MJN23: 0.0 | MJO23: 0.0 | MJP23: 0.0 | MJQ23: 0.0 | MJR23: 0.0 | MJS23: 0.0 | MJT23: 0.0 | MJU23: 0.0 | MJV23: 0.0 | MJW23: 0.0 | MJX23: 0.0 | MJY23: 0.0 | MJZ23: 0.0 | MKA23: 0.0 | MKB23: 0.0 | MKC23: 0.0 | MKD23: 0.0 | MKE23: 0.0 | MKF23: 0.0 | MKG23: 0.0 | MKH23: 0.0 | MKI23: 0.0 | MKJ23: 0.0 | MKK23: 0.0 | MKL23: 0.0 | MKM23: 0.0 | MKN23: 0.0 | MKO23: 0.0 | MKP23: 0.0 | MKQ23: 0.0 | MKR23: 0.0 | MKS23: 0.0 | MKT23: 0.0 | MKU23: 0.0 | MKV23: 0.0 | MKW23: 0.0 | MKX23: 0.0 | MKY23: 0.0 | MKZ23: 0.0 | MLA23: 0.0 | MLB23: 0.0 | MLC23: 0.0 | MLD23: 0.0 | MLE23: 0.0 | MLF23: 0.0 | MLG23: 0.0 | MLH23: 0.0 | MLI23: 0.0 | MLJ23: 0.0 | MLK23: 0.0 | MLL23: 0.0 | MLM23: 0.0 | MLN23: 0.0 | MLO23: 0.0 | MLP23: 0.0 | MLQ23: 0.0 | MLR23: 0.0 | MLS23: 0.0 | MLT23: 0.0 | MLU23: 0.0 | MLV23: 0.0 | MLW23: 0.0 | MLX23: 0.0 | MLY23: 0.0 | MLZ23: 0.0 | MMA23: 0.0 | MMB23: 0.0 | MMC23: 0.0 | MMD23: 0.0 | MME23: 0.0 | MMF23: 0.0 | MMG23: 0.0 | MMH23: 0.0 | MMI23: 0.0 | MMJ23: 0.0 | MMK23: 0.0 | MML23: 0.0 | MMM23: 0.0 | MMN23: 0.0 | MMO23: 0.0 | MMP23: 0.0 | MMQ23: 0.0 | MMR23: 0.0 | MMS23: 0.0 | MMT23: 0.0 | MMU23: 0.0 | MMV23: 0.0 | MMW23: 0.0 | MMX23: 0.0 | MMY23: 0.0 | MMZ23: 0.0 | MNA23: 0.0 | MNB23: 0.0 | MNC23: 0.0 | MND23: 0.0 | MNE23: 0.0 | MNF23: 0.0 | MNG23: 0.0 | MNH23: 0.0 | MNI23: 0.0 | MNJ23: 0.0 | MNK23: 0.0 | MNL23: 0.0 | MNM23: 0.0 | MNN23: 0.0 | MNO23: 0.0 | MNP23: 0.0 | MNQ23: 0.0 | MNR23: 0.0 | MNS23: 0.0 | MNT23: 0.0 | MNU23: 0.0 | MNV23: 0.0 | MNW23: 0.0 | MNX23: 0.0 | MNY23: 0.0 | MNZ23: 0.0 | MOA23: 0.0 | MOB23: 0.0 | MOC23: 0.0 | MOD23: 0.0 | MOE23: 0.0 | MOF23: 0.0 | MOG23: 0.0 | MOH23: 0.0 | MOI23: 0.0 | MOJ23: 0.0 | MOK23: 0.0 | MOL23: 0.0 | MOM23: 0.0 | MON23: 0.0 | MOO23: 0.0 | MOP23: 0.0 | MOQ23: 0.0 | MOR23: 0.0 | MOS23: 0.0 | MOT23: 0.0 | MOU23: 0.0 | MOV23: 0.0 | MOW23: 0.0 | MOX23: 0.0 | MOY23: 0.0 | MOZ23: 0.0 | MPA23: 0.0 | MPB23: 0.0 | MPC23: 0.0 | MPD23: 0.0 | MPE23: 0.0 | MPF23: 0.0 | MPG23: 0.0 | MPH23: 0.0 | MPI23: 0.0 | MPJ23: 0.0 | MPK23: 0.0 | MPL23: 0.0 | MPM23: 0.0 | MPN23: 0.0 | MPO23: 0.0 | MPP23: 0.0 | MPQ23: 0.0 | MPR23: 0.0 | MPS23: 0.0 | MPT23: 0.0 | MPU23: 0.0 | MPV23: 0.0 | MPW23: 0.0 | MPX23: 0.0 | MPY23: 0.0 | MPZ23: 0.0 | MQA23: 0.0 | MQB23: 0.0 | MQC23: 0.0 | MQD23: 0.0 | MQE23: 0.0 | MQF23: 0.0 | MQG23: 0.0 | MQH23: 0.0 | MQI23: 0.0 | MQJ23: 0.0 | MQK23: 0.0 | MQL23: 0.0 | MQM23: 0.0 | MQN23: 0.0 | MQO23: 0.0 | MQP23: 0.0 | MQQ23: 0.0 | MQR23: 0.0 | MQS23: 0.0 | MQT23: 0.0 | MQU23: 0.0 | MQV23: 0.0 | MQW23: 0.0 | MQX23: 0.0 | MQY23: 0.0 | MQZ23: 0.0 | MRA23: 0.0 | MRB23: 0.0 | MRC23: 0.0 | MRD23: 0.0 | MRE23: 0.0 | MRF23: 0.0 | MRG23: 0.0 | MRH23: 0.0 | MRI23: 0.0 | MRJ23: 0.0 | MRK23: 0.0 | MRL23: 0.0 | MRM23: 0.0 | MRN23: 0.0 | MRO23: 0.0 | MRP23: 0.0 | MRQ23: 0.0 | MRR23: 0.0 | MRS23: 0.0 | MRT23: 0.0 | MRU23: 0.0 | MRV23: 0.0 | MRW23: 0.0 | MRX23: 0.0 | MRY23: 0.0 | MRZ23: 0.0 | MSA23: 0.0 | MSB23: 0.0 | MSC23: 0.0 | MSD23: 0.0 | MSE23: 0.0 | MSF23: 0.0 | MSG23: 0.0 | MSH23: 0.0 | MSI23: 0.0 | MSJ23: 0.0 | MSK23: 0.0 | MSL23: 0.0 | MSM23: 0.0 | MSN23: 0.0 | MSO23: 0.0 | MSP23: 0.0 | MSQ23: 0.0 | MSR23: 0.0 | MSS23: 0.0 | MST23: 0.0 | MSU23: 0.0 | MSV23: 0.0 | MSW23: 0.0 | MSX23: 0.0 | MSY23: 0.0 | MSZ23: 0.0 | MTA23: 0.0 | MTB23: 0.0 | MTC23: 0.0 | MTD23: 0.0 | MTE23: 0.0 | MTF23: 0.0 | MTG23: 0.0 | MTH23: 0.0 | MTI23: 0.0 | MTJ23: 0.0 | MTK23: 0.0 | MTL23: 0.0 | MTM23: 0.0 | MTN23: 0.0 | MTO23: 0.0 | MTP23: 0.0 | MTQ23: 0.0 | MTR23: 0.0 | MTS23: 0.0 | MTT23: 0.0 | MTU23: 0.0 | MTV23: 0.0 | MTW23: 0.0 | MTX23: 0.0 | MTY23: 0.0 | MTZ23: 0.0 | MUA23: 0.0 | MUB23: 0.0 | MUC23: 0.0 | MUD23: 0.0 | MUE23: 0.0 | MUF23: 0.0 | MUG23: 0.0 | MUH23: 0.0 | MUI23: 0.0 | MUJ23: 0.0 | MUK23: 0.0 | MUL23: 0.0 | MUM23: 0.0 | MUN23: 0.0 | MUO23: 0.0 | MUP23: 0.0 | MUQ23: 0.0 | MUR23: 0.0 | MUS23: 0.0 | MUT23: 0.0 | MUU23: 0.0 | MUV23: 0.0 | MUW23: 0.0 | MUX23: 0.0 | MUY23: 0.0 | MUZ23: 0.0 | MVA23: 0.0 | MVB23: 0.0 | MVC23: 0.0 | MVD23: 0.0 | MVE23: 0.0 | MVF23: 0.0 | MVG23: 0.0 | MVH23: 0.0 | MVI23: 0.0 | MVJ23: 0.0 | MVK23: 0.0 | MVL23: 0.0 | MVM23: 0.0 | MVN23: 0.0 | MVO23: 0.0 | MVP23: 0.0 | MVQ23: 0.0 | MVR23: 0.0 | MVS23: 0.0 | MVT23: 0.0 | MVU23: 0.0 | MVV23: 0.0 | MVW23: 0.0 | MVX23: 0.0 | MVY23: 0.0 | MVZ23: 0.0 | MWA23: 0.0 | MWB23: 0.0 | MWC23: 0.0 | MWD23: 0.0 | MWE23: 0.0 | MWF23: 0.0 | MWG23: 0.0 | MWH23: 0.0 | MWI23: 0.0 | MWJ23: 0.0 | MWK23: 0.0 | MWL23: 0.0 | MWM23: 0.0 | MWN23: 0.0 | MWO23: 0.0 | MWP23: 0.0 | MWQ23: 0.0 | MWR23: 0.0 | MWS23: 0.0 | MWT23: 0.0 | MWU23: 0.0 | MWV23: 0.0 | MWW23: 0.0 | MWX23: 0.0 | MWY23: 0.0 | MWZ23: 0.0 | MXA23: 0.0 | MXB23: 0.0 | MXC23: 0.0 | MXD23: 0.0 | MXE23: 0.0 | MXF23: 0.0 | MXG23: 0.0 | MXH23: 0.0 | MXI23: 0.0 | MXJ23: 0.0 | MXK23: 0.0 | MXL23: 0.0 | MXM23: 0.0 | MXN23: 0.0 | MXO23: 0.0 | MXP23: 0.0 | MXQ23: 0.0 | MXR23: 0.0 | MXS23: 0.0 | MXT23: 0.0 | MXU23: 0.0 | MXV23: 0.0 | MXW23: 0.0 | MXX23: 0.0 | MXY23: 0.0 | MXZ23: 0.0 | MYA23: 0.0 | MYB23: 0.0 | MYC23: 0.0 | MYD23: 0.0 | MYE23: 0.0 | MYF23: 0.0 | MYG23: 0.0 | MYH23: 0.0 | MYI23: 0.0 | MYJ23: 0.0 | MYK23: 0.0 | MYL23: 0.0 | MYM23: 0.0 | MYN23: 0.0 | MYO23: 0.0 | MYP23: 0.0 | MYQ23: 0.0 | MYR23: 0.0 | MYS23: 0.0 | MYT23: 0.0 | MYU23: 0.0 | MYV23: 0.0 | MYW23: 0.0 | MYX23: 0.0 | MYY23: 0.0 | MYZ23: 0.0 | MZA23: 0.0 | MZB23: 0.0 | MZC23: 0.0 | MZD23: 0.0 | MZE23: 0.0 | MZF23: 0.0 | MZG23: 0.0 | MZH23: 0.0 | MZI23: 0.0 | MZJ23: 0.0 | MZK23: 0.0 | MZL23: 0.0 | MZM23: 0.0 | MZN23: 0.0 | MZO23: 0.0 | MZP23: 0.0 | MZQ23: 0.0 | MZR23: 0.0 | MZS23: 0.0 | MZT23: 0.0 | MZU23: 0.0 | MZV23: 0.0 | MZW23: 0.0 | MZX23: 0.0 | MZY23: 0.0 | MZZ23: 0.0 | NAA23: 0.0 | NAB23: 0.0 | NAC23: 0.0 | NAD23: 0.0 | NAE23: 0.0 | NAF23: 0.0 | NAG23: 0.0 | NAH23: 0.0 | NAI23: 0.0 | NAJ23: 0.0 | NAK23: 0.0 | NAL23: 0.0 | NAM23: 0.0 | NAN23: 0.0 | NAO23: 0.0 | NAP23: 0.0 | NAQ23: 0.0 | NAR23: 0.0 | NAS23: 0.0 | NAT23: 0.0 | NAU23: 0.0 | NAV23: 0.0 | NAW23: 0.0 | NAX23: 0.0 | NAY23: 0.0 | NAZ23: 0.0 | NBA23: 0.0 | NBB23: 0.0 | NBC23: 0.0 | NBD23: 0.0 | NBE23: 0.0 | NBF23: 0.0 | NBG23: 0.0 | NBH23: 0.0 | NBI23: 0.0 | NBJ23: 0.0 | NBK23: 0.0 | NBL23: 0.0 | NBM23: 0.0 | NBN23: 0.0 | NBO23: 0.0 | NBP23: 0.0 | NBQ23: 0.0 | NBR23: 0.0 | NBS23: 0.0 | NBT23: 0.0 | NBU23: 0.0 | NBV23: 0.0 | NBW23: 0.0 | NBX23: 0.0 | NBY23: 0.0 | NBZ23: 0.0 | NCA23: 0.0 | NCB23: 0.0 | NCC23: 0.0 | NCD23: 0.0 | NCE23: 0.0 | NCF23: 0.0 | NCG23: 0.0 | NCH23: 0.0 | NCI23: 0.0 | NCJ23: 0.0 | NCK23: 0.0 | NCL23: 0.0 | NCM23: 0.0 | NCN23: 0.0 | NCO23: 0.0 | NCP23: 0.0 | NCQ23: 0.0 | NCR23: 0.0 | NCS23: 0.0 | NCT23: 0.0 | NCU23: 0.0 | NCV23: 0.0 | NCW23: 0.0 | NCX23: 0.0 | NCY23: 0.0 | NCZ23: 0.0 | NDA23: 0.0 | NDB23: 0.0 | NDC23: 0.0 | NDD23: 0.0 | NDE23: 0.0 | NDF23: 0.0 | NDG23: 0.0 | NDH23: 0.0 | NDI23: 0.0 | NDJ23: 0.0 | NDK23: 0.0 | NDL23: 0.0 | NDM23: 0.0 | NDN23: 0.0 | NDO23: 0.0 | NDP23: 0.0 | NDQ23: 0.0 | NDR23: 0.0 | NDS23: 0.0 | NDT23: 0.0 | NDU23: 0.0 | NDV23: 0.0 | NDW23: 0.0 | NDX23: 0.0 | NDY23: 0.0 | NDZ23: 0.0 | NEA23: 0.0 | NEB23: 0.0 | NEC23: 0.0 | NED23: 0.0 | NEE23: 0.0 | NEF23: 0.0 | NEG23: 0.0 | NEH23: 0.0 | NEI23: 0.0 | NEJ23: 0.0 | NEK23: 0.0 | NEL23: 0.0 | NEM23: 0.0 | NEN23: 0.0 | NEO23: 0.0 | NEP23: 0.0 | NEQ23: 0.0 | NER23: 0.0 | NES23: 0.0 | NET23: 0.0 | NEU23: 0.0 | NEV23: 0.0 | NEW23: 0.0 | NEX23: 0.0 | NEY23: 0.0 | NEZ23: 0.0 | NFA23: 0.0 | NFB23: 0.0 | NFC23: 0.0 | NFD23: 0.0 | NFE23: 0.0 | NFF23: 0.0 | NFG23: 0.0 | NFH23: 0.0 | NFI23: 0.0 | NFJ23: 0.0 | NFK23: 0.0 | NFL23: 0.0 | NFM23: 0.0 | NFN23: 0.0 | NFO23: 0.0 | NFP23: 0.0 | NFQ23: 0.0 | NFR23: 0.0 | NFS23: 0.0 | NFT23: 0.0 | NFU23: 0.0 | NFV23: 0.0 | NFW23: 0.0 | NFX23: 0.0 | NFY23: 0.0 | NFZ23: 0.0 | NGA23: 0.0 | NGB23: 0.0 | NGC23: 0.0 | NGD23: 0.0 | NGE23: 0.0 | NGF23: 0.0 | NGG23: 0.0 | NGH23: 0.0 | NGI23: 0.0 | NGJ23: 0.0 | NGK23: 0.0 | NGL23: 0.0 | NGM23: 0.0 | NGN23: 0.0 | NGO23: 0.0 | NGP23: 0.0 | NGQ23: 0.0 | NGR23: 0.0 | NGS23: 0.0 | NGT23: 0.0 | NGU23: 0.0 | NGV23: 0.0 | NGW23: 0.0 | NGX23: 0.0 | NGY23: 0.0 | NGZ23: 0.0 | NHA23: 0.0 | NHB23: 0.0 | NHC23: 0.0 | NHD23: 0.0 | NHE23: 0.0 | NHF23: 0.0 | NHG23: 0.0 | NHH23: 0.0 | NHI23: 0.0 | NHJ23: 0.0 | NHK23: 0.0 | NHL23: 0.0 | NHM23: 0.0 | NHN23: 0.0 | NHO23: 0.0 | NHP23: 0.0 | NHQ23: 0.0 | NHR23: 0.0 | NHS23: 0.0 | NHT23: 0.0 | NHU23: 0.0 | NHV23: 0.0 | NHW23: 0.0 | NHX23: 0.0 | NHY23: 0.0 | NHZ23: 0.0 | NIA23: 0.0 | NIB23: 0.0 | NIC23: 0.0 | NID23: 0.0 | NIE23: 0.0 | NIF23: 0.0 | NIG23: 0.0 | NIH23: 0.0 | NII23: 0.0 | NIJ23: 0.0 | NIK23: 0.0 | NIL23: 0.0 | NIM23: 0.0 | NIN23: 0.0 | NIO23: 0.0 | NIP23: 0.0 | NIQ23: 0.0 | NIR23: 0.0 | NIS23: 0.0 | NIT23: 0.0 | NIU23: 0.0 | NIV23: 0.0 | NIW23: 0.0 | NIX23: 0.0 | NIY23: 0.0 | NIZ23: 0.0 | NJA23: 0.0 | NJB23: 0.0 | NJC23: 0.0 | NJD23: 0.0 | NJE23: 0.0 | NJF23: 0.0 | NJG23: 0.0 | NJH23: 0.0 | NJI23: 0.0 | NJJ23: 0.0 | NJK23: 0.0 | NJL23: 0.0 | NJM23: 0.0 | NJN23: 0.0 | NJO23: 0.0 | NJP23: 0.0 | NJQ23: 0.0 | NJR23: 0.0 | NJS23: 0.0 | NJT23: 0.0 | NJU23: 0.0 | NJV23: 0.0 | NJW23: 0.0 | NJX23: 0.0 | NJY23: 0.0 | NJZ23: 0.0 | NKA23: 0.0 | NKB23: 0.0 | NKC23: 0.0 | NKD23: 0.0 | NKE23: 0.0 | NKF23: 0.0 | NKG23: 0.0 | NKH23: 0.0 | NKI23: 0.0 | NKJ23: 0.0 | NKK23: 0.0 | NKL23: 0.0 | NKM23: 0.0 | NKN23: 0.0 | NKO23: 0.0 | NKP23: 0.0 | NKQ23: 0.0 | NKR23: 0.0 | NKS23: 0.0 | NKT23: 0.0 | NKU23: 0.0 | NKV23: 0.0 | NKW23: 0.0 | NKX23: 0.0 | NKY23: 0.0 | NKZ23: 0.0 | NLA23: 0.0 | NLB23: 0.0 | NLC23: 0.0 | NLD23: 0.0 | NLE23: 0.0 | NLF23: 0.0 | NLG23: 0.0 | NLH23: 0.0 | NLI23: 0.0 | NLJ23: 0.0 | NLK23: 0.0 | NLL23: 0.0 | NLM23: 0.0 | NLN23: 0.0 | NLO23: 0.0 | NLP23: 0.0 | NLQ23: 0.0 | NLR23: 0.0 | NLS23: 0.0 | NLT23: 0.0 | NLU23: 0.0 | NLV23: 0.0 | NLW23: 0.0 | NLX23: 0.0 | NLY23: 0.0 | NLZ23: 0.0 | NMA23: 0.0 | NMB23: 0.0 | NMC23: 0.0 | NMD23: 0.0 | NME23: 0.0 | NMF23: 0.0 | NMG23: 0.0 | NMH23: 0.0 | NMI23: 0.0 | NMJ23: 0.0 | NMK23: 0.0 | NML23: 0.0 | NMM23: 0.0 | NMN23: 0.0 | NMO23: 0.0 | NMP23: 0.0 | NMQ23: 0.0 | NMR23: 0.0 | NMS23: 0.0 | NMT23: 0.0 | NMU23: 0.0 | NMV23: 0.0 | NMW23: 0.0 | NMX23: 0.0 | NMY23: 0.0 | NMZ23: 0.0 | NNA23: 0.0 | NNB23: 0.0 | NNC23: 0.0 | NND23: 0.0 | NNE23: 0.0 | NNF23: 0.0 | NNG23: 0.0 | NNH23: 0.0 | NNI23: 0.0 | NNJ23: 0.0 | NNK23: 0.0 | NNL23: 0.0 | NNM23: 0.0 | NNN23: 0.0 | NNO23: 0.0 | NNP23: 0.0 | NNQ23: 0.0 | NNR23: 0.0 | NNS23: 0.0 | NNT23: 0.0 | NNU23: 0.0 | NNV23: 0.0 | NNW23: 0.0 | NNX23: 0.0 | NNY23: 0.0 | NNZ23: 0.0 | NOA23: 0.0 | NOB23: 0.0 | NOC23: 0.0 | NOD23: 0.0 | NOE23: 0.0 | NOF23: 0.0 | NOG23: 0.0 | NOH23: 0.0 | NOI23: 0.0 | NOJ23: 0.0 | NOK23: 0.0 | NOL23: 0.0 | NOM23: 0.0 | NON23: 0.0 | NOO23: 0.0 | NOP23: 0.0 | NOQ23: 0.0 | NOR23: 0.0 | NOS23: 0.0 | NOT23: 0.0 | NOU23: 0.0 | NOV23: 0.0 | NOW23: 0.0 | NOX23: 0.0 | NOY23: 0.0 | NOZ23: 0.0 | NPA23: 0.0 | NPB23: 0.0 | NPC23: 0.0 | NPD23: 0.0 | NPE23: 0.0 | NPF23: 0.0 | NPG23: 0.0 | NPH23: 0.0 | NPI23: 0.0 | NPJ23: 0.0 | NPK23: 0.0 | NPL23: 0.0 | NPM23: 0.0 | NPN23: 0.0 | NPO23: 0.0 | NPP23: 0.0 | NPQ23: 0.0 | NPR23: 0.0 | NPS23: 0.0 | NPT23: 0.0 | NPU23: 0.0 | NPV23: 0.0 | NPW23: 0.0 | NPX23: 0.0 | NPY23: 0.0 | NPZ23: 0.0 | NQA23: 0.0 | NQB23: 0.0 | NQC23: 0.0 | NQD23: 0.0 | NQE23: 0.0 | NQF23: 0.0 | NQG23: 0.0 | NQH23: 0.0 | NQI23: 0.0 | NQJ23: 0.0 | NQK23: 0.0 | NQL23: 0.0 | NQM23: 0.0 | NQN23: 0.0 | NQO23: 0.0 | NQP23: 0.0 | NQQ23: 0.0 | NQR23: 0.0 | NQS23: 0.0 | NQT23: 0.0 | NQU23: 0.0 | NQV23: 0.0 | NQW23: 0.0 | NQX23: 0.0 | NQY23: 0.0 | NQZ23: 0.0 | NRA23: 0.0 | NRB23: 0.0 | NRC23: 0.0 | NRD23: 0.0 | NRE23: 0.0 | NRF23: 0.0 | NRG23: 0.0 | NRH23: 0.0 | NRI23: 0.0 | NRJ23: 0.0 | NRK23: 0.0 | NRL23: 0.0 | NRM23: 0.0 | NRN23: 0.0 | NRO23: 0.0 | NRP23: 0.0 | NRQ23: 0.0 | NRR23: 0.0 | NRS23: 0.0 | NRT23: 0.0 | NRU23: 0.0 | NRV23: 0.0 | NRW23: 0.0 | NRX23: 0.0 | NRY23: 0.0 | NRZ23: 0.0 | NSA23: 0.0 | NSB23: 0.0 | NSC23: 0.0 | NSD23: 0.0 | NSE23: 0.0 | NSF23: 0.0 | NSG23: 0.0 | NSH23: 0.0 | NSI23: 0.0 | NSJ23: 0.0 | NSK23: 0.0 | NSL23: 0.0 | NSM23: 0.0 | NSN23: 0.0 | NSO23: 0.0 | NSP23: 0.0 | NSQ23: 0.0 | NSR23: 0.0 | NSS23: 0.0 | NST23: 0.0 | NSU23: 0.0 | NSV23: 0.0 | NSW23: 0.0 | NSX23: 0.0 | NSY23: 0.0 | NSZ23: 0.0 | NTA23: 0.0 | NTB23: 0.0 | NTC23: 0.0 | NTD23: 0.0 | NTE23: 0.0 | NTF23: 0.0 | NTG23: 0.0 | NTH23: 0.0 | NTI23: 0.0 | NTJ23: 0.0 | NTK23: 0.0 | NTL23: 0.0 | NTM23: 0.0 | NTN23: 0.0 | NTO23: 0.0 | NTP23: 0.0 | NTQ23: 0.0 | NTR23: 0.0 | NTS23: 0.0 | NTT23: 0.0 | NTU23: 0.0 | NTV23: 0.0 | NTW23: 0.0 | NTX23: 0.0 | NTY23: 0.0 | NTZ23: 0.0 | NUA23: 0.0 | NUB23: 0.0 | NUC23: 0.0 | NUD23: 0.0 | NUE23: 0.0 | NUF23: 0.0 | NUG23: 0.0 | NUH23: 0.0 | NUI23: 0.0 | NUJ23: 0.0 | NUK23: 0.0 | NUL23: 0.0 | NUM23: 0.0 | NUN23: 0.0 | NUO23: 0.0 | NUP23: 0.0 | NUQ23: 0.0 | NUR23: 0.0 | NUS23: 0.0 | NUT23: 0.0 | NUU23: 0.0 | NUV23: 0.0 | NUW23: 0.0 | NUX23: 0.0 | NUY23: 0.0 | NUZ23: 0.0 | NVA23: 0.0 | NVB23: 0.0 | NVC23: 0.0 | NVD23: 0.0 | NVE23: 0.0 | NVF23: 0.0 | NVG23: 0.0 | NVH23: 0.0 | NVI23: 0.0 | NVJ23: 0.0 | NVK23: 0.0 | NVL23: 0.0 | NVM23: 0.0 | NVN23: 0.0 | NVO23: 0.0 | NVP23: 0.0 | NVQ23: 0.0 | NVR23: 0.0 | NVS23: 0.0 | NVT23: 0.0 | NVU23: 0.0 | NVV23: 0.0 | NVW23: 0.0 | NVX23: 0.0 | NVY23: 0.0 | NVZ23: 0.0 | NWA23: 0.0 | NWB23: 0.0 | NWC23: 0.0 | NWD23: 0.0 | NWE23: 0.0 | NWF23: 0.0 | NWG23: 0.0 | NWH23: 0.0 | NWI23: 0.0 | NWJ23: 0.0 | NWK23: 0.0 | NWL23: 0.0 | NWM23: 0.0 | NWN23: 0.0 | NWO23: 0.0 | NWP23: 0.0 | NWQ23: 0.0 | NWR23: 0.0 | NWS23: 0.0 | NWT23: 0.0 | NWU23: 0.0 | NWV23: 0.0 | NWW23: 0.0 | NWX23: 0.0 | NWY23: 0.0 | NWZ23: 0.0 | NXA23: 0.0 | NXB23: 0.0 | NXC23: 0.0 | NXD23: 0.0 | NXE23: 0.0 | NXF23: 0.0 | NXG23: 0.0 | NXH23: 0.0 | NXI23: 0.0 | NXJ23: 0.0 | NXK23: 0.0 | NXL23: 0.0 | NXM23: 0.0 | NXN23: 0.0 | NXO23: 0.0 | NXP23: 0.0 | NXQ23: 0.0 | NXR23: 0.0 | NXS23: 0.0 | NXT23: 0.0 | NXU23: 0.0 | NXV23: 0.0 | NXW23: 0.0 | NXX23: 0.0 | NXY23: 0.0 | NXZ23: 0.0 | NYA23: 0.0 | NYB23: 0.0 | NYC23: 0.0 | NYD23: 0.0 | NYE23: 0.0 | NYF23: 0.0 | NYG23: 0.0 | NYH23: 0.0 | NYI23: 0.0 | NYJ23: 0.0 | NYK23: 0.0 | NYL23: 0.0 | NYM23: 0.0 | NYN23: 0.0 | NYO23: 0.0 | NYP23: 0.0 | NYQ23: 0.0 | NYR23: 0.0 | NYS23: 0.0 | NYT23: 0.0 | NYU23: 0.0 | NYV23: 0.0 | NYW23: 0.0 | NYX23: 0.0 | NYY23: 0.0 | NYZ23: 0.0 | NZA23: 0.0 | NZB23: 0.0 | NZC23: 0.0 | NZD23: 0.0 | NZE23: 0.0 | NZF23: 0.0 | NZG23: 0.0 | NZH23: 0.0 | NZI23: 0.0 | NZJ23: 0.0 | NZK23: 0.0 | NZL23: 0.0 | NZM23: 0.0 | NZN23: 0.0 | NZO23: 0.0 | NZP23: 0.0 | NZQ23: 0.0 | NZR23: 0.0 | NZS23: 0.0 | NZT23: 0.0 | NZU23: 0.0 | NZV23: 0.0 | NZW23: 0.0 | NZX23: 0.0 | NZY23: 0.0 | NZZ23: 0.0 | OAA23: 0.0 | OAB23: 0.0 | OAC23: 0.0 | OAD23: 0.0 | OAE23: 0.0 | OAF23: 0.0 | OAG23: 0.0 | OAH23: 0.0 | OAI23: 0.0 | OAJ23: 0.0 | OAK23: 0.0 | OAL23: 0.0 | OAM23: 0.0 | OAN23: 0.0 | OAO23: 0.0 | OAP23: 0.0 | OAQ23: 0.0 | OAR23: 0.0 | OAS23: 0.0 | OAT23: 0.0 | OAU23: 0.0 | OAV23: 0.0 | OAW23: 0.0 | OAX23: 0.0 | OAY23: 0.0 | OAZ23: 0.0 | OBA23: 0.0 | OBB23: 0.0 | OBC23: 0.0 | OBD23: 0.0 | OBE23: 0.0 | OBF23: 0.0 | OBG23: 0.0 | OBH23: 0.0 | OBI23: 0.0 | OBJ23: 0.0 | OBK23: 0.0 | OBL23: 0.0 | OBM23: 0.0 | OBN23: 0.0 | OBO23: 0.0 | OBP23: 0.0 | OBQ23: 0.0 | OBR23: 0.0 | OBS23: 0.0 | OBT23: 0.0 | OBU23: 0.0 | OBV23: 0.0 | OBW23: 0.0 | OBX23: 0.0 | OBY23: 0.0 | OBZ23: 0.0 | OCA23: 0.0 | OCB23: 0.0 | OCC23: 0.0 | OCD23: 0.0 | OCE23: 0.0 | OCF23: 0.0 | OCG23: 0.0 | OCH23: 0.0 | OCI23: 0.0 | OCJ23: 0.0 | OCK23: 0.0 | OCL23: 0.0 | OCM23: 0.0 | OCN23: 0.0 | OCO23: 0.0 | OCP23: 0.0 | OCQ23: 0.0 | OCR23: 0.0 | OCS23: 0.0 | OCT23: 0.0 | OCU23: 0.0 | OCV23: 0.0 | OCW23: 0.0 | OCX23: 0.0 | OCY23: 0.0 | OCZ23: 0.0 | ODA23: 0.0 | ODB23: 0.0 | ODC23: 0.0 | ODD23: 0.0 | ODE23: 0.0 | ODF23: 0.0 | ODG23: 0.0 | ODH23: 0.0 | ODI23: 0.0 | ODJ23: 0.0 | ODK23: 0.0 | ODL23: 0.0 | ODM23: 0.0 | ODN23: 0.0 | ODO23: 0.0 | ODP23: 0.0 | ODQ23: 0.0 | ODR23: 0.0 | ODS23: 0.0 | ODT23: 0.0 | ODU23: 0.0 | ODV23: 0.0 | ODW23: 0.0 | ODX23: 0.0 | ODY23: 0.0 | ODZ23: 0.0 | OEA23: 0.0 | OEB23: 0.0 | OEC23: 0.0 | OED23: 0.0 | OEE23: 0.0 | OEF23: 0.0 | OEG23: 0.0 | OEH23: 0.0 | OEI23: 0.0 | OEJ23: 0.0 | OEK23: 0.0 | OEL23: 0.0 | OEM23: 0.0 | OEN23: 0.0 | OEO23: 0.0 | OEP23: 0.0 | OEQ23: 0.0 | OER23: 0.0 | OES23: 0.0 | OET23: 0.0 | OEU23: 0.0 | OEV23: 0.0 | OEW23: 0.0 | OEX23: 0.0 | OEY23: 0.0 | OEZ23: 0.0 | OFA23: 0.0 | OFB23: 0.0 | OFC23: 0.0 | OFD23: 0.0 | OFE23: 0.0 | OFF23: 0.0 | OFG23: 0.0 | OFH23: 0.0 | OFI23: 0.0 | OFJ23: 0.0 | OFK23: 0.0 | OFL23: 0.0 | OFM23: 0.0 | OFN23: 0.0 | OFO23: 0.0 | OFP23: 0.0 | OFQ23: 0.0 | OFR23: 0.0 | OFS23: 0.0 | OFT23: 0.0 | OFU23: 0.0 | OFV23: 0.0 | OFW23: 0.0 | OFX23: 0.0 | OFY23: 0.0 | OFZ23: 0.0 | OGA23: 0.0 | OGB23: 0.0 | OGC23: 0.0 | OGD23: 0.0 | OGE23: 0.0 | OGF23: 0.0 | OGG23: 0.0 | OGH23: 0.0 | OGI23: 0.0 | OGJ23: 0.0 | OGK23: 0.0 | OGL23: 0.0 | OGM23: 0.0 | OGN23: 0.0 | OGO23: 0.0 | OGP23: 0.0 | OGQ23: 0.0 | OGR23: 0.0 | OGS23: 0.0 | OGT23: 0.0 | OGU23: 0.0 | OGV23: 0.0 | OGW23: 0.0 | OGX23: 0.0 | OGY23: 0.0 | OGZ23: 0.0 | OHA23: 0.0 | OHB23: 0.0 | OHC23: 0.0 | OHD23: 0.0 | OHE23: 0.0 | OHF23: 0.0 | OHG23: 0.0 | OHH23: 0.0 | OHI23: 0.0 | OHJ23: 0.0 | OHK23: 0.0 | OHL23: 0.0 | OHM23: 0.0 | OHN23: 0.0 | OHO23: 0.0 | OHP23: 0.0 | OHQ23: 0.0 | OHR23: 0.0 | OHS23: 0.0 | OHT23: 0.0 | OHU23: 0.0 | OHV23: 0.0 | OHW23: 0.0 | OHX23: 0.0 | OHY23: 0.0 | OHZ23: 0.0 | OIA23: 0.0 | OIB23: 0.0 | OIC23: 0.0 | OID23: 0.0 | OIE23: 0.0 | OIF23: 0.0 | OIG23: 0.0 | OIH23: 0.0 | OII23: 0.0 | OIJ23: 0.0 | OIK23: 0.0 | OIL23: 0.0 | OIM23: 0.0 | OIN23: 0.0 | OIO23: 0.0 | OIP23: 0.0 | OIQ23: 0.0 | OIR23: 0.0 | OIS23: 0.0 | OIT23: 0.0 | OIU23: 0.0 | OIV23: 0.0 | OIW23: 0.0 | OIX23: 0.0 | OIY23: 0.0 | OIZ23: 0.0 | OJA23: 0.0 | OJB23: 0.0 | OJC23: 0.0 | OJD23: 0.0 | OJE23: 0.0 | OJF23: 0.0 | OJG23: 0.0 | OJH23: 0.0 | OJI23: 0.0 | OJJ23: 0.0 | OJK23: 0.0 | OJL23: 0.0 | OJM23: 0.0 | OJN23: 0.0 | OJO23: 0.0 | OJP23: 0.0 | OJQ23: 0.0 | OJR23: 0.0 | OJS23: 0.0 | OJT23: 0.0 | OJU23: 0.0 | OJV23: 0.0 | OJW23: 0.0 | OJX23: 0.0 | OJY23: 0.0 | OJZ23: 0.0 | OKA23: 0.0 | OKB23: 0.0 | OKC23: 0.0 | OKD23: 0.0 | OKE23: 0.0 | OKF23: 0.0 | OKG23: 0.0 | OKH23: 0.0 | OKI23: 0.0 | OKJ23: 0.0 | OKK23: 0.0 | OKL23: 0.0 | OKM23: 0.0 | OKN23: 0.0 | OKO23: 0.0 | OKP23: 0.0 | OKQ23: 0.0 | OKR23: 0.0 | OKS23: 0.0 | OKT23: 0.0 | OKU23: 0.0 | OKV23: 0.0 | OKW23: 0.0 | OKX23: 0.0 | OKY23: 0.0 | OKZ23: 0.0 | OLA23: 0.0 | OLB23: 0.0 | OLC23: 0.0 | OLD23: 0.0 | OLE23: 0.0 | OLF23: 0.0 | OLG23: 0.0 | OLH23: 0.0 | OLI23: 0.0 | OLJ23: 0.0 | OLK23: 0.0 | OLL23: 0.0 | OLM23: 0.0 | OLN23: 0.0 | OLO23: 0.0 | OLP23: 0.0 | OLQ23: 0.0 | OLR23: 0.0 | OLS23: 0.0 | OLT23: 0.0 | OLU23: 0.0 | OLV23: 0.0 | OLW23: 0.0 | OLX23: 0.0 | OLY23: 0.0 | OLZ23: 0.0 | OMA23: 0.0 | OMB23: 0.0 | OMC23: 0.0 | OMD23: 0.0 | OME23: 0.0 | OMF23: 0.0 | OMG23: 0.0 | OMH23: 0.0 | OMI23: 0.0 | OMJ23: 0.0 | OMK23: 0.0 | OML23: 0.0 | OMM23: 0.0 | OMN23: 0.0 | OMO23: 0.0 | OMP23: 0.0 | OMQ23: 0.0 | OMR23: 0.0 | OMS23: 0.0 | OMT23: 0.0 | OMU23: 0.0 | OMV23: 0.0 | OMW23: 0.0 | OMX23: 0.0 | OMY23: 0.0 | OMZ23: 0.0 | ONA23: 0.0 | ONB23: 0.0 | ONC23: 0.0 | OND23: 0.0 | ONE23: 0.0 | ONF23: 0.0 | ONG23: 0.0 | ONH23: 0.0 | ONI23: 0.0 | ONJ23: 0.0 | ONK23: 0.0 | ONL23: 0.0 | ONM23: 0.0 | ONN23: 0.0 | ONO23: 0.0 | ONP23: 0.0 | ONQ23: 0.0 | ONR23: 0.0 | ONS23: 0.0 | ONT23: 0.0 | ONU23: 0.0 | ONV23: 0.0 | ONW23: 0.0 | ONX23: 0.0 | ONY23: 0.0 | ONZ23: 0.0 | OOA23: 0.0 | OOB23: 0.0 | OOC23: 0.0 | OOD23: 0.0 | OOE23: 0.0 | OOF23: 0.0 | OOG23: 0.0 | OOH23: 0.0 | OOI23: 0.0 | OOJ23: 0.0 | OOK23: 0.0 | OOL23: 0.0 | OOM23: 0.0 | OON23: 0.0 | OOO23: 0.0 | OOP23: 0.0 | OOQ23: 0.0 | OOR23: 0.0 | OOS23: 0.0 | OOT23: 0.0 | OOU23: 0.0 | OOV23: 0.0 | OOW23: 0.0 | OOX23: 0.0 | OOY23: 0.0 | OOZ23: 0.0 | OPA23: 0.0 | OPB23: 0.0 | OPC23: 0.0 | OPD23: 0.0 | OPE23: 0.0 | OPF23: 0.0 | OPG23: 0.0 | OPH23: 0.0 | OPI23: 0.0 | OPJ23: 0.0 | OPK23: 0.0 | OPL23: 0.0 | OPM23: 0.0 | OPN23: 0.0 | OPO23: 0.0 | OPP23: 0.0 | OPQ23: 0.0 | OPR23: 0.0 | OPS23: 0.0 | OPT23: 0.0 | OPU23: 0.0 | OPV23: 0.0 | OPW23: 0.0 | OPX23: 0.0 | OPY23: 0.0 | OPZ23: 0.0 | OQA23: 0.0 | OQB23: 0.0 | OQC23: 0.0 | OQD23: 0.0 | OQE23: 0.0 | OQF23: 0.0 | OQG23: 0.0 | OQH23: 0.0 | OQI23: 0.0 | OQJ23: 0.0 | OQK23: 0.0 | OQL23: 0.0 | OQM23: 0.0 | OQN23: 0.0 | OQO23: 0.0 | OQP23: 0.0 | OQQ23: 0.0 | OQR23: 0.0 | OQS23: 0.0 | OQT23: 0.0 | OQU23: 0.0 | OQV23: 0.0 | OQW23: 0.0 | OQX23: 0.0 | OQY23: 0.0 | OQZ23: 0.0 | ORA23: 0.0 | ORB23: 0.0 | ORC23: 0.0 | ORD23: 0.0 | ORE23: 0.0 | ORF23: 0.0 | ORG23: 0.0 | ORH23: 0.0 | ORI23: 0.0 | ORJ23: 0.0 | ORK23: 0.0 | ORL23: 0.0 | ORM23: 0.0 | ORN23: 0.0 | ORO23: 0.0 | ORP23: 0.0 | ORQ23: 0.0 | ORR23: 0.0 | ORS23: 0.0 | ORT23: 0.0 | ORU23: 0.0 | ORV23: 0.0 | ORW23: 0.0 | ORX23: 0.0 | ORY23: 0.0 | ORZ23: 0.0 | OSA23: 0.0 | OSB23: 0.0 | OSC23: 0.0 | OSD23: 0.0 | OSE23: 0.0 | OSF23: 0.0 | OSG23: 0.0 | OSH23: 0.0 | OSI23: 0.0 | OSJ23: 0.0 | OSK23: 0.0 | OSL23: 0.0 | OSM23: 0.0 | OSN23: 0.0 | OSO23: 0.0 | OSP23: 0.0 | OSQ23: 0.0 | OSR23: 0.0 | OSS23: 0.0 | OST23: 0.0 | OSU23: 0.0 | OSV23: 0.0 | OSW23: 0.0 | OSX23: 0.0 | OSY23: 0.0 | OSZ23: 0.0 | OTA23: 0.0 | OTB23: 0.0 | OTC23: 0.0 | OTD23: 0.0 | OTE23: 0.0 | OTF23: 0.0 | OTG23: 0.0 | OTH23: 0.0 | OTI23: 0.0 | OTJ23: 0.0 | OTK23: 0.0 | OTL23: 0.0 | OTM23: 0.0 | OTN23: 0.0 | OTO23: 0.0 | OTP23: 0.0 | OTQ23: 0.0 | OTR23: 0.0 | OTS23: 0.0 | OTT23: 0.0 | OTU23: 0.0 | OTV23: 0.0 | OTW23: 0.0 | OTX23: 0.0 | OTY23: 0.0 | OTZ23: 0.0 | OUA23: 0.0 | OUB23: 0.0 | OUC23: 0.0 | OUD23: 0.0 | OUE23: 0.0 | OUF23: 0.0 | OUG23: 0.0 | OUH23: 0.0 | OUI23: 0.0 | OUJ23: 0.0 | OUK23: 0.0 | OUL23: 0.0 | OUM23: 0.0 | OUN23: 0.0 | OUO23: 0.0 | OUP23: 0.0 | OUQ23: 0.0 | OUR23: 0.0 | OUS23: 0.0 | OUT23: 0.0 | OUU23: 0.0 | OUV23: 0.0 | OUW23: 0.0 | OUX23: 0.0 | OUY23: 0.0 | OUZ23: 0.0 | OVA23: 0.0 | OVB23: 0.0 | OVC23: 0.0 | OVD23: 0.0 | OVE23: 0.0 | OVF23: 0.0 | OVG23: 0.0 | OVH23: 0.0 | OVI23: 0.0 | OVJ23: 0.0 | OVK23: 0.0 | OVL23: 0.0 | OVM23: 0.0 | OVN23: 0.0 | OVO23: 0.0 | OVP23: 0.0 | OVQ23: 0.0 | OVR23: 0.0 | OVS23: 0.0 | OVT23: 0.0 | OVU23: 0.0 | OVV23: 0.0 | OVW23: 0.0 | OVX23: 0.0 | OVY23: 0.0 | OVZ23: 0.0 | OWA23: 0.0 | OWB23: 0.0 | OWC23: 0.0 | OWD23: 0.0 | OWE23: 0.0 | OWF23: 0.0 | OWG23: 0.0 | OWH23: 0.0 | OWI23: 0.0 | OWJ23: 0.0 | OWK23: 0.0 | OWL23: 0.0 | OWM23: 0.0 | OWN23: 0.0 | OWO23: 0.0 | OWP23: 0.0 | OWQ23: 0.0 | OWR23: 0.0 | OWS23: 0.0 | OWT23: 0.0 | OWU23: 0.0 | OWV23: 0.0 | OWW23: 0.0 | OWX23: 0.0 | OWY23: 0.0 | OWZ23: 0.0 | OXA23: 0.0 | OXB23: 0.0 | OXC23: 0.0 | OXD23: 0.0 | OXE23: 0.0 | OXF23: 0.0 | OXG23: 0.0 | OXH23: 0.0 | OXI23: 0.0 | OXJ23: 0.0 | OXK23: 0.0 | OXL23: 0.0 | OXM23: 0.0 | OXN23: 0.0 | OXO23: 0.0 | OXP23: 0.0 | OXQ23: 0.0 | OXR23: 0.0 | OXS23: 0.0 | OXT23: 0.0 | OXU23: 0.0 | OXV23: 0.0 | OXW23: 0.0 | OXX23: 0.0 | OXY23: 0.0 | OXZ23: 0.0 | OYA23: 0.0 | OYB23: 0.0 | OYC23: 0.0 | OYD23: 0.0 | OYE23: 0.0 | OYF23: 0.0 | OYG23: 0.0 | OYH23: 0.0 | OYI23: 0.0 | OYJ23: 0.0 | OYK23: 0.0 | OYL23: 0.0 | OYM23: 0.0 | OYN23: 0.0 | OYO23: 0.0 | OYP23: 0.0 | OYQ23: 0.0 | OYR23: 0.0 | OYS23: 0.0 | OYT23: 0.0 | OYU23: 0.0 | OYV23: 0.0 | OYW23: 0.0 | OYX23: 0.0 | OYY23: 0.0 | OYZ23: 0.0 | OZA23: 0.0 | OZB23: 0.0 | OZC23: 0.0 | OZD23: 0.0 | OZE23: 0.0 | OZF23: 0.0 | OZG23: 0.0 | OZH23: 0.0 | OZI23: 0.0 | OZJ23: 0.0 | OZK23: 0.0 | OZL23: 0.0 | OZM23: 0.0 | OZN23: 0.0 | OZO23: 0.0 | OZP23: 0.0 | OZQ23: 0.0 | OZR23: 0.0 | OZS23: 0.0 | OZT23: 0.0 | OZU23: 0.0 | OZV23: 0.0 | OZW23: 0.0 | OZX23: 0.0 | OZY23: 0.0 | OZZ23: 0.0 | PAA23: 0.0 | PAB23: 0.0 | PAC23: 0.0 | PAD23: 0.0 | PAE23: 0.0 | PAF23: 0.0 | PAG23: 0.0 | PAH23: 0.0 | PAI23: 0.0 | PAJ23: 0.0 | PAK23: 0.0 | PAL23: 0.0 | PAM23: 0.0 | PAN23: 0.0 | PAO23: 0.0 | PAP23: 0.0 | PAQ23: 0.0 | PAR23: 0.0 | PAS23: 0.0 | PAT23: 0.0 | PAU23: 0.0 | PAV23: 0.0 | PAW23: 0.0 | PAX23: 0.0 | PAY23: 0.0 | PAZ23: 0.0 | PBA23: 0.0 | PBB23: 0.0 | PBC23: 0.0 | PBD23: 0.0 | PBE23: 0.0 | PBF23: 0.0 | PBG23: 0.0 | PBH23: 0.0 | PBI23: 0.0 | PBJ23: 0.0 | PBK23: 0.0 | PBL23: 0.0 | PBM23: 0.0 | PBN23: 0.0 | PBO23: 0.0 | PBP23: 0.0 | PBQ23: 0.0 | PBR23: 0.0 | PBS23: 0.0 | PBT23: 0.0 | PBU23: 0.0 | PBV23: 0.0 | PBW23: 0.0 | PBX23: 0.0 | PBY23: 0.0 | PBZ23: 0.0 | PCA23: 0.0 | PCB23: 0.0 | PCC23: 0.0 | PCD23: 0.0 | PCE23: 0.0 | PCF23: 0.0 | PCG23: 0.0 | PCH23: 0.0 | PCI23: 0.0 | PCJ23: 0.0 | PCK23: 0.0 | PCL23: 0.0 | PCM23: 0.0 | PCN23: 0.0 | PCO23: 0.0 | PCP23: 0.0 | PCQ23: 0.0 | PCR23: 0.0 | PCS23: 0.0 | PCT23: 0.0 | PCU23: 0.0 | PCV23: 0.0 | PCW23: 0.0 | PCX23: 0.0 | PCY23: 0.0 | PCZ23: 0.0 | PDA23: 0.0 | PDB23: 0.0 | PDC23: 0.0 | PDD23: 0.0 | PDE23: 0.0 | PDF23: 0.0 | PDG23: 0.0 | PDH23: 0.0 | PDI23: 0.0 | PDJ23: 0.0 | PDK23: 0.0 | PDL23: 0.0 | PDM23: 0.0 | PDN23: 0.0 | PDO23: 0.0 | PDP23: 0.0 | PDQ23: 0.0 | PDR23: 0.0 | PDS23: 0.0 | PDT23: 0.0 | PDU23: 0.0 | PDV23: 0.0 | PDW23: 0.0 | PDX23: 0.0 | PDY23: 0.0 | PDZ23: 0.0 | PEA23: 0.0 | PEB23: 0.0 | PEC23: 0.0 | PED23: 0.0 | PEE23: 0.0 | PEF23: 0.0 | PEG23: 0.0 | PEH23: 0.0 | PEI23: 0.0 | PEJ23: 0.0 | PEK23: 0.0 | PEL23: 0.0 | PEM23: 0.0 | PEN23: 0.0 | PEO23: 0.0 | PEP23: 0.0 | PEQ23: 0.0 | PER23: 0.0 | PES23: 0.0 | PET23: 0.0 | PEU23: 0.0 | PEV23: 0.0 | PEW23: 0.0 | PEX23: 0.0 | PEY23: 0.0 | PEZ23: 0.0 | PFA23: 0.0 | PFB23: 0.0 | PFC23: 0.0 | PFD23: 0.0 | PFE23: 0.0 | PFF23: 0.0 | PFG23: 0.0 | PFH23: 0.0 | PFI23: 0.0 | PFJ23: 0.0 | PFK23: 0.0 | PFL23: 0.0 | PFM23: 0.0 | PFN23: 0.0 | PFO23: 0.0 | PFP23: 0.0 | PFQ23: 0.0 | PFR23: 0.0 | PFS23: 0.0 | PFT23: 0.0 | PFU23: 0.0 | PFV23: 0.0 | PFW23: 0.0 | PFX23: 0.0 | PFY23: 0.0 | PFZ23: 0.0 | PGA23: 0.0 | PGB23: 0.0 | PGC23: 0.0 | PGD23: 0.0 | PGE23: 0.0 | PGF23: 0.0 | PGG23: 0.0 | PGH23: 0.0 | PGI23: 0.0 | PGJ23: 0.0 | PGK23: 0.0 | PGL23: 0.0 | PGM23: 0.0 | PGN23: 0.0 | PGO23: 0.0 | PGP23: 0.0 | PGQ23: 0.0 | PGR23: 0.0 | PGS23: 0.0 | PGT23: 0.0 | PGU23: 0.0 | PGV23: 0.0 | PGW23: 0.0 | PGX23: 0.0 | PGY23: 0.0 | PGZ23: 0.0 | PHA23: 0.0 | PHB23: 0.0 | PHC23: 0.0 | PHD23: 0.0 | PHE23: 0.0 | PHF23: 0.0 | PHG23: 0.0 | PHH23: 0.0 | PHI23: 0.0 | PHJ23: 0.0 | PHK23: 0.0 | PHL23: 0.0 | PHM23: 0.0 | PHN23: 0.0 | PHO23: 0.0 | PHP23: 0.0 | PHQ23: 0.0 | PHR23: 0.0 | PHS23: 0.0 | PHT23: 0.0 | PHU23: 0.0 | PHV23: 0.0 | PHW23: 0.0 | PHX23: 0.0 | PHY23: 0.0 | PHZ23: 0.0 | PIA23: 0.0 | PIB23: 0.0 | PIC23: 0.0 | PID23: 0.0 | PIE23: 0.0 | PIF23: 0.0 | PIG23: 0.0 | PIH23: 0.0 | PII23: 0.0 | PIJ23: 0.0 | PIK23: 0.0 | PIL23: 0.0 | PIM23: 0.0 | PIN23: 0.0 | PIO23: 0.0 | PIP23: 0.0 | PIQ23: 0.0 | PIR23: 0.0 | PIS23: 0.0 | PIT23: 0.0 | PIU23: 0.0 | PIV23: 0.0 | PIW23: 0.0 | PIX23: 0.0 | PIY23: 0.0 | PIZ23: 0.0 | PJA23: 0.0 | PJB23: 0.0 | PJC23: 0.0 | PJD23: 0.0 | PJE23: 0.0 | PJF23: 0.0 | PJG23: 0.0 | PJH23: 0.0 | PJI23: 0.0 | PJJ23: 0.0 | PJK23: 0.0 | PJL23: 0.0 | PJM23: 0.0 | PJN23: 0.0 | PJO23: 0.0 | PJP23: 0.0 | PJQ23: 0.0 | PJR23: 0.0 | PJS23: 0.0 | PJT23: 0.0 | PJU23: 0.0 | PJV23: 0.0 | PJW23: 0.0 | PJX23: 0.0 | PJY23: 0.0 | PJZ23: 0.0 | PKA23: 0.0 | PKB23: 0.0 | PKC23: 0.0 | PKD23: 0.0 | PKE23: 0.0 | PKF23: 0.0 | PKG23: 0.0 | PKH23: 0.0 | PKI23: 0.0 | PKJ23: 0.0 | PKK23: 0.0 | PKL23: 0.0 | PKM23: 0.0 | PKN23: 0.0 | PKO23: 0.0 | PKP23: 0.0 | PKQ23: 0.0 | PKR23: 0.0 | PKS23: 0.0 | PKT23: 0.0 | PKU23: 0.0 | PKV23: 0.0 | PKW23: 0.0 | PKX23: 0.0 | PKY23: 0.0 | PKZ23: 0.0 | PLA23: 0.0 | PLB23: 0.0 | PLC23: 0.0 | PLD23: 0.0 | PLE23: 0.0 | PLF23: 0.0 | PLG23: 0.0 | PLH23: 0.0 | PLI23: 0.0 | PLJ23: 0.0 | PLK23: 0.0 | PLL23: 0.0 | PLM23: 0.0 | PLN23: 0.0 | PLO23: 0.0 | PLP23: 0.0 | PLQ23: 0.0 | PLR23: 0.0 | PLS23: 0.0 | PLT23: 0.0 | PLU23: 0.0 | PLV23: 0.0 | PLW23: 0.0 | PLX23: 0.0 | PLY23: 0.0 | PLZ23: 0.0 | PMA23: 0.0 | PMB23: 0.0 | PMC23: 0.0 | PMD23: 0.0 | PME23: 0.0 | PMF23: 0.0 | PMG23: 0.0 | PMH23: 0.0 | PMI23: 0.0 | PMJ23: 0.0 | PMK23: 0.0 | PML23: 0.0 | PMM23: 0.0 | PMN23: 0.0 | PMO23: 0.0 | PMP23: 0.0 | PMQ23: 0.0 | PMR23: 0.0 | PMS23: 0.0 | PMT23: 0.0 | PMU23: 0.0 | PMV23: 0.0 | PMW23: 0.0 | PMX23: 0.0 | PMY23: 0.0 | PMZ23: 0.0 | PNA23: 0.0 | PNB23: 0.0 | PNC23: 0.0 | PND23: 0.0 | PNE23: 0.0 | PNF23: 0.0 | PNG23: 0.0 | PNH23: 0.0 | PNI23: 0.0 | PNJ23: 0.0 | PNK23: 0.0 | PNL23: 0.0 | PNM23: 0.0 | PNN23: 0.0 | PNO23: 0.0 | PNP23: 0.0 | PNQ23: 0.0 | PNR23: 0.0 | PNS23: 0.0 | PNT23: 0.0 | PNU23: 0.0 | PNV23: 0.0 | PNW23: 0.0 | PNX23: 0.0 | PNY23: 0.0 | PNZ23: 0.0 | POA23: 0.0 | POB23: 0.0 | POC23: 0.0 | POD23: 0.0 | POE23: 0.0 | POF23: 0.0 | POG23: 0.0 | POH23: 0.0 | POI23: 0.0 | POJ23: 0.0 | POK23: 0.0 | POL23: 0.0 | POM23: 0.0 | PON23: 0.0 | POO23: 0.0 | POP23: 0.0 | POQ23: 0.0 | POR23: 0.0 | POS23: 0.0 | POT23: 0.0 | POU23: 0.0 | POV23: 0.0 | POW23: 0.0 | POX23: 0.0 | POY23: 0.0 | POZ23: 0.0 | PPA23: 0.0 | PPB23: 0.0 | PPC23: 0.0 | PPD23: 0.0 | PPE23: 0.0 | PPF23: 0.0 | PPG23: 0.0 | PPH23: 0.0 | PPI23: 0.0 | PPJ23: 0.0 | PPK23: 0.0 | PPL23: 0.0 | PPM23: 0.0 | PPN23: 0.0 | PPO23: 0.0 | PPP23: 0.0 | PPQ23: 0.0 | PPR23: 0.0 | PPS23: 0.0 | PPT23: 0.0 | PPU23: 0.0 | PPV23: 0.0 | PPW23: 0.0 | PPX23: 0.0 | PPY23: 0.0 | PPZ23: 0.0 | PQA23: 0.0 | PQB23: 0.0 | PQC23: 0.0 | PQD23: 0.0 | PQE23: 0.0 | PQF23: 0.0 | PQG23: 0.0 | PQH23: 0.0 | PQI23: 0.0 | PQJ23: 0.0 | PQK23: 0.0 | PQL23: 0.0 | PQM23: 0.0 | PQN23: 0.0 | PQO23: 0.0 | PQP23: 0.0 | PQQ23: 0.0 | PQR23: 0.0 | PQS23: 0.0 | PQT23: 0.0 | PQU23: 0.0 | PQV23: 0.0 | PQW23: 0.0 | PQX23: 0.0 | PQY23: 0.0 | PQZ23: 0.0 | PRA23: 0.0 | PRB23: 0.0 | PRC23: 0.0 | PRD23: 0.0 | PRE23: 0.0 | PRF23: 0.0 | PRG23: 0.0 | PRH23: 0.0 | PRI23: 0.0 | PRJ23: 0.0 | PRK23: 0.0 | PRL23: 0.0 | PRM23: 0.0 | PRN23: 0.0 | PRO23: 0.0 | PRP23: 0.0 | PRQ23: 0.0 | PRR23: 0.0 | PRS23: 0.0 | PRT23: 0.0 | PRU23: 0.0 | PRV23: 0.0 | PRW23: 0.0 | PRX23: 0.0 | PRY23: 0.0 | PRZ23: 0.0 | PSA23: 0.0 | PSB23: 0.0 | PSC23: 0.0 | PSD23: 0.0 | PSE23: 0.0 | PSF23: 0.0 | PSG23: 0.0 | PSH23: 0.0 | PSI23: 0.0 | PSJ23: 0.0 | PSK23: 0.0 | PSL23: 0.0 | PSM23: 0.0 | PSN23: 0.0 | PSO23: 0.0 | PSP23: 0.0 | PSQ23: 0.0 | PSR23: 0.0 | PSS23: 0.0 | PST23: 0.0 | PSU23: 0.0 | PSV23: 0.0 | PSW23: 0.0 | PSX23: 0.0 | PSY23: 0.0 | PSZ23: 0.0 | PTA23: 0.0 | PTB23: 0.0 | PTC23: 0.0 | PTD23: 0.0 | PTE23: 0.0 | PTF23: 0.0 | PTG23: 0.0 | PTH23: 0.0 | PTI23: 0.0 | PTJ23: 0.0 | PTK23: 0.0 | PTL23: 0.0 | PTM23: 0.0 | PTN23: 0.0 | PTO23: 0.0 | PTP23: 0.0 | PTQ23: 0.0 | PTR23: 0.0 | PTS23: 0.0 | PTT23: 0.0 | PTU23: 0.0 | PTV23: 0.0 | PTW23: 0.0 | PTX23: 0.0 | PTY23: 0.0 | PTZ23: 0.0 | PUA23: 0.0 | PUB23: 0.0 | PUC23: 0.0 | PUD23: 0.0 | PUE23: 0.0 | PUF23: 0.0 | PUG23: 0.0 | PUH23: 0.0 | PUI23: 0.0 | PUJ23: 0.0 | PUK23: 0.0 | PUL23: 0.0 | PUM23: 0.0 | PUN23: 0.0 | PUO23: 0.0 | PUP23: 0.0 | PUQ23: 0.0 | PUR23: 0.0 | PUS23: 0.0 | PUT23: 0.0 | PUU23: 0.0 | PUV23: 0.0 | PUW23: 0.0 | PUX23: 0.0 | PUY23: 0.0 | PUZ23: 0.0 | PVA23: 0.0 | PVB23: 0.0 | PVC23: 0.0 | PVD23: 0.0 | PVE23: 0.0 | PVF23: 0.0 | PVG23: 0.0 | PVH23: 0.0 | PVI23: 0.0 | PVJ23: 0.0 | PVK23: 0.0 | PVL23: 0.0 | PVM23: 0.0 | PVN23: 0.0 | PVO23: 0.0 | PVP23: 0.0 | PVQ23: 0.0 | PVR23: 0.0 | PVS23: 0.0 | PVT23: 0.0 | PVU23: 0.0 | PVV23: 0.0 | PVW23: 0.0 | PVX23: 0.0 | PVY23: 0.0 | PVZ23: 0.0 | PWA23: 0.0 | PWB23: 0.0 | PWC23: 0.0 | PWD23: 0.0 | PWE23: 0.0 | PWF23: 0.0 | PWG23: 0.0 | PWH23: 0.0 | PWI23: 0.0 | PWJ23: 0.0 | PWK23: 0.0 | PWL23: 0.0 | PWM23: 0.0 | PWN23: 0.0 | PWO23: 0.0 | PWP23: 0.0 | PWQ23: 0.0 | PWR23: 0.0 | PWS23: 0.0 | PWT23: 0.0 | PWU23: 0.0 | PWV23: 0.0 | PWW23: 0.0 | PWX23: 0.0 | PWY23: 0.0 | PWZ23: 0.0 | PXA23: 0.0 | PXB23: 0.0 | PXC23: 0.0 | PXD23: 0.0 | PXE23: 0.0 | PXF23: 0.0 | PXG23: 0.0 | PXH23: 0.0 | PXI23: 0.0 | PXJ23: 0.0 | PXK23: 0.0 | PXL23: 0.0 | PXM23: 0.0 | PXN23: 0.0 | PXO23: 0.0 | PXP23: 0.0 | PXQ23: 0.0 | PXR23: 0.0 | PXS23: 0.0 | PXT23: 0.0 | PXU23: 0.0 | PXV23: 0.0 | PXW23: 0.0 | PXX23: 0.0 | PXY23: 0.0 | PXZ23: 0.0 | PYA23: 0.0 | PYB23: 0.0 | PYC23: 0.0 | PYD23: 0.0 | PYE23: 0.0 | PYF23: 0.0 | PYG23: 0.0 | PYH23: 0.0 | PYI23: 0.0 | PYJ23: 0.0 | PYK23: 0.0 | PYL23: 0.0 | PYM23: 0.0 | PYN23: 0.0 | PYO23: 0.0 | PYP23: 0.0 | PYQ23: 0.0 | PYR23: 0.0 | PYS23: 0.0 | PYT23: 0.0 | PYU23: 0.0 | PYV23: 0.0 | PYW23: 0.0 | PYX23: 0.0 | PYY23: 0.0 | PYZ23: 0.0 | PZA23: 0.0 | PZB23: 0.0 | PZC23: 0.0 | PZD23: 0.0 | PZE23: 0.0 | PZF23: 0.0 | PZG23: 0.0 | PZH23: 0.0 | PZI23: 0.0 | PZJ23: 0.0 | PZK23: 0.0 | PZL23: 0.0 | PZM23: 0.0 | PZN23: 0.0 | PZO23: 0.0 | PZP23: 0.0 | PZQ23: 0.0 | PZR23: 0.0 | PZS23: 0.0 | PZT23: 0.0 | PZU23: 0.0 | PZV23: 0.0 | PZW23: 0.0 | PZX23: 0.0 | PZY23: 0.0 | PZZ23: 0.0 | QAA23: 0.0 | QAB23: 0.0 | QAC23: 0.0 | QAD23: 0.0 | QAE23: 0.0 | QAF23: 0.0 | QAG23: 0.0 | QAH23: 0.0 | QAI23: 0.0 | QAJ23: 0.0 | QAK23: 0.0 | QAL23: 0.0 | QAM23: 0.0 | QAN23: 0.0 | QAO23: 0.0 | QAP23: 0.0 | QAQ23: 0.0 | QAR23: 0.0 | QAS23: 0.0 | QAT23: 0.0 | QAU23: 0.0 | QAV23: 0.0 | QAW23: 0.0 | QAX23: 0.0 | QAY23: 0.0 | QAZ23: 0.0 | QBA23: 0.0 | QBB23: 0.0 | QBC23: 0.0 | QBD23: 0.0 | QBE23: 0.0 | QBF23: 0.0 | QBG23: 0.0 | QBH23: 0.0 | QBI23: 0.0 | QBJ23: 0.0 | QBK23: 0.0 | QBL23: 0.0 | QBM23: 0.0 | QBN23: 0.0 | QBO23: 0.0 | QBP23: 0.0 | QBQ23: 0.0 | QBR23: 0.0 | QBS23: 0.0 | QBT23: 0.0 | QBU23: 0.0 | QBV23: 0.0 | QBW23: 0.0 | QBX23: 0.0 | QBY23: 0.0 | QBZ23: 0.0 | QCA23: 0.0 | QCB23: 0.0 | QCC23: 0.0 | QCD23: 0.0 | QCE23: 0.0 | QCF23: 0.0 | QCG23: 0.0 | QCH23: 0.0 | QCI23: 0.0 | QCJ23: 0.0 | QCK23: 0.0 | QCL23: 0.0 | QCM23: 0.0 | QCN23: 0.0 | QCO23: 0.0 | QCP23: 0.0 | QCQ23: 0.0 | QCR23: 0.0 | QCS23: 0.0 | QCT23: 0.0 | QCU23: 0.0 | QCV23: 0.0 | QCW23: 0.0 | QCX23: 0.0 | QCY23: 0.0 | QCZ23: 0.0 | QDA23: 0.0 | QDB23: 0.0 | QDC23: 0.0 | QDD23: 0.0 | QDE23: 0.0 | QDF23: 0.0 | QDG23: 0.0 | QDH23: 0.0 | QDI23: 0.0 | QDJ23: 0.0 | QDK23: 0.0 | QDL23: 0.0 | QDM23: 0.0 | QDN23: 0.0 | QDO23: 0.0 | QDP23: 0.0 | QDQ23: 0.0 | QDR23: 0.0 | QDS23: 0.0 | QDT23: 0.0 | QDU23: 0.0 | QDV23: 0.0 | QDW23: 0.0 | QDX23: 0.0 | QDY23: 0.0 | QDZ23: 0.0 | QEA23: 0.0 | QEB23: 0.0 | QEC23: 0.0 | QED23: 0.0 | QEE23: 0.0 | QEF23: 0.0 | QEG23: 0.0 | QEH23: 0.0 | QEI23: 0.0 | QEJ23: 0.0 | QEK23: 0.0 | QEL23: 0.0 | QEM23: 0.0 | QEN23: 0.0 | QEO23: 0.0 | QEP23: 0.0 | QEQ23: 0.0 | QER23: 0.0 | QES23: 0.0 | QET23: 0.0 | QEU23: 0.0 | QEV23: 0.0 | QEW23: 0.0 | QEX23: 0.0 | QEY23: 0.0 | QEZ23: 0.0 | QFA23: 0.0 | QFB23: 0.0 | QFC23: 0.0 | QFD23: 0.0 | QFE23: 0.0 | QFF23: 0.0 | QFG23: 0.0 | QFH23: 0.0 | QFI23: 0.0 | QFJ23: 0.0 | QFK23: 0.0 | QFL23: 0.0 | QFM23: 0.0 | QFN23: 0.0 | QFO23: 0.0 | QFP23: 0.0 | QFQ23: 0.0 | QFR23: 0.0 | QFS23: 0.0 | QFT23: 0.0 | QFU23: 0.0 | QFV23: 0.0 | QFW23: 0.0 | QFX23: 0.0 | QFY23: 0.0 | QFZ23: 0.0 | QGA23: 0.0 | QGB23: 0.0 | QGC23: 0.0 | QGD23: 0.0 | QGE23: 0.0 | QGF23: 0.0 | QGG23: 0.0 | QGH23: 0.0 | QGI23: 0.0 | QGJ23: 0.0 | QGK23: 0.0 | QGL23: 0.0 | QGM23: 0.0 | QGN23: 0.0 | QGO23: 0.0 | QGP23: 0.0 | QGQ23: 0.0 | QGR23: 0.0 | QGS23: 0.0 | QGT23: 0.0 | QGU23: 0.0 | QGV23: 0.0 | QGW23: 0.0 | QGX23: 0.0 | QGY23: 0.0 | QGZ23: 0.0 | QHA23: 0.0 | QHB23: 0.0 | QHC23: 0.0 | QHD23: 0.0 | QHE23: 0.0 | QHF23: 0.0 | QHG23: 0.0 | QHH23: 0.0 | QHI23: 0.0 | QHJ23: 0.0 | QHK23: 0.0 | QHL23: 0.0 | QHM23: 0.0 | QHN23: 0.0 | QHO23: 0.0 | QHP23: 0.0 | QHQ23: 0.0 | QHR23: 0.0 | QHS23: 0.0 | QHT23: 0.0 | QHU23: 0.0 | QHV23: 0.0 | QHW23: 0.0 | QHX23: 0.0 | QHY23: 0.0 | QHZ23: 0.0 | QIA23: 0.0 | QIB23: 0.0 | QIC23: 0.0 | QID23: 0.0 | QIE23: 0.0 | QIF23: 0.0 | QIG23: 0.0 | QIH23: 0.0 | QII23: 0.0 | QIJ23: 0.0 | QIK23: 0.0 | QIL23: 0.0 | QIM23: 0.0 | QIN23: 0.0 | QIO23: 0.0 | QIP23: 0.0 | QIQ23: 0.0 | QIR23: 0.0 | QIS23: 0.0 | QIT23: 0.0 | QIU23: 0.0 | QIV23: 0.0 | QIW23: 0.0 | QIX23: 0.0 | QIY23: 0.0 | QIZ23: 0.0 | QJA23: 0.0 | QJB23: 0.0 | QJC23: 0.0 | QJD23: 0.0 | QJE23: 0.0 | QJF23: 0.0 | QJG23: 0.0 | QJH23: 0.0 | QJI23: 0.0 | QJJ23: 0.0 | QJK23: 0.0 | QJL23: 0.0 | QJM23: 0.0 | QJN23: 0.0 | QJO23: 0.0 | QJP23: 0.0 | QJQ23: 0.0 | QJR23: 0.0 | QJS23: 0.0 | QJT23: 0.0 | QJU23: 0.0 | QJV23: 0.0 | QJW23: 0.0 | QJX23: 0.0 | QJY23: 0.0 | QJZ23: 0.0 | QKA23: 0.0 | QKB23: 0.0 | QKC23: 0.0 | QKD23: 0.0 | QKE23: 0.0 | QKF23: 0.0 | QKG23: 0.0 | QKH23: 0.0 | QKI23: 0.0 | QKJ23: 0.0 | QKK23: 0.0 | QKL23: 0.0 | QKM23: 0.0 | QKN23: 0.0 | QKO23: 0.0 | QKP23: 0.0 | QKQ23: 0.0 | QKR23: 0.0 | QKS23: 0.0 | QKT23: 0.0 | QKU23: 0.0 | QKV23: 0.0 | QKW23: 0.0 | QKX23: 0.0 | QKY23: 0.0 | QKZ23: 0.0 | QLA23: 0.0 | QLB23: 0.0 | QLC23: 0.0 | QLD23: 0.0 | QLE23: 0.0 | QLF23: 0.0 | QLG23: 0.0 | QLH23: 0.0 | QLI23: 0.0 | QLJ23: 0.0 | QLK23: 0.0 | QLL23: 0.0 | QLM23: 0.0 | QLN23: 0.0 | QLO23: 0.0 | QLP23: 0.0 | QLQ23: 0.0 | QLR23: 0.0 | QLS23: 0.0 | QLT23: 0.0 | QLU23: 0.0 | QLV23: 0.0 | QLW23: 0.0 | QLX23: 0.0 | QLY23: 0.0 | QLZ23: 0.0 | QMA23: 0.0 | QMB23: 0.0 | QMC23: 0.0 | QMD23: 0.0 | QME23: 0.0 | QMF23: 0.0 | QMG23: 0.0 | QMH23: 0.0 | QMI23: 0.0 | QMJ23: 0.0 | QMK23: 0.0 | QML23: 0.0 | QMM23: 0.0 | QMN23: 0.0 | QMO23: 0.0 | QMP23: 0.0 | QMQ23: 0.0 | QMR23: 0.0 | QMS23: 0.0 | QMT23: 0.0 | QMU23: 0.0 | QMV23: 0.0 | QMW23: 0.0 | QMX23: 0.0 | QMY23: 0.0 | QMZ23: 0.0 | QNA23: 0.0 | QNB23: 0.0 | QNC23: 0.0 | QND23: 0.0 | QNE23: 0.0 | QNF23: 0.0 | QNG23: 0.0 | QNH23: 0.0 | QNI23: 0.0 | QNJ23: 0.0 | QNK23: 0.0 | QNL23: 0.0 | QNM23: 0.0 | QNN23: 0.0 | QNO23: 0.0 | QNP23: 0.0 | QNQ23: 0.0 | QNR23: 0.0 | QNS23: 0.0 | QNT23: 0.0 | QNU23: 0.0 | QNV23: 0.0 | QNW23: 0.0 | QNX23: 0.0 | QNY23: 0.0 | QNZ23: 0.0 | QOA23: 0.0 | QOB23: 0.0 | QOC23: 0.0 | QOD23: 0.0 | QOE23: 0.0 | QOF23: 0.0 | QOG23: 0.0 | QOH23: 0.0 | QOI23: 0.0 | QOJ23: 0.0 | QOK23: 0.0 | QOL23: 0.0 | QOM23: 0.0 | QON23: 0.0 | QOO23: 0.0 | QOP23: 0.0 | QOQ23: 0.0 | QOR23: 0.0 | QOS23: 0.0 | QOT23: 0.0 | QOU23: 0.0 | QOV23: 0.0 | QOW23: 0.0 | QOX23: 0.0 | QOY23: 0.0 | QOZ23: 0.0 | QPA23: 0.0 | QPB23: 0.0 | QPC23: 0.0 | QPD23: 0.0 | QPE23: 0.0 | QPF23: 0.0 | QPG23: 0.0 | QPH23: 0.0 | QPI23: 0.0 | QPJ23: 0.0 | QPK23: 0.0 | QPL23: 0.0 | QPM23: 0.0 | QPN23: 0.0 | QPO23: 0.0 | QPP23: 0.0 | QPQ23: 0.0 | QPR23: 0.0 | QPS23: 0.0 | QPT23: 0.0 | QPU23: 0.0 | QPV23: 0.0 | QPW23: 0.0 | QPX23: 0.0 | QPY23: 0.0 | QPZ23: 0.0 | QQA23: 0.0 | QQB23: 0.0 | QQC23: 0.0 | QQD23: 0.0 | QQE23: 0.0 | QQF23: 0.0 | QQG23: 0.0 | QQH23: 0.0 | QQI23: 0.0 | QQJ23: 0.0 | QQK23: 0.0 | QQL23: 0.0 | QQM23: 0.0 | QQN23: 0.0 | QQO23: 0.0 | QQP23: 0.0 | QQQ23: 0.0 | QQR23: 0.0 | QQS23: 0.0 | QQT23: 0.0 | QQU23: 0.0 | QQV23: 0.0 | QQW23: 0.0 | QQX23: 0.0 | QQY23: 0.0 | QQZ23: 0.0 | QRA23: 0.0 | QRB23: 0.0 | QRC23: 0.0 | QRD23: 0.0 | QRE23: 0.0 | QRF23: 0.0 | QRG23: 0.0 | QRH23: 0.0 | QRI23: 0.0 | QRJ23: 0.0 | QRK23: 0.0 | QRL23: 0.0 | QRM23: 0.0 | QRN23: 0.0 | QRO23: 0.0 | QRP23: 0.0 | QRQ23: 0.0 | QRR23: 0.0 | QRS23: 0.0 | QRT23: 0.0 | QRU23: 0.0 | QRV23: 0.0 | QRW23: 0.0 | QRX23: 0.0 | QRY23: 0.0 | QRZ23: 0.0 | QSA23: 0.0 | QSB23: 0.0 | QSC23: 0.0 | QSD23: 0.0 | QSE23: 0.0 | QSF23: 0.0 | QSG23: 0.0 | QSH23: 0.0 | QSI23: 0.0 | QSJ23: 0.0 | QSK23: 0.0 | QSL23: 0.0 | QSM23: 0.0 | QSN23: 0.0 | QSO23: 0.0 | QSP23: 0.0 | QSQ23: 0.0 | QSR23: 0.0 | QSS23: 0.0 | QST23: 0.0 | QSU23: 0.0 | QSV23: 0.0 | QSW23: 0.0 | QSX23: 0.0 | QSY23: 0.0 | QSZ23: 0.0 | QTA23: 0.0 | QTB23: 0.0 | QTC23: 0.0 | QTD23: 0.0 | QTE23: 0.0 | QTF23: 0.0 | QTG23: 0.0 | QTH23: 0.0 | QTI23: 0.0 | QTJ23: 0.0 | QTK23: 0.0 | QTL23: 0.0 | QTM23: 0.0 | QTN23: 0.0 | QTO23: 0.0 | QTP23: 0.0 | QTQ23: 0.0 | QTR23: 0.0 | QTS23: 0.0 | QTT23: 0.0 | QTU23: 0.0 | QTV23: 0.0 | QTW23: 0.0 | QTX23: 0.0 | QTY23: 0.0 | QTZ23: 0.0 | QUA23: 0.0 | QUB23: 0.0 | QUC23: 0.0 | QUD23: 0.0 | QUE23: 0.0 | QUF23: 0.0 | QUG23: 0.0 | QUH23: 0.0 | QUI23: 0.0 | QUJ23: 0.0 | QUK23: 0.0 | QUL23: 0.0 | QUM23: 0.0 | QUN23: 0.0 | QUO23: 0.0 | QUP23: 0.0 | QUQ23: 0.0 | QUR23: 0.0 | QUS23: 0.0 | QUT23: 0.0 | QUU23: 0.0 | QUV23: 0.0 | QUW23: 0.0 | QUX23: 0.0 | QUY23: 0.0 | QUZ23: 0.0 | QVA23: 0.0 | QVB23: 0.0 | QVC23: 0.0 | QVD23: 0.0 | QVE23: 0.0 | QVF23: 0.0 | QVG23: 0.0 | QVH23: 0.0 | QVI23: 0.0 | QVJ23: 0.0 | QVK23: 0.0 | QVL23: 0.0 | QVM23: 0.0 | QVN23: 0.0 | QVO23: 0.0 | QVP23: 0.0 | QVQ23: 0.0 | QVR23: 0.0 | QVS23: 0.0 | QVT23: 0.0 | QVU23: 0.0 | QVV23: 0.0 | QVW23: 0.0 | QVX23: 0.0 | QVY23: 0.0 | QVZ23: 0.0 | QWA23: 0.0 | QWB23: 0.0 | QWC23: 0.0 | QWD23: 0.0 | QWE23: 0.0 | QWF23: 0.0 | QWG23: 0.0 | QWH23: 0.0 | QWI23: 0.0 | QWJ23: 0.0 | QWK23: 0.0 | QWL23: 0.0 | QWM23: 0.0 | QWN23: 0.0 | QWO23: 0.0 | QWP23: 0.0 | QWQ23: 0.0 | QWR23: 0.0 | QWS23: 0.0 | QWT23: 0.0 | QWU23: 0.0 | QWV23: 0.0 | QWW23: 0.0 | QWX23: 0.0 | QWY23: 0.0 | QWZ23: 0.0 | QXA23: 0.0 | QXB23: 0.0 | QXC23: 0.0 | QXD23: 0.0 | QXE23: 0.0 | QXF23: 0.0 | QXG23: 0.0 | QXH23: 0.0 | QXI23: 0.0 | QXJ23: 0.0 | QXK23: 0.0 | QXL23: 0.0 | QXM23: 0.0 | QXN23: 0.0 | QXO23: 0.0 | QXP23: 0.0 | QXQ23: 0.0 | QXR23: 0.0 | QXS23: 0.0 | QXT23: 0.0 | QXU23: 0.0 | QXV23: 0.0 | QXW23: 0.0 | QXX23: 0.0 | QXY23: 0.0 | QXZ23: 0.0 | QYA23: 0.0 | QYB23: 0.0 | QYC23: 0.0 | QYD23: 0.0 | QYE23: 0.0 | QYF23: 0.0 | QYG23: 0.0 | QYH23: 0.0 | QYI23: 0.0 | QYJ23: 0.0 | QYK23: 0.0 | QYL23: 0.0 | QYM23: 0.0 | QYN23: 0.0 | QYO23: 0.0 | QYP23: 0.0 | QYQ23: 0.0 | QYR23: 0.0 | QYS23: 0.0 | QYT23: 0.0 | QYU23: 0.0 | QYV23: 0.0 | QYW23: 0.0 | QYX23: 0.0 | QYY23: 0.0 | QYZ23: 0.0 | QZA23: 0.0 | QZB23: 0.0 | QZC23: 0.0 | QZD23: 0.0 | QZE23: 0.0 | QZF23: 0.0 | QZG23: 0.0 | QZH23: 0.0 | QZI23: 0.0 | QZJ23: 0.0 | QZK23: 0.0 | QZL23: 0.0 | QZM23: 0.0 | QZN23: 0.0 | QZO23: 0.0 | QZP23: 0.0 | QZQ23: 0.0 | QZR23: 0.0 | QZS23: 0.0 | QZT23: 0.0 | QZU23: 0.0 | QZV23: 0.0 | QZW23: 0.0 | QZX23: 0.0 | QZY23: 0.0 | QZZ23: 0.0 | RAA23: 0.0 | RAB23: 0.0 | RAC23: 0.0 | RAD23: 0.0 | RAE23: 0.0 | RAF23: 0.0 | RAG23: 0.0 | RAH23: 0.0 | RAI23: 0.0 | RAJ23: 0.0 | RAK23: 0.0 | RAL23: 0.0 | RAM23: 0.0 | RAN23: 0.0 | RAO23: 0.0 | RAP23: 0.0 | RAQ23: 0.0 | RAR23: 0.0 | RAS23: 0.0 | RAT23: 0.0 | RAU23: 0.0 | RAV23: 0.0 | RAW23: 0.0 | RAX23: 0.0 | RAY23: 0.0 | RAZ23: 0.0 | RBA23: 0.0 | RBB23: 0.0 | RBC23: 0.0 | RBD23: 0.0 | RBE23: 0.0 | RBF23: 0.0 | RBG23: 0.0 | RBH23: 0.0 | RBI23: 0.0 | RBJ23: 0.0 | RBK23: 0.0 | RBL23: 0.0 | RBM23: 0.0 | RBN23: 0.0 | RBO23: 0.0 | RBP23: 0.0 | RBQ23: 0.0 | RBR23: 0.0 | RBS23: 0.0 | RBT23: 0.0 | RBU23: 0.0 | RBV23: 0.0 | RBW23: 0.0 | RBX23: 0.0 | RBY23: 0.0 | RBZ23: 0.0 | RCA23: 0.0 | RCB23: 0.0 | RCC23: 0.0 | RCD23: 0.0 | RCE23: 0.0 | RCF23: 0.0 | RCG23: 0.0 | RCH23: 0.0 | RCI23: 0.0 | RCJ23: 0.0 | RCK23: 0.0 | RCL23: 0.0 | RCM23: 0.0 | RCN23: 0.0 | RCO23: 0.0 | RCP23: 0.0 | RCQ23: 0.0 | RCR23: 0.0 | RCS23: 0.0 | RCT23: 0.0 | RCU23: 0.0 | RCV23: 0.0 | RCW23: 0.0 | RCX23: 0.0 | RCY23: 0.0 | RCZ23: 0.0 | RDA23: 0.0 | RDB23: 0.0 | RDC23: 0.0 | RDD23: 0.0 | RDE23: 0.0 | RDF23: 0.0 | RDG23: 0.0 | RDH23: 0.0 | RDI23: 0.0 | RDJ23: 0.0 | RDK23: 0.0 | RDL23: 0.0 | RDM23: 0.0 | RDN23: 0.0 | RDO23: 0.0 | RDP23: 0.0 | RDQ23: 0.0 | RDR23: 0.0 | RDS23: 0.0 | RDT23: 0.0 | RDU23: 0.0 | RDV23: 0.0 | RDW23: 0.0 | RDX23: 0.0 | RDY23: 0.0 | RDZ23: 0.0 | REA23: 0.0 | REB23: 0.0 | REC23: 0.0 | RED23: 0.0 | REE23: 0.0 | REF23: 0.0 | REG23: 0.0 | REH23: 0.0 | REI23: 0.0 | REJ23: 0.0 | REK23: 0.0 | REL23: 0.0 | REM23: 0.0 | REN23: 0.0 | REO23: 0.0 | REP23: 0.0 | REQ23: 0.0 | RER23: 0.0 | RES23: 0.0 | RET23: 0.0 | REU23: 0.0 | REV23: 0.0 | REW23: 0.0 | REX23: 0.0 | REY23: 0.0 | REZ23: 0.0 | RFA23: 0.0 | RFB23: 0.0 | RFC23: 0.0 | RFD23: 0.0 | RFE23: 0.0 | RFF23: 0.0 | RFG23: 0.0 | RFH23: 0.0 | RFI23: 0.0 | RFJ23: 0.0 | RFK23: 0.0 | RFL23: 0.0 | RFM23: 0.0 | RFN23: 0.0 | RFO23: 0.0 | RFP23: 0.0 | RFQ23: 0.0 | RFR23: 0.0 | RFS23: 0.0 | RFT23: 0.0 | RFU23: 0.0 | RFV23: 0.0 | RFW23: 0.0 | RFX23: 0.0 | RFY23: 0.0 | RFZ23: 0.0 | RGA23: 0.0 | RGB23: 0.0 | RGC23: 0.0 | RGD23: 0.0 | RGE23: 0.0 | RGF23: 0.0 | RGG23: 0.0 | RGH23: 0.0 | RGI23: 0.0 | RGJ23: 0.0 | RGK23: 0.0 | RGL23: 0.0 | RGM23: 0.0 | RGN23: 0.0 | RGO23: 0.0 | RGP23: 0.0 | RGQ23: 0.0 | RGR23: 0.0 | RGS23: 0.0 | RGT23: 0.0 | RGU23: 0.0 | RGV23: 0.0 | RGW23: 0.0 | RGX23: 0.0 | RGY23: 0.0 | RGZ23: 0.0 | RHA23: 0.0 | RHB23: 0.0 | RHC23: 0.0 | RHD23: 0.0 | RHE23: 0.0 | RHF23: 0.0 | RHG23: 0.0 | RHH23: 0.0 | RHI23: 0.0 | RHJ23: 0.0 | RHK23: 0.0 | RHL23: 0.0 | RHM23: 0.0 | RHN23: 0.0 | RHO23: 0.0 | RHP23: 0.0 | RHQ23: 0.0 | RHR23: 0.0 | RHS23: 0.0 | RHT23: 0.0 | RHU23: 0.0 | RHV23: 0.0 | RHW23: 0.0 | RHX23: 0.0 | RHY23: 0.0 | RHZ23: 0.0 | RIA23: 0.0 | RIB23: 0.0 | RIC23: 0.0 | RID23: 0.0 | RIE23: 0.0 | RIF23: 0.0 | RIG23: 0.0 | RIH23: 0.0 | RII23: 0.0 | RIJ23: 0.0 | RIK23: 0.0 | RIL23: 0.0 | RIM23: 0.0 | RIN23: 0.0 | RIO23: 0.0 | RIP23: 0.0 | RIQ23: 0.0 | RIR23: 0.0 | RIS23: 0.0 | RIT23: 0.0 | RIU23: 0.0 | RIV23: 0.0 | RIW23: 0.0 | RIX23: 0.0 | RIY23: 0.0 | RIZ23: 0.0 | RJA23: 0.0 | RJB23: 0.0 | RJC23: 0.0 | RJD23: 0.0 | RJE23: 0.0 | RJF23: 0.0 | RJG23: 0.0 | RJH23: 0.0 | RJI23: 0.0 | RJJ23: 0.0 | RJK23: 0.0 | RJL23: 0.0 | RJM23: 0.0 | RJN23: 0.0 | RJO23: 0.0 | RJP23: 0.0 | RJQ23: 0.0 | RJR23: 0.0 | RJS23: 0.0 | RJT23: 0.0 | RJU23: 0.0 | RJV23: 0.0 | RJW23: 0.0 | RJX23: 0.0 | RJY23: 0.0 | RJZ23: 0.0 | RKA23: 0.0 | RKB23: 0.0 | RKC23: 0.0 | RKD23: 0.0 | RKE23: 0.0 | RKF23: 0.0 | RKG23: 0.0 | RKH23: 0.0 | RKI23: 0.0 | RKJ23: 0.0 | RKK23: 0.0 | RKL23: 0.0 | RKM23: 0.0 | RKN23: 0.0 | RKO23: 0.0 | RKP23: 0.0 | RKQ23: 0.0 | RKR23: 0.0 | RKS23: 0.0 | RKT23: 0.0 | RKU23: 0.0 | RKV23: 0.0 | RKW23: 0.0 | RKX23: 0.0 | RKY23: 0.0 | RKZ23: 0.0 | RLA23: 0.0 | RLB23: 0.0 | RLC23: 0.0 | RLD23: 0.0 | RLE23: 0.0 | RLF23: 0.0 | RLG23: 0.0 | RLH23: 0.0 | RLI23: 0.0 | RLJ23: 0.0 | RLK23: 0.0 | RLL23: 0.0 | RLM23: 0.0 | RLN23: 0.0 | RLO23: 0.0 | RLP23: 0.0 | RLQ23: 0.0 | RLR23: 0.0 | RLS23: 0.0 | RLT23: 0.0 | RLU23: 0.0 | RLV23: 0.0 | RLW23: 0.0 | RLX23: 0.0 | RLY23: 0.0 | RLZ23: 0.0 | RMA23: 0.0 | RMB23: 0.0 | RMC23: 0.0 | RMD23: 0.0 | RME23: 0.0 | RMF23: 0.0 | RMG23: 0.0 | RMH23: 0.0 | RMI23: 0.0 | RMJ23: 0.0 | RMK23: 0.0 | RML23: 0.0 | RMM23: 0.0 | RMN23: 0.0 | RMO23: 0.0 | RMP23: 0.0 | RMQ23: 0.0 | RMR23: 0.0 | RMS23: 0.0 | RMT23: 0.0 | RMU23: 0.0 | RMV23: 0.0 | RMW23: 0.0 | RMX23: 0.0 | RMY23: 0.0 | RMZ23: 0.0 | RNA23: 0.0 | RNB23: 0.0 | RNC23: 0.0 | RND23: 0.0 | RNE23: 0.0 | RNF23: 0.0 | RNG23: 0.0 | RNH23: 0.0 | RNI23: 0.0 | RNJ23: 0.0 | RNK23: 0.0 | RNL23: 0.0 | RNM23: 0.0 | RNN23: 0.0 | RNO23: 0.0 | RNP23: 0.0 | RNQ23: 0.0 | RNR23: 0.0 | RNS23: 0.0 | RNT23: 0.0 | RNU23: 0.0 | RNV23: 0.0 | RNW23: 0.0 | RNX23: 0.0 | RNY23: 0.0 | RNZ23: 0.0 | ROA23: 0.0 | ROB23: 0.0 | ROC23: 0.0 | ROD23: 0.0 | ROE23: 0.0 | ROF23: 0.0 | ROG23: 0.0 | ROH23: 0.0 | ROI23: 0.0 | ROJ23: 0.0 | ROK23: 0.0 | ROL23: 0.0 | ROM23: 0.0 | RON23: 0.0 | ROO23: 0.0 | ROP23: 0.0 | ROQ23: 0.0 | ROR23: 0.0 | ROS23: 0.0 | ROT23: 0.0 | ROU23: 0.0 | ROV23: 0.0 | ROW23: 0.0 | ROX23: 0.0 | ROY23: 0.0 | ROZ23: 0.0 | RPA23: 0.0 | RPB23: 0.0 | RPC23: 0.0 | RPD23: 0.0 | RPE23: 0.0 | RPF23: 0.0 | RPG23: 0.0 | RPH23: 0.0 | RPI23: 0.0 | RPJ23: 0.0 | RPK23: 0.0 | RPL23: 0.0 | RPM23: 0.0 | RPN23: 0.0 | RPO23: 0.0 | RPP23: 0.0 | RPQ23: 0.0 | RPR23: 0.0 | RPS23: 0.0 | RPT23: 0.0 | RPU23: 0.0 | RPV23: 0.0 | RPW23: 0.0 | RPX23: 0.0 | RPY23: 0.0 | RPZ23: 0.0 | RQA23: 0.0 | RQB23: 0.0 | RQC23: 0.0 | RQD23: 0.0 | RQE23: 0.0 | RQF23: 0.0 | RQG23: 0.0 | RQH23: 0.0 | RQI23: 0.0 | RQJ23: 0.0 | RQK23: 0.0 | RQL23: 0.0 | RQM23: 0.0 | RQN23: 0.0 | RQO23: 0.0 | RQP23: 0.0 | RQQ23: 0.0 | RQR23: 0.0 | RQS23: 0.0 | RQT23: 0.0 | RQU23: 0.0 | RQV23: 0.0 | RQW23: 0.0 | RQX23: 0.0 | RQY23: 0.0 | RQZ23: 0.0 | RRA23: 0.0 | RRB23: 0.0 | RRC23: 0.0 | RRD23: 0.0 | RRE23: 0.0 | RRF23: 0.0 | RRG23: 0.0 | RRH23: 0.0 | RRI23: 0.0 | RRJ23: 0.0 | RRK23: 0.0 | RRL23: 0.0 | RRM23: 0.0 | RRN23: 0.0 | RRO23: 0.0 | RRP23: 0.0 | RRQ23: 0.0 | RRR23: 0.0 | RRS23: 0.0 | RRT23: 0.0 | RRU23: 0.0 | RRV23: 0.0 | RRW23: 0.0 | RRX23: 0.0 | RRY23: 0.0 | RRZ23: 0.0 | RSA23: 0.0 | RSB23: 0.0 | RSC23: 0.0 | RSD23: 0.0 | RSE23: 0.0 | RSF23: 0.0 | RSG23: 0.0 | RSH23: 0.0 | RSI23: 0.0 | RSJ23: 0.0 | RSK23: 0.0 | RSL23: 0.0 | RSM23: 0.0 | RSN23: 0.0 | RSO23: 0.0 | RSP23: 0.0 | RSQ23: 0.0 | RSR23: 0.0 | RSS23: 0.0 | RST23: 0.0 | RSU23: 0.0 | RSV23: 0.0 | RSW23: 0.0 | RSX23: 0.0 | RSY23: 0.0 | RSZ23: 0.0 | RTA23: 0.0 | RTB23: 0.0 | RTC23: 0.0 | RTD23: 0.0 | RTE23: 0.0 | RTF23: 0.0 | RTG23: 0.0 | RTH23: 0.0 | RTI23: 0.0 | RTJ23: 0.0 | RTK23: 0.0 | RTL23: 0.0 | RTM23: 0.0 | RTN23: 0.0 | RTO23: 0.0 | RTP23: 0.0 | RTQ23: 0.0 | RTR23: 0.0 | RTS23: 0.0 | RTT23: 0.0 | RTU23: 0.0 | RTV23: 0.0 | RTW23: 0.0 | RTX23: 0.0 | RTY23: 0.0 | RTZ23: 0.0 | RUA23: 0.0 | RUB23: 0.0 | RUC23: 0.0 | RUD23: 0.0 | RUE23: 0.0 | RUF23: 0.0 | RUG23: 0.0 | RUH23: 0.0 | RUI23: 0.0 | RUJ23: 0.0 | RUK23: 0.0 | RUL23: 0.0 | RUM23: 0.0 | RUN23: 0.0 | RUO23: 0.0 | RUP23: 0.0 | RUQ23: 0.0 | RUR23: 0.0 | RUS23: 0.0 | RUT23: 0.0 | RUU23: 0.0 | RUV23: 0.0 | RUW23: 0.0 | RUX23: 0.0 | RUY23: 0.0 | RUZ23: 0.0 | RVA23: 0.0 | RVB23: 0.0 | RVC23: 0.0 | RVD23: 0.0 | RVE23: 0.0 | RVF23: 0.0 | RVG23: 0.0 | RVH23: 0.0 | RVI23: 0.0 | RVJ23: 0.0 | RVK23: 0.0 | RVL23: 0.0 | RVM23: 0.0 | RVN23: 0.0 | RVO23: 0.0 | RVP23: 0.0 | RVQ23: 0.0 | RVR23: 0.0 | RVS23: 0.0 | RVT23: 0.0 | RVU23: 0.0 | RVV23: 0.0 | RVW23: 0.0 | RVX23: 0.0 | RVY23: 0.0 | RVZ23: 0.0 | RWA23: 0.0 | RWB23: 0.0 | RWC23: 0.0 | RWD23: 0.0 | RWE23: 0.0 | RWF23: 0.0 | RWG23: 0.0 | RWH23: 0.0 | RWI23: 0.0 | RWJ23: 0.0 | RWK23: 0.0 | RWL23: 0.0 | RWM23: 0.0 | RWN23: 0.0 | RWO23: 0.0 | RWP23: 0.0 | RWQ23: 0.0 | RWR23: 0.0 | RWS23: 0.0 | RWT23: 0.0 | RWU23: 0.0 | RWV23: 0.0 | RWW23: 0.0 | RWX23: 0.0 | RWY23: 0.0 | RWZ23: 0.0 | RXA23: 0.0 | RXB23: 0.0 | RXC23: 0.0 | RXD23: 0.0 | RXE23: 0.0 | RXF23: 0.0 | RXG23: 0.0 | RXH23: 0.0 | RXI23: 0.0 | RXJ23: 0.0 | RXK23: 0.0 | RXL23: 0.0 | RXM23: 0.0 | RXN23: 0.0 | RXO23: 0.0 | RXP23: 0.0 | RXQ23: 0.0 | RXR23: 0.0 | RXS23: 0.0 | RXT23: 0.0 | RXU23: 0.0 | RXV23: 0.0 | RXW23: 0.0 | RXX23: 0.0 | RXY23: 0.0 | RXZ23: 0.0 | RYA23: 0.0 | RYB23: 0.0 | RYC23: 0.0 | RYD23: 0.0 | RYE23: 0.0 | RYF23: 0.0 | RYG23: 0.0 | RYH23: 0.0 | RYI23: 0.0 | RYJ23: 0.0 | RYK23: 0.0 | RYL23: 0.0 | RYM23: 0.0 | RYN23: 0.0 | RYO23: 0.0 | RYP23: 0.0 | RYQ23: 0.0 | RYR23: 0.0 | RYS23: 0.0 | RYT23: 0.0 | RYU23: 0.0 | RYV23: 0.0 | RYW23: 0.0 | RYX23: 0.0 | RYY23: 0.0 | RYZ23: 0.0 | RZA23: 0.0 | RZB23: 0.0 | RZC23: 0.0 | RZD23: 0.0 | RZE23: 0.0 | RZF23: 0.0 | RZG23: 0.0 | RZH23: 0.0 | RZI23: 0.0 | RZJ23: 0.0 | RZK23: 0.0 | RZL23: 0.0 | RZM23: 0.0 | RZN23: 0.0 | RZO23: 0.0 | RZP23: 0.0 | RZQ23: 0.0 | RZR23: 0.0 | RZS23: 0.0 | RZT23: 0.0 | RZU23: 0.0 | RZV23: 0.0 | RZW23: 0.0 | RZX23: 0.0 | RZY23: 0.0 | RZZ23: 0.0 | SAA23: 0.0 | SAB23: 0.0 | SAC23: 0.0 | SAD23: 0.0 | SAE23: 0.0 | SAF23: 0.0 | SAG23: 0.0 | SAH23: 0.0 | SAI23: 0.0 | SAJ23: 0.0 | SAK23: 0.0 | SAL23: 0.0 | SAM23: 0.0 | SAN23: 0.0 | SAO23: 0.0 | SAP23: 0.0 | SAQ23: 0.0 | SAR23: 0.0 | SAS23: 0.0 | SAT23: 0.0 | SAU23: 0.0 | SAV23: 0.0 | SAW23: 0.0 | SAX23: 0.0 | SAY23: 0.0 | SAZ23: 0.0 | SBA23: 0.0 | SBB23: 0.0 | SBC23: 0.0 | SBD23: 0.0 | SBE23: 0.0 | SBF23: 0.0 | SBG23: 0.0 | SBH23: 0.0 | SBI23: 0.0 | SBJ23: 0.0 | SBK23: 0.0 | SBL23: 0.0 | SBM23: 0.0 | SBN23: 0.0 | SBO23: 0.0 | SBP23: 0.0 | SBQ23: 0.0 | SBR23: 0.0 | SBS23: 0.0 | SBT23: 0.0 | SBU23: 0.0 | SBV23: 0.0 | SBW23: 0.0 | SBX23: 0.0 | SBY23: 0.0 | SBZ23: 0.0 | SCA23: 0.0 | SCB23: 0.0 | SCC23: 0.0 | SCD23: 0.0 | SCE23: 0.0 | SCF23: 0.0 | SCG23: 0.0 | SCH23: 0.0 | SCI23: 0.0 | SCJ23: 0.0 | SCK23: 0.0 | SCL23: 0.0 | SCM23: 0.0 | SCN23: 0.0 | SCO23: 0.0 | SCP23: 0.0 | SCQ23: 0.0 | SCR23: 0.0 | SCS23: 0.0 | SCT23: 0.0 | SCU23: 0.0 | SCV23: 0.0 | SCW23: 0.0 | SCX23: 0.0 | SCY23: 0.0 | SCZ23: 0.0 | SDA23: 0.0 | SDB23: 0.0 | SDC23: 0.0 | SDD23: 0.0 | SDE23: 0.0 | SDF23: 0.0 | SDG23: 0.0 | SDH23: 0.0 | SDI23: 0.0 | SDJ23: 0.0 | SDK23: 0.0 | SDL23: 0.0 | SDM23: 0.0 | SDN23: 0.0 | SDO23: 0.0 | SDP23: 0.0 | SDQ23: 0.0 | SDR23: 0.0 | SDS23: 0.0 | SDT23: 0.0 | SDU23: 0.0 | SDV23: 0.0 | SDW23: 0.0 | SDX23: 0.0 | SDY23: 0.0 | SDZ23: 0.0 | SEA23: 0.0 | SEB23: 0.0 | SEC23: 0.0 | SED23: 0.0 | SEE23: 0.0 | SEF23: 0.0 | SEG23: 0.0 | SEH23: 0.0 | SEI23: 0.0 | SEJ23: 0.0 | SEK23: 0.0 | SEL23: 0.0 | SEM23: 0.0 | SEN23: 0.0 | SEO23: 0.0 | SEP23: 0.0 | SEQ23: 0.0 | SER23: 0.0 | SES23: 0.0 | SET23: 0.0 | SEU23: 0.0 | SEV23: 0.0 | SEW23: 0.0 | SEX23: 0.0 | SEY23: 0.0 | SEZ23: 0.0 | SFA23: 0.0 | SFB23: 0.0 | SFC23: 0.0 | SFD23: 0.0 | SFE23: 0.0 | SFF23: 0.0 | SFG23: 0.0 | SFH23: 0.0 | SFI23: 0.0 | SFJ23: 0.0 | SFK23: 0.0 | SFL23: 0.0 | SFM23: 0.0 | SFN23: 0.0 | SFO23: 0.0 | SFP23: 0.0 | SFQ23: 0.0 | SFR23: 0.0 | SFS23: 0.0 | SFT23: 0.0 | SFU23: 0.0 | SFV23: 0.0 | SFW23: 0.0 | SFX23: 0.0 | SFY23: 0.0 | SFZ23: 0.0 | SGA23: 0.0 | SGB23: 0.0 | SGC23: 0.0 | SGD23: 0.0 | SGE23: 0.0 | SGF23: 0.0 | SGG23: 0.0 | SGH23: 0.0 | SGI23: 0.0 | SGJ23: 0.0 | SGK23: 0.0 | SGL23: 0.0 | SGM23: 0.0 | SGN23: 0.0 | SGO23: 0.0 | SGP23: 0.0 | SGQ23: 0.0 | SGR23: 0.0 | SGS23: 0.0 | SGT23: 0.0 | SGU23: 0.0 | SGV23: 0.0 | SGW23: 0.0 | SGX23: 0.0 | SGY23: 0.0 | SGZ23: 0.0 | SHA23: 0.0 | SHB23: 0.0 | SHC23: 0.0 | SHD23: 0.0 | SHE23: 0.0 | SHF23: 0.0 | SHG23: 0.0 | SHH23: 0.0 | SHI23: 0.0 | SHJ23: 0.0 | SHK23: 0.0 | SHL23: 0.0 | SHM23: 0.0 | SHN23: 0.0 | SHO23: 0.0 | SHP23: 0.0 | SHQ23: 0.0 | SHR23: 0.0 | SHS23: 0.0 | SHT23: 0.0 | SHU23: 0.0 | SHV23: 0.0 | SHW23: 0.0 | SHX23: 0.0 | SHY23: 0.0 | SHZ23: 0.0 | SIA23: 0.0 | SIB23: 0.0 | SIC23: 0.0 | SID23: 0.0 | SIE23: 0.0 | SIF23: 0.0 | SIG23: 0.0 | SIH23: 0.0 | SII23: 0.0 | SIJ23: 0.0 | SIK23: 0.0 | SIL23: 0.0 | SIM23: 0.0 | SIN23: 0.0 | SIO23: 0.0 | SIP23: 0.0 | SIQ23: 0.0 | SIR23: 0.0 | SIS23: 0.0 | SIT23: 0.0 | SIU23: 0.0 | SIV23: 0.0 | SIW23: 0.0 | SIX23: 0.0 | SIY23: 0.0 | SIZ23: 0.0 | SJA23: 0.0 | SJB23: 0.0 | SJC23: 0.0 | SJD23: 0.0 | SJE23: 0.0 | SJF23: 0.0 | SJG23: 0.0 | SJH23: 0.0 | SJI23: 0.0 | SJJ23: 0.0 | SJK23: 0.0 | SJL23: 0.0 | SJM23: 0.0 | SJN23: 0.0 | SJO23: 0.0 | SJP23: 0.0 | SJQ23: 0.0 | SJR23: 0.0 | SJS23: 0.0 | SJT23: 0.0 | SJU23: 0.0 | SJV23: 0.0 | SJW23: 0.0 | SJX23: 0.0 | SJY23: 0.0 | SJZ23: 0.0 | SKA23: 0.0 | SKB23: 0.0 | SKC23: 0.0 | SKD23: 0.0 | SKE23: 0.0 | SKF23: 0.0 | SKG23: 0.0 | SKH23: 0.0 | SKI23: 0.0 | SKJ23: 0.0 | SKK23: 0.0 | SKL23: 0.0 | SKM23: 0.0 | SKN23: 0.0 | SKO23: 0.0 | SKP23: 0.0 | SKQ23: 0.0 | SKR23: 0.0 | SKS23: 0.0 | SKT23: 0.0 | SKU23: 0.0 | SKV23: 0.0 | SKW23: 0.0 | SKX23: 0.0 | SKY23: 0.0 | SKZ23: 0.0 | SLA23: 0.0 | SLB23: 0.0 | SLC23: 0.0 | SLD23: 0.0 | SLE23: 0.0 | SLF23: 0.0 | SLG23: 0.0 | SLH23: 0.0 | SLI23: 0.0 | SLJ23: 0.0 | SLK23: 0.0 | SLL23: 0.0 | SLM23: 0.0 | SLN23: 0.0 | SLO23: 0.0 | SLP23: 0.0 | SLQ23: 0.0 | SLR23: 0.0 | SLS23: 0.0 | SLT23: 0.0 | SLU23: 0.0 | SLV23: 0.0 | SLW23: 0.0 | SLX23: 0.0 | SLY23: 0.0 | SLZ23: 0.0 | SMA23: 0.0 | SMB23: 0.0 | SMC23: 0.0 | SMD23: 0.0 | SME23: 0.0 | SMF23: 0.0 | SMG23: 0.0 | SMH23: 0.0 | SMI23: 0.0 | SMJ23: 0.0 | SMK23: 0.0 | SML23: 0.0 | SMM23: 0.0 | SMN23: 0.0 | SMO23: 0.0 | SMP23: 0.0 | SMQ23: 0.0 | SMR23: 0.0 | SMS23: 0.0 | SMT23: 0.0 | SMU23: 0.0 | SMV23: 0.0 | SMW23: 0.0 | SMX23: 0.0 | SMY23: 0.0 | SMZ23: 0.0 | SNA23: 0.0 | SNB23: 0.0 | SNC23: 0.0 | SND23: 0.0 | SNE23: 0.0 | SNF23: 0.0 | SNG23: 0.0 | SNH23: 0.0 | SNI23: 0.0 | SNJ23: 0.0 | SNK23: 0.0 | SNL23: 0.0 | SNM23: 0.0 | SNN23: 0.0 | SNO23: 0.0 | SNP23: 0.0 | SNQ23: 0.0 | SNR23: 0.0 | SNS23: 0.0 | SNT23: 0.0 | SNU23: 0.0 | SNV23: 0.0 | SNW23: 0.0 | SNX23: 0.0 | SNY23: 0.0 | SNZ23: 0.0 | SOA23: 0.0 | SOB23: 0.0 | SOC23: 0.0 | SOD23: 0.0 | SOE23: 0.0 | SOF23: 0.0 | SOG23: 0.0 | SOH23: 0.0 | SOI23: 0.0 | SOJ23: 0.0 | SOK23: 0.0 | SOL23: 0.0 | SOM23: 0.0 | SON23: 0.0 | SOO23: 0.0 | SOP23: 0.0 | SOQ23: 0.0 | SOR23: 0.0 | SOS23: 0.0 | SOT23: 0.0 | SOU23: 0.0 | SOV23: 0.0 | SOW23: 0.0 | SOX23: 0.0 | SOY23: 0.0 | SOZ23: 0.0 | SPA23: 0.0 | SPB23: 0.0 | SPC23: 0.0 | SPD23: 0.0 | SPE23: 0.0 | SPF23: 0.0 | SPG23: 0.0 | SPH23: 0.0 | SPI23: 0.0 | SPJ23: 0.0 | SPK23: 0.0 | SPL23: 0.0 | SPM23: 0.0 | SPN23: 0.0 | SPO23: 0.0 | SPP23: 0.0 | SPQ23: 0.0 | SPR23: 0.0 | SPS23: 0.0 | SPT23: 0.0 | SPU23: 0.0 | SPV23: 0.0 | SPW23: 0.0 | SPX23: 0.0 | SPY23: 0.0 | SPZ23: 0.0 | SQA23: 0.0 | SQB23: 0.0 | SQC23: 0.0 | SQD23: 0.0 | SQE23: 0.0 | SQF23: 0.0 | SQG23: 0.0 | SQH23: 0.0 | SQI23: 0.0 | SQJ23: 0.0 | SQK23: 0.0 | SQL23: 0.0 | SQM23: 0.0 | SQN23: 0.0 | SQO23: 0.0 | SQP23: 0.0 | SQQ23: 0.0 | SQR23: 0.0 | SQS23: 0.0 | SQT23: 0.0 | SQU23: 0.0 | SQV23: 0.0 | SQW23: 0.0 | SQX23: 0.0 | SQY23: 0.0 | SQZ23: 0.0 | SRA23: 0.0 | SRB23: 0.0 | SRC23: 0.0 | SRD23: 0.0 | SRE23: 0.0 | SRF23: 0.0 | SRG23: 0.0 | SRH23: 0.0 | SRI23: 0.0 | SRJ23: 0.0 | SRK23: 0.0 | SRL23: 0.0 | SRM23: 0.0 | SRN23: 0.0 | SRO23: 0.0 | SRP23: 0.0 | SRQ23: 0.0 | SRR23: 0.0 | SRS23: 0.0 | SRT23: 0.0 | SRU23: 0.0 | SRV23: 0.0 | SRW23: 0.0 | SRX23: 0.0 | SRY23: 0.0 | SRZ23: 0.0 | SSA23: 0.0 | SSB23: 0.0 | SSC23: 0.0 | SSD23: 0.0 | SSE23: 0.0 | SSF23: 0.0 | SSG23: 0.0 | SSH23: 0.0 | SSI23: 0.0 | SSJ23: 0.0 | SSK23: 0.0 | SSL23: 0.0 | SSM23: 0.0 | SSN23: 0.0 | SSO23: 0.0 | SSP23: 0.0 | SSQ23: 0.0 | SSR23: 0.0 | SSS23: 0.0 | SST23: 0.0 | SSU23: 0.0 | SSV23: 0.0 | SSW23: 0.0 | SSX23: 0.0 | SSY23: 0.0 | SSZ23: 0.0 | STA23: 0.0 | STB23: 0.0 | STC23: 0.0 | STD23: 0.0 | STE23: 0.0 | STF23: 0.0 | STG23: 0.0 | STH23: 0.0 | STI23: 0.0 | STJ23: 0.0 | STK23: 0.0 | STL23: 0.0 | STM23: 0.0 | STN23: 0.0 | STO23: 0.0 | STP23: 0.0 | STQ23: 0.0 | STR23: 0.0 | STS23: 0.0 | STT23: 0.0 | STU23: 0.0 | STV23: 0.0 | STW23: 0.0 | STX23: 0.0 | STY23: 0.0 | STZ23: 0.0 | SUA23: 0.0 | SUB23: 0.0 | SUC23: 0.0 | SUD23: 0.0 | SUE23: 0.0 | SUF23: 0.0 | SUG23: 0.0 | SUH23: 0.0 | SUI23: 0.0 | SUJ23: 0.0 | SUK23: 0.0 | SUL23: 0.0 | SUM23: 0.0 | SUN23: 0.0 | SUO23: 0.0 | SUP23: 0.0 | SUQ23: 0.0 | SUR23: 0.0 | SUS23: 0.0 | SUT23: 0.0 | SUU23: 0.0 | SUV23: 0.0 | SUW23: 0.0 | SUX23: 0.0 | SUY23: 0.0 | SUZ23: 0.0 | SVA23: 0.0 | SVB23: 0.0 | SVC23: 0.0 | SVD23: 0.0 | SVE23: 0.0 | SVF23: 0.0 | SVG23: 0.0 | SVH23: 0.0 | SVI23: 0.0 | SVJ23: 0.0 | SVK23: 0.0 | SVL23: 0.0 | SVM23: 0.0 | SVN23: 0.0 | SVO23: 0.0 | SVP23: 0.0 | SVQ23: 0.0 | SVR23: 0.0 | SVS23: 0.0 | SVT23: 0.0 | SVU23: 0.0 | SVV23: 0.0 | SVW23: 0.0 | SVX23: 0.0 | SVY23: 0.0 | SVZ23: 0.0 | SWA23: 0.0 | SWB23: 0.0 | SWC23: 0.0 | SWD23: 0.0 | SWE23: 0.0 | SWF23: 0.0 | SWG23: 0.0 | SWH23: 0.0 | SWI23: 0.0 | SWJ23: 0.0 | SWK23: 0.0 | SWL23: 0.0 | SWM23: 0.0 | SWN23: 0.0 | SWO23: 0.0 | SWP23: 0.0 | SWQ23: 0.0 | SWR23: 0.0 | SWS23: 0.0 | SWT23: 0.0 | SWU23: 0.0 | SWV23: 0.0 | SWW23: 0.0 | SWX23: 0.0 | SWY23: 0.0 | SWZ23: 0.0 | SXA23: 0.0 | SXB23: 0.0 | SXC23: 0.0 | SXD23: 0.0 | SXE23: 0.0 | SXF23: 0.0 | SXG23: 0.0 | SXH23: 0.0 | SXI23: 0.0 | SXJ23: 0.0 | SXK23: 0.0 | SXL23: 0.0 | SXM23: 0.0 | SXN23: 0.0 | SXO23: 0.0 | SXP23: 0.0 | SXQ23: 0.0 | SXR23: 0.0 | SXS23: 0.0 | SXT23: 0.0 | SXU23: 0.0 | SXV23: 0.0 | SXW23: 0.0 | SXX23: 0.0 | SXY23: 0.0 | SXZ23: 0.0 | SYA23: 0.0 | SYB23: 0.0 | SYC23: 0.0 | SYD23: 0.0 | SYE23: 0.0 | SYF23: 0.0 | SYG23: 0.0 | SYH23: 0.0 | SYI23: 0.0 | SYJ23: 0.0 | SYK23: 0.0 | SYL23: 0.0 | SYM23: 0.0 | SYN23: 0.0 | SYO23: 0.0 | SYP23: 0.0 | SYQ23: 0.0 | SYR23: 0.0 | SYS23: 0.0 | SYT23: 0.0 | SYU23: 0.0 | SYV23: 0.0 | SYW23: 0.0 | SYX23: 0.0 | SYY23: 0.0 | SYZ23: 0.0 | SZA23: 0.0 | SZB23: 0.0 | SZC23: 0.0 | SZD23: 0.0 | SZE23: 0.0 | SZF23: 0.0 | SZG23: 0.0 | SZH23: 0.0 | SZI23: 0.0 | SZJ23: 0.0 | SZK23: 0.0 | SZL23: 0.0 | SZM23: 0.0 | SZN23: 0.0 | SZO23: 0.0 | SZP23: 0.0 | SZQ23: 0.0 | SZR23: 0.0 | SZS23: 0.0 | SZT23: 0.0 | SZU23: 0.0 | SZV23: 0.0 | SZW23: 0.0 | SZX23: 0.0 | SZY23: 0.0 | SZZ23: 0.0 | TAA23: 0.0 | TAB23: 0.0 | TAC23: 0.0 | TAD23: 0.0 | TAE23: 0.0 | TAF23: 0.0 | TAG23: 0.0 | TAH23: 0.0 | TAI23: 0.0 | TAJ23: 0.0 | TAK23: 0.0 | TAL23: 0.0 | TAM23: 0.0 | TAN23: 0.0 | TAO23: 0.0 | TAP23: 0.0 | TAQ23: 0.0 | TAR23: 0.0 | TAS23: 0.0 | TAT23: 0.0 | TAU23: 0.0 | TAV23: 0.0 | TAW23: 0.0 | TAX23: 0.0 | TAY23: 0.0 | TAZ23: 0.0 | TBA23: 0.0 | TBB23: 0.0 | TBC23: 0.0 | TBD23: 0.0 | TBE23: 0.0 | TBF23: 0.0 | TBG23: 0.0 | TBH23: 0.0 | TBI23: 0.0 | TBJ23: 0.0 | TBK23: 0.0 | TBL23: 0.0 | TBM23: 0.0 | TBN23: 0.0 | TBO23: 0.0 | TBP23: 0.0 | TBQ23: 0.0 | TBR23: 0.0 | TBS23: 0.0 | TBT23: 0.0 | TBU23: 0.0 | TBV23: 0.0 | TBW23: 0.0 | TBX23: 0.0 | TBY23: 0.0 | TBZ23: 0.0 | TCA23: 0.0 | TCB23: 0.0 | TCC23: 0.0 | TCD23: 0.0 | TCE23: 0.0 | TCF23: 0.0 | TCG23: 0.0 | TCH23: 0.0 | TCI23: 0.0 | TCJ23: 0.0 | TCK23: 0.0 | TCL23: 0.0 | TCM23: 0.0 | TCN23: 0.0 | TCO23: 0.0 | TCP23: 0.0 | TCQ23: 0.0 | TCR23: 0.0 | TCS23: 0.0 | TCT23: 0.0 | TCU23: 0.0 | TCV23: 0.0 | TCW23: 0.0 | TCX23: 0.0 | TCY23: 0.0 | TCZ23: 0.0 | TDA23: 0.0 | TDB23: 0.0 | TDC23: 0.0 | TDD23: 0.0 | TDE23: 0.0 | TDF23: 0.0 | TDG23: 0.0 | TDH23: 0.0 | TDI23: 0.0 | TDJ23: 0.0 | TDK23: 0.0 | TDL23: 0.0 | TDM23: 0.0 | TDN23: 0.0 | TDO23: 0.0 | TDP23: 0.0 | TDQ23: 0.0 | TDR23: 0.0 | TDS23: 0.0 | TDT23: 0.0 | TDU23: 0.0 | TDV23: 0.0 | TDW23: 0.0 | TDX23: 0.0 | TDY23: 0.0 | TDZ23: 0.0 | TEA23: 0.0 | TEB23: 0.0 | TEC23: 0.0 | TED23: 0.0 | TEE23: 0.0 | TEF23: 0.0 | TEG23: 0.0 | TEH23: 0.0 | TEI23: 0.0 | TEJ23: 0.0 | TEK23: 0.0 | TEL23: 0.0 | TEM23: 0.0 | TEN23: 0.0 | TEO23: 0.0 | TEP23: 0.0 | TEQ23: 0.0 | TER23: 0.0 | TES23: 0.0 | TET23: 0.0 | TEU23: 0.0 | TEV23: 0.0 | TEW23: 0.0 | TEX23: 0.0 | TEY23: 0.0 | TEZ23: 0.0 | TFA23: 0.0 | TFB23: 0.0 | TFC23: 0.0 | TFD23: 0.0 | TFE23: 0.0 | TFF23: 0.0 | TFG23: 0.0 | TFH23: 0.0 | TFI23: 0.0 | TFJ23: 0.0 | TFK23: 0.0 | TFL23: 0.0 | TFM23: 0.0 | TFN23: 0.0 | TFO23: 0.0 | TFP23: 0.0 | TFQ23: 0.0 | TFR23: 0.0 | TFS23: 0.0 | TFT23: 0.0 | TFU23: 0.0 | TFV23: 0.0 | TFW23: 0.0 | TFX23: 0.0 | TFY23: 0.0 | TFZ23: 0.0 | TGA23: 0.0 | TGB23: 0.0 | TGC23: 0.0 | TGD23: 0.0 | TGE23: 0.0 | TGF23: 0.0 | TGG23: 0.0 | TGH23: 0.0 | TGI23: 0.0 | TGJ23: 0.0 | TGK23: 0.0 | TGL23: 0.0 | TGM23: 0.0 | TGN23: 0.0 | TGO23: 0.0 | TGP23: 0.0 | TGQ23: 0.0 | TGR23: 0.0 | TGS23: 0.0 | TGT23: 0.0 | TGU23: 0.0 | TGV23: 0.0 | TGW23: 0.0 | TGX23: 0.0 | TGY23: 0.0 | TGZ23: 0.0 | THA23: 0.0 | THB23: 0.0 | THC23: 0.0 | THD23: 0.0 | THE23: 0.0 | THF23: 0.0 | THG23: 0.0 | THH23: 0.0 | THI23: 0.0 | THJ23: 0.0 | THK23: 0.0 | THL23: 0.0 | THM23: 0.0 | THN23: 0.0 | THO23: 0.0 | THP23: 0.0 | THQ23: 0.0 | THR23: 0.0 | THS23: 0.0 | THT23: 0.0 | THU23: 0.0 | THV23: 0.0 | THW23: 0.0 | THX23: 0.0 | THY23: 0.0 | THZ23: 0.0 | TIA23: 0.0 | TIB23: 0.0 | TIC23: 0.0 | TID23: 0.0 | TIE23: 0.0 | TIF23: 0.0 | TIG23: 0.0 | TIH23: 0.0 | TII23: 0.0 | TIJ23: 0.0 | TIK23: 0.0 | TIL23: 0.0 | TIM23: 0.0 | TIN23: 0.0 | TIO23: 0.0 | TIP23: 0.0 | TIQ23: 0.0 | TIR23: 0.0 | TIS23: 0.0 | TIT23: 0.0 | TIU23: 0.0 | TIV23: 0.0 | TIW23: 0.0 | TIX23: 0.0 | TIY23: 0.0 | TIZ23: 0.0 | TJA23: 0.0 | TJB23: 0.0 | TJC23: 0.0 | TJD23: 0.0 | TJE23: 0.0 | TJF23: 0.0 | TJG23: 0.0 | TJH23: 0.0 | TJI23: 0.0 | TJJ23: 0.0 | TJK23: 0.0 | TJL23: 0.0 | TJM23: 0.0 | TJN23: 0.0 | TJO23: 0.0 | TJP23: 0.0 | TJQ23: 0.0 | TJR23: 0.0 | TJS23: 0.0 | TJT23: 0.0 | TJU23: 0.0 | TJV23: 0.0 | TJW23: 0.0 | TJX23: 0.0 | TJY23: 0.0 | TJZ23: 0.0 | TKA23: 0.0 | TKB23: 0.0 | TKC23: 0.0 | TKD23: 0.0 | TKE23: 0.0 | TKF23: 0.0 | TKG23: 0.0 | TKH23: 0.0 | TKI23: 0.0 | TKJ23: 0.0 | TKK23: 0.0 | TKL23: 0.0 | TKM23: 0.0 | TKN23: 0.0 | TKO23: 0.0 | TKP23: 0.0 | TKQ23: 0.0 | TKR23: 0.0 | TKS23: 0.0 | TKT23: 0.0 | TKU23: 0.0 | TKV23: 0.0 | TKW23: 0.0 | TKX23: 0.0 | TKY23: 0.0 | TKZ23: 0.0 | TLA23: 0.0 | TLB23: 0.0 | TLC23: 0.0 | TLD23: 0.0 | TLE23: 0.0 | TLF23: 0.0 | TLG23: 0.0 | TLH23: 0.0 | TLI23: 0.0 | TLJ23: 0.0 | TLK23: 0.0 | TLL23: 0.0 | TLM23: 0.0 | TLN23: 0.0 | TLO23: 0.0 | TLP23: 0.0 | TLQ23: 0.0 | TLR23: 0.0 | TLS23: 0.0 | TLT23: 0.0 | TLU23: 0.0 | TLV23: 0.0 | TLW23: 0.0 | TLX23: 0.0 | TLY23: 0.0 | TLZ23: 0.0 | TMA23: 0.0 | TMB23: 0.0 | TMC23: 0.0 | TMD23: 0.0 | TME23: 0.0 | TMF23: 0.0 | TMG23: 0.0 | TMH23: 0.0 | TMI23: 0.0 | TMJ23: 0.0 | TMK23: 0.0 | TML23: 0.0 | TMM23: 0.0 | TMN23: 0.0 | TMO23: 0.0 | TMP23: 0.0 | TMQ23: 0.0 | TMR23: 0.0 | TMS23: 0.0 | TMT23: 0.0 | TMU23: 0.0 | TMV23: 0.0 | TMW23: 0.0 | TMX23: 0.0 | TMY23: 0.0 | TMZ23: 0.0 | TNA23: 0.0 | TNB23: 0.0 | TNC23: 0.0 | TND23: 0.0 | TNE23: 0.0 | TNF23: 0.0 | TNG23: 0.0 | TNH23: 0.0 | TNI23: 0.0 | TNJ23: 0.0 | TNK23: 0.0 | TNL23: 0.0 | TNM23: 0.0 | TNN23: 0.0 | TNO23: 0.0 | TNP23: 0.0 | TNQ23: 0.0 | TNR23: 0.0 | TNS23: 0.0 | TNT23: 0.0 | TNU23: 0.0 | TNV23: 0.0 | TNW23: 0.0 | TNX23: 0.0 | TNY23: 0.0 | TNZ23: 0.0 | TOA23: 0.0 | TOB23: 0.0 | TOC23: 0.0 | TOD23: 0.0 | TOE23: 0.0 | TOF23: 0.0 | TOG23: 0.0 | TOH23: 0.0 | TOI23: 0.0 | TOJ23: 0.0 | TOK23: 0.0 | TOL23: 0.0 | TOM23: 0.0 | TON23: 0.0 | TOO23: 0.0 | TOP23: 0.0 | TOQ23: 0.0 | TOR23: 0.0 | TOS23: 0.0 | TOT23: 0.0 | TOU23: 0.0 | TOV23: 0.0 | TOW23: 0.0 | TOX23: 0.0 | TOY23: 0.0 | TOZ23: 0.0 | TPA23: 0.0 | TPB23: 0.0 | TPC23: 0.0 | TPD23: 0.0 | TPE23: 0.0 | TPF23: 0.0 | TPG23: 0.0 | TPH23: 0.0 | TPI23: 0.0 | TPJ23: 0.0 | TPK23: 0.0 | TPL23: 0.0 | TPM23: 0.0 | TPN23: 0.0 | TPO23: 0.0 | TPP23: 0.0 | TPQ23: 0.0 | TPR23: 0.0 | TPS23: 0.0 | TPT23: 0.0 | TPU23: 0.0 | TPV23: 0.0 | TPW23: 0.0 | TPX23: 0.0 | TPY23: 0.0 | TPZ23: 0.0 | TQA23: 0.0 | TQB23: 0.0 | TQC23: 0.0 | TQD23: 0.0 | TQE23: 0.0 | TQF23: 0.0 | TQG23: 0.0 | TQH23: 0.0 | TQI23: 0.0 | TQJ23: 0.0 | TQK23: 0.0 | TQL23: 0.0 | TQM23: 0.0 | TQN23: 0.0 | TQO23: 0.0 | TQP23: 0.0 | TQQ23: 0.0 | TQR23: 0.0 | TQS23: 0.0 | TQT23: 0.0 | TQU23: 0.0 | TQV23: 0.0 | TQW23: 0.0 | TQX23: 0.0 | TQY23: 0.0 | TQZ23: 0.0 | TRA23: 0.0 | TRB23: 0.0 | TRC23: 0.0 | TRD23: 0.0 | TRE23: 0.0 | TRF23: 0.0 | TRG23: 0.0 | TRH23: 0.0 | TRI23: 0.0 | TRJ23: 0.0 | TRK23: 0.0 | TRL23: 0.0 | TRM23: 0.0 | TRN23: 0.0 | TRO23: 0.0 | TRP23: 0.0 | TRQ23: 0.0 | TRR23: 0.0 | TRS23: 0.0 | TRT23: 0.0 | TRU23: 0.0 | TRV23: 0.0 | TRW23: 0.0 | TRX23: 0.0 | TRY23: 0.0 | TRZ23: 0.0 | TSA23: 0.0 | TSB23: 0.0 | TSC23: 0.0 | TSD23: 0.0 | TSE23: 0.0 | TSF23: 0.0 | TSG23: 0.0 | TSH23: 0.0 | TSI23: 0.0 | TSJ23: 0.0 | TSK23: 0.0 | TSL23: 0.0 | TSM23: 0.0 | TSN23: 0.0 | TSO23: 0.0 | TSP23: 0.0 | TSQ23: 0.0 | TSR23: 0.0 | TSS23: 0.0 | TST23: 0.0 | TSU23: 0.0 | TSV23: 0.0 | TSW23: 0.0 | TSX23: 0.0 | TSY23: 0.0 | TSZ23: 0.0 | TTA23: 0.0 | TTB23: 0.0 | TTC23: 0.0 | TTD23: 0.0 | TTE23: 0.0 | TTF23: 0.0 | TTG23: 0.0 | TTH23: 0.0 | TTI23: 0.0 | TTJ23: 0.0 | TTK23: 0.0 | TTL23: 0.0 | TTM23: 0.0 | TTN23: 0.0 | TTO23: 0.0 | TTP23: 0.0 | TTQ23: 0.0 | TTR23: 0.0 | TTS23: 0.0 | TTT23: 0.0 | TTU23: 0.0 | TTV23: 0.0 | TTW23: 0.0 | TTX23: 0.0 | TTY23: 0.0 | TTZ23: 0.0 | TUA23: 0.0 | TUB23: 0.0 | TUC23: 0.0 | TUD23: 0.0 | TUE23: 0.0 | TUF23: 0.0 | TUG23: 0.0 | TUH23: 0.0 | TUI23: 0.0 | TUJ23: 0.0 | TUK23: 0.0 | TUL23: 0.0 | TUM23: 0.0 | TUN23: 0.0 | TUO23: 0.0 | TUP23: 0.0 | TUQ23: 0.0 | TUR23: 0.0 | TUS23: 0.0 | TUT23: 0.0 | TUU23: 0.0 | TUV23: 0.0 | TUW23: 0.0 | TUX23: 0.0 | TUY23: 0.0 | TUZ23: 0.0 | TVA23: 0.0 | TVB23: 0.0 | TVC23: 0.0 | TVD23: 0.0 | TVE23: 0.0 | TVF23: 0.0 | TVG23: 0.0 | TVH23: 0.0 | TVI23: 0.0 | TVJ23: 0.0 | TVK23: 0.0 | TVL23: 0.0 | TVM23: 0.0 | TVN23: 0.0 | TVO23: 0.0 | TVP23: 0.0 | TVQ23: 0.0 | TVR23: 0.0 | TVS23: 0.0 | TVT23: 0.0 | TVU23: 0.0 | TVV23: 0.0 | TVW23: 0.0 | TVX23: 0.0 | TVY23: 0.0 | TVZ23: 0.0 | TWA23: 0.0 | TWB23: 0.0 | TWC23: 0.0 | TWD23: 0.0 | TWE23: 0.0 | TWF23: 0.0 | TWG23: 0.0 | TWH23: 0.0 | TWI23: 0.0 | TWJ23: 0.0 | TWK23: 0.0 | TWL23: 0.0 | TWM23: 0.0 | TWN23: 0.0 | TWO23: 0.0 | TWP23: 0.0 | TWQ23: 0.0 | TWR23: 0.0 | TWS23: 0.0 | TWT23: 0.0 | TWU23: 0.0 | TWV23: 0.0 | TWW23: 0.0 | TWX23: 0.0 | TWY23: 0.0 | TWZ23: 0.0 | TXA23: 0.0 | TXB23: 0.0 | TXC23: 0.0 | TXD23: 0.0 | TXE23: 0.0 | TXF23: 0.0 | TXG23: 0.0 | TXH23: 0.0 | TXI23: 0.0 | TXJ23: 0.0 | TXK23: 0.0 | TXL23: 0.0 | TXM23: 0.0 | TXN23: 0.0 | TXO23: 0.0 | TXP23: 0.0 | TXQ23: 0.0 | TXR23: 0.0 | TXS23: 0.0 | TXT23: 0.0 | TXU23: 0.0 | TXV23: 0.0 | TXW23: 0.0 | TXX23: 0.0 | TXY23: 0.0 | TXZ23: 0.0 | TYA23: 0.0 | TYB23: 0.0 | TYC23: 0.0 | TYD23: 0.0 | TYE23: 0.0 | TYF23: 0.0 | TYG23: 0.0 | TYH23: 0.0 | TYI23: 0.0 | TYJ23: 0.0 | TYK23: 0.0 | TYL23: 0.0 | TYM23: 0.0 | TYN23: 0.0 | TYO23: 0.0 | TYP23: 0.0 | TYQ23: 0.0 | TYR23: 0.0 | TYS23: 0.0 | TYT23: 0.0 | TYU23: 0.0 | TYV23: 0.0 | TYW23: 0.0 | TYX23: 0.0 | TYY23: 0.0 | TYZ23: 0.0 | TZA23: 0.0 | TZB23: 0.0 | TZC23: 0.0 | TZD23: 0.0 | TZE23: 0.0 | TZF23: 0.0 | TZG23: 0.0 | TZH23: 0.0 | TZI23: 0.0 | TZJ23: 0.0 | TZK23: 0.0 | TZL23: 0.0 | TZM23: 0.0 | TZN23: 0.0 | TZO23: 0.0 | TZP23: 0.0 | TZQ23: 0.0 | TZR23: 0.0 | TZS23: 0.0 | TZT23: 0.0 | TZU23: 0.0 | TZV23: 0.0 | TZW23: 0.0 | TZX23: 0.0 | TZY23: 0.0 | TZZ23: 0.0 | UAA23: 0.0 | UAB23: 0.0 | UAC23: 0.0 | UAD23: 0.0 | UAE23: 0.0 | UAF23: 0.0 | UAG23: 0.0 | UAH23: 0.0 | UAI23: 0.0 | UAJ23: 0.0 | UAK23: 0.0 | UAL23: 0.0 | UAM23: 0.0 | UAN23: 0.0 | UAO23: 0.0 | UAP23: 0.0 | UAQ23: 0.0 | UAR23: 0.0 | UAS23: 0.0 | UAT23: 0.0 | UAU23: 0.0 | UAV23: 0.0 | UAW23: 0.0 | UAX23: 0.0 | UAY23: 0.0 | UAZ23: 0.0 | UBA23: 0.0 | UBB23: 0.0 | UBC23: 0.0 | UBD23: 0.0 | UBE23: 0.0 | UBF23: 0.0 | UBG23: 0.0 | UBH23: 0.0 | UBI23: 0.0 | UBJ23: 0.0 | UBK23: 0.0 | UBL23: 0.0 | UBM23: 0.0 | UBN23: 0.0 | UBO23: 0.0 | UBP23: 0.0 | UBQ23: 0.0 | UBR23: 0.0 | UBS23: 0.0 | UBT23: 0.0 | UBU23: 0.0 | UBV23: 0.0 | UBW23: 0.0 | UBX23: 0.0 | UBY23: 0.0 | UBZ23: 0.0 | UCA23: 0.0 | UCB23: 0.0 | UCC23: 0.0 | UCD23: 0.0 | UCE23: 0.0 | UCF23: 0.0 | UCG23: 0.0 | UCH23: 0.0 | UCI23: 0.0 | UCJ23: 0.0 | UCK23: 0.0 | UCL23: 0.0 | UCM23: 0.0 | UCN23: 0.0 | UCO23: 0.0 | UCP23: 0.0 | UCQ23: 0.0 | UCR23: 0.0 | UCS23: 0.0 | UCT23: 0.0 | UCU23: 0.0 | UCV23: 0.0 | UCW23: 0.0 | UCX23: 0.0 | UCY23: 0.0 | UCZ23: 0.0 | UDA23: 0.0 | UDB23: 0.0 | UDC23: 0.0 | UDD23: 0.0 | UDE23: 0.0 | UDF23: 0.0 | UDG23: 0.0 | UDH23: 0.0 | UDI23: 0.0 | UDJ23: 0.0 | UDK23: 0.0 | UDL23: 0.0 | UDM23: 0.0 | UDN23: 0.0 | UDO23: 0.0 | UDP23: 0.0 | UDQ23: 0.0 | UDR23: 0.0 | UDS23: 0.0 | UDT23: 0.0 | UDU23: 0.0 | UDV23: 0.0 | UDW23: 0.0 | UDX23: 0.0 | UDY23: 0.0 | UDZ23: 0.0 | UEA23: 0.0 | UEB23: 0.0 | UEC23: 0.0 | UED23: 0.0 | UEE23: 0.0 | UEF23: 0.0 | UEG23: 0.0 | UEH23: 0.0 | UEI23: 0.0 | UEJ23: 0.0 | UEK23: 0.0 | UEL23: 0.0 | UEM23: 0.0 | UEN23: 0.0 | UEO23: 0.0 | UEP23: 0.0 | UEQ23: 0.0 | UER23: 0.0 | UES23: 0.0 | UET23: 0.0 | UEU23: 0.0 | UEV23: 0.0 | UEW23: 0.0 | UEX23: 0.0 | UEY23: 0.0 | UEZ23: 0.0 | UFA23: 0.0 | UFB23: 0.0 | UFC23: 0.0 | UFD23: 0.0 | UFE23: 0.0 | UFF23: 0.0 | UFG23: 0.0 | UFH23: 0.0 | UFI23: 0.0 | UFJ23: 0.0 | UFK23: 0.0 | UFL23: 0.0 | UFM23: 0.0 | UFN23: 0.0 | UFO23: 0.0 | UFP23: 0.0 | UFQ23: 0.0 | UFR23: 0.0 | UFS23: 0.0 | UFT23: 0.0 | UFU23: 0.0 | UFV23: 0.0 | UFW23: 0.0 | UFX23: 0.0 | UFY23: 0.0 | UFZ23: 0.0 | UGA23: 0.0 | UGB23: 0.0 | UGC23: 0.0 | UGD23: 0.0 | UGE23: 0.0 | UGF23: 0.0 | UGG23: 0.0 | UGH23: 0.0 | UGI23: 0.0 | UGJ23: 0.0 | UGK23: 0.0 | UGL23: 0.0 | UGM23: 0.0 | UGN23: 0.0 | UGO23: 0.0 | UGP23: 0.0 | UGQ23: 0.0 | UGR23: 0.0 | UGS23: 0.0 | UGT23: 0.0 | UGU23: 0.0 | UGV23: 0.0 | UGW23: 0.0 | UGX23: 0.0 | UGY23: 0.0 | UGZ23: 0.0 | UHA23: 0.0 | UHB23: 0.0 | UHC23: 0.0 | UHD23: 0.0 | UHE23: 0.0 | UHF23: 0.0 | UHG23: 0.0 | UHH23: 0.0 | UHI23: 0.0 | UHJ23: 0.0 | UHK23: 0.0 | UHL23: 0.0 | UHM23: 0.0 | UHN23: 0.0 | UHO23: 0.0 | UHP23: 0.0 | UHQ23: 0.0 | UHR23: 0.0 | UHS23: 0.0 | UHT23: 0.0 | UHU23: 0.0 | UHV23: 0.0 | UHW23: 0.0 | UHX23: 0.0 | UHY23: 0.0 | UHZ23: 0.0 | UIA23: 0.0 | UIB23: 0.0 | UIC23: 0.0 | UID23: 0.0 | UIE23: 0.0 | UIF23: 0.0 | UIG23: 0.0 | UIH23: 0.0 | UII23: 0.0 | UIJ23: 0.0 | UIK23: 0.0 | UIL23: 0.0 | UIM23: 0.0 | UIN23: 0.0 | UIO23: 0.0 | UIP23: 0.0 | UIQ23: 0.0 | UIR23: 0.0 | UIS23: 0.0 | UIT23: 0.0 | UIU23: 0.0 | UIV23: 0.0 | UIW23: 0.0 | UIX23: 0.0 | UIY23: 0.0 | UIZ23: 0.0 | UJA23: 0.0 | UJB23: 0.0 | UJC23: 0.0 | UJD23: 0.0 | UJE23: 0.0 | UJF23: 0.0 | UJG23: 0.0 | UJH23: 0.0 | UJI23: 0.0 | UJJ23: 0.0 | UJK23: 0.0 | UJL23: 0.0 | UJM23: 0.0 | UJN23: 0.0 | UJO23: 0.0 | UJP23: 0.0 | UJQ23: 0.0 | UJR23: 0.0 | UJS23: 0.0 | UJT23: 0.0 | UJU23: 0.0 | UJV23: 0.0 | UJW23: 0.0 | UJX23: 0.0 | UJY23: 0.0 | UJZ23: 0.0 | UKA23: 0.0 | UKB23: 0.0 | UKC23: 0.0 | UKD23: 0.0 | UKE23: 0.0 | UKF23: 0.0 | UKG23: 0.0 | UKH23: 0.0 | UKI23: 0.0 | UKJ23: 0.0 | UKK23: 0.0 | UKL23: 0.0 | UKM23: 0.0 | UKN23: 0.0 | UKO23: 0.0 | UKP23: 0.0 | UKQ23: 0.0 | UKR23: 0.0 | UKS23: 0.0 | UKT23: 0.0 | UKU23: 0.0 | UKV23: 0.0 | UKW23: 0.0 | UKX23: 0.0 | UKY23: 0.0 | UKZ23: 0.0 | ULA23: 0.0 | ULB23: 0.0 | ULC23: 0.0 | ULD23: 0.0 | ULE23: 0.0 | ULF23: 0.0 | ULG23: 0.0 | ULH23: 0.0 | ULI23: 0.0 | ULJ23: 0.0 | ULK23: 0.0 | ULL23: 0.0 | ULM23: 0.0 | ULN23: 0.0 | ULO23: 0.0 | ULP23: 0.0 | ULQ23: 0.0 | ULR23: 0.0 | ULS23: 0.0 | ULT23: 0.0 | ULU23: 0.0 | ULV23: 0.0 | ULW23: 0.0 | ULX23: 0.0 | ULY23: 0.0 | ULZ23: 0.0 | UMA23: 0.0 | UMB23: 0.0 | UMC23: 0.0 | UMD23: 0.0 | UME23: 0.0 | UMF23: 0.0 | UMG23: 0.0 | UMH23: 0.0 | UMI23: 0.0 | UMJ23: 0.0 | UMK23: 0.0 | UML23: 0.0 | UMM23: 0.0 | UMN23: 0.0 | UMO23: 0.0 | UMP23: 0.0 | UMQ23: 0.0 | UMR23: 0.0 | UMS23: 0.0 | UMT23: 0.0 | UMU23: 0.0 | UMV23: 0.0 | UMW23: 0.0 | UMX23: 0.0 | UMY23: 0.0 | UMZ23: 0.0 | UNA23: 0.0 | UNB23: 0.0 | UNC23: 0.0 | UND23: 0.0 | UNE23: 0.0 | UNF23: 0.0 | UNG23: 0.0 | UNH23: 0.0 | UNI23: 0.0 | UNJ23: 0.0 | UNK23: 0.0 | UNL23: 0.0 | UNM23: 0.0 | UNN23: 0.0 | UNO23: 0.0 | UNP23: 0.0 | UNQ23: 0.0 | UNR23: 0.0 | UNS23: 0.0 | UNT23: 0.0 | UNU23: 0.0 | UNV23: 0.0 | UNW23: 0.0 | UNX23: 0.0 | UNY23: 0.0 | UNZ23: 0.0 | UOA23: 0.0 | UOB23: 0.0 | UOC23: 0.0 | UOD23: 0.0 | UOE23: 0.0 | UOF23: 0.0 | UOG23: 0.0 | UOH23: 0.0 | UOI23: 0.0 | UOJ23: 0.0 | UOK23: 0.0 | UOL23: 0.0 | UOM23: 0.0 | UON23: 0.0 | UOO23: 0.0 | UOP23: 0.0 | UOQ23: 0.0 | UOR23: 0.0 | UOS23: 0.0 | UOT23: 0.0 | UOU23: 0.0 | UOV23: 0.0 | UOW23: 0.0 | UOX23: 0.0 | UOY23: 0.0 | UOZ23: 0.0 | UPA23: 0.0 | UPB23: 0.0 | UPC23: 0.0 | UPD23: 0.0 | UPE23: 0.0 | UPF23: 0.0 | UPG23: 0.0 | UPH23: 0.0 | UPI23: 0.0 | UPJ23: 0.0 | UPK23: 0.0 | UPL23: 0.0 | UPM23: 0.0 | UPN23: 0.0 | UPO23: 0.0 | UPP23: 0.0 | UPQ23: 0.0 | UPR23: 0.0 | UPS23: 0.0 | UPT23: 0.0 | UPU23: 0.0 | UPV23: 0.0 | UPW23: 0.0 | UPX23: 0.0 | UPY23: 0.0 | UPZ23: 0.0 | UQA23: 0.0 | UQB23: 0.0 | UQC23: 0.0 | UQD23: 0.0 | UQE23: 0.0 | UQF23: 0.0 | UQG23: 0.0 | UQH23: 0.0 | UQI23: 0.0 | UQJ23: 0.0 | UQK23: 0.0 | UQL23: 0.0 | UQM23: 0.0 | UQN23: 0.0 | UQO23: 0.0 | UQP23: 0.0 | UQQ23: 0.0 | UQR23: 0.0 | UQS23: 0.0 | UQT23: 0.0 | UQU23: 0.0 | UQV23: 0.0 | UQW23: 0.0 | UQX23: 0.0 | UQY23: 0.0 | UQZ23: 0.0 | URA23: 0.0 | URB23: 0.0 | URC23: 0.0 | URD23: 0.0 | URE23: 0.0 | URF23: 0.0 | URG23: 0.0 | URH23: 0.0 | URI23: 0.0 | URJ23: 0.0 | URK23: 0.0 | URL23: 0.0 | URM23: 0.0 | URN23: 0.0 | URO23: 0.0 | URP23: 0.0 | URQ23: 0.0 | URR23: 0.0 | URS23: 0.0 | URT23: 0.0 | URU23: 0.0 | URV23: 0.0 | URW23: 0.0 | URX23: 0.0 | URY23: 0.0 | URZ23: 0.0 | USA23: 0.0 | USB23: 0.0 | USC23: 0.0 | USD23: 0.0 | USE23: 0.0 | USF23: 0.0 | USG23: 0.0 | USH23: 0.0 | USI23: 0.0 | USJ23: 0.0 | USK23: 0.0 | USL23: 0.0 | USM23: 0.0 | USN23: 0.0 | USO23: 0.0 | USP23: 0.0 | USQ23: 0.0 | USR23: 0.0 | USS23: 0.0 | UST23: 0.0 | USU23: 0.0 | USV23: 0.0 | USW23: 0.0 | USX23: 0.0 | USY23: 0.0 | USZ23: 0.0 | UTA23: 0.0 | UTB23: 0.0 | UTC23: 0.0 | UTD23: 0.0 | UTE23: 0.0 | UTF23: 0.0 | UTG23: 0.0 | UTH23: 0.0 | UTI23: 0.0 | UTJ23: 0.0 | UTK23: 0.0 | UTL23: 0.0 | UTM23: 0.0 | UTN23: 0.0 | UTO23: 0.0 | UTP23: 0.0 | UTQ23: 0.0 | UTR23: 0.0 | UTS23: 0.0 | UTT23: 0.0 | UTU23: 0.0 | UTV23: 0.0 | UTW23: 0.0 | UTX23: 0.0 | UTY23: 0.0 | UTZ23: 0.0 | UUA23: 0.0 | UUB23: 0.0 | UUC23: 0.0 | UUD23: 0.0 | UUE23: 0.0 | UUF23: 0.0 | UUG23: 0.0 | UUH23: 0.0 | UUI23: 0.0 | UUJ23: 0.0 | UUK23: 0.0 | UUL23: 0.0 | UUM23: 0.0 | UUN23: 0.0 | UUO23: 0.0 | UUP23: 0.0 | UUQ23: 0.0 | UUR23: 0.0 | UUS23: 0.0 | UUT23: 0.0 | UUU23: 0.0 | UUV23: 0.0 | UUW23: 0.0 | UUX23: 0.0 | UUY23: 0.0 | UUZ23: 0.0 | UVA23: 0.0 | UVB23: 0.0 | UVC23: 0.0 | UVD23: 0.0 | UVE23: 0.0 | UVF23: 0.0 | UVG23: 0.0 | UVH23: 0.0 | UVI23: 0.0 | UVJ23: 0.0 | UVK23: 0.0 | UVL23: 0.0 | UVM23: 0.0 | UVN23: 0.0 | UVO23: 0.0 | UVP23: 0.0 | UVQ23: 0.0 | UVR23: 0.0 | UVS23: 0.0 | UVT23: 0.0 | UVU23: 0.0 | UVV23: 0.0 | UVW23: 0.0 | UVX23: 0.0 | UVY23: 0.0 | UVZ23: 0.0 | UWA23: 0.0 | UWB23: 0.0 | UWC23: 0.0 | UWD23: 0.0 | UWE23: 0.0 | UWF23: 0.0 | UWG23: 0.0 | UWH23: 0.0 | UWI23: 0.0 | UWJ23: 0.0 | UWK23: 0.0 | UWL23: 0.0 | UWM23: 0.0 | UWN23: 0.0 | UWO23: 0.0 | UWP23: 0.0 | UWQ23: 0.0 | UWR23: 0.0 | UWS23: 0.0 | UWT23: 0.0 | UWU23: 0.0 | UWV23: 0.0 | UWW23: 0.0 | UWX23: 0.0 | UWY23: 0.0 | UWZ23: 0.0 | UXA23: 0.0 | UXB23: 0.0 | UXC23: 0.0 | UXD23: 0.0 | UXE23: 0.0 | UXF23: 0.0 | UXG23: 0.0 | UXH23: 0.0 | UXI23: 0.0 | UXJ23: 0.0 | UXK23: 0.0 | UXL23: 0.0 | UXM23: 0.0 | UXN23: 0.0 | UXO23: 0.0 | UXP23: 0.0 | UXQ23: 0.0 | UXR23: 0.0 | UXS23: 0.0 | UXT23: 0.0 | UXU23: 0.0 | UXV23: 0.0 | UXW23: 0.0 | UXX23: 0.0 | UXY23: 0.0 | UXZ23: 0.0 | UYA23: 0.0 | UYB23: 0.0 | UYC23: 0.0 | UYD23: 0.0 | UYE23: 0.0 | UYF23: 0.0 | UYG23: 0.0 | UYH23: 0.0 | UYI23: 0.0 | UYJ23: 0.0 | UYK23: 0.0 | UYL23: 0.0 | UYM23: 0.0 | UYN23: 0.0 | UYO23: 0.0 | UYP23: 0.0 | UYQ23: 0.0 | UYR23: 0.0 | UYS23: 0.0 | UYT23: 0.0 | UYU23: 0.0 | UYV23: 0.0 | UYW23: 0.0 | UYX23: 0.0 | UYY23: 0.0 | UYZ23: 0.0 | UZA23: 0.0 | UZB23: 0.0 | UZC23: 0.0 | UZD23: 0.0 | UZE23: 0.0 | UZF23: 0.0 | UZG23: 0.0 | UZH23: 0.0 | UZI23: 0.0 | UZJ23: 0.0 | UZK23: 0.0 | UZL23: 0.0 | UZM23: 0.0 | UZN23: 0.0 | UZO23: 0.0 | UZP23: 0.0 | UZQ23: 0.0 | UZR23: 0.0 | UZS23: 0.0 | UZT23: 0.0 | UZU23: 0.0 | UZV23: 0.0 | UZW23: 0.0 | UZX23: 0.0 | UZY23: 0.0 | UZZ23: 0.0 | VAA23: 0.0 | VAB23: 0.0 | VAC23: 0.0 | VAD23: 0.0 | VAE23: 0.0 | VAF23: 0.0 | VAG23: 0.0 | VAH23: 0.0 | VAI23: 0.0 | VAJ23: 0.0 | VAK23: 0.0 | VAL23: 0.0 | VAM23: 0.0 | VAN23: 0.0 | VAO23: 0.0 | VAP23: 0.0 | VAQ23: 0.0 | VAR23: 0.0 | VAS23: 0.0 | VAT23: 0.0 | VAU23: 0.0 | VAV23: 0.0 | VAW23: 0.0 | VAX23: 0.0 | VAY23: 0.0 | VAZ23: 0.0 | VBA23: 0.0 | VBB23: 0.0 | VBC23: 0.0 | VBD23: 0.0 | VBE23: 0.0 | VBF23: 0.0 | VBG23: 0.0 | VBH23: 0.0 | VBI23: 0.0 | VBJ23: 0.0 | VBK23: 0.0 | VBL23: 0.0 | VBM23: 0.0 | VBN23: 0.0 | VBO23: 0.0 | VBP23: 0.0 | VBQ23: 0.0 | VBR23: 0.0 | VBS23: 0.0 | VBT23: 0.0 | VBU23: 0.0 | VBV23: 0.0 | VBW23: 0.0 | VBX23: 0.0 | VBY23: 0.0 | VBZ23: 0.0 | VCA23: 0.0 | VCB23: 0.0 | VCC23: 0.0 | VCD23: 0.0 | VCE23: 0.0 | VCF23: 0.0 | VCG23: 0.0 | VCH23: 0.0 | VCI23: 0.0 | VCJ23: 0.0 | VCK23: 0.0 | VCL23: 0.0 | VCM23: 0.0 | VCN23: 0.0 | VCO23: 0.0 | VCP23: 0.0 | VCQ23: 0.0 | VCR23: 0.0 | VCS23: 0.0 | VCT23: 0.0 | VCU23: 0.0 | VCV23: 0.0 | VCW23: 0.0 | VCX23: 0.0 | VCY23: 0.0 | VCZ23: 0.0 | VDA23: 0.0 | VDB23: 0.0 | VDC23: 0.0 | VDD23: 0.0 | VDE23: 0.0 | VDF23: 0.0 | VDG23: 0.0 | VDH23: 0.0 | VDI23: 0.0 | VDJ23: 0.0 | VDK23: 0.0 | VDL23: 0.0 | VDM23: 0.0 | VDN23: 0.0 | VDO23: 0.0 | VDP23: 0.0 | VDQ23: 0.0 | VDR23: 0.0 | VDS23: 0.0 | VDT23: 0.0 | VDU23: 0.0 | VDV23: 0.0 | VDW23: 0.0 | VDX23: 0.0 | VDY23: 0.0 | VDZ23: 0.0 | VEA23: 0.0 | VEB23: 0.0 | VEC23: 0.0 | VED23: 0.0 | VEE23: 0.0 | VEF23: 0.0 | VEG23: 0.0 | VEH23: 0.0 | VEI23: 0.0 | VEJ23: 0.0 | VEK23: 0.0 | VEL23: 0.0 | VEM23: 0.0 | VEN23: 0.0 | VEO23: 0.0 | VEP23: 0.0 | VEQ23: 0.0 | VER23: 0.0 | VES23: 0.0 | VET23: 0.0 | VEU23: 0.0 | VEV23: 0.0 | VEW23: 0.0 | VEX23: 0.0 | VEY23: 0.0 | VEZ23: 0.0 | VFA23: 0.0 | VFB23: 0.0 | VFC23: 0.0 | VFD23: 0.0 | VFE23: 0.0 | VFF23: 0.0 | VFG23: 0.0 | VFH23: 0.0 | VFI23: 0.0 | VFJ23: 0.0 | VFK23: 0.0 | VFL23: 0.0 | VFM23: 0.0 | VFN23: 0.0 | VFO23: 0.0 | VFP23: 0.0 | VFQ23: 0.0 | VFR23: 0.0 | VFS23: 0.0 | VFT23: 0.0 | VFU23: 0.0 | VFV23: 0.0 | VFW23: 0.0 | VFX23: 0.0 | VFY23: 0.0 | VFZ23: 0.0 | VGA23: 0.0 | VGB23: 0.0 | VGC23: 0.0 | VGD23: 0.0 | VGE23: 0.0 | VGF23: 0.0 | VGG23: 0.0 | VGH23: 0.0 | VGI23: 0.0 | VGJ23: 0.0 | VGK23: 0.0 | VGL23: 0.0 | VGM23: 0.0 | VGN23: 0.0 | VGO23: 0.0 | VGP23: 0.0 | VGQ23: 0.0 | VGR23: 0.0 | VGS23: 0.0 | VGT23: 0.0 | VGU23: 0.0 | VGV23: 0.0 | VGW23: 0.0 | VGX23: 0.0 | VGY23: 0.0 | VGZ23: 0.0 | VHA23: 0.0 | VHB23: 0.0 | VHC23: 0.0 | VHD23: 0.0 | VHE23: 0.0 | VHF23: 0.0 | VHG23: 0.0 | VHH23: 0.0 | VHI23: 0.0 | VHJ23: 0.0 | VHK23: 0.0 | VHL23: 0.0 | VHM23: 0.0 | VHN23: 0.0 | VHO23: 0.0 | VHP23: 0.0 | VHQ23: 0.0 | VHR23: 0.0 | VHS23: 0.0 | VHT23: 0.0 | VHU23: 0.0 | VHV23: 0.0 | VHW23: 0.0 | VHX23: 0.0 | VHY23: 0.0 | VHZ23: 0.0 | VIA23: 0.0 | VIB23: 0.0 | VIC23: 0.0 | VID23: 0.0 | VIE23: 0.0 | VIF23: 0.0 | VIG23: 0.0 | VIH23: 0.0 | VII23: 0.0 | VIJ23: 0.0 | VIK23: 0.0 | VIL23: 0.0 | VIM23: 0.0 | VIN23: 0.0 | VIO23: 0.0 | VIP23: 0.0 | VIQ23: 0.0 | VIR23: 0.0 | VIS23: 0.0 | VIT23: 0.0 | VIU23: 0.0 | VIV23: 0.0 | VIW23: 0.0 | VIX23: 0.0 | VIY23: 0.0 | VIZ23: 0.0 | VJA23: 0.0 | VJB23: 0.0 | VJC23: 0.0 | VJD23: 0.0 | VJE23: 0.0 | VJF23: 0.0 | VJG23: 0.0 | VJH23: 0.0 | VJI23: 0.0 | VJJ23: 0.0 | VJK23: 0.0 | VJL23: 0.0 | VJM23: 0.0 | VJN23: 0.0 | VJO23: 0.0 | VJP23: 0.0 | VJQ23: 0.0 | VJR23: 0.0 | VJS23: 0.0 | VJT23: 0.0 | VJU23: 0.0 | VJV23: 0.0 | VJW23: 0.0 | VJX23: 0.0 | VJY23: 0.0 | VJZ23: 0.0 | VKA23: 0.0 | VKB23: 0.0 | VKC23: 0.0 | VKD23: 0.0 | VKE23: 0.0 | VKF23: 0.0 | VKG23: 0.0 | VKH23: 0.0 | VKI23: 0.0 | VKJ23: 0.0 | VKK23: 0.0 | VKL23: 0.0 | VKM23: 0.0 | VKN23: 0.0 | VKO23: 0.0 | VKP23: 0.0 | VKQ23: 0.0 | VKR23: 0.0 | VKS23: 0.0 | VKT23: 0.0 | VKU23: 0.0 | VKV23: 0.0 | VKW23: 0.0 | VKX23: 0.0 | VKY23: 0.0 | VKZ23: 0.0 | VLA23: 0.0 | VLB23: 0.0 | VLC23: 0.0 | VLD23: 0.0 | VLE23: 0.0 | VLF23: 0.0 | VLG23: 0.0 | VLH23: 0.0 | VLI23: 0.0 | VLJ23: 0.0 | VLK23: 0.0 | VLL23: 0.0 | VLM23: 0.0 | VLN23: 0.0 | VLO23: 0.0 | VLP23: 0.0 | VLQ23: 0.0 | VLR23: 0.0 | VLS23: 0.0 | VLT23: 0.0 | VLU23: 0.0 | VLV23: 0.0 | VLW23: 0.0 | VLX23: 0.0 | VLY23: 0.0 | VLZ23: 0.0 | VMA23: 0.0 | VMB23: 0.0 | VMC23: 0.0 | VMD23: 0.0 | VME23: 0.0 | VMF23: 0.0 | VMG23: 0.0 | VMH23: 0.0 | VMI23: 0.0 | VMJ23: 0.0 | VMK23: 0.0 | VML23: 0.0 | VMM23: 0.0 | VMN23: 0.0 | VMO23: 0.0 | VMP23: 0.0 | VMQ23: 0.0 | VMR23: 0.0 | VMS23: 0.0 | VMT23: 0.0 | VMU23: 0.0 | VMV23: 0.0 | VMW23: 0.0 | VMX23: 0.0 | VMY23: 0.0 | VMZ23: 0.0 | VNA23: 0.0 | VNB23: 0.0 | VNC23: 0.0 | VND23: 0.0 | VNE23: 0.0 | VNF23: 0.0 | VNG23: 0.0 | VNH23: 0.0 | VNI23: 0.0 | VNJ23: 0.0 | VNK23: 0.0 | VNL23: 0.0 | VNM23: 0.0 | VNN23: 0.0 | VNO23: 0.0 | VNP23: 0.0 | VNQ23: 0.0 | VNR23: 0.0 | VNS23: 0.0 | VNT23: 0.0 | VNU23: 0.0 | VNV23: 0.0 | VNW23: 0.0 | VNX23: 0.0 | VNY23: 0.0 | VNZ23: 0.0 | VOA23: 0.0 | VOB23: 0.0 | VOC23: 0.0 | VOD23: 0.0 | VOE23: 0.0 | VOF23: 0.0 | VOG23: 0.0 | VOH23: 0.0 | VOI23: 0.0 | VOJ23: 0.0 | VOK23: 0.0 | VOL23: 0.0 | VOM23: 0.0 | VON23: 0.0 | VOO23: 0.0 | VOP23: 0.0 | VOQ23: 0.0 | VOR23: 0.0 | VOS23: 0.0 | VOT23: 0.0 | VOU23: 0.0 | VOV23: 0.0 | VOW23: 0.0 | VOX23: 0.0 | VOY23: 0.0 | VOZ23: 0.0 | VPA23: 0.0 | VPB23: 0.0 | VPC23: 0.0 | VPD23: 0.0 | VPE23: 0.0 | VPF23: 0.0 | VPG23: 0.0 | VPH23: 0.0 | VPI23: 0.0 | VPJ23: 0.0 | VPK23: 0.0 | VPL23: 0.0 | VPM23: 0.0 | VPN23: 0.0 | VPO23: 0.0 | VPP23: 0.0 | VPQ23: 0.0 | VPR23: 0.0 | VPS23: 0.0 | VPT23: 0.0 | VPU23: 0.0 | VPV23: 0.0 | VPW23: 0.0 | VPX23: 0.0 | VPY23: 0.0 | VPZ23: 0.0 | VQA23: 0.0 | VQB23: 0.0 | VQC23: 0.0 | VQD23: 0.0 | VQE23: 0.0 | VQF23: 0.0 | VQG23: 0.0 | VQH23: 0.0 | VQI23: 0.0 | VQJ23: 0.0 | VQK23: 0.0 | VQL23: 0.0 | VQM23: 0.0 | VQN23: 0.0 | VQO23: 0.0 | VQP23: 0.0 | VQQ23: 0.0 | VQR23: 0.0 | VQS23: 0.0 | VQT23: 0.0 | VQU23: 0.0 | VQV23: 0.0 | VQW23: 0.0 | VQX23: 0.0 | VQY23: 0.0 | VQZ23: 0.0 | VRA23: 0.0 | VRB23: 0.0 | VRC23: 0.0 | VRD23: 0.0 | VRE23: 0.0 | VRF23: 0.0 | VRG23: 0.0 | VRH23: 0.0 | VRI23: 0.0 | VRJ23: 0.0 | VRK23: 0.0 | VRL23: 0.0 | VRM23: 0.0 | VRN23: 0.0 | VRO23: 0.0 | VRP23: 0.0 | VRQ23: 0.0 | VRR23: 0.0 | VRS23: 0.0 | VRT23: 0.0 | VRU23: 0.0 | VRV23: 0.0 | VRW23: 0.0 | VRX23: 0.0 | VRY23: 0.0 | VRZ23: 0.0 | VSA23: 0.0 | VSB23: 0.0 | VSC23: 0.0 | VSD23: 0.0 | VSE23: 0.0 | VSF23: 0.0 | VSG23: 0.0 | VSH23: 0.0 | VSI23: 0.0 | VSJ23: 0.0 | VSK23: 0.0 | VSL23: 0.0 | VSM23: 0.0 | VSN23: 0.0 | VSO23: 0.0 | VSP23: 0.0 | VSQ23: 0.0 | VSR23: 0.0 | VSS23: 0.0 | VST23: 0.0 | VSU23: 0.0 | VSV23: 0.0 | VSW23: 0.0 | VSX23: 0.0 | VSY23: 0.0 | VSZ23: 0.0 | VTA23: 0.0 | VTB23: 0.0 | VTC23: 0.0 | VTD23: 0.0 | VTE23: 0.0 | VTF23: 0.0 | VTG23: 0.0 | VTH23: 0.0 | VTI23: 0.0 | VTJ23: 0.0 | VTK23: 0.0 | VTL23: 0.0 | VTM23: 0.0 | VTN23: 0.0 | VTO23: 0.0 | VTP23: 0.0 | VTQ23: 0.0 | VTR23: 0.0 | VTS23: 0.0 | VTT23: 0.0 | VTU23: 0.0 | VTV23: 0.0 | VTW23: 0.0 | VTX23: 0.0 | VTY23: 0.0 | VTZ23: 0.0 | VUA23: 0.0 | VUB23: 0.0 | VUC23: 0.0 | VUD23: 0.0 | VUE23: 0.0 | VUF23: 0.0 | VUG23: 0.0 | VUH23: 0.0 | VUI23: 0.0 | VUJ23: 0.0 | VUK23: 0.0 | VUL23: 0.0 | VUM23: 0.0 | VUN23: 0.0 | VUO23: 0.0 | VUP23: 0.0 | VUQ23: 0.0 | VUR23: 0.0 | VUS23: 0.0 | VUT23: 0.0 | VUU23: 0.0 | VUV23: 0.0 | VUW23: 0.0 | VUX23: 0.0 | VUY23: 0.0 | VUZ23: 0.0 | VVA23: 0.0 | VVB23: 0.0 | VVC23: 0.0 | VVD23: 0.0 | VVE23: 0.0 | VVF23: 0.0 | VVG23: 0.0 | VVH23: 0.0 | VVI23: 0.0 | VVJ23: 0.0 | VVK23: 0.0 | VVL23: 0.0 | VVM23: 0.0 | VVN23: 0.0 | VVO23: 0.0 | VVP23: 0.0 | VVQ23: 0.0 | VVR23: 0.0 | VVS23: 0.0 | VVT23: 0.0 | VVU23: 0.0 | VVV23: 0.0 | VVW23: 0.0 | VVX23: 0.0 | VVY23: 0.0 | VVZ23: 0.0 | VWA23: 0.0 | VWB23: 0.0 | VWC23: 0.0 | VWD23: 0.0 | VWE23: 0.0 | VWF23: 0.0 | VWG23: 0.0 | VWH23: 0.0 | VWI23: 0.0 | VWJ23: 0.0 | VWK23: 0.0 | VWL23: 0.0 | VWM23: 0.0 | VWN23: 0.0 | VWO23: 0.0 | VWP23: 0.0 | VWQ23: 0.0 | VWR23: 0.0 | VWS23: 0.0 | VWT23: 0.0 | VWU23: 0.0 | VWV23: 0.0 | VWW23: 0.0 | VWX23: 0.0 | VWY23: 0.0 | VWZ23: 0.0 | VXA23: 0.0 | VXB23: 0.0 | VXC23: 0.0 | VXD23: 0.0 | VXE23: 0.0 | VXF23: 0.0 | VXG23: 0.0 | VXH23: 0.0 | VXI23: 0.0 | VXJ23: 0.0 | VXK23: 0.0 | VXL23: 0.0 | VXM23: 0.0 | VXN23: 0.0 | VXO23: 0.0 | VXP23: 0.0 | VXQ23: 0.0 | VXR23: 0.0 | VXS23: 0.0 | VXT23: 0.0 | VXU23: 0.0 | VXV23: 0.0 | VXW23: 0.0 | VXX23: 0.0 | VXY23: 0.0 | VXZ23: 0.0 | VYA23: 0.0 | VYB23: 0.0 | VYC23: 0.0 | VYD23: 0.0 | VYE23: 0.0 | VYF23: 0.0 | VYG23: 0.0 | VYH23: 0.0 | VYI23: 0.0 | VYJ23: 0.0 | VYK23: 0.0 | VYL23: 0.0 | VYM23: 0.0 | VYN23: 0.0 | VYO23: 0.0 | VYP23: 0.0 | VYQ23: 0.0 | VYR23: 0.0 | VYS23: 0.0 | VYT23: 0.0 | VYU23: 0.0 | VYV23: 0.0 | VYW23: 0.0 | VYX23: 0.0 | VYY23: 0.0 | VYZ23: 0.0 | VZA23: 0.0 | VZB23: 0.0 | VZC23: 0.0 | VZD23: 0.0 | VZE23: 0.0 | VZF23: 0.0 | VZG23: 0.0 | VZH23: 0.0 | VZI23: 0.0 | VZJ23: 0.0 | VZK23: 0.0 | VZL23: 0.0 | VZM23: 0.0 | VZN23: 0.0 | VZO23: 0.0 | VZP23: 0.0 | VZQ23: 0.0 | VZR23: 0.0 | VZS23: 0.0 | VZT23: 0.0 | VZU23: 0.0 | VZV23: 0.0 | VZW23: 0.0 | VZX23: 0.0 | VZY23: 0.0 | VZZ23: 0.0 | WAA23: 0.0 | WAB23: 0.0 | WAC23: 0.0 | WAD23: 0.0 | WAE23: 0.0 | WAF23: 0.0 | WAG23: 0.0 | WAH23: 0.0 | WAI23: 0.0 | WAJ23: 0.0 | WAK23: 0.0 | WAL23: 0.0 | WAM23: 0.0 | WAN23: 0.0 | WAO23: 0.0 | WAP23: 0.0 | WAQ23: 0.0 | WAR23: 0.0 | WAS23: 0.0 | WAT23: 0.0 | WAU23: 0.0 | WAV23: 0.0 | WAW23: 0.0 | WAX23: 0.0 | WAY23: 0.0 | WAZ23: 0.0 | WBA23: 0.0 | WBB23: 0.0 | WBC23: 0.0 | WBD23: 0.0 | WBE23: 0.0 | WBF23: 0.0 | WBG23: 0.0 | WBH23: 0.0 | WBI23: 0.0 | WBJ23: 0.0 | WBK23: 0.0 | WBL23: 0.0 | WBM23: 0.0 | WBN23: 0.0 | WBO23: 0.0 | WBP23: 0.0 | WBQ23: 0.0 | WBR23: 0.0 | WBS23: 0.0 | WBT23: 0.0 | WBU23: 0.0 | WBV23: 0.0 | WBW23: 0.0 | WBX23: 0.0 | WBY23: 0.0 | WBZ23: 0.0 | WCA23: 0.0 | WCB23: 0.0 | WCC23: 0.0 | WCD23: 0.0 | WCE23: 0.0 | WCF23: 0.0 | WCG23: 0.0 | WCH23: 0.0 | WCI23: 0.0 | WCJ23: 0.0 | WCK23: 0.0 | WCL23: 0.0 | WCM23: 0.0 | WCN23: 0.0 | WCO23: 0.0 | WCP23: 0.0 | WCQ23: 0.0 | WCR23: 0.0 | WCS23: 0.0 | WCT23: 0.0 | WCU23: 0.0 | WCV23: 0.0 | WCW23: 0.0 | WCX23: 0.0 | WCY23: 0.0 | WCZ23: 0.0 | WDA23: 0.0 | WDB23: 0.0 | WDC23: 0.0 | WDD23: 0.0 | WDE23: 0.0 | WDF23: 0.0 | WDG23: 0.0 | WDH23: 0.0 | WDI23: 0.0 | WDJ23: 0.0 | WDK23: 0.0 | WDL23: 0.0 | WDM23: 0.0 | WDN23: 0.0 | WDO23: 0.0 | WDP23: 0.0 | WDQ23: 0.0 | WDR23: 0.0 | WDS23: 0.0 | WDT23: 0.0 | WDU23: 0.0 | WDV23: 0.0 | WDW23: 0.0 | WDX23: 0.0 | WDY23: 0.0 | WDZ23: 0.0 | WEA23: 0.0 | WEB23: 0.0 | WEC23: 0.0 | WED23: 0.0 | WEE23: 0.0 | WEF23: 0.0 | WEG23: 0.0 | WEH23: 0.0 | WEI23: 0.0 | WEJ23: 0.0 | WEK23: 0.0 | WEL23: 0.0 | WEM23: 0.0 | WEN23: 0.0 | WEO23: 0.0 | WEP23: 0.0 | WEQ23: 0.0 | WER23: 0.0 | WES23: 0.0 | WET23: 0.0 | WEU23: 0.0 | WEV23: 0.0 | WEW23: 0.0 | WEX23: 0.0 | WEY23: 0.0 | WEZ23: 0.0 | WFA23: 0.0 | WFB23: 0.0 | WFC23: 0.0 | WFD23: 0.0 | WFE23: 0.0 | WFF23: 0.0 | WFG23: 0.0 | WFH23: 0.0 | WFI23: 0.0 | WFJ23: 0.0 | WFK23: 0.0 | WFL23: 0.0 | WFM23: 0.0 | WFN23: 0.0 | WFO23: 0.0 | WFP23: 0.0 | WFQ23: 0.0 | WFR23: 0.0 | WFS23: 0.0 | WFT23: 0.0 | WFU23: 0.0 | WFV23: 0.0 | WFW23: 0.0 | WFX23: 0.0 | WFY23: 0.0 | WFZ23: 0.0 | WGA23: 0.0 | WGB23: 0.0 | WGC23: 0.0 | WGD23: 0.0 | WGE23: 0.0 | WGF23: 0.0 | WGG23: 0.0 | WGH23: 0.0 | WGI23: 0.0 | WGJ23: 0.0 | WGK23: 0.0 | WGL23: 0.0 | WGM23: 0.0 | WGN23: 0.0 | WGO23: 0.0 | WGP23: 0.0 | WGQ23: 0.0 | WGR23: 0.0 | WGS23: 0.0 | WGT23: 0.0 | WGU23: 0.0 | WGV23: 0.0 | WGW23: 0.0 | WGX23: 0.0 | WGY23: 0.0 | WGZ23: 0.0 | WHA23: 0.0 | WHB23: 0.0 | WHC23: 0.0 | WHD23: 0.0 | WHE23: 0.0 | WHF23: 0.0 | WHG23: 0.0 | WHH23: 0.0 | WHI23: 0.0 | WHJ23: 0.0 | WHK23: 0.0 | WHL23: 0.0 | WHM23: 0.0 | WHN23: 0.0 | WHO23: 0.0 | WHP23: 0.0 | WHQ23: 0.0 | WHR23: 0.0 | WHS23: 0.0 | WHT23: 0.0 | WHU23: 0.0 | WHV23: 0.0 | WHW23: 0.0 | WHX23: 0.0 | WHY23: 0.0 | WHZ23: 0.0 | WIA23: 0.0 | WIB23: 0.0 | WIC23: 0.0 | WID23: 0.0 | WIE23: 0.0 | WIF23: 0.0 | WIG23: 0.0 | WIH23: 0.0 | WII23: 0.0 | WIJ23: 0.0 | WIK23: 0.0 | WIL23: 0.0 | WIM23: 0.0 | WIN23: 0.0 | WIO23: 0.0 | WIP23: 0.0 | WIQ23: 0.0 | WIR23: 0.0 | WIS23: 0.0 | WIT23: 0.0 | WIU23: 0.0 | WIV23: 0.0 | WIW23: 0.0 | WIX23: 0.0 | WIY23: 0.0 | WIZ23: 0.0 | WJA23: 0.0 | WJB23: 0.0 | WJC23: 0.0 | WJD23: 0.0 | WJE23: 0.0 | WJF23: 0.0 | WJG23: 0.0 | WJH23: 0.0 | WJI23: 0.0 | WJJ23: 0.0 | WJK23: 0.0 | WJL23: 0.0 | WJM23: 0.0 | WJN23: 0.0 | WJO23: 0.0 | WJP23: 0.0 | WJQ23: 0.0 | WJR23: 0.0 | WJS23: 0.0 | WJT23: 0.0 | WJU23: 0.0 | WJV23: 0.0 | WJW23: 0.0 | WJX23: 0.0 | WJY23: 0.0 | WJZ23: 0.0 | WKA23: 0.0 | WKB23: 0.0 | WKC23: 0.0 | WKD23: 0.0 | WKE23: 0.0 | WKF23: 0.0 | WKG23: 0.0 | WKH23: 0.0 | WKI23: 0.0 | WKJ23: 0.0 | WKK23: 0.0 | WKL23: 0.0 | WKM23: 0.0 | WKN23: 0.0 | WKO23: 0.0 | WKP23: 0.0 | WKQ23: 0.0 | WKR23: 0.0 | WKS23: 0.0 | WKT23: 0.0 | WKU23: 0.0 | WKV23: 0.0 | WKW23: 0.0 | WKX23: 0.0 | WKY23: 0.0 | WKZ23: 0.0 | WLA23: 0.0 | WLB23: 0.0 | WLC23: 0.0 | WLD23: 0.0 | WLE23: 0.0 | WLF23: 0.0 | WLG23: 0.0 | WLH23: 0.0 | WLI23: 0.0 | WLJ23: 0.0 | WLK23: 0.0 | WLL23: 0.0 | WLM23: 0.0 | WLN23: 0.0 | WLO23: 0.0 | WLP23: 0.0 | WLQ23: 0.0 | WLR23: 0.0 | WLS23: 0.0 | WLT23: 0.0 | WLU23: 0.0 | WLV23: 0.0 | WLW23: 0.0 | WLX23: 0.0 | WLY23: 0.0 | WLZ23: 0.0 | WMA23: 0.0 | WMB23: 0.0 | WMC23: 0.0 | WMD23: 0.0 | WME23: 0.0 | WMF23: 0.0 | WMG23: 0.0 | WMH23: 0.0 | WMI23: 0.0 | WMJ23: 0.0 | WMK23: 0.0 | WML23: 0.0 | WMM23: 0.0 | WMN23: 0.0 | WMO23: 0.0 | WMP23: 0.0 | WMQ23: 0.0 | WMR23: 0.0 | WMS23: 0.0 | WMT23: 0.0 | WMU23: 0.0 | WMV23: 0.0 | WMW23: 0.0 | WMX23: 0.0 | WMY23: 0.0 | WMZ23: 0.0 | WNA23: 0.0 | WNB23: 0.0 | WNC23: 0.0 | WND23: 0.0 | WNE23: 0.0 | WNF23: 0.0 | WNG23: 0.0 | WNH23: 0.0 | WNI23: 0.0 | WNJ23: 0.0 | WNK23: 0.0 | WNL23: 0.0 | WNM23: 0.0 | WNN23: 0.0 | WNO23: 0.0 | WNP23: 0.0 | WNQ23: 0.0 | WNR23: 0.0 | WNS23: 0.0 | WNT23: 0.0 | WNU23: 0.0 | WNV23: 0.0 | WNW23: 0.0 | WNX23: 0.0 | WNY23: 0.0 | WNZ23: 0.0 | WOA23: 0.0 | WOB23: 0.0 | WOC23: 0.0 | WOD23: 0.0 | WOE23: 0.0 | WOF23: 0.0 | WOG23: 0.0 | WOH23: 0.0 | WOI23: 0.0 | WOJ23: 0.0 | WOK23: 0.0 | WOL23: 0.0 | WOM23: 0.0 | WON23: 0.0 | WOO23: 0.0 | WOP23: 0.0 | WOQ23: 0.0 | WOR23: 0.0 | WOS23: 0.0 | WOT23: 0.0 | WOU23: 0.0 | WOV23: 0.0 | WOW23: 0.0 | WOX23: 0.0 | WOY23: 0.0 | WOZ23: 0.0 | WPA23: 0.0 | WPB23: 0.0 | WPC23: 0.0 | WPD23: 0.0 | WPE23: 0.0 | WPF23: 0.0 | WPG23: 0.0 | WPH23: 0.0 | WPI23: 0.0 | WPJ23: 0.0 | WPK23: 0.0 | WPL23: 0.0 | WPM23: 0.0 | WPN23: 0.0 | WPO23: 0.0 | WPP23: 0.0 | WPQ23: 0.0 | WPR23: 0.0 | WPS23: 0.0 | WPT23: 0.0 | WPU23: 0.0 | WPV23: 0.0 | WPW23: 0.0 | WPX23: 0.0 | WPY23: 0.0 | WPZ23: 0.0 | WQA23: 0.0 | WQB23: 0.0 | WQC23: 0.0 | WQD23: 0.0 | WQE23: 0.0 | WQF23: 0.0 | WQG23: 0.0 | WQH23: 0.0 | WQI23: 0.0 | WQJ23: 0.0 | WQK23: 0.0 | WQL23: 0.0 | WQM23: 0.0 | WQN23: 0.0 | WQO23: 0.0 | WQP23: 0.0 | WQQ23: 0.0 | WQR23: 0.0 | WQS23: 0.0 | WQT23: 0.0 | WQU23: 0.0 | WQV23: 0.0 | WQW23: 0.0 | WQX23: 0.0 | WQY23: 0.0 | WQZ23: 0.0 | WRA23: 0.0 | WRB23: 0.0 | WRC23: 0.0 | WRD23: 0.0 | WRE23: 0.0 | WRF23: 0.0 | WRG23: 0.0 | WRH23: 0.0 | WRI23: 0.0 | WRJ23: 0.0 | WRK23: 0.0 | WRL23: 0.0 | WRM23: 0.0 | WRN23: 0.0 | WRO23: 0.0 | WRP23: 0.0 | WRQ23: 0.0 | WRR23: 0.0 | WRS23: 0.0 | WRT23: 0.0 | WRU23: 0.0 | WRV23: 0.0 | WRW23: 0.0 | WRX23: 0.0 | WRY23: 0.0 | WRZ23: 0.0 | WSA23: 0.0 | WSB23: 0.0 | WSC23: 0.0 | WSD23: 0.0 | WSE23: 0.0 | WSF23: 0.0 | WSG23: 0.0 | WSH23: 0.0 | WSI23: 0.0 | WSJ23: 0.0 | WSK23: 0.0 | WSL23: 0.0 | WSM23: 0.0 | WSN23: 0.0 | WSO23: 0.0 | WSP23: 0.0 | WSQ23: 0.0 | WSR23: 0.0 | WSS23: 0.0 | WST23: 0.0 | WSU23: 0.0 | WSV23: 0.0 | WSW23: 0.0 | WSX23: 0.0 | WSY23: 0.0 | WSZ23: 0.0 | WTA23: 0.0 | WTB23: 0.0 | WTC23: 0.0 | WTD23: 0.0 | WTE23: 0.0 | WTF23: 0.0 | WTG23: 0.0 | WTH23: 0.0 | WTI23: 0.0 | WTJ23: 0.0 | WTK23: 0.0 | WTL23: 0.0 | WTM23: 0.0 | WTN23: 0.0 | WTO23: 0.0 | WTP23: 0.0 | WTQ23: 0.0 | WTR23: 0.0 | WTS23: 0.0 | WTT23: 0.0 | WTU23: 0.0 | WTV23: 0.0 | WTW23: 0.0 | WTX23: 0.0 | WTY23: 0.0 | WTZ23: 0.0 | WUA23: 0.0 | WUB23: 0.0 | WUC23: 0.0 | WUD23: 0.0 | WUE23: 0.0 | WUF23: 0.0 | WUG23: 0.0 | WUH23: 0.0 | WUI23: 0.0 | WUJ23: 0.0 | WUK23: 0.0 | WUL23: 0.0 | WUM23: 0.0 | WUN23: 0.0 | WUO23: 0.0 | WUP23: 0.0 | WUQ23: 0.0 | WUR23: 0.0 | WUS23: 0.0 | WUT23: 0.0 | WUU23: 0.0 | WUV23: 0.0 | WUW23: 0.0 | WUX23: 0.0 | WUY23: 0.0 | WUZ23: 0.0 | WVA23: 0.0 | WVB23: 0.0 | WVC23: 0.0 | WVD23: 0.0 | WVE23: 0.0 | WVF23: 0.0 | WVG23: 0.0 | WVH23: 0.0 | WVI23: 0.0 | WVJ23: 0.0 | WVK23: 0.0 | WVL23: 0.0 | WVM23: 0.0 | WVN23: 0.0 | WVO23: 0.0 | WVP23: 0.0 | WVQ23: 0.0 | WVR23: 0.0 | WVS23: 0.0 | WVT23: 0.0 | WVU23: 0.0 | WVV23: 0.0 | WVW23: 0.0 | WVX23: 0.0 | WVY23: 0.0 | WVZ23: 0.0 | WWA23: 0.0 | WWB23: 0.0 | WWC23: 0.0 | WWD23: 0.0 | WWE23: 0.0 | WWF23: 0.0 | WWG23: 0.0 | WWH23: 0.0 | WWI23: 0.0 | WWJ23: 0.0 | WWK23: 0.0 | WWL23: 0.0 | WWM23: 0.0 | WWN23: 0.0 | WWO23: 0.0 | WWP23: 0.0 | WWQ23: 0.0 | WWR23: 0.0 | WWS23: 0.0 | WWT23: 0.0 | WWU23: 0.0 | WWV23: 0.0 | WWW23: 0.0 | WWX23: 0.0 | WWY23: 0.0 | WWZ23: 0.0 | WXA23: 0.0 | WXB23: 0.0 | WXC23: 0.0 | WXD23: 0.0 | WXE23: 0.0 | WXF23: 0.0 | WXG23: 0.0 | WXH23: 0.0 | WXI23: 0.0 | WXJ23: 0.0 | WXK23: 0.0 | WXL23: 0.0 | WXM23: 0.0 | WXN23: 0.0 | WXO23: 0.0 | WXP23: 0.0 | WXQ23: 0.0 | WXR23: 0.0 | WXS23: 0.0 | WXT23: 0.0 | WXU23: 0.0 | WXV23: 0.0 | WXW23: 0.0 | WXX23: 0.0 | WXY23: 0.0 | WXZ23: 0.0 | WYA23: 0.0 | WYB23: 0.0 | WYC23: 0.0 | WYD23: 0.0 | WYE23: 0.0 | WYF23: 0.0 | WYG23: 0.0 | WYH23: 0.0 | WYI23: 0.0 | WYJ23: 0.0 | WYK23: 0.0 | WYL23: 0.0 | WYM23: 0.0 | WYN23: 0.0 | WYO23: 0.0 | WYP23: 0.0 | WYQ23: 0.0 | WYR23: 0.0 | WYS23: 0.0 | WYT23: 0.0 | WYU23: 0.0 | WYV23: 0.0 | WYW23: 0.0 | WYX23: 0.0 | WYY23: 0.0 | WYZ23: 0.0 | WZA23: 0.0 | WZB23: 0.0 | WZC23: 0.0 | WZD23: 0.0 | WZE23: 0.0 | WZF23: 0.0 | WZG23: 0.0 | WZH23: 0.0 | WZI23: 0.0 | WZJ23: 0.0 | WZK23: 0.0 | WZL23: 0.0 | WZM23: 0.0 | WZN23: 0.0 | WZO23: 0.0 | WZP23: 0.0 | WZQ23: 0.0 | WZR23: 0.0 | WZS23: 0.0 | WZT23: 0.0 | WZU23: 0.0 | WZV23: 0.0 | WZW23: 0.0 | WZX23: 0.0 | WZY23: 0.0 | WZZ23: 0.0 | XAA23: 0.0 | XAB23: 0.0 | XAC23: 0.0 | XAD23: 0.0 | XAE23: 0.0 | XAF23: 0.0 | XAG23: 0.0 | XAH23: 0.0 | XAI23: 0.0 | XAJ23: 0.0 | XAK23: 0.0 | XAL23: 0.0 | XAM23: 0.0 | XAN23: 0.0 | XAO23: 0.0 | XAP23: 0.0 | XAQ23: 0.0 | XAR23: 0.0 | XAS23: 0.0 | XAT23: 0.0 | XAU23: 0.0 | XAV23: 0.0 | XAW23: 0.0 | XAX23: 0.0 | XAY23: 0.0 | XAZ23: 0.0 | XBA23: 0.0 | XBB23: 0.0 | XBC23: 0.0 | XBD23: 0.0 | XBE23: 0.0 | XBF23: 0.0 | XBG23: 0.0 | XBH23: 0.0 | XBI23: 0.0 | XBJ23: 0.0 | XBK23: 0.0 | XBL23: 0.0 | XBM23: 0.0 | XBN23: 0.0 | XBO23: 0.0 | XBP23: 0.0 | XBQ23: 0.0 | XBR23: 0.0 | XBS23: 0.0 | XBT23: 0.0 | XBU23: 0.0 | XBV23: 0.0 | XBW23: 0.0 | XBX23: 0.0 | XBY23: 0.0 | XBZ23: 0.0 | XCA23: 0.0 | XCB23: 0.0 | XCC23: 0.0 | XCD23: 0.0 | XCE23: 0.0 | XCF23: 0.0 | XCG23: 0.0 | XCH23: 0.0 | XCI23: 0.0 | XCJ23: 0.0 | XCK23: 0.0 | XCL23: 0.0 | XCM23: 0.0 | XCN23: 0.0 | XCO23: 0.0 | XCP23: 0.0 | XCQ23: 0.0 | XCR23: 0.0 | XCS23: 0.0 | XCT23: 0.0 | XCU23: 0.0 | XCV23: 0.0 | XCW23: 0.0 | XCX23: 0.0 | XCY23: 0.0 | XCZ23: 0.0 | XDA23: 0.0 | XDB23: 0.0 | XDC23: 0.0 | XDD23: 0.0 | XDE23: 0.0 | XDF23: 0.0 | XDG23: 0.0 | XDH23: 0.0 | XDI23: 0.0 | XDJ23: 0.0 | XDK23: 0.0 | XDL23: 0.0 | XDM23: 0.0 | XDN23: 0.0 | XDO23: 0.0 | XDP23: 0.0 | XDQ23: 0.0 | XDR23: 0.0 | XDS23: 0.0 | XDT23: 0.0 | XDU23: 0.0 | XDV23: 0.0 | XDW23: 0.0 | XDX23: 0.0 | XDY23: 0.0 | XDZ23: 0.0 | XEA23: 0.0 | XEB23: 0.0 | XEC23: 0.0 | XED23: 0.0 | XEE23: 0.0 | XEF23: 0.0 | XEG23: 0.0 | XEH23: 0.0 | XEI23: 0.0 | XEJ23: 0.0 | XEK23: 0.0 | XEL23: 0.0 | XEM23: 0.0 | XEN23: 0.0 | XEO23: 0.0 | XEP23: 0.0 | XEQ23: 0.0 | XER23: 0.0 | XES23: 0.0 | XET23: 0.0 | XEU23: 0.0 | XEV23: 0.0 | XEW23: 0.0 | XEX23: 0.0 | XEY23: 0.0 | XEZ23: 0.0 | XFA23: 0.0 | XFB23: 0.0 | XFC23: 0.0 | XFD23: 0.0
